Workbook

Sheet INTRO
B2: PC Joint Reporting Form v.3.1
B4: The purpose of this template Joint Reporting Form (JRF) - available as an Excel file - is to provide national health authorities and data managers with a standardized tool to address these reporting challenges, facilitate integration and thereby further contribute to improving overall programme management. This template aims to standardize national reporting of programme implementation outcomes, improve availability and coordination of preventive chemotherapy data across the World Health Organization regions. National authorities are requested to complete this form for submission to the World Health Organization any time before 15 August of the current year for reporting data on PC interventions implemented during the previous year.
B6: Structure of the application (worksheets):
B8: INTRO | C8: This worksheet includes guides on how to complete the joint reporting form and information about status of PC for endemic diseases in the country
B9: COUNTRY_INFO | C9: This worksheet includes information about administrative structure of the country, population by age group, status of endemicity for each disease, population requiring PC, planned interventions and interventions implemented
B10: MDA1, MDA2, MDA3, T1, T2 and T3 | C10: These worksheets include information about endemic districts targeted for treatment with specified PC medicines, treatment plan, and number of people who received treatment by age group
B11: DISTRICT | C11: This worksheet includes summary of people treated by disease at the level of implementation. If data by gender is available, it requires to enter.
B12: SUMMARY | C12: This worksheet includes summary of people treated by disease and by PC intervention. Before generating the report (run macros) please select the disease for which you need the report. Follow the same rule to generate various reports. This worksheet should be printed and submitted as a Joint Report (see the instruction for submission in the SUMMARY worksheet).
B14: Instruction for data entry
B16: Most of the cells in the above-mentioned worksheets include formula that are calculated automatically according to the treatment policy recommended by WHO for each disease. See the link http://www.who.int/neglected_diseases/preventive_chemotherapy/pct_manual/en/index.html
B18: Please enter your data into the cells according to their colour code:
C20: White - cell is not protected. Please enter the value of the requested indicator.
C22: Yellow - cell is protected and includes name of indicator. No data entry required.
C24: Orange - cell is not protected and includes a drop-down menu. Please select the value from the drop-down list.
C27: Green - cell is not protected and includes formula. Please change the value only if your data are different from those that are calculated automatically.
C30: Blue - cell is protected and includes formula. No data entry required.
B32: Country data
B34: COUNTRY | E34: Rwanda
B36: Year of reporting data | E36: 2018
B38: Is country endemic for lymphatic filariasis (LF)? | E38: Non-endemic
B40: Is country endemic for onchocerciasis (ONCHO)? | E40: Non-endemic
B42: Is country endemic for soil-transmitted helminthiases (STH)? | E42: Endemic
B44: Is country endemic for schistosomiasis (SCH)? | E44: Endemic
B46: How many administrative units in the country? | E46: 30
B47: If demographical data at the second administrative level are not available by age group, please enter the proportion (%) of population by age group in the country. If data are available, please leave these cells blank.
B48: 1-4 years age | C48: Preschool-age children (PreSAC) | E48: 0.117
B49: 5-14 years age | C49: School-age children (SAC) | E49: 0.288
B50: 15 years + | C50: Adults | E50: 0.566

Sheet COUNTRY_INFO
A1: COUNTRY INFORMATION
A2: Administrative structure, population by age group, endemicity status, planned interventions and interventions implemented
A4: TOTAL | D4: =SUM(D$9:D$1000) -> 12089720 | E4: =SUM(E$9:E$1000) -> 1414499 | F4: =SUM(F$9:F$1000) -> 3481840 | G4: =SUM(G$9:G$1000) -> 6842781 | L4: =SUM(L$9:L$1000) -> 0 | M4: =SUM(M$9:M$1000) -> 0 | N4: =SUM(N$9:N$1000) -> 3715035 | O4: =SUM(O$9:O$1000) -> 1179683
A6: Country administrative structure | D6: Population | H6: Endemicity | L6: Population requiring PC | P6: Number of treatment rounds planned for the year | T6: PC implemented | V6: Click to see the recommended strategy
A7: Country | B7: Province/State | C7: District | D7: Total | E7: PreSAC | F7: SAC | G7: Adults | H7: LF | I7: Oncho | J7: STH | K7: SCH | L7: LF | M7: Oncho | N7: STH | O7: SCH | P7: LF | Q7: Oncho | R7: STH | S7: SCH | T7: ROUND 1 | U7: ROUND2 | X7: IU_ID | Y7: IU_Name
A9: =IF(INTRO!$E$34<>0,INTRO!$E$34,"") -> Rwanda | B9: East | C9: Bugesera | D9: 422057 | E9: =IF(INTRO!$E$48="","",ROUND($D9*INTRO!$E$48,0)) -> 49381 | F9: =IF(INTRO!$E$49="","",ROUND($D9*INTRO!$E$49,0)) -> 121552 | G9: =IF(INTRO!$E$50="","",ROUND($D9*INTRO!$E$50,0)) -> 238884 | J9: 1 | K9: 2 | L9: =IF(INTRO!$E$38="Endemic", IF($H9>0, IF($H9=4,"Unknown", IF($H9=99,"Stopped", $D9)), 0),"Not required") -> Not required | M9: =IF(INTRO!$E$40="Endemic", IF($I9>0, IF($I9=4,"Unknown",IF($I9=99,"Stopped", $D9)), 0),"Not required") -> Not required | N9: =IF(INTRO!$E$42="Endemic", IF(AND($J9>1,$J9<5), IF($J9=4, "Unknown", E9+F9), 0),"Not required") -> 0 | O9: 64242 | R9: 2 | S9: 1 | T9: T2 (PZQ) | U9: T3 (ALB/MBD) | W9: T1 | X9: 38111 | Y9: Bugesera | AA9: 1 | AB9: 2 | AC9: =AA9=J9 -> TRUE | AD9: =AB9=K9 -> TRUE
A10: =IF(INTRO!$E$34<>0,INTRO!$E$34,"") -> Rwanda | B10: North | C10: Burera | D10: 352888 | E10: =IF(INTRO!$E$48="","",ROUND($D10*INTRO!$E$48,0)) -> 41288 | F10: =IF(INTRO!$E$49="","",ROUND($D10*INTRO!$E$49,0)) -> 101632 | G10: =IF(INTRO!$E$50="","",ROUND($D10*INTRO!$E$50,0)) -> 199735 | J10: 3 | K10: 2 | L10: =IF(INTRO!$E$38="Endemic", IF($H10>0, IF($H10=4,"Unknown", IF($H10=99,"Stopped", $D10)), 0),"Not required") -> Not required | M10: =IF(INTRO!$E$40="Endemic", IF($I10>0, IF($I10=4,"Unknown",IF($I10=99,"Stopped", $D10)), 0),"Not required") -> Not required | N10: =IF(INTRO!$E$42="Endemic", IF(AND($J10>1,$J10<5), IF($J10=4, "Unknown", E10+F10), 0),"Not required") -> 142920 | O10: 80931 | R10: 2 | S10: 1 | T10: T1 (PZQ+ALB/MBD) | U10: T3 (ALB/MBD) | V10: T1 | W10: T3 | X10: 38121 | Y10: Burera | AA10: 3 | AB10: 2 | AC10: =AA10=J10 -> TRUE | AD10: =AB10=K10 -> TRUE
A11: =IF(INTRO!$E$34<>0,INTRO!$E$34,"") -> Rwanda | B11: North | C11: Gakenke | D11: 351439 | E11: =IF(INTRO!$E$48="","",ROUND($D11*INTRO!$E$48,0)) -> 41118 | F11: =IF(INTRO!$E$49="","",ROUND($D11*INTRO!$E$49,0)) -> 101214 | G11: =IF(INTRO!$E$50="","",ROUND($D11*INTRO!$E$50,0)) -> 198914 | J11: 3 | K11: 2 | L11: =IF(INTRO!$E$38="Endemic", IF($H11>0, IF($H11=4,"Unknown", IF($H11=99,"Stopped", $D11)), 0),"Not required") -> Not required | M11: =IF(INTRO!$E$40="Endemic", IF($I11>0, IF($I11=4,"Unknown",IF($I11=99,"Stopped", $D11)), 0),"Not required") -> Not required | N11: =IF(INTRO!$E$42="Endemic", IF(AND($J11>1,$J11<5), IF($J11=4, "Unknown", E11+F11), 0),"Not required") -> 142332 | O11: 48000 | R11: 2 | S11: 1 | T11: T1 (PZQ+ALB/MBD) | U11: T3 (ALB/MBD) | V11: T1 | W11: T3 | X11: 38122 | Y11: Gakenke | AA11: 3 | AB11: 2 | AC11: TRUE | AD11: TRUE
A12: =IF(INTRO!$E$34<>0,INTRO!$E$34,"") -> Rwanda | B12: Kigali | C12: Gasabo | D12: 673458 | E12: =IF(INTRO!$E$48="","",ROUND($D12*INTRO!$E$48,0)) -> 78795 | F12: =IF(INTRO!$E$49="","",ROUND($D12*INTRO!$E$49,0)) -> 193956 | G12: =IF(INTRO!$E$50="","",ROUND($D12*INTRO!$E$50,0)) -> 381177 | J12: 1 | K12: 1 | L12: =IF(INTRO!$E$38="Endemic", IF($H12>0, IF($H12=4,"Unknown", IF($H12=99,"Stopped", $D12)), 0),"Not required") -> Not required | M12: =IF(INTRO!$E$40="Endemic", IF($I12>0, IF($I12=4,"Unknown",IF($I12=99,"Stopped", $D12)), 0),"Not required") -> Not required | N12: =IF(INTRO!$E$42="Endemic", IF(AND($J12>1,$J12<5), IF($J12=4, "Unknown", E12+F12), 0),"Not required") -> 0 | R12: 2 | S12: 0 | T12: T3 (ALB/MBD) | U12: T3 (ALB/MBD) | W12: T2 | X12: 38118 | Y12: Gasabo | AA12: 1 | AB12: 1 | AC12: TRUE | AD12: TRUE
A13: =IF(INTRO!$E$34<>0,INTRO!$E$34,"") -> Rwanda | B13: East | C13: Gatsibo | D13: 532951 | E13: =IF(INTRO!$E$48="","",ROUND($D13*INTRO!$E$48,0)) -> 62355 | F13: =IF(INTRO!$E$49="","",ROUND($D13*INTRO!$E$49,0)) -> 153490 | G13: =IF(INTRO!$E$50="","",ROUND($D13*INTRO!$E$50,0)) -> 301650 | J13: 2 | K13: 2 | L13: =IF(INTRO!$E$38="Endemic", IF($H13>0, IF($H13=4,"Unknown", IF($H13=99,"Stopped", $D13)), 0),"Not required") -> Not required | M13: =IF(INTRO!$E$40="Endemic", IF($I13>0, IF($I13=4,"Unknown",IF($I13=99,"Stopped", $D13)), 0),"Not required") -> Not required | N13: =IF(INTRO!$E$42="Endemic", IF(AND($J13>1,$J13<5), IF($J13=4, "Unknown", E13+F13), 0),"Not required") -> 215845 | O13: 48115 | R13: 2 | S13: 1 | T13: T1 (PZQ+ALB/MBD) | U13: T3 (ALB/MBD) | W13: T1 | X13: 38112 | Y13: Gatsibo | AA13: 2 | AB13: 2 | AC13: TRUE | AD13: TRUE
A14: =IF(INTRO!$E$34<>0,INTRO!$E$34,"") -> Rwanda | B14: North | C14: Gicumbi | D14: 429445 | E14: =IF(INTRO!$E$48="","",ROUND($D14*INTRO!$E$48,0)) -> 50245 | F14: =IF(INTRO!$E$49="","",ROUND($D14*INTRO!$E$49,0)) -> 123680 | G14: =IF(INTRO!$E$50="","",ROUND($D14*INTRO!$E$50,0)) -> 243066 | J14: 3 | K14: 2 | L14: =IF(INTRO!$E$38="Endemic", IF($H14>0, IF($H14=4,"Unknown", IF($H14=99,"Stopped", $D14)), 0),"Not required") -> Not required | M14: =IF(INTRO!$E$40="Endemic", IF($I14>0, IF($I14=4,"Unknown",IF($I14=99,"Stopped", $D14)), 0),"Not required") -> Not required | N14: =IF(INTRO!$E$42="Endemic", IF(AND($J14>1,$J14<5), IF($J14=4, "Unknown", E14+F14), 0),"Not required") -> 173925 | O14: 22696 | R14: 2 | S14: 1 | T14: T1 (PZQ+ALB/MBD) | U14: T3 (ALB/MBD) | V14: T1 | W14: T3 | X14: 38123 | Y14: Gicumbi | AA14: 3 | AB14: 2 | AC14: TRUE | AD14: TRUE
A15: =IF(INTRO!$E$34<>0,INTRO!$E$34,"") -> Rwanda | B15: South | C15: Gisagara | D15: 359857 | E15: =IF(INTRO!$E$48="","",ROUND($D15*INTRO!$E$48,0)) -> 42103 | F15: =IF(INTRO!$E$49="","",ROUND($D15*INTRO!$E$49,0)) -> 103639 | G15: =IF(INTRO!$E$50="","",ROUND($D15*INTRO!$E$50,0)) -> 203679 | J15: 2 | K15: 2 | L15: =IF(INTRO!$E$38="Endemic", IF($H15>0, IF($H15=4,"Unknown", IF($H15=99,"Stopped", $D15)), 0),"Not required") -> Not required | M15: =IF(INTRO!$E$40="Endemic", IF($I15>0, IF($I15=4,"Unknown",IF($I15=99,"Stopped", $D15)), 0),"Not required") -> Not required | N15: =IF(INTRO!$E$42="Endemic", IF(AND($J15>1,$J15<5), IF($J15=4, "Unknown", E15+F15), 0),"Not required") -> 145742 | O15: 66446 | R15: 2 | S15: 1 | T15: T1 (PZQ+ALB/MBD) | U15: T1 (PZQ+ALB/MBD) | W15: T1 | X15: 38126 | Y15: Gisagara | AA15: 2 | AB15: 2 | AC15: TRUE | AD15: TRUE
A16: =IF(INTRO!$E$34<>0,INTRO!$E$34,"") -> Rwanda | B16: South | C16: Huye | D16: 367311 | E16: =IF(INTRO!$E$48="","",ROUND($D16*INTRO!$E$48,0)) -> 42975 | F16: =IF(INTRO!$E$49="","",ROUND($D16*INTRO!$E$49,0)) -> 105786 | G16: =IF(INTRO!$E$50="","",ROUND($D16*INTRO!$E$50,0)) -> 207898 | J16: 3 | K16: 1 | L16: =IF(INTRO!$E$38="Endemic", IF($H16>0, IF($H16=4,"Unknown", IF($H16=99,"Stopped", $D16)), 0),"Not required") -> Not required | M16: =IF(INTRO!$E$40="Endemic", IF($I16>0, IF($I16=4,"Unknown",IF($I16=99,"Stopped", $D16)), 0),"Not required") -> Not required | N16: =IF(INTRO!$E$42="Endemic", IF(AND($J16>1,$J16<5), IF($J16=4, "Unknown", E16+F16), 0),"Not required") -> 148761 | R16: 2 | S16: 0 | T16: T3 (ALB/MBD) | U16: T3 (ALB/MBD) | V16: T1 | W16: T3 | X16: 38127 | Y16: Huye | AA16: 3 | AB16: 1 | AC16: TRUE | AD16: TRUE
A17: =IF(INTRO!$E$34<>0,INTRO!$E$34,"") -> Rwanda | B17: South | C17: Kamonyi | D17: 392599 | E17: =IF(INTRO!$E$48="","",ROUND($D17*INTRO!$E$48,0)) -> 45934 | F17: =IF(INTRO!$E$49="","",ROUND($D17*INTRO!$E$49,0)) -> 113069 | G17: =IF(INTRO!$E$50="","",ROUND($D17*INTRO!$E$50,0)) -> 222211 | J17: 2 | K17: 2 | L17: =IF(INTRO!$E$38="Endemic", IF($H17>0, IF($H17=4,"Unknown", IF($H17=99,"Stopped", $D17)), 0),"Not required") -> Not required | M17: =IF(INTRO!$E$40="Endemic", IF($I17>0, IF($I17=4,"Unknown",IF($I17=99,"Stopped", $D17)), 0),"Not required") -> Not required | N17: =IF(INTRO!$E$42="Endemic", IF(AND($J17>1,$J17<5), IF($J17=4, "Unknown", E17+F17), 0),"Not required") -> 159003 | O17: 111634 | R17: 2 | S17: 1 | T17: T1 (PZQ+ALB/MBD) | U17: T3 (ALB/MBD) | W17: T1 | X17: 38128 | Y17: Kamonyi | AA17: 2 | AB17: 2 | AC17: TRUE | AD17: TRUE
A18: =IF(INTRO!$E$34<>0,INTRO!$E$34,"") -> Rwanda | B18: West | C18: Karongi | D18: 364067 | E18: =IF(INTRO!$E$48="","",ROUND($D18*INTRO!$E$48,0)) -> 42596 | F18: =IF(INTRO!$E$49="","",ROUND($D18*INTRO!$E$49,0)) -> 104851 | G18: =IF(INTRO!$E$50="","",ROUND($D18*INTRO!$E$50,0)) -> 206062 | J18: 3 | K18: 1 | L18: =IF(INTRO!$E$38="Endemic", IF($H18>0, IF($H18=4,"Unknown", IF($H18=99,"Stopped", $D18)), 0),"Not required") -> Not required | M18: =IF(INTRO!$E$40="Endemic", IF($I18>0, IF($I18=4,"Unknown",IF($I18=99,"Stopped", $D18)), 0),"Not required") -> Not required | N18: =IF(INTRO!$E$42="Endemic", IF(AND($J18>1,$J18<5), IF($J18=4, "Unknown", E18+F18), 0),"Not required") -> 147447 | R18: 2 | S18: 0 | T18: T3 (ALB/MBD) | U18: T3 (ALB/MBD) | V18: T1 | W18: T3 | X18: 38134 | Y18: Karongi | AA18: 3 | AB18: 1 | AC18: TRUE | AD18: TRUE
A19: =IF(INTRO!$E$34<>0,INTRO!$E$34,"") -> Rwanda | B19: East | C19: Kayonza | D19: 435919 | E19: =IF(INTRO!$E$48="","",ROUND($D19*INTRO!$E$48,0)) -> 51003 | F19: =IF(INTRO!$E$49="","",ROUND($D19*INTRO!$E$49,0)) -> 125545 | G19: =IF(INTRO!$E$50="","",ROUND($D19*INTRO!$E$50,0)) -> 246730 | J19: 2 | K19: 2 | L19: =IF(INTRO!$E$38="Endemic", IF($H19>0, IF($H19=4,"Unknown", IF($H19=99,"Stopped", $D19)), 0),"Not required") -> Not required | M19: =IF(INTRO!$E$40="Endemic", IF($I19>0, IF($I19=4,"Unknown",IF($I19=99,"Stopped", $D19)), 0),"Not required") -> Not required | N19: =IF(INTRO!$E$42="Endemic", IF(AND($J19>1,$J19<5), IF($J19=4, "Unknown", E19+F19), 0),"Not required") -> 176548 | O19: 47493 | R19: 2 | S19: 1 | T19: T1 (PZQ+ALB/MBD) | U19: T3 (ALB/MBD) | W19: T1 | X19: 38113 | Y19: Kayonza | AA19: 2 | AB19: 2 | AC19: TRUE | AD19: TRUE
A20: =IF(INTRO!$E$34<>0,INTRO!$E$34,"") -> Rwanda | B20: Kigali | C20: Kicukiro | D20: 389673 | E20: =IF(INTRO!$E$48="","",ROUND($D20*INTRO!$E$48,0)) -> 45592 | F20: =IF(INTRO!$E$49="","",ROUND($D20*INTRO!$E$49,0)) -> 112226 | G20: =IF(INTRO!$E$50="","",ROUND($D20*INTRO!$E$50,0)) -> 220555 | J20: 1 | K20: 1 | L20: =IF(INTRO!$E$38="Endemic", IF($H20>0, IF($H20=4,"Unknown", IF($H20=99,"Stopped", $D20)), 0),"Not required") -> Not required | M20: =IF(INTRO!$E$40="Endemic", IF($I20>0, IF($I20=4,"Unknown",IF($I20=99,"Stopped", $D20)), 0),"Not required") -> Not required | N20: =IF(INTRO!$E$42="Endemic", IF(AND($J20>1,$J20<5), IF($J20=4, "Unknown", E20+F20), 0),"Not required") -> 0 | R20: 2 | S20: 0 | T20: T3 (ALB/MBD) | U20: T3 (ALB/MBD) | W20: T2 | X20: 38119 | Y20: Kicukiro | AA20: 1 | AB20: 1 | AC20: TRUE | AD20: TRUE
A21: =IF(INTRO!$E$34<>0,INTRO!$E$34,"") -> Rwanda | B21: East | C21: Kirehe | D21: 409278 | E21: =IF(INTRO!$E$48="","",ROUND($D21*INTRO!$E$48,0)) -> 47886 | F21: =IF(INTRO!$E$49="","",ROUND($D21*INTRO!$E$49,0)) -> 117872 | G21: =IF(INTRO!$E$50="","",ROUND($D21*INTRO!$E$50,0)) -> 231651 | J21: 2 | K21: 1 | L21: =IF(INTRO!$E$38="Endemic", IF($H21>0, IF($H21=4,"Unknown", IF($H21=99,"Stopped", $D21)), 0),"Not required") -> Not required | M21: =IF(INTRO!$E$40="Endemic", IF($I21>0, IF($I21=4,"Unknown",IF($I21=99,"Stopped", $D21)), 0),"Not required") -> Not required | N21: =IF(INTRO!$E$42="Endemic", IF(AND($J21>1,$J21<5), IF($J21=4, "Unknown", E21+F21), 0),"Not required") -> 165758 | R21: 2 | S21: 0 | T21: T3 (ALB/MBD) | U21: T3 (ALB/MBD) | W21: T1 | X21: 38114 | Y21: Kirehe | AA21: 2 | AB21: 1 | AC21: TRUE | AD21: TRUE
A22: =IF(INTRO!$E$34<>0,INTRO!$E$34,"") -> Rwanda | B22: South | C22: Muhanga | D22: 341598 | E22: =IF(INTRO!$E$48="","",ROUND($D22*INTRO!$E$48,0)) -> 39967 | F22: =IF(INTRO!$E$49="","",ROUND($D22*INTRO!$E$49,0)) -> 98380 | G22: =IF(INTRO!$E$50="","",ROUND($D22*INTRO!$E$50,0)) -> 193344 | J22: 2 | K22: 2 | L22: =IF(INTRO!$E$38="Endemic", IF($H22>0, IF($H22=4,"Unknown", IF($H22=99,"Stopped", $D22)), 0),"Not required") -> Not required | M22: =IF(INTRO!$E$40="Endemic", IF($I22>0, IF($I22=4,"Unknown",IF($I22=99,"Stopped", $D22)), 0),"Not required") -> Not required | N22: =IF(INTRO!$E$42="Endemic", IF(AND($J22>1,$J22<5), IF($J22=4, "Unknown", E22+F22), 0),"Not required") -> 138347 | O22: 21276 | R22: 2 | S22: 1 | T22: T1 (PZQ+ALB/MBD) | U22: T3 (ALB/MBD) | W22: T1 | X22: 38129 | Y22: Muhanga | AA22: 2 | AB22: 2 | AC22: TRUE | AD22: TRUE
A23: =IF(INTRO!$E$34<>0,INTRO!$E$34,"") -> Rwanda | B23: North | C23: Musanze | D23: 406450 | E23: =IF(INTRO!$E$48="","",ROUND($D23*INTRO!$E$48,0)) -> 47555 | F23: =IF(INTRO!$E$49="","",ROUND($D23*INTRO!$E$49,0)) -> 117058 | G23: =IF(INTRO!$E$50="","",ROUND($D23*INTRO!$E$50,0)) -> 230051 | J23: 3 | K23: 2 | L23: =IF(INTRO!$E$38="Endemic", IF($H23>0, IF($H23=4,"Unknown", IF($H23=99,"Stopped", $D23)), 0),"Not required") -> Not required | M23: =IF(INTRO!$E$40="Endemic", IF($I23>0, IF($I23=4,"Unknown",IF($I23=99,"Stopped", $D23)), 0),"Not required") -> Not required | N23: =IF(INTRO!$E$42="Endemic", IF(AND($J23>1,$J23<5), IF($J23=4, "Unknown", E23+F23), 0),"Not required") -> 164613 | O23: 18620 | R23: 2 | S23: 1 | T23: T1 (PZQ+ALB/MBD) | U23: T3 (ALB/MBD) | V23: T1 | W23: T3 | X23: 38124 | Y23: Musanze | AA23: 3 | AB23: 2 | AC23: TRUE | AD23: TRUE
A24: =IF(INTRO!$E$34<>0,INTRO!$E$34,"") -> Rwanda | B24: East | C24: Ngoma | D24: 401307 | E24: =IF(INTRO!$E$48="","",ROUND($D24*INTRO!$E$48,0)) -> 46953 | F24: =IF(INTRO!$E$49="","",ROUND($D24*INTRO!$E$49,0)) -> 115576 | G24: =IF(INTRO!$E$50="","",ROUND($D24*INTRO!$E$50,0)) -> 227140 | J24: 2 | K24: 2 | L24: =IF(INTRO!$E$38="Endemic", IF($H24>0, IF($H24=4,"Unknown", IF($H24=99,"Stopped", $D24)), 0),"Not required") -> Not required | M24: =IF(INTRO!$E$40="Endemic", IF($I24>0, IF($I24=4,"Unknown",IF($I24=99,"Stopped", $D24)), 0),"Not required") -> Not required | N24: =IF(INTRO!$E$42="Endemic", IF(AND($J24>1,$J24<5), IF($J24=4, "Unknown", E24+F24), 0),"Not required") -> 162529 | O24: 37982 | R24: 2 | S24: 1 | T24: T1 (PZQ+ALB/MBD) | U24: T3 (ALB/MBD) | W24: T1 | X24: 38115 | Y24: Ngoma | AA24: 2 | AB24: 2 | AC24: TRUE | AD24: TRUE
A25: =IF(INTRO!$E$34<>0,INTRO!$E$34,"") -> Rwanda | B25: West | C25: Ngororero | D25: 366477 | E25: =IF(INTRO!$E$48="","",ROUND($D25*INTRO!$E$48,0)) -> 42878 | F25: =IF(INTRO!$E$49="","",ROUND($D25*INTRO!$E$49,0)) -> 105545 | G25: =IF(INTRO!$E$50="","",ROUND($D25*INTRO!$E$50,0)) -> 207426 | J25: 3 | K25: 2 | L25: =IF(INTRO!$E$38="Endemic", IF($H25>0, IF($H25=4,"Unknown", IF($H25=99,"Stopped", $D25)), 0),"Not required") -> Not required | M25: =IF(INTRO!$E$40="Endemic", IF($I25>0, IF($I25=4,"Unknown",IF($I25=99,"Stopped", $D25)), 0),"Not required") -> Not required | N25: =IF(INTRO!$E$42="Endemic", IF(AND($J25>1,$J25<5), IF($J25=4, "Unknown", E25+F25), 0),"Not required") -> 148423 | O25: 5561 | R25: 2 | S25: 1 | T25: T1 (PZQ+ALB/MBD) | U25: T3 (ALB/MBD) | V25: T1 | W25: T3 | X25: 38136 | Y25: Ngororero | AA25: 3 | AB25: 2 | AC25: TRUE | AD25: TRUE
A26: =IF(INTRO!$E$34<>0,INTRO!$E$34,"") -> Rwanda | B26: West | C26: Nyabihu | D26: 315129 | E26: =IF(INTRO!$E$48="","",ROUND($D26*INTRO!$E$48,0)) -> 36870 | F26: =IF(INTRO!$E$49="","",ROUND($D26*INTRO!$E$49,0)) -> 90757 | G26: =IF(INTRO!$E$50="","",ROUND($D26*INTRO!$E$50,0)) -> 178363 | J26: 3 | K26: 1 | L26: =IF(INTRO!$E$38="Endemic", IF($H26>0, IF($H26=4,"Unknown", IF($H26=99,"Stopped", $D26)), 0),"Not required") -> Not required | M26: =IF(INTRO!$E$40="Endemic", IF($I26>0, IF($I26=4,"Unknown",IF($I26=99,"Stopped", $D26)), 0),"Not required") -> Not required | N26: =IF(INTRO!$E$42="Endemic", IF(AND($J26>1,$J26<5), IF($J26=4, "Unknown", E26+F26), 0),"Not required") -> 127627 | R26: 2 | S26: 0 | T26: T3 (ALB/MBD) | U26: T3 (ALB/MBD) | V26: T1 | W26: T3 | X26: 38137 | Y26: Nyabihu | AA26: 3 | AB26: 1 | AC26: TRUE | AD26: TRUE
A27: =IF(INTRO!$E$34<>0,INTRO!$E$34,"") -> Rwanda | B27: East | C27: Nyagatare | D27: 617672 | E27: =IF(INTRO!$E$48="","",ROUND($D27*INTRO!$E$48,0)) -> 72268 | F27: =IF(INTRO!$E$49="","",ROUND($D27*INTRO!$E$49,0)) -> 177890 | G27: =IF(INTRO!$E$50="","",ROUND($D27*INTRO!$E$50,0)) -> 349602 | J27: 2 | K27: 2 | L27: =IF(INTRO!$E$38="Endemic", IF($H27>0, IF($H27=4,"Unknown", IF($H27=99,"Stopped", $D27)), 0),"Not required") -> Not required | M27: =IF(INTRO!$E$40="Endemic", IF($I27>0, IF($I27=4,"Unknown",IF($I27=99,"Stopped", $D27)), 0),"Not required") -> Not required | N27: =IF(INTRO!$E$42="Endemic", IF(AND($J27>1,$J27<5), IF($J27=4, "Unknown", E27+F27), 0),"Not required") -> 250158 | O27: 161858 | R27: 2 | S27: 1 | T27: T1 (PZQ+ALB/MBD) | U27: T3 (ALB/MBD) | W27: T1 | X27: 38116 | Y27: Nyagatare | AA27: 2 | AB27: 2 | AC27: TRUE | AD27: TRUE
A28: =IF(INTRO!$E$34<>0,INTRO!$E$34,"") -> Rwanda | B28: South | C28: Nyamagabe | D28: 380164 | E28: =IF(INTRO!$E$48="","",ROUND($D28*INTRO!$E$48,0)) -> 44479 | F28: =IF(INTRO!$E$49="","",ROUND($D28*INTRO!$E$49,0)) -> 109487 | G28: =IF(INTRO!$E$50="","",ROUND($D28*INTRO!$E$50,0)) -> 215173 | J28: 3 | K28: 1 | L28: =IF(INTRO!$E$38="Endemic", IF($H28>0, IF($H28=4,"Unknown", IF($H28=99,"Stopped", $D28)), 0),"Not required") -> Not required | M28: =IF(INTRO!$E$40="Endemic", IF($I28>0, IF($I28=4,"Unknown",IF($I28=99,"Stopped", $D28)), 0),"Not required") -> Not required | N28: =IF(INTRO!$E$42="Endemic", IF(AND($J28>1,$J28<5), IF($J28=4, "Unknown", E28+F28), 0),"Not required") -> 153966 | R28: 2 | S28: 0 | T28: T3 (ALB/MBD) | U28: T3 (ALB/MBD) | V28: T1 | W28: T3 | X28: 38130 | Y28: Nyamagabe | AA28: 3 | AB28: 1 | AC28: TRUE | AD28: TRUE
A29: =IF(INTRO!$E$34<>0,INTRO!$E$34,"") -> Rwanda | B29: West | C29: Nyamasheke | D29: 419534 | E29: =IF(INTRO!$E$48="","",ROUND($D29*INTRO!$E$48,0)) -> 49085 | F29: =IF(INTRO!$E$49="","",ROUND($D29*INTRO!$E$49,0)) -> 120826 | G29: =IF(INTRO!$E$50="","",ROUND($D29*INTRO!$E$50,0)) -> 237456 | J29: 3 | K29: 2 | L29: =IF(INTRO!$E$38="Endemic", IF($H29>0, IF($H29=4,"Unknown", IF($H29=99,"Stopped", $D29)), 0),"Not required") -> Not required | M29: =IF(INTRO!$E$40="Endemic", IF($I29>0, IF($I29=4,"Unknown",IF($I29=99,"Stopped", $D29)), 0),"Not required") -> Not required | N29: =IF(INTRO!$E$42="Endemic", IF(AND($J29>1,$J29<5), IF($J29=4, "Unknown", E29+F29), 0),"Not required") -> 169911 | O29: 82372 | R29: 2 | S29: 1 | T29: T1 (PZQ+ALB/MBD) | U29: T3 (ALB/MBD) | V29: T1 | W29: T3 | X29: 38138 | Y29: Nyamasheke | AA29: 3 | AB29: 2 | AC29: TRUE | AD29: TRUE
A30: =IF(INTRO!$E$34<>0,INTRO!$E$34,"") -> Rwanda | B30: South | C30: Nyanza | D30: 383494 | E30: =IF(INTRO!$E$48="","",ROUND($D30*INTRO!$E$48,0)) -> 44869 | F30: =IF(INTRO!$E$49="","",ROUND($D30*INTRO!$E$49,0)) -> 110446 | G30: =IF(INTRO!$E$50="","",ROUND($D30*INTRO!$E$50,0)) -> 217058 | J30: 1 | K30: 2 | L30: =IF(INTRO!$E$38="Endemic", IF($H30>0, IF($H30=4,"Unknown", IF($H30=99,"Stopped", $D30)), 0),"Not required") -> Not required | M30: =IF(INTRO!$E$40="Endemic", IF($I30>0, IF($I30=4,"Unknown",IF($I30=99,"Stopped", $D30)), 0),"Not required") -> Not required | N30: =IF(INTRO!$E$42="Endemic", IF(AND($J30>1,$J30<5), IF($J30=4, "Unknown", E30+F30), 0),"Not required") -> 0 | O30: 42496 | R30: 2 | S30: 1 | T30: T1 (PZQ+ALB/MBD) | U30: T3 (ALB/MBD) | W30: T2 | X30: 38131 | Y30: Nyanza | AA30: 1 | AB30: 2 | AC30: TRUE | AD30: TRUE
A31: =IF(INTRO!$E$34<>0,INTRO!$E$34,"") -> Rwanda | B31: Kigali | C31: Nyarugenge | D31: 318962 | E31: =IF(INTRO!$E$48="","",ROUND($D31*INTRO!$E$48,0)) -> 37319 | F31: =IF(INTRO!$E$49="","",ROUND($D31*INTRO!$E$49,0)) -> 91861 | G31: =IF(INTRO!$E$50="","",ROUND($D31*INTRO!$E$50,0)) -> 180532 | J31: 1 | K31: 2 | L31: =IF(INTRO!$E$38="Endemic", IF($H31>0, IF($H31=4,"Unknown", IF($H31=99,"Stopped", $D31)), 0),"Not required") -> Not required | M31: =IF(INTRO!$E$40="Endemic", IF($I31>0, IF($I31=4,"Unknown",IF($I31=99,"Stopped", $D31)), 0),"Not required") -> Not required | N31: =IF(INTRO!$E$42="Endemic", IF(AND($J31>1,$J31<5), IF($J31=4, "Unknown", E31+F31), 0),"Not required") -> 0 | O31: 4129 | R31: 2 | S31: 1 | T31: T1 (PZQ+ALB/MBD) | U31: T3 (ALB/MBD) | W31: T2 | X31: 38120 | Y31: Nyarugenge | AA31: 1 | AB31: 2 | AC31: TRUE | AD31: TRUE
A32: =IF(INTRO!$E$34<>0,INTRO!$E$34,"") -> Rwanda | B32: South | C32: Nyaruguru | D32: 331111 | E32: =IF(INTRO!$E$48="","",ROUND($D32*INTRO!$E$48,0)) -> 38740 | F32: =IF(INTRO!$E$49="","",ROUND($D32*INTRO!$E$49,0)) -> 95360 | G32: =IF(INTRO!$E$50="","",ROUND($D32*INTRO!$E$50,0)) -> 187409 | J32: 3 | K32: 1 | L32: =IF(INTRO!$E$38="Endemic", IF($H32>0, IF($H32=4,"Unknown", IF($H32=99,"Stopped", $D32)), 0),"Not required") -> Not required | M32: =IF(INTRO!$E$40="Endemic", IF($I32>0, IF($I32=4,"Unknown",IF($I32=99,"Stopped", $D32)), 0),"Not required") -> Not required | N32: =IF(INTRO!$E$42="Endemic", IF(AND($J32>1,$J32<5), IF($J32=4, "Unknown", E32+F32), 0),"Not required") -> 134100 | R32: 2 | S32: 0 | T32: T3 (ALB/MBD) | U32: T3 (ALB/MBD) | V32: T1 | W32: T3 | X32: 38132 | Y32: Nyaruguru | AA32: 3 | AB32: 1 | AC32: TRUE | AD32: TRUE
A33: =IF(INTRO!$E$34<>0,INTRO!$E$34,"") -> Rwanda | B33: West | C33: Rubavu | D33: 477088 | E33: =IF(INTRO!$E$48="","",ROUND($D33*INTRO!$E$48,0)) -> 55819 | F33: =IF(INTRO!$E$49="","",ROUND($D33*INTRO!$E$49,0)) -> 137401 | G33: =IF(INTRO!$E$50="","",ROUND($D33*INTRO!$E$50,0)) -> 270032 | J33: 3 | K33: 2 | L33: =IF(INTRO!$E$38="Endemic", IF($H33>0, IF($H33=4,"Unknown", IF($H33=99,"Stopped", $D33)), 0),"Not required") -> Not required | M33: =IF(INTRO!$E$40="Endemic", IF($I33>0, IF($I33=4,"Unknown",IF($I33=99,"Stopped", $D33)), 0),"Not required") -> Not required | N33: =IF(INTRO!$E$42="Endemic", IF(AND($J33>1,$J33<5), IF($J33=4, "Unknown", E33+F33), 0),"Not required") -> 193220 | O33: 49869 | R33: 2 | S33: 1 | T33: T1 (PZQ+ALB/MBD) | U33: T3 (ALB/MBD) | V33: T1 | W33: T3 | X33: 38139 | Y33: Rubavu | AA33: 3 | AB33: 2 | AC33: TRUE | AD33: TRUE
A34: =IF(INTRO!$E$34<>0,INTRO!$E$34,"") -> Rwanda | B34: South | C34: Ruhango | D34: 363869 | E34: =IF(INTRO!$E$48="","",ROUND($D34*INTRO!$E$48,0)) -> 42573 | F34: =IF(INTRO!$E$49="","",ROUND($D34*INTRO!$E$49,0)) -> 104794 | G34: =IF(INTRO!$E$50="","",ROUND($D34*INTRO!$E$50,0)) -> 205950 | J34: 1 | K34: 2 | L34: =IF(INTRO!$E$38="Endemic", IF($H34>0, IF($H34=4,"Unknown", IF($H34=99,"Stopped", $D34)), 0),"Not required") -> Not required | M34: =IF(INTRO!$E$40="Endemic", IF($I34>0, IF($I34=4,"Unknown",IF($I34=99,"Stopped", $D34)), 0),"Not required") -> Not required | N34: =IF(INTRO!$E$42="Endemic", IF(AND($J34>1,$J34<5), IF($J34=4, "Unknown", E34+F34), 0),"Not required") -> 0 | O34: 14526 | R34: 2 | S34: 1 | T34: T1 (PZQ+ALB/MBD) | U34: T3 (ALB/MBD) | W34: T2 | X34: 38133 | Y34: Ruhango | AA34: 1 | AB34: 2 | AC34: TRUE | AD34: TRUE
A35: =IF(INTRO!$E$34<>0,INTRO!$E$34,"") -> Rwanda | B35: North | C35: Rulindo | D35: 312374 | E35: =IF(INTRO!$E$48="","",ROUND($D35*INTRO!$E$48,0)) -> 36548 | F35: =IF(INTRO!$E$49="","",ROUND($D35*INTRO!$E$49,0)) -> 89964 | G35: =IF(INTRO!$E$50="","",ROUND($D35*INTRO!$E$50,0)) -> 176804 | J35: 3 | K35: 2 | L35: =IF(INTRO!$E$38="Endemic", IF($H35>0, IF($H35=4,"Unknown", IF($H35=99,"Stopped", $D35)), 0),"Not required") -> Not required | M35: =IF(INTRO!$E$40="Endemic", IF($I35>0, IF($I35=4,"Unknown",IF($I35=99,"Stopped", $D35)), 0),"Not required") -> Not required | N35: =IF(INTRO!$E$42="Endemic", IF(AND($J35>1,$J35<5), IF($J35=4, "Unknown", E35+F35), 0),"Not required") -> 126512 | O35: 8573 | R35: 2 | S35: 1 | T35: T1 (PZQ+ALB/MBD) | U35: T3 (ALB/MBD) | V35: T1 | W35: T3 | X35: 38125 | Y35: Rulindo | AA35: 3 | AB35: 2 | AC35: TRUE | AD35: TRUE
A36: =IF(INTRO!$E$34<>0,INTRO!$E$34,"") -> Rwanda | B36: West | C36: Rusizi | D36: 449575 | E36: =IF(INTRO!$E$48="","",ROUND($D36*INTRO!$E$48,0)) -> 52600 | F36: =IF(INTRO!$E$49="","",ROUND($D36*INTRO!$E$49,0)) -> 129478 | G36: =IF(INTRO!$E$50="","",ROUND($D36*INTRO!$E$50,0)) -> 254459 | J36: 3 | K36: 2 | L36: =IF(INTRO!$E$38="Endemic", IF($H36>0, IF($H36=4,"Unknown", IF($H36=99,"Stopped", $D36)), 0),"Not required") -> Not required | M36: =IF(INTRO!$E$40="Endemic", IF($I36>0, IF($I36=4,"Unknown",IF($I36=99,"Stopped", $D36)), 0),"Not required") -> Not required | N36: =IF(INTRO!$E$42="Endemic", IF(AND($J36>1,$J36<5), IF($J36=4, "Unknown", E36+F36), 0),"Not required") -> 182078 | O36: 133160 | R36: 2 | S36: 1 | T36: T1 (PZQ+ALB/MBD) | U36: T3 (ALB/MBD) | V36: T1 | W36: T3 | X36: 38140 | Y36: Rusizi | AA36: 3 | AB36: 2 | AC36: TRUE | AD36: TRUE
A37: =IF(INTRO!$E$34<>0,INTRO!$E$34,"") -> Rwanda | B37: West | C37: Rutsiro | D37: 358690 | E37: =IF(INTRO!$E$48="","",ROUND($D37*INTRO!$E$48,0)) -> 41967 | F37: =IF(INTRO!$E$49="","",ROUND($D37*INTRO!$E$49,0)) -> 103303 | G37: =IF(INTRO!$E$50="","",ROUND($D37*INTRO!$E$50,0)) -> 203019 | J37: 3 | K37: 2 | L37: =IF(INTRO!$E$38="Endemic", IF($H37>0, IF($H37=4,"Unknown", IF($H37=99,"Stopped", $D37)), 0),"Not required") -> Not required | M37: =IF(INTRO!$E$40="Endemic", IF($I37>0, IF($I37=4,"Unknown",IF($I37=99,"Stopped", $D37)), 0),"Not required") -> Not required | N37: =IF(INTRO!$E$42="Endemic", IF(AND($J37>1,$J37<5), IF($J37=4, "Unknown", E37+F37), 0),"Not required") -> 145270 | O37: 56582 | R37: 2 | S37: 1 | T37: T1 (PZQ+ALB/MBD) | U37: T3 (ALB/MBD) | V37: T1 | W37: T3 | X37: 38141 | Y37: Rutsiro | AA37: 3 | AB37: 2 | AC37: TRUE | AD37: TRUE
A38: =IF(INTRO!$E$34<>0,INTRO!$E$34,"") -> Rwanda | B38: East | C38: Rwamagana | D38: 365284 | E38: =IF(INTRO!$E$48="","",ROUND($D38*INTRO!$E$48,0)) -> 42738 | F38: =IF(INTRO!$E$49="","",ROUND($D38*INTRO!$E$49,0)) -> 105202 | G38: =IF(INTRO!$E$50="","",ROUND($D38*INTRO!$E$50,0)) -> 206751 | J38: 1 | K38: 2 | L38: =IF(INTRO!$E$38="Endemic", IF($H38>0, IF($H38=4,"Unknown", IF($H38=99,"Stopped", $D38)), 0),"Not required") -> Not required | M38: =IF(INTRO!$E$40="Endemic", IF($I38>0, IF($I38=4,"Unknown",IF($I38=99,"Stopped", $D38)), 0),"Not required") -> Not required | N38: =IF(INTRO!$E$42="Endemic", IF(AND($J38>1,$J38<5), IF($J38=4, "Unknown", E38+F38), 0),"Not required") -> 0 | O38: 53122 | R38: 2 | S38: 1 | T38: T1 (PZQ+ALB/MBD) | U38: T3 (ALB/MBD) | W38: T2 | X38: 38117 | Y38: Rwamagana | AA38: 1 | AB38: 2 | AC38: TRUE | AD38: TRUE

Sheet MDA1 (hidden)
A1: MDA 1 - Ivermectin (IVM) and Albendazole (ALB)
A2: Administrative structure, population requiring PC by age group, population treated by age group and coverage
A4: TOTAL | G4: =SUM(G$9:G$1000) -> 0 | H4: =SUM(H$9:H$1000) -> 0 | I4: =SUM(I$9:I$1000) -> 0 | K4: =SUM(K$9:K$1000) -> 0 | L4: =SUM(L$9:L$1000) -> 0 | M4: =SUM(M$9:M$1000) -> 0 | O4: =IF(G4<>0, IF(K4/G4*100=0, "-", K4/G4*100), " ") ->  | P4: =IF(H4<>0, IF(L4/H4*100=0, "-", L4/H4*100), " ") ->  | Q4: =IF(I4<>0, IF(M4/I4*100=0, "-", M4/I4*100), " ") -> 
D6: PC implemented | E6: Date | F6: Population targeted for MDA 1 | J6: Population treated | N6: Programme coverage (%)
A7: Country | B7: Province/State | C7: District | F7: PreSAC | G7: SAC | H7: Adults | I7: Total | J7: PreSAC | K7: SAC | L7: Adults | M7: Total | N7: PreSAC | O7: SAC | P7: Adults | Q7: Total
A9: =IF(COUNTRY_INFO!A9=0," ",COUNTRY_INFO!A9) -> Rwanda | B9: =IF(COUNTRY_INFO!B9=0," ",COUNTRY_INFO!B9) -> East | C9: =IF(COUNTRY_INFO!C9=0," ",COUNTRY_INFO!C9) -> Bugesera | D9: =IF(COUNTRY_INFO!$T$9:$T$1000="MDA1 (IVM+ALB)", COUNTRY_INFO!$T$9:$T$1000, " ") ->  | I9: =SUM(F9:H9) -> 0 | M9: =SUM(J9:L9) -> 0 | O9: =IF(G9<>0, IF(K9/G9*100=0, "-", K9/G9*100), " ") ->  | P9: =IF(H9<>0, IF(L9/H9*100=0, "-", L9/H9*100), " ") -> 
A10: =IF(COUNTRY_INFO!A10=0," ",COUNTRY_INFO!A10) -> Rwanda | B10: =IF(COUNTRY_INFO!B10=0," ",COUNTRY_INFO!B10) -> North | C10: =IF(COUNTRY_INFO!C10=0," ",COUNTRY_INFO!C10) -> Burera | D10: =IF(COUNTRY_INFO!$T$9:$T$1000="MDA1 (IVM+ALB)", COUNTRY_INFO!$T$9:$T$1000, " ") ->  | I10: =SUM(F10:H10) -> 0 | M10: =SUM(J10:L10) -> 0 | O10: =IF(G10<>0, IF(K10/G10*100=0, "-", K10/G10*100), " ") ->  | P10: =IF(H10<>0, IF(L10/H10*100=0, "-", L10/H10*100), " ") ->  | Q10: =IF(I10<>0, IF(M10/I10*100=0, "-", M10/I10*100), " ") -> 
A11: =IF(COUNTRY_INFO!A11=0," ",COUNTRY_INFO!A11) -> Rwanda | B11: =IF(COUNTRY_INFO!B11=0," ",COUNTRY_INFO!B11) -> North | C11: =IF(COUNTRY_INFO!C11=0," ",COUNTRY_INFO!C11) -> Gakenke | D11: =IF(COUNTRY_INFO!$T$9:$T$1000="MDA1 (IVM+ALB)", COUNTRY_INFO!$T$9:$T$1000, " ") ->  | I11: 0 | M11: 0
A12: =IF(COUNTRY_INFO!A12=0," ",COUNTRY_INFO!A12) -> Rwanda | B12: =IF(COUNTRY_INFO!B12=0," ",COUNTRY_INFO!B12) -> Kigali | C12: =IF(COUNTRY_INFO!C12=0," ",COUNTRY_INFO!C12) -> Gasabo | D12: =IF(COUNTRY_INFO!$T$9:$T$1000="MDA1 (IVM+ALB)", COUNTRY_INFO!$T$9:$T$1000, " ") ->  | I12: 0 | M12: 0
A13: =IF(COUNTRY_INFO!A13=0," ",COUNTRY_INFO!A13) -> Rwanda | B13: =IF(COUNTRY_INFO!B13=0," ",COUNTRY_INFO!B13) -> East | C13: =IF(COUNTRY_INFO!C13=0," ",COUNTRY_INFO!C13) -> Gatsibo | D13: =IF(COUNTRY_INFO!$T$9:$T$1000="MDA1 (IVM+ALB)", COUNTRY_INFO!$T$9:$T$1000, " ") ->  | I13: 0 | M13: 0
A14: =IF(COUNTRY_INFO!A14=0," ",COUNTRY_INFO!A14) -> Rwanda | B14: =IF(COUNTRY_INFO!B14=0," ",COUNTRY_INFO!B14) -> North | C14: =IF(COUNTRY_INFO!C14=0," ",COUNTRY_INFO!C14) -> Gicumbi | D14: =IF(COUNTRY_INFO!$T$9:$T$1000="MDA1 (IVM+ALB)", COUNTRY_INFO!$T$9:$T$1000, " ") ->  | I14: 0 | M14: 0
A15: =IF(COUNTRY_INFO!A15=0," ",COUNTRY_INFO!A15) -> Rwanda | B15: =IF(COUNTRY_INFO!B15=0," ",COUNTRY_INFO!B15) -> South | C15: =IF(COUNTRY_INFO!C15=0," ",COUNTRY_INFO!C15) -> Gisagara | D15: =IF(COUNTRY_INFO!$T$9:$T$1000="MDA1 (IVM+ALB)", COUNTRY_INFO!$T$9:$T$1000, " ") ->  | I15: 0 | M15: 0
A16: =IF(COUNTRY_INFO!A16=0," ",COUNTRY_INFO!A16) -> Rwanda | B16: =IF(COUNTRY_INFO!B16=0," ",COUNTRY_INFO!B16) -> South | C16: =IF(COUNTRY_INFO!C16=0," ",COUNTRY_INFO!C16) -> Huye | D16: =IF(COUNTRY_INFO!$T$9:$T$1000="MDA1 (IVM+ALB)", COUNTRY_INFO!$T$9:$T$1000, " ") ->  | I16: 0 | M16: 0
A17: =IF(COUNTRY_INFO!A17=0," ",COUNTRY_INFO!A17) -> Rwanda | B17: =IF(COUNTRY_INFO!B17=0," ",COUNTRY_INFO!B17) -> South | C17: =IF(COUNTRY_INFO!C17=0," ",COUNTRY_INFO!C17) -> Kamonyi | D17: =IF(COUNTRY_INFO!$T$9:$T$1000="MDA1 (IVM+ALB)", COUNTRY_INFO!$T$9:$T$1000, " ") ->  | I17: 0 | M17: 0
A18: =IF(COUNTRY_INFO!A18=0," ",COUNTRY_INFO!A18) -> Rwanda | B18: =IF(COUNTRY_INFO!B18=0," ",COUNTRY_INFO!B18) -> West | C18: =IF(COUNTRY_INFO!C18=0," ",COUNTRY_INFO!C18) -> Karongi | D18: =IF(COUNTRY_INFO!$T$9:$T$1000="MDA1 (IVM+ALB)", COUNTRY_INFO!$T$9:$T$1000, " ") ->  | I18: 0 | M18: 0
A19: =IF(COUNTRY_INFO!A19=0," ",COUNTRY_INFO!A19) -> Rwanda | B19: =IF(COUNTRY_INFO!B19=0," ",COUNTRY_INFO!B19) -> East | C19: =IF(COUNTRY_INFO!C19=0," ",COUNTRY_INFO!C19) -> Kayonza | D19: =IF(COUNTRY_INFO!$T$9:$T$1000="MDA1 (IVM+ALB)", COUNTRY_INFO!$T$9:$T$1000, " ") ->  | I19: 0 | M19: 0
A20: =IF(COUNTRY_INFO!A20=0," ",COUNTRY_INFO!A20) -> Rwanda | B20: =IF(COUNTRY_INFO!B20=0," ",COUNTRY_INFO!B20) -> Kigali | C20: =IF(COUNTRY_INFO!C20=0," ",COUNTRY_INFO!C20) -> Kicukiro | D20: =IF(COUNTRY_INFO!$T$9:$T$1000="MDA1 (IVM+ALB)", COUNTRY_INFO!$T$9:$T$1000, " ") ->  | I20: 0 | M20: 0
A21: =IF(COUNTRY_INFO!A21=0," ",COUNTRY_INFO!A21) -> Rwanda | B21: =IF(COUNTRY_INFO!B21=0," ",COUNTRY_INFO!B21) -> East | C21: =IF(COUNTRY_INFO!C21=0," ",COUNTRY_INFO!C21) -> Kirehe | D21: =IF(COUNTRY_INFO!$T$9:$T$1000="MDA1 (IVM+ALB)", COUNTRY_INFO!$T$9:$T$1000, " ") ->  | I21: 0 | M21: 0
A22: =IF(COUNTRY_INFO!A22=0," ",COUNTRY_INFO!A22) -> Rwanda | B22: =IF(COUNTRY_INFO!B22=0," ",COUNTRY_INFO!B22) -> South | C22: =IF(COUNTRY_INFO!C22=0," ",COUNTRY_INFO!C22) -> Muhanga | D22: =IF(COUNTRY_INFO!$T$9:$T$1000="MDA1 (IVM+ALB)", COUNTRY_INFO!$T$9:$T$1000, " ") ->  | I22: 0 | M22: 0
A23: =IF(COUNTRY_INFO!A23=0," ",COUNTRY_INFO!A23) -> Rwanda | B23: =IF(COUNTRY_INFO!B23=0," ",COUNTRY_INFO!B23) -> North | C23: =IF(COUNTRY_INFO!C23=0," ",COUNTRY_INFO!C23) -> Musanze | D23: =IF(COUNTRY_INFO!$T$9:$T$1000="MDA1 (IVM+ALB)", COUNTRY_INFO!$T$9:$T$1000, " ") ->  | I23: 0 | M23: 0
A24: =IF(COUNTRY_INFO!A24=0," ",COUNTRY_INFO!A24) -> Rwanda | B24: =IF(COUNTRY_INFO!B24=0," ",COUNTRY_INFO!B24) -> East | C24: =IF(COUNTRY_INFO!C24=0," ",COUNTRY_INFO!C24) -> Ngoma | D24: =IF(COUNTRY_INFO!$T$9:$T$1000="MDA1 (IVM+ALB)", COUNTRY_INFO!$T$9:$T$1000, " ") ->  | I24: 0 | M24: 0
A25: =IF(COUNTRY_INFO!A25=0," ",COUNTRY_INFO!A25) -> Rwanda | B25: =IF(COUNTRY_INFO!B25=0," ",COUNTRY_INFO!B25) -> West | C25: =IF(COUNTRY_INFO!C25=0," ",COUNTRY_INFO!C25) -> Ngororero | D25: =IF(COUNTRY_INFO!$T$9:$T$1000="MDA1 (IVM+ALB)", COUNTRY_INFO!$T$9:$T$1000, " ") ->  | I25: 0 | M25: 0
A26: =IF(COUNTRY_INFO!A26=0," ",COUNTRY_INFO!A26) -> Rwanda | B26: =IF(COUNTRY_INFO!B26=0," ",COUNTRY_INFO!B26) -> West | C26: =IF(COUNTRY_INFO!C26=0," ",COUNTRY_INFO!C26) -> Nyabihu | D26: =IF(COUNTRY_INFO!$T$9:$T$1000="MDA1 (IVM+ALB)", COUNTRY_INFO!$T$9:$T$1000, " ") ->  | I26: 0 | M26: 0
A27: =IF(COUNTRY_INFO!A27=0," ",COUNTRY_INFO!A27) -> Rwanda | B27: =IF(COUNTRY_INFO!B27=0," ",COUNTRY_INFO!B27) -> East | C27: =IF(COUNTRY_INFO!C27=0," ",COUNTRY_INFO!C27) -> Nyagatare | D27: =IF(COUNTRY_INFO!$T$9:$T$1000="MDA1 (IVM+ALB)", COUNTRY_INFO!$T$9:$T$1000, " ") ->  | I27: 0 | M27: 0
A28: =IF(COUNTRY_INFO!A28=0," ",COUNTRY_INFO!A28) -> Rwanda | B28: =IF(COUNTRY_INFO!B28=0," ",COUNTRY_INFO!B28) -> South | C28: =IF(COUNTRY_INFO!C28=0," ",COUNTRY_INFO!C28) -> Nyamagabe | D28: =IF(COUNTRY_INFO!$T$9:$T$1000="MDA1 (IVM+ALB)", COUNTRY_INFO!$T$9:$T$1000, " ") ->  | I28: 0 | M28: 0
A29: =IF(COUNTRY_INFO!A29=0," ",COUNTRY_INFO!A29) -> Rwanda | B29: =IF(COUNTRY_INFO!B29=0," ",COUNTRY_INFO!B29) -> West | C29: =IF(COUNTRY_INFO!C29=0," ",COUNTRY_INFO!C29) -> Nyamasheke | D29: =IF(COUNTRY_INFO!$T$9:$T$1000="MDA1 (IVM+ALB)", COUNTRY_INFO!$T$9:$T$1000, " ") ->  | I29: 0 | M29: 0
A30: =IF(COUNTRY_INFO!A30=0," ",COUNTRY_INFO!A30) -> Rwanda | B30: =IF(COUNTRY_INFO!B30=0," ",COUNTRY_INFO!B30) -> South | C30: =IF(COUNTRY_INFO!C30=0," ",COUNTRY_INFO!C30) -> Nyanza | D30: =IF(COUNTRY_INFO!$T$9:$T$1000="MDA1 (IVM+ALB)", COUNTRY_INFO!$T$9:$T$1000, " ") ->  | I30: 0 | M30: 0
A31: =IF(COUNTRY_INFO!A31=0," ",COUNTRY_INFO!A31) -> Rwanda | B31: =IF(COUNTRY_INFO!B31=0," ",COUNTRY_INFO!B31) -> Kigali | C31: =IF(COUNTRY_INFO!C31=0," ",COUNTRY_INFO!C31) -> Nyarugenge | D31: =IF(COUNTRY_INFO!$T$9:$T$1000="MDA1 (IVM+ALB)", COUNTRY_INFO!$T$9:$T$1000, " ") ->  | I31: 0 | M31: 0
A32: =IF(COUNTRY_INFO!A32=0," ",COUNTRY_INFO!A32) -> Rwanda | B32: =IF(COUNTRY_INFO!B32=0," ",COUNTRY_INFO!B32) -> South | C32: =IF(COUNTRY_INFO!C32=0," ",COUNTRY_INFO!C32) -> Nyaruguru | D32: =IF(COUNTRY_INFO!$T$9:$T$1000="MDA1 (IVM+ALB)", COUNTRY_INFO!$T$9:$T$1000, " ") ->  | I32: 0 | M32: 0
A33: =IF(COUNTRY_INFO!A33=0," ",COUNTRY_INFO!A33) -> Rwanda | B33: =IF(COUNTRY_INFO!B33=0," ",COUNTRY_INFO!B33) -> West | C33: =IF(COUNTRY_INFO!C33=0," ",COUNTRY_INFO!C33) -> Rubavu | D33: =IF(COUNTRY_INFO!$T$9:$T$1000="MDA1 (IVM+ALB)", COUNTRY_INFO!$T$9:$T$1000, " ") ->  | I33: 0 | M33: 0
A34: =IF(COUNTRY_INFO!A34=0," ",COUNTRY_INFO!A34) -> Rwanda | B34: =IF(COUNTRY_INFO!B34=0," ",COUNTRY_INFO!B34) -> South | C34: =IF(COUNTRY_INFO!C34=0," ",COUNTRY_INFO!C34) -> Ruhango | D34: =IF(COUNTRY_INFO!$T$9:$T$1000="MDA1 (IVM+ALB)", COUNTRY_INFO!$T$9:$T$1000, " ") ->  | I34: 0 | M34: 0
A35: =IF(COUNTRY_INFO!A35=0," ",COUNTRY_INFO!A35) -> Rwanda | B35: =IF(COUNTRY_INFO!B35=0," ",COUNTRY_INFO!B35) -> North | C35: =IF(COUNTRY_INFO!C35=0," ",COUNTRY_INFO!C35) -> Rulindo | D35: =IF(COUNTRY_INFO!$T$9:$T$1000="MDA1 (IVM+ALB)", COUNTRY_INFO!$T$9:$T$1000, " ") ->  | I35: 0 | M35: 0
A36: =IF(COUNTRY_INFO!A36=0," ",COUNTRY_INFO!A36) -> Rwanda | B36: =IF(COUNTRY_INFO!B36=0," ",COUNTRY_INFO!B36) -> West | C36: =IF(COUNTRY_INFO!C36=0," ",COUNTRY_INFO!C36) -> Rusizi | D36: =IF(COUNTRY_INFO!$T$9:$T$1000="MDA1 (IVM+ALB)", COUNTRY_INFO!$T$9:$T$1000, " ") ->  | I36: 0 | M36: 0
A37: =IF(COUNTRY_INFO!A37=0," ",COUNTRY_INFO!A37) -> Rwanda | B37: =IF(COUNTRY_INFO!B37=0," ",COUNTRY_INFO!B37) -> West | C37: =IF(COUNTRY_INFO!C37=0," ",COUNTRY_INFO!C37) -> Rutsiro | D37: =IF(COUNTRY_INFO!$T$9:$T$1000="MDA1 (IVM+ALB)", COUNTRY_INFO!$T$9:$T$1000, " ") ->  | I37: 0 | M37: 0
A38: =IF(COUNTRY_INFO!A38=0," ",COUNTRY_INFO!A38) -> Rwanda | B38: =IF(COUNTRY_INFO!B38=0," ",COUNTRY_INFO!B38) -> East | C38: =IF(COUNTRY_INFO!C38=0," ",COUNTRY_INFO!C38) -> Rwamagana | D38: =IF(COUNTRY_INFO!$T$9:$T$1000="MDA1 (IVM+ALB)", COUNTRY_INFO!$T$9:$T$1000, " ") ->  | I38: 0 | M38: 0

Sheet MDA2 (hidden)
A1: MDA 2 - Diethylcarbamazine citrate (DEC) + Albendazole (ALB)
A2: Administrative structure, population requiring PC by age group, population treated by age group and coverage
A4: TOTAL | F4: =SUM(F$9:F$1000) -> 0 | G4: =SUM(G$9:G$1000) -> 0 | H4: 0 | I4: 0 | J4: 0 | K4: 0 | L4: 0 | M4: 0 | N4: =IF(F4<>0, IF(J4/F4*100=0, "-", J4/F4*100), " ") ->  | O4: =IF(G4<>0, IF(K4/G4*100=0, "-", K4/G4*100), " ") ->  | P4: =IF(H4<>0, IF(L4/H4*100=0, "-", L4/H4*100), " ") ->  | Q4: =IF(I4<>0, IF(M4/I4*100=0, "-", M4/I4*100), " ") -> 
D6: PC implemented | E6: Date | F6: Population targeted for MDA 2 | J6: Population treated | N6: Programme coverage (%)
A7: Country | B7: Province/State | C7: District | F7: PreSAC | G7: SAC | H7: Adults | I7: Total | J7: PreSAC | K7: SAC | L7: Adults | M7: Total | N7: PreSAC | O7: SAC | P7: Adults | Q7: Total
A9: =IF(COUNTRY_INFO!A9=0," ",COUNTRY_INFO!A9) -> Rwanda | B9: =IF(COUNTRY_INFO!B9=0," ",COUNTRY_INFO!B9) -> East | C9: =IF(COUNTRY_INFO!C9=0," ",COUNTRY_INFO!C9) -> Bugesera | D9: =IF(COUNTRY_INFO!$T$9:$T$1000="MDA2 (DEC+ALB)", COUNTRY_INFO!$T$9:$T$1000, " ") ->  | I9: =SUM(F9:H9) -> 0 | M9: =SUM(J9:L9) -> 0 | N9: =IF(F9<>0, IF(J9/F9*100=0, "-", J9/F9*100), " ") -> 
A10: =IF(COUNTRY_INFO!A10=0," ",COUNTRY_INFO!A10) -> Rwanda | B10: =IF(COUNTRY_INFO!B10=0," ",COUNTRY_INFO!B10) -> North | C10: =IF(COUNTRY_INFO!C10=0," ",COUNTRY_INFO!C10) -> Burera | D10: =IF(COUNTRY_INFO!$T$9:$T$1000="MDA2 (DEC+ALB)", COUNTRY_INFO!$T$9:$T$1000, " ") ->  | I10: =SUM(F10:H10) -> 0 | M10: =SUM(J10:L10) -> 0 | N10: =IF(F10<>0, IF(J10/F10*100=0, "-", J10/F10*100), " ") ->  | O10: =IF(G10<>0, IF(K10/G10*100=0, "-", K10/G10*100), " ") ->  | P10: =IF(H10<>0, IF(L10/H10*100=0, "-", L10/H10*100), " ") ->  | Q10: =IF(I10<>0, IF(M10/I10*100=0, "-", M10/I10*100), " ") -> 
A11: =IF(COUNTRY_INFO!A11=0," ",COUNTRY_INFO!A11) -> Rwanda | B11: =IF(COUNTRY_INFO!B11=0," ",COUNTRY_INFO!B11) -> North | C11: =IF(COUNTRY_INFO!C11=0," ",COUNTRY_INFO!C11) -> Gakenke | D11: =IF(COUNTRY_INFO!$T$9:$T$1000="MDA2 (DEC+ALB)", COUNTRY_INFO!$T$9:$T$1000, " ") ->  | I11: 0 | M11: 0
A12: =IF(COUNTRY_INFO!A12=0," ",COUNTRY_INFO!A12) -> Rwanda | B12: =IF(COUNTRY_INFO!B12=0," ",COUNTRY_INFO!B12) -> Kigali | C12: =IF(COUNTRY_INFO!C12=0," ",COUNTRY_INFO!C12) -> Gasabo | D12: =IF(COUNTRY_INFO!$T$9:$T$1000="MDA2 (DEC+ALB)", COUNTRY_INFO!$T$9:$T$1000, " ") ->  | I12: 0 | M12: 0
A13: =IF(COUNTRY_INFO!A13=0," ",COUNTRY_INFO!A13) -> Rwanda | B13: =IF(COUNTRY_INFO!B13=0," ",COUNTRY_INFO!B13) -> East | C13: =IF(COUNTRY_INFO!C13=0," ",COUNTRY_INFO!C13) -> Gatsibo | D13: =IF(COUNTRY_INFO!$T$9:$T$1000="MDA2 (DEC+ALB)", COUNTRY_INFO!$T$9:$T$1000, " ") ->  | I13: 0 | M13: 0
A14: =IF(COUNTRY_INFO!A14=0," ",COUNTRY_INFO!A14) -> Rwanda | B14: =IF(COUNTRY_INFO!B14=0," ",COUNTRY_INFO!B14) -> North | C14: =IF(COUNTRY_INFO!C14=0," ",COUNTRY_INFO!C14) -> Gicumbi | D14: =IF(COUNTRY_INFO!$T$9:$T$1000="MDA2 (DEC+ALB)", COUNTRY_INFO!$T$9:$T$1000, " ") ->  | I14: 0 | M14: 0
A15: =IF(COUNTRY_INFO!A15=0," ",COUNTRY_INFO!A15) -> Rwanda | B15: =IF(COUNTRY_INFO!B15=0," ",COUNTRY_INFO!B15) -> South | C15: =IF(COUNTRY_INFO!C15=0," ",COUNTRY_INFO!C15) -> Gisagara | D15: =IF(COUNTRY_INFO!$T$9:$T$1000="MDA2 (DEC+ALB)", COUNTRY_INFO!$T$9:$T$1000, " ") ->  | I15: 0 | M15: 0
A16: =IF(COUNTRY_INFO!A16=0," ",COUNTRY_INFO!A16) -> Rwanda | B16: =IF(COUNTRY_INFO!B16=0," ",COUNTRY_INFO!B16) -> South | C16: =IF(COUNTRY_INFO!C16=0," ",COUNTRY_INFO!C16) -> Huye | D16: =IF(COUNTRY_INFO!$T$9:$T$1000="MDA2 (DEC+ALB)", COUNTRY_INFO!$T$9:$T$1000, " ") ->  | I16: 0 | M16: 0
A17: =IF(COUNTRY_INFO!A17=0," ",COUNTRY_INFO!A17) -> Rwanda | B17: =IF(COUNTRY_INFO!B17=0," ",COUNTRY_INFO!B17) -> South | C17: =IF(COUNTRY_INFO!C17=0," ",COUNTRY_INFO!C17) -> Kamonyi | D17: =IF(COUNTRY_INFO!$T$9:$T$1000="MDA2 (DEC+ALB)", COUNTRY_INFO!$T$9:$T$1000, " ") ->  | I17: 0 | M17: 0
A18: =IF(COUNTRY_INFO!A18=0," ",COUNTRY_INFO!A18) -> Rwanda | B18: =IF(COUNTRY_INFO!B18=0," ",COUNTRY_INFO!B18) -> West | C18: =IF(COUNTRY_INFO!C18=0," ",COUNTRY_INFO!C18) -> Karongi | D18: =IF(COUNTRY_INFO!$T$9:$T$1000="MDA2 (DEC+ALB)", COUNTRY_INFO!$T$9:$T$1000, " ") ->  | I18: 0 | M18: 0
A19: =IF(COUNTRY_INFO!A19=0," ",COUNTRY_INFO!A19) -> Rwanda | B19: =IF(COUNTRY_INFO!B19=0," ",COUNTRY_INFO!B19) -> East | C19: =IF(COUNTRY_INFO!C19=0," ",COUNTRY_INFO!C19) -> Kayonza | D19: =IF(COUNTRY_INFO!$T$9:$T$1000="MDA2 (DEC+ALB)", COUNTRY_INFO!$T$9:$T$1000, " ") ->  | I19: 0 | M19: 0
A20: =IF(COUNTRY_INFO!A20=0," ",COUNTRY_INFO!A20) -> Rwanda | B20: =IF(COUNTRY_INFO!B20=0," ",COUNTRY_INFO!B20) -> Kigali | C20: =IF(COUNTRY_INFO!C20=0," ",COUNTRY_INFO!C20) -> Kicukiro | D20: =IF(COUNTRY_INFO!$T$9:$T$1000="MDA2 (DEC+ALB)", COUNTRY_INFO!$T$9:$T$1000, " ") ->  | I20: 0 | M20: 0
A21: =IF(COUNTRY_INFO!A21=0," ",COUNTRY_INFO!A21) -> Rwanda | B21: =IF(COUNTRY_INFO!B21=0," ",COUNTRY_INFO!B21) -> East | C21: =IF(COUNTRY_INFO!C21=0," ",COUNTRY_INFO!C21) -> Kirehe | D21: =IF(COUNTRY_INFO!$T$9:$T$1000="MDA2 (DEC+ALB)", COUNTRY_INFO!$T$9:$T$1000, " ") ->  | I21: 0 | M21: 0
A22: =IF(COUNTRY_INFO!A22=0," ",COUNTRY_INFO!A22) -> Rwanda | B22: =IF(COUNTRY_INFO!B22=0," ",COUNTRY_INFO!B22) -> South | C22: =IF(COUNTRY_INFO!C22=0," ",COUNTRY_INFO!C22) -> Muhanga | D22: =IF(COUNTRY_INFO!$T$9:$T$1000="MDA2 (DEC+ALB)", COUNTRY_INFO!$T$9:$T$1000, " ") ->  | I22: 0 | M22: 0
A23: =IF(COUNTRY_INFO!A23=0," ",COUNTRY_INFO!A23) -> Rwanda | B23: =IF(COUNTRY_INFO!B23=0," ",COUNTRY_INFO!B23) -> North | C23: =IF(COUNTRY_INFO!C23=0," ",COUNTRY_INFO!C23) -> Musanze | D23: =IF(COUNTRY_INFO!$T$9:$T$1000="MDA2 (DEC+ALB)", COUNTRY_INFO!$T$9:$T$1000, " ") ->  | I23: 0 | M23: 0
A24: =IF(COUNTRY_INFO!A24=0," ",COUNTRY_INFO!A24) -> Rwanda | B24: =IF(COUNTRY_INFO!B24=0," ",COUNTRY_INFO!B24) -> East | C24: =IF(COUNTRY_INFO!C24=0," ",COUNTRY_INFO!C24) -> Ngoma | D24: =IF(COUNTRY_INFO!$T$9:$T$1000="MDA2 (DEC+ALB)", COUNTRY_INFO!$T$9:$T$1000, " ") ->  | I24: 0 | M24: 0
A25: =IF(COUNTRY_INFO!A25=0," ",COUNTRY_INFO!A25) -> Rwanda | B25: =IF(COUNTRY_INFO!B25=0," ",COUNTRY_INFO!B25) -> West | C25: =IF(COUNTRY_INFO!C25=0," ",COUNTRY_INFO!C25) -> Ngororero | D25: =IF(COUNTRY_INFO!$T$9:$T$1000="MDA2 (DEC+ALB)", COUNTRY_INFO!$T$9:$T$1000, " ") ->  | I25: 0 | M25: 0
A26: =IF(COUNTRY_INFO!A26=0," ",COUNTRY_INFO!A26) -> Rwanda | B26: =IF(COUNTRY_INFO!B26=0," ",COUNTRY_INFO!B26) -> West | C26: =IF(COUNTRY_INFO!C26=0," ",COUNTRY_INFO!C26) -> Nyabihu | D26: =IF(COUNTRY_INFO!$T$9:$T$1000="MDA2 (DEC+ALB)", COUNTRY_INFO!$T$9:$T$1000, " ") ->  | I26: 0 | M26: 0
A27: =IF(COUNTRY_INFO!A27=0," ",COUNTRY_INFO!A27) -> Rwanda | B27: =IF(COUNTRY_INFO!B27=0," ",COUNTRY_INFO!B27) -> East | C27: =IF(COUNTRY_INFO!C27=0," ",COUNTRY_INFO!C27) -> Nyagatare | D27: =IF(COUNTRY_INFO!$T$9:$T$1000="MDA2 (DEC+ALB)", COUNTRY_INFO!$T$9:$T$1000, " ") ->  | I27: 0 | M27: 0
A28: =IF(COUNTRY_INFO!A28=0," ",COUNTRY_INFO!A28) -> Rwanda | B28: =IF(COUNTRY_INFO!B28=0," ",COUNTRY_INFO!B28) -> South | C28: =IF(COUNTRY_INFO!C28=0," ",COUNTRY_INFO!C28) -> Nyamagabe | D28: =IF(COUNTRY_INFO!$T$9:$T$1000="MDA2 (DEC+ALB)", COUNTRY_INFO!$T$9:$T$1000, " ") ->  | I28: 0 | M28: 0
A29: =IF(COUNTRY_INFO!A29=0," ",COUNTRY_INFO!A29) -> Rwanda | B29: =IF(COUNTRY_INFO!B29=0," ",COUNTRY_INFO!B29) -> West | C29: =IF(COUNTRY_INFO!C29=0," ",COUNTRY_INFO!C29) -> Nyamasheke | D29: =IF(COUNTRY_INFO!$T$9:$T$1000="MDA2 (DEC+ALB)", COUNTRY_INFO!$T$9:$T$1000, " ") ->  | I29: 0 | M29: 0
A30: =IF(COUNTRY_INFO!A30=0," ",COUNTRY_INFO!A30) -> Rwanda | B30: =IF(COUNTRY_INFO!B30=0," ",COUNTRY_INFO!B30) -> South | C30: =IF(COUNTRY_INFO!C30=0," ",COUNTRY_INFO!C30) -> Nyanza | D30: =IF(COUNTRY_INFO!$T$9:$T$1000="MDA2 (DEC+ALB)", COUNTRY_INFO!$T$9:$T$1000, " ") ->  | I30: 0 | M30: 0
A31: =IF(COUNTRY_INFO!A31=0," ",COUNTRY_INFO!A31) -> Rwanda | B31: =IF(COUNTRY_INFO!B31=0," ",COUNTRY_INFO!B31) -> Kigali | C31: =IF(COUNTRY_INFO!C31=0," ",COUNTRY_INFO!C31) -> Nyarugenge | D31: =IF(COUNTRY_INFO!$T$9:$T$1000="MDA2 (DEC+ALB)", COUNTRY_INFO!$T$9:$T$1000, " ") ->  | I31: 0 | M31: 0
A32: =IF(COUNTRY_INFO!A32=0," ",COUNTRY_INFO!A32) -> Rwanda | B32: =IF(COUNTRY_INFO!B32=0," ",COUNTRY_INFO!B32) -> South | C32: =IF(COUNTRY_INFO!C32=0," ",COUNTRY_INFO!C32) -> Nyaruguru | D32: =IF(COUNTRY_INFO!$T$9:$T$1000="MDA2 (DEC+ALB)", COUNTRY_INFO!$T$9:$T$1000, " ") ->  | I32: 0 | M32: 0
A33: =IF(COUNTRY_INFO!A33=0," ",COUNTRY_INFO!A33) -> Rwanda | B33: =IF(COUNTRY_INFO!B33=0," ",COUNTRY_INFO!B33) -> West | C33: =IF(COUNTRY_INFO!C33=0," ",COUNTRY_INFO!C33) -> Rubavu | D33: =IF(COUNTRY_INFO!$T$9:$T$1000="MDA2 (DEC+ALB)", COUNTRY_INFO!$T$9:$T$1000, " ") ->  | I33: 0 | M33: 0
A34: =IF(COUNTRY_INFO!A34=0," ",COUNTRY_INFO!A34) -> Rwanda | B34: =IF(COUNTRY_INFO!B34=0," ",COUNTRY_INFO!B34) -> South | C34: =IF(COUNTRY_INFO!C34=0," ",COUNTRY_INFO!C34) -> Ruhango | D34: =IF(COUNTRY_INFO!$T$9:$T$1000="MDA2 (DEC+ALB)", COUNTRY_INFO!$T$9:$T$1000, " ") ->  | I34: 0 | M34: 0
A35: =IF(COUNTRY_INFO!A35=0," ",COUNTRY_INFO!A35) -> Rwanda | B35: =IF(COUNTRY_INFO!B35=0," ",COUNTRY_INFO!B35) -> North | C35: =IF(COUNTRY_INFO!C35=0," ",COUNTRY_INFO!C35) -> Rulindo | D35: =IF(COUNTRY_INFO!$T$9:$T$1000="MDA2 (DEC+ALB)", COUNTRY_INFO!$T$9:$T$1000, " ") ->  | I35: 0 | M35: 0
A36: =IF(COUNTRY_INFO!A36=0," ",COUNTRY_INFO!A36) -> Rwanda | B36: =IF(COUNTRY_INFO!B36=0," ",COUNTRY_INFO!B36) -> West | C36: =IF(COUNTRY_INFO!C36=0," ",COUNTRY_INFO!C36) -> Rusizi | D36: =IF(COUNTRY_INFO!$T$9:$T$1000="MDA2 (DEC+ALB)", COUNTRY_INFO!$T$9:$T$1000, " ") ->  | I36: 0 | M36: 0
A37: =IF(COUNTRY_INFO!A37=0," ",COUNTRY_INFO!A37) -> Rwanda | B37: =IF(COUNTRY_INFO!B37=0," ",COUNTRY_INFO!B37) -> West | C37: =IF(COUNTRY_INFO!C37=0," ",COUNTRY_INFO!C37) -> Rutsiro | D37: =IF(COUNTRY_INFO!$T$9:$T$1000="MDA2 (DEC+ALB)", COUNTRY_INFO!$T$9:$T$1000, " ") ->  | I37: 0 | M37: 0
A38: =IF(COUNTRY_INFO!A38=0," ",COUNTRY_INFO!A38) -> Rwanda | B38: =IF(COUNTRY_INFO!B38=0," ",COUNTRY_INFO!B38) -> East | C38: =IF(COUNTRY_INFO!C38=0," ",COUNTRY_INFO!C38) -> Rwamagana | D38: =IF(COUNTRY_INFO!$T$9:$T$1000="MDA2 (DEC+ALB)", COUNTRY_INFO!$T$9:$T$1000, " ") ->  | I38: 0 | M38: 0

Sheet MDA3 (hidden)
A1: MDA 3 - Ivermectin (IVM)
A2: Administrative structure, population requiring PC by age group, population treated by age group and coverage
A4: TOTAL | F4: =SUM(F$9:F$1000) -> 0 | G4: 0 | H4: 0 | I4: 0 | J4: 0 | K4: 0 | L4: 0 | M4: 0 | N4: 0 | O4: 0 | P4: 0 | Q4: 0 | R4: =IF(F4<>0, IF(O4/F4*100=0, "-", O4/F4*100), " ") ->  | S4: =IF(G4<>0, IF(P4/G4*100=0, "-", P4/G4*100), " ") ->  | T4: =IF(H4<>0, IF(Q4/H4*100=0, "-", Q4/H4*100), " ") -> 
D6: PC implemented | E6: Date | F6: Population targeted for MDA 3 | I6: Population treated - 1st round | L6: Population treated - 2nd round | O6: Population treated | R6: Programme coverage (%)
A7: Country | B7: Province/State | C7: District | F7: SAC | G7: Adults | H7: Total | I7: SAC | J7: Adults | K7: Total | L7: SAC | M7: Adults | N7: Total | O7: SAC | P7: Adults | Q7: Total | R7: SAC | S7: Adults | T7: Total
A9: =IF(COUNTRY_INFO!A9=0," ",COUNTRY_INFO!A9) -> Rwanda | B9: =IF(COUNTRY_INFO!B9=0," ",COUNTRY_INFO!B9) -> East | C9: =IF(COUNTRY_INFO!C9=0," ",COUNTRY_INFO!C9) -> Bugesera | D9: =IF(COUNTRY_INFO!$T$9:$T$1000="MDA3 (IVM)", COUNTRY_INFO!$T$9:$T$1000, " ") ->  | H9: =SUM(F9:G9) -> 0 | K9: =SUM(I9:J9) -> 0 | N9: =SUM(L9:M9) -> 0 | O9: =MAX(I9,L9) -> 0 | P9: 0 | Q9: =SUM(O9:P9) -> 0 | R9: =IF(F9<>0, IF(MAX(I9,L9)/F9*100=0, "-", MAX(I9,L9)/F9*100), " ") ->  | T9: =IF(H9<>0, IF((MAX(I9,L9)+MAX(J9,M9))/H9*100=0, "-",(MAX(I9,L9)+MAX(J9,M9))/H9*100), " ") -> 
A10: =IF(COUNTRY_INFO!A10=0," ",COUNTRY_INFO!A10) -> Rwanda | B10: =IF(COUNTRY_INFO!B10=0," ",COUNTRY_INFO!B10) -> North | C10: =IF(COUNTRY_INFO!C10=0," ",COUNTRY_INFO!C10) -> Burera | D10: =IF(COUNTRY_INFO!$T$9:$T$1000="MDA3 (IVM)", COUNTRY_INFO!$T$9:$T$1000, " ") ->  | H10: =SUM(F10:G10) -> 0 | K10: =SUM(I10:J10) -> 0 | N10: =SUM(L10:M10) -> 0 | O10: =MAX(I10,L10) -> 0 | P10: =MAX(J10,M10) -> 0 | Q10: =SUM(O10:P10) -> 0 | R10: =IF(F10<>0, IF(MAX(I10,L10)/F10*100=0, "-", MAX(I10,L10)/F10*100), " ") ->  | S10: =IF(G10<>0, IF(MAX(J10,M10)/G10*100=0, "-", MAX(J10,M10)/G10*100), " ") ->  | T10: =IF(H10<>0, IF((MAX(I10,L10)+MAX(J10,M10))/H10*100=0, "-",(MAX(I10,L10)+MAX(J10,M10))/H10*100), " ") -> 
A11: =IF(COUNTRY_INFO!A11=0," ",COUNTRY_INFO!A11) -> Rwanda | B11: =IF(COUNTRY_INFO!B11=0," ",COUNTRY_INFO!B11) -> North | C11: =IF(COUNTRY_INFO!C11=0," ",COUNTRY_INFO!C11) -> Gakenke | D11: =IF(COUNTRY_INFO!$T$9:$T$1000="MDA3 (IVM)", COUNTRY_INFO!$T$9:$T$1000, " ") ->  | H11: 0 | K11: 0 | N11: 0 | O11: 0 | P11: 0 | Q11: 0
A12: =IF(COUNTRY_INFO!A12=0," ",COUNTRY_INFO!A12) -> Rwanda | B12: =IF(COUNTRY_INFO!B12=0," ",COUNTRY_INFO!B12) -> Kigali | C12: =IF(COUNTRY_INFO!C12=0," ",COUNTRY_INFO!C12) -> Gasabo | D12: =IF(COUNTRY_INFO!$T$9:$T$1000="MDA3 (IVM)", COUNTRY_INFO!$T$9:$T$1000, " ") ->  | H12: 0 | K12: 0 | N12: 0 | O12: 0 | P12: 0 | Q12: 0
A13: =IF(COUNTRY_INFO!A13=0," ",COUNTRY_INFO!A13) -> Rwanda | B13: =IF(COUNTRY_INFO!B13=0," ",COUNTRY_INFO!B13) -> East | C13: =IF(COUNTRY_INFO!C13=0," ",COUNTRY_INFO!C13) -> Gatsibo | D13: =IF(COUNTRY_INFO!$T$9:$T$1000="MDA3 (IVM)", COUNTRY_INFO!$T$9:$T$1000, " ") ->  | H13: 0 | K13: 0 | N13: 0 | O13: 0 | P13: 0 | Q13: 0
A14: =IF(COUNTRY_INFO!A14=0," ",COUNTRY_INFO!A14) -> Rwanda | B14: =IF(COUNTRY_INFO!B14=0," ",COUNTRY_INFO!B14) -> North | C14: =IF(COUNTRY_INFO!C14=0," ",COUNTRY_INFO!C14) -> Gicumbi | D14: =IF(COUNTRY_INFO!$T$9:$T$1000="MDA3 (IVM)", COUNTRY_INFO!$T$9:$T$1000, " ") ->  | H14: 0 | K14: 0 | N14: 0 | O14: 0 | P14: 0 | Q14: 0
A15: =IF(COUNTRY_INFO!A15=0," ",COUNTRY_INFO!A15) -> Rwanda | B15: =IF(COUNTRY_INFO!B15=0," ",COUNTRY_INFO!B15) -> South | C15: =IF(COUNTRY_INFO!C15=0," ",COUNTRY_INFO!C15) -> Gisagara | D15: =IF(COUNTRY_INFO!$T$9:$T$1000="MDA3 (IVM)", COUNTRY_INFO!$T$9:$T$1000, " ") ->  | H15: 0 | K15: 0 | N15: 0 | O15: 0 | P15: 0 | Q15: 0
A16: =IF(COUNTRY_INFO!A16=0," ",COUNTRY_INFO!A16) -> Rwanda | B16: =IF(COUNTRY_INFO!B16=0," ",COUNTRY_INFO!B16) -> South | C16: =IF(COUNTRY_INFO!C16=0," ",COUNTRY_INFO!C16) -> Huye | D16: =IF(COUNTRY_INFO!$T$9:$T$1000="MDA3 (IVM)", COUNTRY_INFO!$T$9:$T$1000, " ") ->  | H16: 0 | K16: 0 | N16: 0 | O16: 0 | P16: 0 | Q16: 0
A17: =IF(COUNTRY_INFO!A17=0," ",COUNTRY_INFO!A17) -> Rwanda | B17: =IF(COUNTRY_INFO!B17=0," ",COUNTRY_INFO!B17) -> South | C17: =IF(COUNTRY_INFO!C17=0," ",COUNTRY_INFO!C17) -> Kamonyi | D17: =IF(COUNTRY_INFO!$T$9:$T$1000="MDA3 (IVM)", COUNTRY_INFO!$T$9:$T$1000, " ") ->  | H17: 0 | K17: 0 | N17: 0 | O17: 0 | P17: 0 | Q17: 0
A18: =IF(COUNTRY_INFO!A18=0," ",COUNTRY_INFO!A18) -> Rwanda | B18: =IF(COUNTRY_INFO!B18=0," ",COUNTRY_INFO!B18) -> West | C18: =IF(COUNTRY_INFO!C18=0," ",COUNTRY_INFO!C18) -> Karongi | D18: =IF(COUNTRY_INFO!$T$9:$T$1000="MDA3 (IVM)", COUNTRY_INFO!$T$9:$T$1000, " ") ->  | H18: 0 | K18: 0 | N18: 0 | O18: 0 | P18: 0 | Q18: 0
A19: =IF(COUNTRY_INFO!A19=0," ",COUNTRY_INFO!A19) -> Rwanda | B19: =IF(COUNTRY_INFO!B19=0," ",COUNTRY_INFO!B19) -> East | C19: =IF(COUNTRY_INFO!C19=0," ",COUNTRY_INFO!C19) -> Kayonza | D19: =IF(COUNTRY_INFO!$T$9:$T$1000="MDA3 (IVM)", COUNTRY_INFO!$T$9:$T$1000, " ") ->  | H19: 0 | K19: 0 | N19: 0 | O19: 0 | P19: 0 | Q19: 0
A20: =IF(COUNTRY_INFO!A20=0," ",COUNTRY_INFO!A20) -> Rwanda | B20: =IF(COUNTRY_INFO!B20=0," ",COUNTRY_INFO!B20) -> Kigali | C20: =IF(COUNTRY_INFO!C20=0," ",COUNTRY_INFO!C20) -> Kicukiro | D20: =IF(COUNTRY_INFO!$T$9:$T$1000="MDA3 (IVM)", COUNTRY_INFO!$T$9:$T$1000, " ") ->  | H20: 0 | K20: 0 | N20: 0 | O20: 0 | P20: 0 | Q20: 0
A21: =IF(COUNTRY_INFO!A21=0," ",COUNTRY_INFO!A21) -> Rwanda | B21: =IF(COUNTRY_INFO!B21=0," ",COUNTRY_INFO!B21) -> East | C21: =IF(COUNTRY_INFO!C21=0," ",COUNTRY_INFO!C21) -> Kirehe | D21: =IF(COUNTRY_INFO!$T$9:$T$1000="MDA3 (IVM)", COUNTRY_INFO!$T$9:$T$1000, " ") ->  | H21: 0 | K21: 0 | N21: 0 | O21: 0 | P21: 0 | Q21: 0
A22: =IF(COUNTRY_INFO!A22=0," ",COUNTRY_INFO!A22) -> Rwanda | B22: =IF(COUNTRY_INFO!B22=0," ",COUNTRY_INFO!B22) -> South | C22: =IF(COUNTRY_INFO!C22=0," ",COUNTRY_INFO!C22) -> Muhanga | D22: =IF(COUNTRY_INFO!$T$9:$T$1000="MDA3 (IVM)", COUNTRY_INFO!$T$9:$T$1000, " ") ->  | H22: 0 | K22: 0 | N22: 0 | O22: 0 | P22: 0 | Q22: 0
A23: =IF(COUNTRY_INFO!A23=0," ",COUNTRY_INFO!A23) -> Rwanda | B23: =IF(COUNTRY_INFO!B23=0," ",COUNTRY_INFO!B23) -> North | C23: =IF(COUNTRY_INFO!C23=0," ",COUNTRY_INFO!C23) -> Musanze | D23: =IF(COUNTRY_INFO!$T$9:$T$1000="MDA3 (IVM)", COUNTRY_INFO!$T$9:$T$1000, " ") ->  | H23: 0 | K23: 0 | N23: 0 | O23: 0 | P23: 0 | Q23: 0
A24: =IF(COUNTRY_INFO!A24=0," ",COUNTRY_INFO!A24) -> Rwanda | B24: =IF(COUNTRY_INFO!B24=0," ",COUNTRY_INFO!B24) -> East | C24: =IF(COUNTRY_INFO!C24=0," ",COUNTRY_INFO!C24) -> Ngoma | D24: =IF(COUNTRY_INFO!$T$9:$T$1000="MDA3 (IVM)", COUNTRY_INFO!$T$9:$T$1000, " ") ->  | H24: 0 | K24: 0 | N24: 0 | O24: 0 | P24: 0 | Q24: 0
A25: =IF(COUNTRY_INFO!A25=0," ",COUNTRY_INFO!A25) -> Rwanda | B25: =IF(COUNTRY_INFO!B25=0," ",COUNTRY_INFO!B25) -> West | C25: =IF(COUNTRY_INFO!C25=0," ",COUNTRY_INFO!C25) -> Ngororero | D25: =IF(COUNTRY_INFO!$T$9:$T$1000="MDA3 (IVM)", COUNTRY_INFO!$T$9:$T$1000, " ") ->  | H25: 0 | K25: 0 | N25: 0 | O25: 0 | P25: 0 | Q25: 0
A26: =IF(COUNTRY_INFO!A26=0," ",COUNTRY_INFO!A26) -> Rwanda | B26: =IF(COUNTRY_INFO!B26=0," ",COUNTRY_INFO!B26) -> West | C26: =IF(COUNTRY_INFO!C26=0," ",COUNTRY_INFO!C26) -> Nyabihu | D26: =IF(COUNTRY_INFO!$T$9:$T$1000="MDA3 (IVM)", COUNTRY_INFO!$T$9:$T$1000, " ") ->  | H26: 0 | K26: 0 | N26: 0 | O26: 0 | P26: 0 | Q26: 0
A27: =IF(COUNTRY_INFO!A27=0," ",COUNTRY_INFO!A27) -> Rwanda | B27: =IF(COUNTRY_INFO!B27=0," ",COUNTRY_INFO!B27) -> East | C27: =IF(COUNTRY_INFO!C27=0," ",COUNTRY_INFO!C27) -> Nyagatare | D27: =IF(COUNTRY_INFO!$T$9:$T$1000="MDA3 (IVM)", COUNTRY_INFO!$T$9:$T$1000, " ") ->  | H27: 0 | K27: 0 | N27: 0 | O27: 0 | P27: 0 | Q27: 0
A28: =IF(COUNTRY_INFO!A28=0," ",COUNTRY_INFO!A28) -> Rwanda | B28: =IF(COUNTRY_INFO!B28=0," ",COUNTRY_INFO!B28) -> South | C28: =IF(COUNTRY_INFO!C28=0," ",COUNTRY_INFO!C28) -> Nyamagabe | D28: =IF(COUNTRY_INFO!$T$9:$T$1000="MDA3 (IVM)", COUNTRY_INFO!$T$9:$T$1000, " ") ->  | H28: 0 | K28: 0 | N28: 0 | O28: 0 | P28: 0 | Q28: 0
A29: =IF(COUNTRY_INFO!A29=0," ",COUNTRY_INFO!A29) -> Rwanda | B29: =IF(COUNTRY_INFO!B29=0," ",COUNTRY_INFO!B29) -> West | C29: =IF(COUNTRY_INFO!C29=0," ",COUNTRY_INFO!C29) -> Nyamasheke | D29: =IF(COUNTRY_INFO!$T$9:$T$1000="MDA3 (IVM)", COUNTRY_INFO!$T$9:$T$1000, " ") ->  | H29: 0 | K29: 0 | N29: 0 | O29: 0 | P29: 0 | Q29: 0
A30: =IF(COUNTRY_INFO!A30=0," ",COUNTRY_INFO!A30) -> Rwanda | B30: =IF(COUNTRY_INFO!B30=0," ",COUNTRY_INFO!B30) -> South | C30: =IF(COUNTRY_INFO!C30=0," ",COUNTRY_INFO!C30) -> Nyanza | D30: =IF(COUNTRY_INFO!$T$9:$T$1000="MDA3 (IVM)", COUNTRY_INFO!$T$9:$T$1000, " ") ->  | H30: 0 | K30: 0 | N30: 0 | O30: 0 | P30: 0 | Q30: 0
A31: =IF(COUNTRY_INFO!A31=0," ",COUNTRY_INFO!A31) -> Rwanda | B31: =IF(COUNTRY_INFO!B31=0," ",COUNTRY_INFO!B31) -> Kigali | C31: =IF(COUNTRY_INFO!C31=0," ",COUNTRY_INFO!C31) -> Nyarugenge | D31: =IF(COUNTRY_INFO!$T$9:$T$1000="MDA3 (IVM)", COUNTRY_INFO!$T$9:$T$1000, " ") ->  | H31: 0 | K31: 0 | N31: 0 | O31: 0 | P31: 0 | Q31: 0
A32: =IF(COUNTRY_INFO!A32=0," ",COUNTRY_INFO!A32) -> Rwanda | B32: =IF(COUNTRY_INFO!B32=0," ",COUNTRY_INFO!B32) -> South | C32: =IF(COUNTRY_INFO!C32=0," ",COUNTRY_INFO!C32) -> Nyaruguru | D32: =IF(COUNTRY_INFO!$T$9:$T$1000="MDA3 (IVM)", COUNTRY_INFO!$T$9:$T$1000, " ") ->  | H32: 0 | K32: 0 | N32: 0 | O32: 0 | P32: 0 | Q32: 0
A33: =IF(COUNTRY_INFO!A33=0," ",COUNTRY_INFO!A33) -> Rwanda | B33: =IF(COUNTRY_INFO!B33=0," ",COUNTRY_INFO!B33) -> West | C33: =IF(COUNTRY_INFO!C33=0," ",COUNTRY_INFO!C33) -> Rubavu | D33: =IF(COUNTRY_INFO!$T$9:$T$1000="MDA3 (IVM)", COUNTRY_INFO!$T$9:$T$1000, " ") ->  | H33: 0 | K33: 0 | N33: 0 | O33: 0 | P33: 0 | Q33: 0
A34: =IF(COUNTRY_INFO!A34=0," ",COUNTRY_INFO!A34) -> Rwanda | B34: =IF(COUNTRY_INFO!B34=0," ",COUNTRY_INFO!B34) -> South | C34: =IF(COUNTRY_INFO!C34=0," ",COUNTRY_INFO!C34) -> Ruhango | D34: =IF(COUNTRY_INFO!$T$9:$T$1000="MDA3 (IVM)", COUNTRY_INFO!$T$9:$T$1000, " ") ->  | H34: 0 | K34: 0 | N34: 0 | O34: 0 | P34: 0 | Q34: 0
A35: =IF(COUNTRY_INFO!A35=0," ",COUNTRY_INFO!A35) -> Rwanda | B35: =IF(COUNTRY_INFO!B35=0," ",COUNTRY_INFO!B35) -> North | C35: =IF(COUNTRY_INFO!C35=0," ",COUNTRY_INFO!C35) -> Rulindo | D35: =IF(COUNTRY_INFO!$T$9:$T$1000="MDA3 (IVM)", COUNTRY_INFO!$T$9:$T$1000, " ") ->  | H35: 0 | K35: 0 | N35: 0 | O35: 0 | P35: 0 | Q35: 0
A36: =IF(COUNTRY_INFO!A36=0," ",COUNTRY_INFO!A36) -> Rwanda | B36: =IF(COUNTRY_INFO!B36=0," ",COUNTRY_INFO!B36) -> West | C36: =IF(COUNTRY_INFO!C36=0," ",COUNTRY_INFO!C36) -> Rusizi | D36: =IF(COUNTRY_INFO!$T$9:$T$1000="MDA3 (IVM)", COUNTRY_INFO!$T$9:$T$1000, " ") ->  | H36: 0 | K36: 0 | N36: 0 | O36: 0 | P36: 0 | Q36: 0
A37: =IF(COUNTRY_INFO!A37=0," ",COUNTRY_INFO!A37) -> Rwanda | B37: =IF(COUNTRY_INFO!B37=0," ",COUNTRY_INFO!B37) -> West | C37: =IF(COUNTRY_INFO!C37=0," ",COUNTRY_INFO!C37) -> Rutsiro | D37: =IF(COUNTRY_INFO!$T$9:$T$1000="MDA3 (IVM)", COUNTRY_INFO!$T$9:$T$1000, " ") ->  | H37: 0 | K37: 0 | N37: 0 | O37: 0 | P37: 0 | Q37: 0
A38: =IF(COUNTRY_INFO!A38=0," ",COUNTRY_INFO!A38) -> Rwanda | B38: =IF(COUNTRY_INFO!B38=0," ",COUNTRY_INFO!B38) -> East | C38: =IF(COUNTRY_INFO!C38=0," ",COUNTRY_INFO!C38) -> Rwamagana | D38: =IF(COUNTRY_INFO!$T$9:$T$1000="MDA3 (IVM)", COUNTRY_INFO!$T$9:$T$1000, " ") ->  | H38: 0 | K38: 0 | N38: 0 | O38: 0 | P38: 0 | Q38: 0

Sheet T1
A1: T 1 - Praziquantel (PZQ) and Albendazole (ALB) or Mebendazole (MBD)
A2: Administrative structure, population requiring PC by age group, population treated by age group and coverage
A4: TOTAL | G4: =SUM(G$9:G$1000) -> 0 | H4: 0 | I4: 0 | J4: 0 | K4: =SUM(K$9:K$1000) -> 0 | L4: 0 | M4: 0 | N4: 0 | O4: 0 | P4: =IF(G4<>0, IF(L4/G4*100=0, "-", L4/G4*100), " ") ->  | Q4: =IF(OR(I4<>0,H4<>0), IF(M4/MAX(H4,I4)*100=0, "-", M4/MAX(H4,I4)*100), " ") ->  | R4: =IF(J4<>0, IF(N4/J4*100=0, "-", N4/J4*100), " ") ->  | S4: =IF(K4<>0, IF(O4/K4*100=0, "-", O4/K4*100), " ") -> 
D6: PC implemented | E6: Medicine | F6: Date | G6: Population targeted for T1 | L6: Population treated | P6: Programme coverage (%)
A7: Country | B7: Province/State | C7: District | G7: PreSAC (ALB) | H7: SAC (ALB) | I7: SAC (PZQ) | J7: Adults (PZQ) | K7: Total | L7: PreSAC | M7: SAC | N7: Adults | O7: Total | P7: PreSAC | Q7: SAC | R7: Adults | S7: Total
A9: =IF(COUNTRY_INFO!A9=0," ",COUNTRY_INFO!A9) -> Rwanda | B9: =IF(COUNTRY_INFO!B9=0," ",COUNTRY_INFO!B9) -> East | C9: =IF(COUNTRY_INFO!C9=0," ",COUNTRY_INFO!C9) -> Bugesera | D9: =IF(OR(COUNTRY_INFO!$T$9:$T$1000="T1 (PZQ+ALB/MBD)",COUNTRY_INFO!$U$9:$U$1000="T1 (PZQ+ALB/MBD)"), "T1 (PZQ+ALB/MBD)", " ") ->  | K9: =MAX(H9:I9)+G9+J9 -> 0 | O9: =SUM(L9:N9) -> 0 | P9: =IF(G9<>0, IF(L9/G9*100=0, "-", L9/G9*100), " ") ->  | Q9: =IF(OR(I9<>0,H9<>0), IF(M9/MAX(H9,I9)*100=0, "-", M9/MAX(H9,I9)*100), " ") ->  | R9: =IF(J9<>0, IF(N9/J9*100=0, "-", N9/J9*100), " ") -> 
A10: =IF(COUNTRY_INFO!A10=0," ",COUNTRY_INFO!A10) -> Rwanda | B10: =IF(COUNTRY_INFO!B10=0," ",COUNTRY_INFO!B10) -> North | C10: =IF(COUNTRY_INFO!C10=0," ",COUNTRY_INFO!C10) -> Burera | D10: =IF(OR(COUNTRY_INFO!$T$9:$T$1000="T1 (PZQ+ALB/MBD)",COUNTRY_INFO!$U$9:$U$1000="T1 (PZQ+ALB/MBD)"), "T1 (PZQ+ALB/MBD)", " ") -> T1 (PZQ+ALB/MBD) | K10: =MAX(H10:I10)+G10+J10 -> 0 | O10: =SUM(L10:N10) -> 0 | P10: =IF(G10<>0, IF(L10/G10*100=0, "-", L10/G10*100), " ") ->  | Q10: =IF(OR(I10<>0,H10<>0), IF(M10/MAX(H10,I10)*100=0, "-", M10/MAX(H10,I10)*100), " ") ->  | R10: =IF(J10<>0, IF(N10/J10*100=0, "-", N10/J10*100), " ") ->  | S10: =IF(K10<>0, IF(O10/K10*100=0, "-", O10/K10*100), " ") -> 
A11: =IF(COUNTRY_INFO!A11=0," ",COUNTRY_INFO!A11) -> Rwanda | B11: =IF(COUNTRY_INFO!B11=0," ",COUNTRY_INFO!B11) -> North | C11: =IF(COUNTRY_INFO!C11=0," ",COUNTRY_INFO!C11) -> Gakenke | D11: =IF(OR(COUNTRY_INFO!$T$9:$T$1000="T1 (PZQ+ALB/MBD)",COUNTRY_INFO!$U$9:$U$1000="T1 (PZQ+ALB/MBD)"), "T1 (PZQ+ALB/MBD)", " ") -> T1 (PZQ+ALB/MBD) | K11: 0 | O11: 0
A12: =IF(COUNTRY_INFO!A12=0," ",COUNTRY_INFO!A12) -> Rwanda | B12: =IF(COUNTRY_INFO!B12=0," ",COUNTRY_INFO!B12) -> Kigali | C12: =IF(COUNTRY_INFO!C12=0," ",COUNTRY_INFO!C12) -> Gasabo | D12: =IF(OR(COUNTRY_INFO!$T$9:$T$1000="T1 (PZQ+ALB/MBD)",COUNTRY_INFO!$U$9:$U$1000="T1 (PZQ+ALB/MBD)"), "T1 (PZQ+ALB/MBD)", " ") ->  | K12: 0 | O12: 0
A13: =IF(COUNTRY_INFO!A13=0," ",COUNTRY_INFO!A13) -> Rwanda | B13: =IF(COUNTRY_INFO!B13=0," ",COUNTRY_INFO!B13) -> East | C13: =IF(COUNTRY_INFO!C13=0," ",COUNTRY_INFO!C13) -> Gatsibo | D13: =IF(OR(COUNTRY_INFO!$T$9:$T$1000="T1 (PZQ+ALB/MBD)",COUNTRY_INFO!$U$9:$U$1000="T1 (PZQ+ALB/MBD)"), "T1 (PZQ+ALB/MBD)", " ") -> T1 (PZQ+ALB/MBD) | K13: 0 | O13: 0
A14: =IF(COUNTRY_INFO!A14=0," ",COUNTRY_INFO!A14) -> Rwanda | B14: =IF(COUNTRY_INFO!B14=0," ",COUNTRY_INFO!B14) -> North | C14: =IF(COUNTRY_INFO!C14=0," ",COUNTRY_INFO!C14) -> Gicumbi | D14: =IF(OR(COUNTRY_INFO!$T$9:$T$1000="T1 (PZQ+ALB/MBD)",COUNTRY_INFO!$U$9:$U$1000="T1 (PZQ+ALB/MBD)"), "T1 (PZQ+ALB/MBD)", " ") -> T1 (PZQ+ALB/MBD) | K14: 0 | O14: 0
A15: =IF(COUNTRY_INFO!A15=0," ",COUNTRY_INFO!A15) -> Rwanda | B15: =IF(COUNTRY_INFO!B15=0," ",COUNTRY_INFO!B15) -> South | C15: =IF(COUNTRY_INFO!C15=0," ",COUNTRY_INFO!C15) -> Gisagara | D15: =IF(OR(COUNTRY_INFO!$T$9:$T$1000="T1 (PZQ+ALB/MBD)",COUNTRY_INFO!$U$9:$U$1000="T1 (PZQ+ALB/MBD)"), "T1 (PZQ+ALB/MBD)", " ") -> T1 (PZQ+ALB/MBD) | K15: 0 | O15: 0
A16: =IF(COUNTRY_INFO!A16=0," ",COUNTRY_INFO!A16) -> Rwanda | B16: =IF(COUNTRY_INFO!B16=0," ",COUNTRY_INFO!B16) -> South | C16: =IF(COUNTRY_INFO!C16=0," ",COUNTRY_INFO!C16) -> Huye | D16: =IF(OR(COUNTRY_INFO!$T$9:$T$1000="T1 (PZQ+ALB/MBD)",COUNTRY_INFO!$U$9:$U$1000="T1 (PZQ+ALB/MBD)"), "T1 (PZQ+ALB/MBD)", " ") ->  | K16: 0 | O16: 0
A17: =IF(COUNTRY_INFO!A17=0," ",COUNTRY_INFO!A17) -> Rwanda | B17: =IF(COUNTRY_INFO!B17=0," ",COUNTRY_INFO!B17) -> South | C17: =IF(COUNTRY_INFO!C17=0," ",COUNTRY_INFO!C17) -> Kamonyi | D17: =IF(OR(COUNTRY_INFO!$T$9:$T$1000="T1 (PZQ+ALB/MBD)",COUNTRY_INFO!$U$9:$U$1000="T1 (PZQ+ALB/MBD)"), "T1 (PZQ+ALB/MBD)", " ") -> T1 (PZQ+ALB/MBD) | K17: 0 | O17: 0
A18: =IF(COUNTRY_INFO!A18=0," ",COUNTRY_INFO!A18) -> Rwanda | B18: =IF(COUNTRY_INFO!B18=0," ",COUNTRY_INFO!B18) -> West | C18: =IF(COUNTRY_INFO!C18=0," ",COUNTRY_INFO!C18) -> Karongi | D18: =IF(OR(COUNTRY_INFO!$T$9:$T$1000="T1 (PZQ+ALB/MBD)",COUNTRY_INFO!$U$9:$U$1000="T1 (PZQ+ALB/MBD)"), "T1 (PZQ+ALB/MBD)", " ") ->  | K18: 0 | O18: 0
A19: =IF(COUNTRY_INFO!A19=0," ",COUNTRY_INFO!A19) -> Rwanda | B19: =IF(COUNTRY_INFO!B19=0," ",COUNTRY_INFO!B19) -> East | C19: =IF(COUNTRY_INFO!C19=0," ",COUNTRY_INFO!C19) -> Kayonza | D19: =IF(OR(COUNTRY_INFO!$T$9:$T$1000="T1 (PZQ+ALB/MBD)",COUNTRY_INFO!$U$9:$U$1000="T1 (PZQ+ALB/MBD)"), "T1 (PZQ+ALB/MBD)", " ") -> T1 (PZQ+ALB/MBD) | K19: 0 | O19: 0
A20: =IF(COUNTRY_INFO!A20=0," ",COUNTRY_INFO!A20) -> Rwanda | B20: =IF(COUNTRY_INFO!B20=0," ",COUNTRY_INFO!B20) -> Kigali | C20: =IF(COUNTRY_INFO!C20=0," ",COUNTRY_INFO!C20) -> Kicukiro | D20: =IF(OR(COUNTRY_INFO!$T$9:$T$1000="T1 (PZQ+ALB/MBD)",COUNTRY_INFO!$U$9:$U$1000="T1 (PZQ+ALB/MBD)"), "T1 (PZQ+ALB/MBD)", " ") ->  | K20: 0 | O20: 0
A21: =IF(COUNTRY_INFO!A21=0," ",COUNTRY_INFO!A21) -> Rwanda | B21: =IF(COUNTRY_INFO!B21=0," ",COUNTRY_INFO!B21) -> East | C21: =IF(COUNTRY_INFO!C21=0," ",COUNTRY_INFO!C21) -> Kirehe | D21: =IF(OR(COUNTRY_INFO!$T$9:$T$1000="T1 (PZQ+ALB/MBD)",COUNTRY_INFO!$U$9:$U$1000="T1 (PZQ+ALB/MBD)"), "T1 (PZQ+ALB/MBD)", " ") ->  | K21: 0 | O21: 0
A22: =IF(COUNTRY_INFO!A22=0," ",COUNTRY_INFO!A22) -> Rwanda | B22: =IF(COUNTRY_INFO!B22=0," ",COUNTRY_INFO!B22) -> South | C22: =IF(COUNTRY_INFO!C22=0," ",COUNTRY_INFO!C22) -> Muhanga | D22: =IF(OR(COUNTRY_INFO!$T$9:$T$1000="T1 (PZQ+ALB/MBD)",COUNTRY_INFO!$U$9:$U$1000="T1 (PZQ+ALB/MBD)"), "T1 (PZQ+ALB/MBD)", " ") -> T1 (PZQ+ALB/MBD) | K22: 0 | O22: 0
A23: =IF(COUNTRY_INFO!A23=0," ",COUNTRY_INFO!A23) -> Rwanda | B23: =IF(COUNTRY_INFO!B23=0," ",COUNTRY_INFO!B23) -> North | C23: =IF(COUNTRY_INFO!C23=0," ",COUNTRY_INFO!C23) -> Musanze | D23: =IF(OR(COUNTRY_INFO!$T$9:$T$1000="T1 (PZQ+ALB/MBD)",COUNTRY_INFO!$U$9:$U$1000="T1 (PZQ+ALB/MBD)"), "T1 (PZQ+ALB/MBD)", " ") -> T1 (PZQ+ALB/MBD) | K23: 0 | O23: 0
A24: =IF(COUNTRY_INFO!A24=0," ",COUNTRY_INFO!A24) -> Rwanda | B24: =IF(COUNTRY_INFO!B24=0," ",COUNTRY_INFO!B24) -> East | C24: =IF(COUNTRY_INFO!C24=0," ",COUNTRY_INFO!C24) -> Ngoma | D24: =IF(OR(COUNTRY_INFO!$T$9:$T$1000="T1 (PZQ+ALB/MBD)",COUNTRY_INFO!$U$9:$U$1000="T1 (PZQ+ALB/MBD)"), "T1 (PZQ+ALB/MBD)", " ") -> T1 (PZQ+ALB/MBD) | K24: 0 | O24: 0
A25: =IF(COUNTRY_INFO!A25=0," ",COUNTRY_INFO!A25) -> Rwanda | B25: =IF(COUNTRY_INFO!B25=0," ",COUNTRY_INFO!B25) -> West | C25: =IF(COUNTRY_INFO!C25=0," ",COUNTRY_INFO!C25) -> Ngororero | D25: =IF(OR(COUNTRY_INFO!$T$9:$T$1000="T1 (PZQ+ALB/MBD)",COUNTRY_INFO!$U$9:$U$1000="T1 (PZQ+ALB/MBD)"), "T1 (PZQ+ALB/MBD)", " ") -> T1 (PZQ+ALB/MBD) | K25: 0 | O25: 0
A26: =IF(COUNTRY_INFO!A26=0," ",COUNTRY_INFO!A26) -> Rwanda | B26: =IF(COUNTRY_INFO!B26=0," ",COUNTRY_INFO!B26) -> West | C26: =IF(COUNTRY_INFO!C26=0," ",COUNTRY_INFO!C26) -> Nyabihu | D26: =IF(OR(COUNTRY_INFO!$T$9:$T$1000="T1 (PZQ+ALB/MBD)",COUNTRY_INFO!$U$9:$U$1000="T1 (PZQ+ALB/MBD)"), "T1 (PZQ+ALB/MBD)", " ") ->  | K26: 0 | O26: 0
A27: =IF(COUNTRY_INFO!A27=0," ",COUNTRY_INFO!A27) -> Rwanda | B27: =IF(COUNTRY_INFO!B27=0," ",COUNTRY_INFO!B27) -> East | C27: =IF(COUNTRY_INFO!C27=0," ",COUNTRY_INFO!C27) -> Nyagatare | D27: =IF(OR(COUNTRY_INFO!$T$9:$T$1000="T1 (PZQ+ALB/MBD)",COUNTRY_INFO!$U$9:$U$1000="T1 (PZQ+ALB/MBD)"), "T1 (PZQ+ALB/MBD)", " ") -> T1 (PZQ+ALB/MBD) | K27: 0 | O27: 0
A28: =IF(COUNTRY_INFO!A28=0," ",COUNTRY_INFO!A28) -> Rwanda | B28: =IF(COUNTRY_INFO!B28=0," ",COUNTRY_INFO!B28) -> South | C28: =IF(COUNTRY_INFO!C28=0," ",COUNTRY_INFO!C28) -> Nyamagabe | D28: =IF(OR(COUNTRY_INFO!$T$9:$T$1000="T1 (PZQ+ALB/MBD)",COUNTRY_INFO!$U$9:$U$1000="T1 (PZQ+ALB/MBD)"), "T1 (PZQ+ALB/MBD)", " ") ->  | K28: 0 | O28: 0
A29: =IF(COUNTRY_INFO!A29=0," ",COUNTRY_INFO!A29) -> Rwanda | B29: =IF(COUNTRY_INFO!B29=0," ",COUNTRY_INFO!B29) -> West | C29: =IF(COUNTRY_INFO!C29=0," ",COUNTRY_INFO!C29) -> Nyamasheke | D29: =IF(OR(COUNTRY_INFO!$T$9:$T$1000="T1 (PZQ+ALB/MBD)",COUNTRY_INFO!$U$9:$U$1000="T1 (PZQ+ALB/MBD)"), "T1 (PZQ+ALB/MBD)", " ") -> T1 (PZQ+ALB/MBD) | K29: 0 | O29: 0
A30: =IF(COUNTRY_INFO!A30=0," ",COUNTRY_INFO!A30) -> Rwanda | B30: =IF(COUNTRY_INFO!B30=0," ",COUNTRY_INFO!B30) -> South | C30: =IF(COUNTRY_INFO!C30=0," ",COUNTRY_INFO!C30) -> Nyanza | D30: =IF(OR(COUNTRY_INFO!$T$9:$T$1000="T1 (PZQ+ALB/MBD)",COUNTRY_INFO!$U$9:$U$1000="T1 (PZQ+ALB/MBD)"), "T1 (PZQ+ALB/MBD)", " ") -> T1 (PZQ+ALB/MBD) | K30: 0 | O30: 0
A31: =IF(COUNTRY_INFO!A31=0," ",COUNTRY_INFO!A31) -> Rwanda | B31: =IF(COUNTRY_INFO!B31=0," ",COUNTRY_INFO!B31) -> Kigali | C31: =IF(COUNTRY_INFO!C31=0," ",COUNTRY_INFO!C31) -> Nyarugenge | D31: =IF(OR(COUNTRY_INFO!$T$9:$T$1000="T1 (PZQ+ALB/MBD)",COUNTRY_INFO!$U$9:$U$1000="T1 (PZQ+ALB/MBD)"), "T1 (PZQ+ALB/MBD)", " ") -> T1 (PZQ+ALB/MBD) | K31: 0 | O31: 0
A32: =IF(COUNTRY_INFO!A32=0," ",COUNTRY_INFO!A32) -> Rwanda | B32: =IF(COUNTRY_INFO!B32=0," ",COUNTRY_INFO!B32) -> South | C32: =IF(COUNTRY_INFO!C32=0," ",COUNTRY_INFO!C32) -> Nyaruguru | D32: =IF(OR(COUNTRY_INFO!$T$9:$T$1000="T1 (PZQ+ALB/MBD)",COUNTRY_INFO!$U$9:$U$1000="T1 (PZQ+ALB/MBD)"), "T1 (PZQ+ALB/MBD)", " ") ->  | K32: 0 | O32: 0
A33: =IF(COUNTRY_INFO!A33=0," ",COUNTRY_INFO!A33) -> Rwanda | B33: =IF(COUNTRY_INFO!B33=0," ",COUNTRY_INFO!B33) -> West | C33: =IF(COUNTRY_INFO!C33=0," ",COUNTRY_INFO!C33) -> Rubavu | D33: =IF(OR(COUNTRY_INFO!$T$9:$T$1000="T1 (PZQ+ALB/MBD)",COUNTRY_INFO!$U$9:$U$1000="T1 (PZQ+ALB/MBD)"), "T1 (PZQ+ALB/MBD)", " ") -> T1 (PZQ+ALB/MBD) | K33: 0 | O33: 0
A34: =IF(COUNTRY_INFO!A34=0," ",COUNTRY_INFO!A34) -> Rwanda | B34: =IF(COUNTRY_INFO!B34=0," ",COUNTRY_INFO!B34) -> South | C34: =IF(COUNTRY_INFO!C34=0," ",COUNTRY_INFO!C34) -> Ruhango | D34: =IF(OR(COUNTRY_INFO!$T$9:$T$1000="T1 (PZQ+ALB/MBD)",COUNTRY_INFO!$U$9:$U$1000="T1 (PZQ+ALB/MBD)"), "T1 (PZQ+ALB/MBD)", " ") -> T1 (PZQ+ALB/MBD) | K34: 0 | O34: 0
A35: =IF(COUNTRY_INFO!A35=0," ",COUNTRY_INFO!A35) -> Rwanda | B35: =IF(COUNTRY_INFO!B35=0," ",COUNTRY_INFO!B35) -> North | C35: =IF(COUNTRY_INFO!C35=0," ",COUNTRY_INFO!C35) -> Rulindo | D35: =IF(OR(COUNTRY_INFO!$T$9:$T$1000="T1 (PZQ+ALB/MBD)",COUNTRY_INFO!$U$9:$U$1000="T1 (PZQ+ALB/MBD)"), "T1 (PZQ+ALB/MBD)", " ") -> T1 (PZQ+ALB/MBD) | K35: 0 | O35: 0
A36: =IF(COUNTRY_INFO!A36=0," ",COUNTRY_INFO!A36) -> Rwanda | B36: =IF(COUNTRY_INFO!B36=0," ",COUNTRY_INFO!B36) -> West | C36: =IF(COUNTRY_INFO!C36=0," ",COUNTRY_INFO!C36) -> Rusizi | D36: =IF(OR(COUNTRY_INFO!$T$9:$T$1000="T1 (PZQ+ALB/MBD)",COUNTRY_INFO!$U$9:$U$1000="T1 (PZQ+ALB/MBD)"), "T1 (PZQ+ALB/MBD)", " ") -> T1 (PZQ+ALB/MBD) | K36: 0 | O36: 0
A37: =IF(COUNTRY_INFO!A37=0," ",COUNTRY_INFO!A37) -> Rwanda | B37: =IF(COUNTRY_INFO!B37=0," ",COUNTRY_INFO!B37) -> West | C37: =IF(COUNTRY_INFO!C37=0," ",COUNTRY_INFO!C37) -> Rutsiro | D37: =IF(OR(COUNTRY_INFO!$T$9:$T$1000="T1 (PZQ+ALB/MBD)",COUNTRY_INFO!$U$9:$U$1000="T1 (PZQ+ALB/MBD)"), "T1 (PZQ+ALB/MBD)", " ") -> T1 (PZQ+ALB/MBD) | K37: 0 | O37: 0
A38: =IF(COUNTRY_INFO!A38=0," ",COUNTRY_INFO!A38) -> Rwanda | B38: =IF(COUNTRY_INFO!B38=0," ",COUNTRY_INFO!B38) -> East | C38: =IF(COUNTRY_INFO!C38=0," ",COUNTRY_INFO!C38) -> Rwamagana | D38: =IF(OR(COUNTRY_INFO!$T$9:$T$1000="T1 (PZQ+ALB/MBD)",COUNTRY_INFO!$U$9:$U$1000="T1 (PZQ+ALB/MBD)"), "T1 (PZQ+ALB/MBD)", " ") -> T1 (PZQ+ALB/MBD) | K38: 0 | O38: 0

Sheet T2
A1: T 2 - Praziquantel (PZQ)
A2: Administrative structure, population requiring PC by age group, population treated by age group and coverage
A4: TOTAL | F4: =SUM(F$9:F$1000) -> 0 | G4: 1142966 | H4: 144421 | I4: 1287387 | J4: 0 | K4: 1154088 | L4: 147965 | M4: 1302053 | N4: =IF(F4<>0, IF(J4/F4*100=0, "-", J4/F4*100), " ") ->  | O4: =IF(G4<>0, IF(K4/G4*100=0, "-", K4/G4*100), " ") -> 100.9730823 | P4: =IF(H4<>0, IF(L4/H4*100=0, "-", L4/H4*100), " ") -> 102.4539368 | Q4: =IF(I4<>0, IF(M4/I4*100=0, "-", M4/I4*100), " ") -> 101.1392068
D6: PC implemented | E6: Date | F6: Population targeted for T2 | J6: Population treated | N6: Programme coverage (%)
A7: Country | B7: Province/State | C7: District | F7: PreSAC | G7: SAC | H7: Adults | I7: Total | J7: PreSAC | K7: SAC | L7: Adults | M7: Total | N7: PreSAC | O7: SAC | P7: Adults | Q7: Total
A9: =IF(COUNTRY_INFO!A9=0," ",COUNTRY_INFO!A9) -> Rwanda | B9: =IF(COUNTRY_INFO!B9=0," ",COUNTRY_INFO!B9) -> East | C9: =IF(COUNTRY_INFO!C9=0," ",COUNTRY_INFO!C9) -> Bugesera | D9: =IF(OR(COUNTRY_INFO!$T$9:$T$1000="T2 (PZQ)",COUNTRY_INFO!$U$9:$U$1000="T2 (PZQ)"), "T2 (PZQ)", " ") -> T2 (PZQ) | E9: 14-18 May 2018 | G9: 31306 | I9: =SUM(F9:H9) -> 31306 | K9: 26419 | M9: =SUM(J9:L9) -> 26419 | N9: =IF(F9<>0, IF(J9/F9*100=0, "-", J9/F9*100), " ") ->  | O9: 84.38957388 | Q9: 84.38957388
A10: =IF(COUNTRY_INFO!A10=0," ",COUNTRY_INFO!A10) -> Rwanda | B10: =IF(COUNTRY_INFO!B10=0," ",COUNTRY_INFO!B10) -> North | C10: =IF(COUNTRY_INFO!C10=0," ",COUNTRY_INFO!C10) -> Burera | D10: T2 (PZQ) | E10: 14-18 May 2018 | G10: 80931 | I10: =SUM(F10:H10) -> 80931 | K10: 88511 | M10: =SUM(J10:L10) -> 88511 | N10: =IF(F10<>0, IF(J10/F10*100=0, "-", J10/F10*100), " ") ->  | O10: =IF(G10<>0, IF(K10/G10*100=0, "-", K10/G10*100), " ") -> 109.3660031 | P10: =IF(H10<>0, IF(L10/H10*100=0, "-", L10/H10*100), " ") ->  | Q10: =IF(I10<>0, IF(M10/I10*100=0, "-", M10/I10*100), " ") -> 109.3660031
A11: =IF(COUNTRY_INFO!A11=0," ",COUNTRY_INFO!A11) -> Rwanda | B11: =IF(COUNTRY_INFO!B11=0," ",COUNTRY_INFO!B11) -> North | C11: =IF(COUNTRY_INFO!C11=0," ",COUNTRY_INFO!C11) -> Gakenke | D11: T2 (PZQ) | E11: 14-18 May 2018 | G11: 48000 | I11: 48000 | K11: 46297 | M11: 46297 | O11: 96.45208333 | Q11: 96.45208333
A12: =IF(COUNTRY_INFO!A12=0," ",COUNTRY_INFO!A12) -> Rwanda | B12: =IF(COUNTRY_INFO!B12=0," ",COUNTRY_INFO!B12) -> Kigali | C12: =IF(COUNTRY_INFO!C12=0," ",COUNTRY_INFO!C12) -> Gasabo | D12: =IF(OR(COUNTRY_INFO!$T$9:$T$1000="T2 (PZQ)",COUNTRY_INFO!$U$9:$U$1000="T2 (PZQ)"), "T2 (PZQ)", " ") ->  | I12: 0 | M12: 0
A13: =IF(COUNTRY_INFO!A13=0," ",COUNTRY_INFO!A13) -> Rwanda | B13: =IF(COUNTRY_INFO!B13=0," ",COUNTRY_INFO!B13) -> East | C13: =IF(COUNTRY_INFO!C13=0," ",COUNTRY_INFO!C13) -> Gatsibo | D13: T2 (PZQ) | E13: 14-18 May 2018 | G13: 48115 | I13: 48115 | K13: 64346 | M13: 64346 | O13: 133.7337629 | Q13: 133.7337629
A14: =IF(COUNTRY_INFO!A14=0," ",COUNTRY_INFO!A14) -> Rwanda | B14: =IF(COUNTRY_INFO!B14=0," ",COUNTRY_INFO!B14) -> North | C14: =IF(COUNTRY_INFO!C14=0," ",COUNTRY_INFO!C14) -> Gicumbi | D14: T2 (PZQ) | E14: 14-18 May 2018 | G14: 18915 | I14: 18915 | K14: 11610 | M14: 11610 | O14: 61.37985726 | Q14: 61.37985726
A15: =IF(COUNTRY_INFO!A15=0," ",COUNTRY_INFO!A15) -> Rwanda | B15: =IF(COUNTRY_INFO!B15=0," ",COUNTRY_INFO!B15) -> South | C15: =IF(COUNTRY_INFO!C15=0," ",COUNTRY_INFO!C15) -> Gisagara | D15: T2 (PZQ) | E15: 14-18 May 2018/ 24-24 Sep 2018 | G15: 66446 | H15: 144421 | I15: 210867 | K15: 70275 | L15: 147965 | M15: 218240 | O15: 105.7625741 | P15: 102.4539368 | Q15: 103.4965168
A16: =IF(COUNTRY_INFO!A16=0," ",COUNTRY_INFO!A16) -> Rwanda | B16: =IF(COUNTRY_INFO!B16=0," ",COUNTRY_INFO!B16) -> South | C16: =IF(COUNTRY_INFO!C16=0," ",COUNTRY_INFO!C16) -> Huye | D16: =IF(OR(COUNTRY_INFO!$T$9:$T$1000="T2 (PZQ)",COUNTRY_INFO!$U$9:$U$1000="T2 (PZQ)"), "T2 (PZQ)", " ") ->  | I16: 0 | M16: 0
A17: =IF(COUNTRY_INFO!A17=0," ",COUNTRY_INFO!A17) -> Rwanda | B17: =IF(COUNTRY_INFO!B17=0," ",COUNTRY_INFO!B17) -> South | C17: =IF(COUNTRY_INFO!C17=0," ",COUNTRY_INFO!C17) -> Kamonyi | D17: T2 (PZQ) | E17: 14-18 May 2018 | G17: 111634 | I17: 111634 | K17: 126542 | M17: 126542 | O17: 113.3543544 | Q17: 113.3543544
A18: =IF(COUNTRY_INFO!A18=0," ",COUNTRY_INFO!A18) -> Rwanda | B18: =IF(COUNTRY_INFO!B18=0," ",COUNTRY_INFO!B18) -> West | C18: =IF(COUNTRY_INFO!C18=0," ",COUNTRY_INFO!C18) -> Karongi | D18: =IF(OR(COUNTRY_INFO!$T$9:$T$1000="T2 (PZQ)",COUNTRY_INFO!$U$9:$U$1000="T2 (PZQ)"), "T2 (PZQ)", " ") ->  | I18: 0 | M18: 0
A19: =IF(COUNTRY_INFO!A19=0," ",COUNTRY_INFO!A19) -> Rwanda | B19: =IF(COUNTRY_INFO!B19=0," ",COUNTRY_INFO!B19) -> East | C19: =IF(COUNTRY_INFO!C19=0," ",COUNTRY_INFO!C19) -> Kayonza | D19: T2 (PZQ) | E19: 14-18 May 2018 | G19: 47493 | I19: 47493 | K19: 48702 | M19: 48702 | O19: 102.5456383 | Q19: 102.5456383
A20: =IF(COUNTRY_INFO!A20=0," ",COUNTRY_INFO!A20) -> Rwanda | B20: =IF(COUNTRY_INFO!B20=0," ",COUNTRY_INFO!B20) -> Kigali | C20: =IF(COUNTRY_INFO!C20=0," ",COUNTRY_INFO!C20) -> Kicukiro | D20: =IF(OR(COUNTRY_INFO!$T$9:$T$1000="T2 (PZQ)",COUNTRY_INFO!$U$9:$U$1000="T2 (PZQ)"), "T2 (PZQ)", " ") ->  | I20: 0 | M20: 0
A21: =IF(COUNTRY_INFO!A21=0," ",COUNTRY_INFO!A21) -> Rwanda | B21: =IF(COUNTRY_INFO!B21=0," ",COUNTRY_INFO!B21) -> East | C21: =IF(COUNTRY_INFO!C21=0," ",COUNTRY_INFO!C21) -> Kirehe | D21: =IF(OR(COUNTRY_INFO!$T$9:$T$1000="T2 (PZQ)",COUNTRY_INFO!$U$9:$U$1000="T2 (PZQ)"), "T2 (PZQ)", " ") ->  | I21: 0 | M21: 0
A22: =IF(COUNTRY_INFO!A22=0," ",COUNTRY_INFO!A22) -> Rwanda | B22: =IF(COUNTRY_INFO!B22=0," ",COUNTRY_INFO!B22) -> South | C22: =IF(COUNTRY_INFO!C22=0," ",COUNTRY_INFO!C22) -> Muhanga | D22: T2 (PZQ) | E22: 14-18 May 2018 | G22: 21276 | I22: 21276 | K22: 28207 | M22: 28207 | O22: 132.5766121 | Q22: 132.5766121
A23: =IF(COUNTRY_INFO!A23=0," ",COUNTRY_INFO!A23) -> Rwanda | B23: =IF(COUNTRY_INFO!B23=0," ",COUNTRY_INFO!B23) -> North | C23: =IF(COUNTRY_INFO!C23=0," ",COUNTRY_INFO!C23) -> Musanze | D23: T2 (PZQ) | E23: 14-18 May 2018 | G23: 18620 | I23: 18620 | K23: 18000 | M23: 18000 | O23: 96.67024705 | Q23: 96.67024705
A24: =IF(COUNTRY_INFO!A24=0," ",COUNTRY_INFO!A24) -> Rwanda | B24: =IF(COUNTRY_INFO!B24=0," ",COUNTRY_INFO!B24) -> East | C24: =IF(COUNTRY_INFO!C24=0," ",COUNTRY_INFO!C24) -> Ngoma | D24: T2 (PZQ) | E24: 14-18 May 2018 | G24: 37982 | I24: 37982 | K24: 38023 | M24: 38023 | O24: 100.1079459 | Q24: 100.1079459
A25: =IF(COUNTRY_INFO!A25=0," ",COUNTRY_INFO!A25) -> Rwanda | B25: =IF(COUNTRY_INFO!B25=0," ",COUNTRY_INFO!B25) -> West | C25: =IF(COUNTRY_INFO!C25=0," ",COUNTRY_INFO!C25) -> Ngororero | D25: T2 (PZQ) | E25: 14-18 May 2018 | G25: 5561 | I25: 5561 | K25: 6273 | M25: 6273 | O25: 112.8034526 | Q25: 112.8034526
A26: =IF(COUNTRY_INFO!A26=0," ",COUNTRY_INFO!A26) -> Rwanda | B26: =IF(COUNTRY_INFO!B26=0," ",COUNTRY_INFO!B26) -> West | C26: =IF(COUNTRY_INFO!C26=0," ",COUNTRY_INFO!C26) -> Nyabihu | D26: =IF(OR(COUNTRY_INFO!$T$9:$T$1000="T2 (PZQ)",COUNTRY_INFO!$U$9:$U$1000="T2 (PZQ)"), "T2 (PZQ)", " ") ->  | I26: 0 | M26: 0
A27: =IF(COUNTRY_INFO!A27=0," ",COUNTRY_INFO!A27) -> Rwanda | B27: =IF(COUNTRY_INFO!B27=0," ",COUNTRY_INFO!B27) -> East | C27: =IF(COUNTRY_INFO!C27=0," ",COUNTRY_INFO!C27) -> Nyagatare | D27: T2 (PZQ) | E27: 14-18 May 2018 | G27: 161858 | I27: 161858 | K27: 145966 | M27: 145966 | O27: 90.18151713 | Q27: 90.18151713
A28: =IF(COUNTRY_INFO!A28=0," ",COUNTRY_INFO!A28) -> Rwanda | B28: =IF(COUNTRY_INFO!B28=0," ",COUNTRY_INFO!B28) -> South | C28: =IF(COUNTRY_INFO!C28=0," ",COUNTRY_INFO!C28) -> Nyamagabe | D28: =IF(OR(COUNTRY_INFO!$T$9:$T$1000="T2 (PZQ)",COUNTRY_INFO!$U$9:$U$1000="T2 (PZQ)"), "T2 (PZQ)", " ") ->  | I28: 0 | M28: 0
A29: =IF(COUNTRY_INFO!A29=0," ",COUNTRY_INFO!A29) -> Rwanda | B29: =IF(COUNTRY_INFO!B29=0," ",COUNTRY_INFO!B29) -> West | C29: =IF(COUNTRY_INFO!C29=0," ",COUNTRY_INFO!C29) -> Nyamasheke | D29: T2 (PZQ) | E29: 14-18 May 2018 | G29: 82372 | I29: 82372 | K29: 78015 | M29: 78015 | O29: 94.71058127 | Q29: 94.71058127
A30: =IF(COUNTRY_INFO!A30=0," ",COUNTRY_INFO!A30) -> Rwanda | B30: =IF(COUNTRY_INFO!B30=0," ",COUNTRY_INFO!B30) -> South | C30: =IF(COUNTRY_INFO!C30=0," ",COUNTRY_INFO!C30) -> Nyanza | D30: T2 (PZQ) | E30: 14-18 May 2018 | G30: 42496 | I30: 42496 | K30: 41269 | M30: 41269 | O30: 97.11266943 | Q30: 97.11266943
A31: =IF(COUNTRY_INFO!A31=0," ",COUNTRY_INFO!A31) -> Rwanda | B31: =IF(COUNTRY_INFO!B31=0," ",COUNTRY_INFO!B31) -> Kigali | C31: =IF(COUNTRY_INFO!C31=0," ",COUNTRY_INFO!C31) -> Nyarugenge | D31: T2 (PZQ) | E31: 14-18 May 2018 | G31: 4129 | I31: 4129 | K31: 8116 | M31: 8116 | O31: 196.5609106 | Q31: 196.5609106
A32: =IF(COUNTRY_INFO!A32=0," ",COUNTRY_INFO!A32) -> Rwanda | B32: =IF(COUNTRY_INFO!B32=0," ",COUNTRY_INFO!B32) -> South | C32: =IF(COUNTRY_INFO!C32=0," ",COUNTRY_INFO!C32) -> Nyaruguru | D32: =IF(OR(COUNTRY_INFO!$T$9:$T$1000="T2 (PZQ)",COUNTRY_INFO!$U$9:$U$1000="T2 (PZQ)"), "T2 (PZQ)", " ") ->  | I32: 0 | M32: 0
A33: =IF(COUNTRY_INFO!A33=0," ",COUNTRY_INFO!A33) -> Rwanda | B33: =IF(COUNTRY_INFO!B33=0," ",COUNTRY_INFO!B33) -> West | C33: =IF(COUNTRY_INFO!C33=0," ",COUNTRY_INFO!C33) -> Rubavu | D33: T2 (PZQ) | E33: 14-18 May 2018 | G33: 49869 | I33: 49869 | K33: 43488 | M33: 43488 | O33: 87.20447573 | Q33: 87.20447573
A34: =IF(COUNTRY_INFO!A34=0," ",COUNTRY_INFO!A34) -> Rwanda | B34: =IF(COUNTRY_INFO!B34=0," ",COUNTRY_INFO!B34) -> South | C34: =IF(COUNTRY_INFO!C34=0," ",COUNTRY_INFO!C34) -> Ruhango | D34: T2 (PZQ) | E34: 14-18 May 2018 | G34: 14526 | I34: 14526 | K34: 20508 | M34: 20508 | O34: 141.18133 | Q34: 141.18133
A35: =IF(COUNTRY_INFO!A35=0," ",COUNTRY_INFO!A35) -> Rwanda | B35: =IF(COUNTRY_INFO!B35=0," ",COUNTRY_INFO!B35) -> North | C35: =IF(COUNTRY_INFO!C35=0," ",COUNTRY_INFO!C35) -> Rulindo | D35: T2 (PZQ) | E35: 14-18 May 2018 | G35: 8573 | I35: 8573 | K35: 12640 | M35: 12640 | O35: 147.4396361 | Q35: 147.4396361
A36: =IF(COUNTRY_INFO!A36=0," ",COUNTRY_INFO!A36) -> Rwanda | B36: =IF(COUNTRY_INFO!B36=0," ",COUNTRY_INFO!B36) -> West | C36: =IF(COUNTRY_INFO!C36=0," ",COUNTRY_INFO!C36) -> Rusizi | D36: T2 (PZQ) | E36: 14-18 May 2018 | G36: 133160 | I36: 133160 | K36: 122542 | M36: 122542 | O36: 92.02613397 | Q36: 92.02613397
A37: =IF(COUNTRY_INFO!A37=0," ",COUNTRY_INFO!A37) -> Rwanda | B37: =IF(COUNTRY_INFO!B37=0," ",COUNTRY_INFO!B37) -> West | C37: =IF(COUNTRY_INFO!C37=0," ",COUNTRY_INFO!C37) -> Rutsiro | D37: T2 (PZQ) | E37: 14-18 May 2018 | G37: 56582 | I37: 56582 | K37: 55112 | M37: 55112 | O37: 97.40200064 | Q37: 97.40200064
A38: =IF(COUNTRY_INFO!A38=0," ",COUNTRY_INFO!A38) -> Rwanda | B38: =IF(COUNTRY_INFO!B38=0," ",COUNTRY_INFO!B38) -> East | C38: =IF(COUNTRY_INFO!C38=0," ",COUNTRY_INFO!C38) -> Rwamagana | D38: T2 (PZQ) | E38: 14-18 May 2018 | G38: 53122 | I38: 53122 | K38: 53227 | M38: 53227 | O38: 100.1976582 | Q38: 100.1976582

Sheet T3_R1
A1: T 3 - Albendazole (ALB) or Mebendazole (MBD) - Round 1
A2: Administrative structure, population requiring PC by age group, population treated by age group and coverage
A4: TOTAL | G4: =SUM(G$9:G$1000) -> 1414499 | H4: 3481840 | I4: 0 | J4: 4896339 | K4: 1306669 | L4: 3545051 | M4: 0 | N4: 4851720 | O4: =IF(G4<>0, IF(K4/G4*100=0, "-", K4/G4*100), " ") -> 92.3768062 | P4: =IF(H4<>0, IF(L4/H4*100=0, "-", L4/H4*100), " ") -> 101.8154482 | Q4: =IF(I4<>0, IF(M4/I4*100=0, "-", M4/I4*100), " ") ->  | R4: =IF(J4<>0, IF(N4/J4*100=0, "-", N4/J4*100), " ") -> 99.08872731
D6: PC implemented | E6: Medicine | F6: Date | G6: Population targeted for T3 | K6: Population treated | O6: Programme coverage (%)
A7: Country | B7: Province/State | C7: District | G7: PreSAC | H7: SAC | I7: Adults | J7: Total | K7: PreSAC | L7: SAC | M7: Adults | N7: Total | O7: PreSAC | P7: SAC | Q7: Adults | R7: Total
A9: =IF(COUNTRY_INFO!A9=0," ",COUNTRY_INFO!A9) -> Rwanda | B9: =IF(COUNTRY_INFO!B9=0," ",COUNTRY_INFO!B9) -> East | C9: =IF(COUNTRY_INFO!C9=0," ",COUNTRY_INFO!C9) -> Bugesera | D9: =IF(OR(COUNTRY_INFO!$T$9:$T$1000="T3 (ALB/MBD)",COUNTRY_INFO!$U$9:$U$1000="T3 (ALB/MBD)"), "T3 (ALB/MBD)", " ") -> T3 (ALB/MBD) | E9: ALB | F9: 14-18 May 2018 | G9: 49381 | H9: 121552 | J9: =SUM(G9:I9) -> 170933 | K9: 47326 | L9: 117358 | N9: =SUM(K9:M9) -> 164684 | O9: =IF(G9<>0, IF(K9/G9*100=0, "-", K9/G9*100), " ") -> 95.83848039 | P9: 96.54962485 | R9: 96.34418164
A10: =IF(COUNTRY_INFO!A10=0," ",COUNTRY_INFO!A10) -> Rwanda | B10: =IF(COUNTRY_INFO!B10=0," ",COUNTRY_INFO!B10) -> North | C10: =IF(COUNTRY_INFO!C10=0," ",COUNTRY_INFO!C10) -> Burera | D10: =IF(OR(COUNTRY_INFO!$T$9:$T$1000="T3 (ALB/MBD)",COUNTRY_INFO!$U$9:$U$1000="T3 (ALB/MBD)"), "T3 (ALB/MBD)", " ") -> T3 (ALB/MBD) | E10: ALB | F10: 14-18 May 2018 | G10: 41288 | H10: 101632 | J10: =SUM(G10:I10) -> 142920 | K10: 40624 | L10: 113668 | N10: =SUM(K10:M10) -> 154292 | O10: =IF(G10<>0, IF(K10/G10*100=0, "-", K10/G10*100), " ") -> 98.39178454 | P10: =IF(H10<>0, IF(L10/H10*100=0, "-", L10/H10*100), " ") -> 111.8427267 | Q10: =IF(I10<>0, IF(M10/I10*100=0, "-", M10/I10*100), " ") ->  | R10: =IF(J10<>0, IF(N10/J10*100=0, "-", N10/J10*100), " ") -> 107.956899
A11: =IF(COUNTRY_INFO!A11=0," ",COUNTRY_INFO!A11) -> Rwanda | B11: =IF(COUNTRY_INFO!B11=0," ",COUNTRY_INFO!B11) -> North | C11: =IF(COUNTRY_INFO!C11=0," ",COUNTRY_INFO!C11) -> Gakenke | D11: =IF(OR(COUNTRY_INFO!$T$9:$T$1000="T3 (ALB/MBD)",COUNTRY_INFO!$U$9:$U$1000="T3 (ALB/MBD)"), "T3 (ALB/MBD)", " ") -> T3 (ALB/MBD) | E11: ALB | F11: 14-18 May 2018 | G11: 41118 | H11: 101214 | J11: 142332 | K11: 40276 | L11: 102975 | N11: 143251 | O11: 97.95223503 | P11: 101.7398779 | R11: 100.6456735
A12: =IF(COUNTRY_INFO!A12=0," ",COUNTRY_INFO!A12) -> Rwanda | B12: =IF(COUNTRY_INFO!B12=0," ",COUNTRY_INFO!B12) -> Kigali | C12: =IF(COUNTRY_INFO!C12=0," ",COUNTRY_INFO!C12) -> Gasabo | D12: =IF(OR(COUNTRY_INFO!$T$9:$T$1000="T3 (ALB/MBD)",COUNTRY_INFO!$U$9:$U$1000="T3 (ALB/MBD)"), "T3 (ALB/MBD)", " ") -> T3 (ALB/MBD) | E12: ALB | F12: 14-18 May 2018 | G12: 78795 | H12: 193956 | J12: 272751 | K12: 65675 | L12: 231467 | N12: 297142 | O12: 83.34919728 | P12: 119.3399534 | R12: 108.9425887
A13: =IF(COUNTRY_INFO!A13=0," ",COUNTRY_INFO!A13) -> Rwanda | B13: =IF(COUNTRY_INFO!B13=0," ",COUNTRY_INFO!B13) -> East | C13: =IF(COUNTRY_INFO!C13=0," ",COUNTRY_INFO!C13) -> Gatsibo | D13: =IF(OR(COUNTRY_INFO!$T$9:$T$1000="T3 (ALB/MBD)",COUNTRY_INFO!$U$9:$U$1000="T3 (ALB/MBD)"), "T3 (ALB/MBD)", " ") -> T3 (ALB/MBD) | E13: ALB | F13: 14-18 May 2018 | G13: 62355 | H13: 153490 | J13: 215845 | K13: 54231 | L13: 149234 | N13: 203465 | O13: 86.97137359 | P13: 97.22718092 | R13: 94.2644027
A14: =IF(COUNTRY_INFO!A14=0," ",COUNTRY_INFO!A14) -> Rwanda | B14: =IF(COUNTRY_INFO!B14=0," ",COUNTRY_INFO!B14) -> North | C14: =IF(COUNTRY_INFO!C14=0," ",COUNTRY_INFO!C14) -> Gicumbi | D14: =IF(OR(COUNTRY_INFO!$T$9:$T$1000="T3 (ALB/MBD)",COUNTRY_INFO!$U$9:$U$1000="T3 (ALB/MBD)"), "T3 (ALB/MBD)", " ") -> T3 (ALB/MBD) | E14: ALB | F14: 14-18 May 2018 | G14: 50245 | H14: 123680 | J14: 173925 | K14: 52794 | L14: 129595 | N14: 182389 | O14: 105.0731416 | P14: 104.7825032 | R14: 104.8664654
A15: =IF(COUNTRY_INFO!A15=0," ",COUNTRY_INFO!A15) -> Rwanda | B15: =IF(COUNTRY_INFO!B15=0," ",COUNTRY_INFO!B15) -> South | C15: =IF(COUNTRY_INFO!C15=0," ",COUNTRY_INFO!C15) -> Gisagara | D15: T3 (ALB/MBD) | E15: ALB | F15: 14-18 May 2018 | G15: 42103 | H15: 103639 | J15: 145742 | K15: 41975 | L15: 108563 | N15: 150538 | O15: 99.69598366 | P15: 104.7511072 | R15: 103.2907467
A16: =IF(COUNTRY_INFO!A16=0," ",COUNTRY_INFO!A16) -> Rwanda | B16: =IF(COUNTRY_INFO!B16=0," ",COUNTRY_INFO!B16) -> South | C16: =IF(COUNTRY_INFO!C16=0," ",COUNTRY_INFO!C16) -> Huye | D16: =IF(OR(COUNTRY_INFO!$T$9:$T$1000="T3 (ALB/MBD)",COUNTRY_INFO!$U$9:$U$1000="T3 (ALB/MBD)"), "T3 (ALB/MBD)", " ") -> T3 (ALB/MBD) | E16: ALB | F16: 14-18 May 2018 | G16: 42975 | H16: 105786 | J16: 148761 | K16: 35191 | L16: 92960 | N16: 128151 | O16: 81.88714369 | P16: 87.87552228 | R16: 86.14556234
A17: =IF(COUNTRY_INFO!A17=0," ",COUNTRY_INFO!A17) -> Rwanda | B17: =IF(COUNTRY_INFO!B17=0," ",COUNTRY_INFO!B17) -> South | C17: =IF(COUNTRY_INFO!C17=0," ",COUNTRY_INFO!C17) -> Kamonyi | D17: =IF(OR(COUNTRY_INFO!$T$9:$T$1000="T3 (ALB/MBD)",COUNTRY_INFO!$U$9:$U$1000="T3 (ALB/MBD)"), "T3 (ALB/MBD)", " ") -> T3 (ALB/MBD) | E17: ALB | F17: 14-18 May 2018 | G17: 45934 | H17: 113069 | J17: 159003 | K17: 37481 | L17: 126542 | N17: 164023 | O17: 81.59750947 | P17: 111.9157329 | R17: 103.1571731
A18: =IF(COUNTRY_INFO!A18=0," ",COUNTRY_INFO!A18) -> Rwanda | B18: =IF(COUNTRY_INFO!B18=0," ",COUNTRY_INFO!B18) -> West | C18: =IF(COUNTRY_INFO!C18=0," ",COUNTRY_INFO!C18) -> Karongi | D18: =IF(OR(COUNTRY_INFO!$T$9:$T$1000="T3 (ALB/MBD)",COUNTRY_INFO!$U$9:$U$1000="T3 (ALB/MBD)"), "T3 (ALB/MBD)", " ") -> T3 (ALB/MBD) | E18: ALB | F18: 14-18 May 2018 | G18: 42596 | H18: 104851 | J18: 147447 | K18: 39791 | L18: 110081 | N18: 149872 | O18: 93.41487464 | P18: 104.9880306 | R18: 101.6446588
A19: =IF(COUNTRY_INFO!A19=0," ",COUNTRY_INFO!A19) -> Rwanda | B19: =IF(COUNTRY_INFO!B19=0," ",COUNTRY_INFO!B19) -> East | C19: =IF(COUNTRY_INFO!C19=0," ",COUNTRY_INFO!C19) -> Kayonza | D19: =IF(OR(COUNTRY_INFO!$T$9:$T$1000="T3 (ALB/MBD)",COUNTRY_INFO!$U$9:$U$1000="T3 (ALB/MBD)"), "T3 (ALB/MBD)", " ") -> T3 (ALB/MBD) | E19: ALB | F19: 14-18 May 2018 | G19: 51003 | H19: 125545 | J19: 176548 | K19: 43216 | L19: 122395 | N19: 165611 | O19: 84.73227065 | P19: 97.4909395 | R19: 93.80508417
A20: =IF(COUNTRY_INFO!A20=0," ",COUNTRY_INFO!A20) -> Rwanda | B20: =IF(COUNTRY_INFO!B20=0," ",COUNTRY_INFO!B20) -> Kigali | C20: =IF(COUNTRY_INFO!C20=0," ",COUNTRY_INFO!C20) -> Kicukiro | D20: =IF(OR(COUNTRY_INFO!$T$9:$T$1000="T3 (ALB/MBD)",COUNTRY_INFO!$U$9:$U$1000="T3 (ALB/MBD)"), "T3 (ALB/MBD)", " ") -> T3 (ALB/MBD) | E20: ALB | F20: 14-18 May 2018 | G20: 45592 | H20: 112226 | J20: 157818 | K20: 33354 | L20: 93798 | N20: 127152 | O20: 73.1575715 | P20: 83.57956267 | R20: 80.56875642
A21: =IF(COUNTRY_INFO!A21=0," ",COUNTRY_INFO!A21) -> Rwanda | B21: =IF(COUNTRY_INFO!B21=0," ",COUNTRY_INFO!B21) -> East | C21: =IF(COUNTRY_INFO!C21=0," ",COUNTRY_INFO!C21) -> Kirehe | D21: =IF(OR(COUNTRY_INFO!$T$9:$T$1000="T3 (ALB/MBD)",COUNTRY_INFO!$U$9:$U$1000="T3 (ALB/MBD)"), "T3 (ALB/MBD)", " ") -> T3 (ALB/MBD) | E21: ALB | F21: 14-18 May 2018 | G21: 47886 | H21: 117872 | J21: 165758 | K21: 42590 | L21: 122819 | N21: 165409 | O21: 88.94040012 | P21: 104.1969255 | R21: 99.78945209
A22: =IF(COUNTRY_INFO!A22=0," ",COUNTRY_INFO!A22) -> Rwanda | B22: =IF(COUNTRY_INFO!B22=0," ",COUNTRY_INFO!B22) -> South | C22: =IF(COUNTRY_INFO!C22=0," ",COUNTRY_INFO!C22) -> Muhanga | D22: =IF(OR(COUNTRY_INFO!$T$9:$T$1000="T3 (ALB/MBD)",COUNTRY_INFO!$U$9:$U$1000="T3 (ALB/MBD)"), "T3 (ALB/MBD)", " ") -> T3 (ALB/MBD) | E22: ALB | F22: 14-18 May 2018 | G22: 39967 | H22: 98380 | J22: 138347 | K22: 34401 | L22: 99359 | N22: 133760 | O22: 86.07351065 | P22: 100.995121 | R22: 96.68442395
A23: =IF(COUNTRY_INFO!A23=0," ",COUNTRY_INFO!A23) -> Rwanda | B23: =IF(COUNTRY_INFO!B23=0," ",COUNTRY_INFO!B23) -> North | C23: =IF(COUNTRY_INFO!C23=0," ",COUNTRY_INFO!C23) -> Musanze | D23: =IF(OR(COUNTRY_INFO!$T$9:$T$1000="T3 (ALB/MBD)",COUNTRY_INFO!$U$9:$U$1000="T3 (ALB/MBD)"), "T3 (ALB/MBD)", " ") -> T3 (ALB/MBD) | E23: ALB | F23: 14-18 May 2018 | G23: 47555 | H23: 117058 | J23: 164613 | K23: 47275 | L23: 134779 | N23: 182054 | O23: 99.41120807 | P23: 115.1386492 | R23: 110.5951535
A24: =IF(COUNTRY_INFO!A24=0," ",COUNTRY_INFO!A24) -> Rwanda | B24: =IF(COUNTRY_INFO!B24=0," ",COUNTRY_INFO!B24) -> East | C24: =IF(COUNTRY_INFO!C24=0," ",COUNTRY_INFO!C24) -> Ngoma | D24: =IF(OR(COUNTRY_INFO!$T$9:$T$1000="T3 (ALB/MBD)",COUNTRY_INFO!$U$9:$U$1000="T3 (ALB/MBD)"), "T3 (ALB/MBD)", " ") -> T3 (ALB/MBD) | E24: ALB | F24: 14-18 May 2018 | G24: 46953 | H24: 115576 | J24: 162529 | K24: 43273 | L24: 105900 | N24: 149173 | O24: 92.16237514 | P24: 91.62801966 | R24: 91.7823896
A25: =IF(COUNTRY_INFO!A25=0," ",COUNTRY_INFO!A25) -> Rwanda | B25: =IF(COUNTRY_INFO!B25=0," ",COUNTRY_INFO!B25) -> West | C25: =IF(COUNTRY_INFO!C25=0," ",COUNTRY_INFO!C25) -> Ngororero | D25: =IF(OR(COUNTRY_INFO!$T$9:$T$1000="T3 (ALB/MBD)",COUNTRY_INFO!$U$9:$U$1000="T3 (ALB/MBD)"), "T3 (ALB/MBD)", " ") -> T3 (ALB/MBD) | E25: ALB | F25: 14-18 May 2018 | G25: 42878 | H25: 105545 | J25: 148423 | K25: 47922 | L25: 124723 | N25: 172645 | O25: 111.7636084 | P25: 118.1704486 | R25: 116.3195731
A26: =IF(COUNTRY_INFO!A26=0," ",COUNTRY_INFO!A26) -> Rwanda | B26: =IF(COUNTRY_INFO!B26=0," ",COUNTRY_INFO!B26) -> West | C26: =IF(COUNTRY_INFO!C26=0," ",COUNTRY_INFO!C26) -> Nyabihu | D26: =IF(OR(COUNTRY_INFO!$T$9:$T$1000="T3 (ALB/MBD)",COUNTRY_INFO!$U$9:$U$1000="T3 (ALB/MBD)"), "T3 (ALB/MBD)", " ") -> T3 (ALB/MBD) | E26: ALB | F26: 14-18 May 2018 | G26: 36870 | H26: 90757 | J26: 127627 | K26: 36934 | L26: 99827 | N26: 136761 | O26: 100.1735829 | P26: 109.9937195 | R26: 107.1567928
A27: =IF(COUNTRY_INFO!A27=0," ",COUNTRY_INFO!A27) -> Rwanda | B27: =IF(COUNTRY_INFO!B27=0," ",COUNTRY_INFO!B27) -> East | C27: =IF(COUNTRY_INFO!C27=0," ",COUNTRY_INFO!C27) -> Nyagatare | D27: =IF(OR(COUNTRY_INFO!$T$9:$T$1000="T3 (ALB/MBD)",COUNTRY_INFO!$U$9:$U$1000="T3 (ALB/MBD)"), "T3 (ALB/MBD)", " ") -> T3 (ALB/MBD) | E27: ALB | F27: 14-18 May 2018 | G27: 72268 | H27: 177890 | J27: 250158 | K27: 60555 | L27: 164974 | N27: 225529 | O27: 83.79227321 | P27: 92.7393333 | R27: 90.15462228
A28: =IF(COUNTRY_INFO!A28=0," ",COUNTRY_INFO!A28) -> Rwanda | B28: =IF(COUNTRY_INFO!B28=0," ",COUNTRY_INFO!B28) -> South | C28: =IF(COUNTRY_INFO!C28=0," ",COUNTRY_INFO!C28) -> Nyamagabe | D28: =IF(OR(COUNTRY_INFO!$T$9:$T$1000="T3 (ALB/MBD)",COUNTRY_INFO!$U$9:$U$1000="T3 (ALB/MBD)"), "T3 (ALB/MBD)", " ") -> T3 (ALB/MBD) | E28: ALB | F28: 14-18 May 2018 | G28: 44479 | H28: 109487 | J28: 153966 | K28: 36750 | L28: 108898 | N28: 145648 | O28: 82.62326042 | P28: 99.46203659 | R28: 94.59750854
A29: =IF(COUNTRY_INFO!A29=0," ",COUNTRY_INFO!A29) -> Rwanda | B29: =IF(COUNTRY_INFO!B29=0," ",COUNTRY_INFO!B29) -> West | C29: =IF(COUNTRY_INFO!C29=0," ",COUNTRY_INFO!C29) -> Nyamasheke | D29: =IF(OR(COUNTRY_INFO!$T$9:$T$1000="T3 (ALB/MBD)",COUNTRY_INFO!$U$9:$U$1000="T3 (ALB/MBD)"), "T3 (ALB/MBD)", " ") -> T3 (ALB/MBD) | E29: ALB | F29: 14-18 May 2018 | G29: 49085 | H29: 120826 | J29: 169911 | K29: 51030 | L29: 130670 | N29: 181700 | O29: 103.962514 | P29: 108.1472531 | R29: 106.9383383
A30: =IF(COUNTRY_INFO!A30=0," ",COUNTRY_INFO!A30) -> Rwanda | B30: =IF(COUNTRY_INFO!B30=0," ",COUNTRY_INFO!B30) -> South | C30: =IF(COUNTRY_INFO!C30=0," ",COUNTRY_INFO!C30) -> Nyanza | D30: =IF(OR(COUNTRY_INFO!$T$9:$T$1000="T3 (ALB/MBD)",COUNTRY_INFO!$U$9:$U$1000="T3 (ALB/MBD)"), "T3 (ALB/MBD)", " ") -> T3 (ALB/MBD) | E30: ALB | F30: 14-18 May 2018 | G30: 44869 | H30: 110446 | J30: 155315 | K30: 33783 | L30: 100746 | N30: 134529 | O30: 75.29251822 | P30: 91.21742752 | R30: 86.61687538
A31: =IF(COUNTRY_INFO!A31=0," ",COUNTRY_INFO!A31) -> Rwanda | B31: =IF(COUNTRY_INFO!B31=0," ",COUNTRY_INFO!B31) -> Kigali | C31: =IF(COUNTRY_INFO!C31=0," ",COUNTRY_INFO!C31) -> Nyarugenge | D31: =IF(OR(COUNTRY_INFO!$T$9:$T$1000="T3 (ALB/MBD)",COUNTRY_INFO!$U$9:$U$1000="T3 (ALB/MBD)"), "T3 (ALB/MBD)", " ") -> T3 (ALB/MBD) | E31: ALB | F31: 14-18 May 2018 | G31: 37319 | H31: 91861 | J31: 129180 | K31: 31527 | L31: 80786 | N31: 112313 | O31: 84.47975562 | P31: 87.94374109 | R31: 86.94302524
A32: =IF(COUNTRY_INFO!A32=0," ",COUNTRY_INFO!A32) -> Rwanda | B32: =IF(COUNTRY_INFO!B32=0," ",COUNTRY_INFO!B32) -> South | C32: =IF(COUNTRY_INFO!C32=0," ",COUNTRY_INFO!C32) -> Nyaruguru | D32: =IF(OR(COUNTRY_INFO!$T$9:$T$1000="T3 (ALB/MBD)",COUNTRY_INFO!$U$9:$U$1000="T3 (ALB/MBD)"), "T3 (ALB/MBD)", " ") -> T3 (ALB/MBD) | E32: ALB | F32: 14-18 May 2018 | G32: 38740 | H32: 95360 | J32: 134100 | K32: 37518 | L32: 99888 | N32: 137406 | O32: 96.84563758 | P32: 104.7483221 | R32: 102.4653244
A33: =IF(COUNTRY_INFO!A33=0," ",COUNTRY_INFO!A33) -> Rwanda | B33: =IF(COUNTRY_INFO!B33=0," ",COUNTRY_INFO!B33) -> West | C33: =IF(COUNTRY_INFO!C33=0," ",COUNTRY_INFO!C33) -> Rubavu | D33: =IF(OR(COUNTRY_INFO!$T$9:$T$1000="T3 (ALB/MBD)",COUNTRY_INFO!$U$9:$U$1000="T3 (ALB/MBD)"), "T3 (ALB/MBD)", " ") -> T3 (ALB/MBD) | E33: ALB | F33: 14-18 May 2018 | G33: 55819 | H33: 137401 | J33: 193220 | K33: 57358 | L33: 130935 | N33: 188293 | O33: 102.7571257 | P33: 95.29406627 | R33: 97.45005693
A34: =IF(COUNTRY_INFO!A34=0," ",COUNTRY_INFO!A34) -> Rwanda | B34: =IF(COUNTRY_INFO!B34=0," ",COUNTRY_INFO!B34) -> South | C34: =IF(COUNTRY_INFO!C34=0," ",COUNTRY_INFO!C34) -> Ruhango | D34: =IF(OR(COUNTRY_INFO!$T$9:$T$1000="T3 (ALB/MBD)",COUNTRY_INFO!$U$9:$U$1000="T3 (ALB/MBD)"), "T3 (ALB/MBD)", " ") -> T3 (ALB/MBD) | E34: ALB | F34: 14-18 May 2018 | G34: 42573 | H34: 104794 | J34: 147367 | K34: 37444 | L34: 102521 | N34: 139965 | O34: 87.95245813 | P34: 97.83098269 | R34: 94.97716585
A35: =IF(COUNTRY_INFO!A35=0," ",COUNTRY_INFO!A35) -> Rwanda | B35: =IF(COUNTRY_INFO!B35=0," ",COUNTRY_INFO!B35) -> North | C35: =IF(COUNTRY_INFO!C35=0," ",COUNTRY_INFO!C35) -> Rulindo | D35: =IF(OR(COUNTRY_INFO!$T$9:$T$1000="T3 (ALB/MBD)",COUNTRY_INFO!$U$9:$U$1000="T3 (ALB/MBD)"), "T3 (ALB/MBD)", " ") -> T3 (ALB/MBD) | E35: ALB | F35: 14-18 May 2018 | G35: 36548 | H35: 89964 | J35: 126512 | K35: 38337 | L35: 99347 | N35: 137684 | O35: 104.8949327 | P35: 110.4297274 | R35: 108.8307829
A36: =IF(COUNTRY_INFO!A36=0," ",COUNTRY_INFO!A36) -> Rwanda | B36: =IF(COUNTRY_INFO!B36=0," ",COUNTRY_INFO!B36) -> West | C36: =IF(COUNTRY_INFO!C36=0," ",COUNTRY_INFO!C36) -> Rusizi | D36: =IF(OR(COUNTRY_INFO!$T$9:$T$1000="T3 (ALB/MBD)",COUNTRY_INFO!$U$9:$U$1000="T3 (ALB/MBD)"), "T3 (ALB/MBD)", " ") -> T3 (ALB/MBD) | E36: ALB | F36: 14-18 May 2018 | G36: 52600 | H36: 129478 | J36: 182078 | K36: 56077 | L36: 135631 | N36: 191708 | O36: 106.6102662 | P36: 104.7521587 | R36: 105.2889421
A37: =IF(COUNTRY_INFO!A37=0," ",COUNTRY_INFO!A37) -> Rwanda | B37: =IF(COUNTRY_INFO!B37=0," ",COUNTRY_INFO!B37) -> West | C37: =IF(COUNTRY_INFO!C37=0," ",COUNTRY_INFO!C37) -> Rutsiro | D37: =IF(OR(COUNTRY_INFO!$T$9:$T$1000="T3 (ALB/MBD)",COUNTRY_INFO!$U$9:$U$1000="T3 (ALB/MBD)"), "T3 (ALB/MBD)", " ") -> T3 (ALB/MBD) | E37: ALB | F37: 14-18 May 2018 | G37: 41967 | H37: 103303 | J37: 145270 | K37: 39707 | L37: 104934 | N37: 144641 | O37: 94.6148164 | P37: 101.5788506 | R37: 99.56701315
A38: =IF(COUNTRY_INFO!A38=0," ",COUNTRY_INFO!A38) -> Rwanda | B38: =IF(COUNTRY_INFO!B38=0," ",COUNTRY_INFO!B38) -> East | C38: =IF(COUNTRY_INFO!C38=0," ",COUNTRY_INFO!C38) -> Rwamagana | D38: =IF(OR(COUNTRY_INFO!$T$9:$T$1000="T3 (ALB/MBD)",COUNTRY_INFO!$U$9:$U$1000="T3 (ALB/MBD)"), "T3 (ALB/MBD)", " ") -> T3 (ALB/MBD) | E38: ALB | F38: 14-18 May 2018 | G38: 42738 | H38: 105202 | J38: 147940 | K38: 42254 | L38: 99678 | N38: 141932 | O38: 98.86751837 | P38: 94.74914926 | R38: 95.93889415

Sheet T3_R2
A1: T 3 - Albendazole (ALB) or Mebendazole (MBD) - Round 2
A2: Administrative structure, population requiring PC by age group, population treated by age group and coverage
A4: TOTAL | G4: =SUM(G$9:G$1000) -> 1414499 | H4: 3481840 | I4: 144421 | J4: 5040760 | K4: 1460923 | L4: 3599111 | M4: 144247 | N4: 5204281 | O4: =IF(G4<>0, IF(K4/G4*100=0, "-", K4/G4*100), " ") -> 103.2820101 | P4: =IF(H4<>0, IF(L4/H4*100=0, "-", L4/H4*100), " ") -> 103.3680755 | Q4: =IF(I4<>0, IF(M4/I4*100=0, "-", M4/I4*100), " ") -> 99.87951891 | R4: =IF(J4<>0, IF(N4/J4*100=0, "-", N4/J4*100), " ") -> 103.2439751
D6: PC implemented | E6: Medicine | F6: Date | G6: Population targeted for T3 | K6: Population treated | O6: Programme coverage (%)
A7: Country | B7: Province/State | C7: District | G7: PreSAC | H7: SAC | I7: Adults | J7: Total | K7: PreSAC | L7: SAC | M7: Adults | N7: Total | O7: PreSAC | P7: SAC | Q7: Adults | R7: Total
A9: =IF(COUNTRY_INFO!A9=0," ",COUNTRY_INFO!A9) -> Rwanda | B9: =IF(COUNTRY_INFO!B9=0," ",COUNTRY_INFO!B9) -> East | C9: =IF(COUNTRY_INFO!C9=0," ",COUNTRY_INFO!C9) -> Bugesera | D9: T3 (ALB/MBD) | E9: ALB | F9: 08-12 Oct 2018 | G9: 49381 | H9: 121552 | J9: =SUM(G9:I9) -> 170933 | K9: 56452 | L9: 125677 | N9: =SUM(K9:M9) -> 182129 | O9: =IF(G9<>0, IF(K9/G9*100=0, "-", K9/G9*100), " ") -> 114.3192726 | P9: 103.3936093 | R9: 106.5499348
A10: =IF(COUNTRY_INFO!A10=0," ",COUNTRY_INFO!A10) -> Rwanda | B10: =IF(COUNTRY_INFO!B10=0," ",COUNTRY_INFO!B10) -> North | C10: =IF(COUNTRY_INFO!C10=0," ",COUNTRY_INFO!C10) -> Burera | D10: T3 (ALB/MBD) | E10: ALB | F10: 08-12 Oct 2018 | G10: 41288 | H10: 101632 | J10: =SUM(G10:I10) -> 142920 | K10: 44386 | L10: 112057 | N10: =SUM(K10:M10) -> 156443 | O10: =IF(G10<>0, IF(K10/G10*100=0, "-", K10/G10*100), " ") -> 107.5033908 | P10: =IF(H10<>0, IF(L10/H10*100=0, "-", L10/H10*100), " ") -> 110.257596 | Q10: =IF(I10<>0, IF(M10/I10*100=0, "-", M10/I10*100), " ") ->  | R10: =IF(J10<>0, IF(N10/J10*100=0, "-", N10/J10*100), " ") -> 109.4619367
A11: =IF(COUNTRY_INFO!A11=0," ",COUNTRY_INFO!A11) -> Rwanda | B11: =IF(COUNTRY_INFO!B11=0," ",COUNTRY_INFO!B11) -> North | C11: =IF(COUNTRY_INFO!C11=0," ",COUNTRY_INFO!C11) -> Gakenke | D11: T3 (ALB/MBD) | E11: ALB | F11: 08-12 Oct 2018 | G11: 41118 | H11: 101214 | J11: 142332 | K11: 41483 | L11: 102580 | N11: 144063 | O11: 100.8876891 | P11: 101.3496157 | R11: 101.2161706
A12: =IF(COUNTRY_INFO!A12=0," ",COUNTRY_INFO!A12) -> Rwanda | B12: =IF(COUNTRY_INFO!B12=0," ",COUNTRY_INFO!B12) -> Kigali | C12: =IF(COUNTRY_INFO!C12=0," ",COUNTRY_INFO!C12) -> Gasabo | D12: T3 (ALB/MBD) | E12: ALB | F12: 08-12 Oct 2018 | G12: 78795 | H12: 193956 | J12: 272751 | K12: 94426 | L12: 194601 | N12: 289027 | O12: 119.8375531 | P12: 100.3325497 | R12: 105.9673475
A13: =IF(COUNTRY_INFO!A13=0," ",COUNTRY_INFO!A13) -> Rwanda | B13: =IF(COUNTRY_INFO!B13=0," ",COUNTRY_INFO!B13) -> East | C13: =IF(COUNTRY_INFO!C13=0," ",COUNTRY_INFO!C13) -> Gatsibo | D13: T3 (ALB/MBD) | E13: ALB | F13: 08-12 Oct 2018 | G13: 62355 | H13: 153490 | J13: 215845 | K13: 64412 | L13: 164749 | N13: 229161 | O13: 103.2988533 | P13: 107.3353313 | R13: 106.1692418
A14: =IF(COUNTRY_INFO!A14=0," ",COUNTRY_INFO!A14) -> Rwanda | B14: =IF(COUNTRY_INFO!B14=0," ",COUNTRY_INFO!B14) -> North | C14: =IF(COUNTRY_INFO!C14=0," ",COUNTRY_INFO!C14) -> Gicumbi | D14: T3 (ALB/MBD) | E14: ALB | F14: 08-12 Oct 2018 | G14: 50245 | H14: 123680 | J14: 173925 | K14: 51451 | L14: 131506 | N14: 182957 | O14: 102.4002388 | P14: 106.3276197 | R14: 105.193043
A15: =IF(COUNTRY_INFO!A15=0," ",COUNTRY_INFO!A15) -> Rwanda | B15: =IF(COUNTRY_INFO!B15=0," ",COUNTRY_INFO!B15) -> South | C15: =IF(COUNTRY_INFO!C15=0," ",COUNTRY_INFO!C15) -> Gisagara | D15: T3 (ALB/MBD) | E15: ALB | F15: 08-12 Oct 2018/ 24-27 Sep 2018 | G15: 42103 | H15: 103639 | I15: 144421 | J15: 290163 | K15: 44420 | L15: 114214 | M15: 144247 | N15: 302881 | O15: 105.5031708 | P15: 110.2036878 | Q15: 99.87951891 | R15: 104.3830537
A16: =IF(COUNTRY_INFO!A16=0," ",COUNTRY_INFO!A16) -> Rwanda | B16: =IF(COUNTRY_INFO!B16=0," ",COUNTRY_INFO!B16) -> South | C16: =IF(COUNTRY_INFO!C16=0," ",COUNTRY_INFO!C16) -> Huye | D16: T3 (ALB/MBD) | E16: ALB | F16: 08-12 Oct 2018 | G16: 42975 | H16: 105786 | J16: 148761 | K16: 39662 | L16: 99989 | N16: 139651 | O16: 92.29086678 | P16: 94.52006882 | R16: 93.87608311
A17: =IF(COUNTRY_INFO!A17=0," ",COUNTRY_INFO!A17) -> Rwanda | B17: =IF(COUNTRY_INFO!B17=0," ",COUNTRY_INFO!B17) -> South | C17: =IF(COUNTRY_INFO!C17=0," ",COUNTRY_INFO!C17) -> Kamonyi | D17: T3 (ALB/MBD) | E17: ALB | F17: 08-12 Oct 2018 | G17: 45934 | H17: 113069 | J17: 159003 | K17: 41398 | L17: 108163 | N17: 149561 | O17: 90.1249619 | P17: 95.66105652 | R17: 94.06174726
A18: =IF(COUNTRY_INFO!A18=0," ",COUNTRY_INFO!A18) -> Rwanda | B18: =IF(COUNTRY_INFO!B18=0," ",COUNTRY_INFO!B18) -> West | C18: =IF(COUNTRY_INFO!C18=0," ",COUNTRY_INFO!C18) -> Karongi | D18: T3 (ALB/MBD) | E18: ALB | F18: 08-12 Oct 2018 | G18: 42596 | H18: 104851 | J18: 147447 | K18: 44197 | L18: 115591 | N18: 159788 | O18: 103.7585689 | P18: 110.2431069 | R18: 108.3697871
A19: =IF(COUNTRY_INFO!A19=0," ",COUNTRY_INFO!A19) -> Rwanda | B19: =IF(COUNTRY_INFO!B19=0," ",COUNTRY_INFO!B19) -> East | C19: =IF(COUNTRY_INFO!C19=0," ",COUNTRY_INFO!C19) -> Kayonza | D19: T3 (ALB/MBD) | E19: ALB | F19: 08-12 Oct 2018 | G19: 51003 | H19: 125545 | J19: 176548 | K19: 51402 | L19: 126854 | N19: 178256 | O19: 100.7823069 | P19: 101.042654 | R19: 100.9674423
A20: =IF(COUNTRY_INFO!A20=0," ",COUNTRY_INFO!A20) -> Rwanda | B20: =IF(COUNTRY_INFO!B20=0," ",COUNTRY_INFO!B20) -> Kigali | C20: =IF(COUNTRY_INFO!C20=0," ",COUNTRY_INFO!C20) -> Kicukiro | D20: T3 (ALB/MBD) | E20: ALB | F20: 08-12 Oct 2018 | G20: 45592 | H20: 112226 | J20: 157818 | K20: 43848 | L20: 99286 | N20: 143134 | O20: 96.1747675 | P20: 88.46969508 | R20: 90.6956114
A21: =IF(COUNTRY_INFO!A21=0," ",COUNTRY_INFO!A21) -> Rwanda | B21: =IF(COUNTRY_INFO!B21=0," ",COUNTRY_INFO!B21) -> East | C21: =IF(COUNTRY_INFO!C21=0," ",COUNTRY_INFO!C21) -> Kirehe | D21: T3 (ALB/MBD) | E21: ALB | F21: 08-12 Oct 2018 | G21: 47886 | H21: 117872 | J21: 165758 | K21: 46117 | L21: 125249 | N21: 171366 | O21: 96.30580963 | P21: 106.2584838 | R21: 103.3832455
A22: =IF(COUNTRY_INFO!A22=0," ",COUNTRY_INFO!A22) -> Rwanda | B22: =IF(COUNTRY_INFO!B22=0," ",COUNTRY_INFO!B22) -> South | C22: =IF(COUNTRY_INFO!C22=0," ",COUNTRY_INFO!C22) -> Muhanga | D22: T3 (ALB/MBD) | E22: ALB | F22: 08-12 Oct 2018 | G22: 39967 | H22: 98380 | J22: 138347 | K22: 40083 | L22: 100614 | N22: 140697 | O22: 100.2902394 | P22: 102.2707867 | R22: 101.6986274
A23: =IF(COUNTRY_INFO!A23=0," ",COUNTRY_INFO!A23) -> Rwanda | B23: =IF(COUNTRY_INFO!B23=0," ",COUNTRY_INFO!B23) -> North | C23: =IF(COUNTRY_INFO!C23=0," ",COUNTRY_INFO!C23) -> Musanze | D23: T3 (ALB/MBD) | E23: ALB | F23: 08-12 Oct 2018 | G23: 47555 | H23: 117058 | J23: 164613 | K23: 51698 | L23: 133508 | N23: 185206 | O23: 108.7120177 | P23: 114.0528627 | R23: 112.5099476
A24: =IF(COUNTRY_INFO!A24=0," ",COUNTRY_INFO!A24) -> Rwanda | B24: =IF(COUNTRY_INFO!B24=0," ",COUNTRY_INFO!B24) -> East | C24: =IF(COUNTRY_INFO!C24=0," ",COUNTRY_INFO!C24) -> Ngoma | D24: T3 (ALB/MBD) | E24: ALB | F24: 08-12 Oct 2018 | G24: 46953 | H24: 115576 | J24: 162529 | K24: 46052 | L24: 113178 | N24: 159230 | O24: 98.08105978 | P24: 97.92517478 | R24: 97.97020839
A25: =IF(COUNTRY_INFO!A25=0," ",COUNTRY_INFO!A25) -> Rwanda | B25: =IF(COUNTRY_INFO!B25=0," ",COUNTRY_INFO!B25) -> West | C25: =IF(COUNTRY_INFO!C25=0," ",COUNTRY_INFO!C25) -> Ngororero | D25: T3 (ALB/MBD) | E25: ALB | F25: 08-12 Oct 2018 | G25: 42878 | H25: 105545 | J25: 148423 | K25: 47592 | L25: 109410 | N25: 157002 | O25: 110.9939829 | P25: 103.6619451 | R25: 105.7801015
A26: =IF(COUNTRY_INFO!A26=0," ",COUNTRY_INFO!A26) -> Rwanda | B26: =IF(COUNTRY_INFO!B26=0," ",COUNTRY_INFO!B26) -> West | C26: =IF(COUNTRY_INFO!C26=0," ",COUNTRY_INFO!C26) -> Nyabihu | D26: T3 (ALB/MBD) | E26: ALB | F26: 08-12 Oct 2018 | G26: 36870 | H26: 90757 | J26: 127627 | K26: 42351 | L26: 105913 | N26: 148264 | O26: 114.8657445 | P26: 116.6995383 | R26: 116.169776
A27: =IF(COUNTRY_INFO!A27=0," ",COUNTRY_INFO!A27) -> Rwanda | B27: =IF(COUNTRY_INFO!B27=0," ",COUNTRY_INFO!B27) -> East | C27: =IF(COUNTRY_INFO!C27=0," ",COUNTRY_INFO!C27) -> Nyagatare | D27: T3 (ALB/MBD) | E27: ALB | F27: 08-12 Oct 2018 | G27: 72268 | H27: 177890 | J27: 250158 | K27: 64646 | L27: 164258 | N27: 228904 | O27: 89.45314662 | P27: 92.33683737 | R27: 91.50376962
A28: =IF(COUNTRY_INFO!A28=0," ",COUNTRY_INFO!A28) -> Rwanda | B28: =IF(COUNTRY_INFO!B28=0," ",COUNTRY_INFO!B28) -> South | C28: =IF(COUNTRY_INFO!C28=0," ",COUNTRY_INFO!C28) -> Nyamagabe | D28: T3 (ALB/MBD) | E28: ALB | F28: 08-12 Oct 2018 | G28: 44479 | H28: 109487 | J28: 153966 | K28: 41546 | L28: 118437 | N28: 159983 | O28: 93.40587693 | P28: 108.1744865 | R28: 103.9080057
A29: =IF(COUNTRY_INFO!A29=0," ",COUNTRY_INFO!A29) -> Rwanda | B29: =IF(COUNTRY_INFO!B29=0," ",COUNTRY_INFO!B29) -> West | C29: =IF(COUNTRY_INFO!C29=0," ",COUNTRY_INFO!C29) -> Nyamasheke | D29: T3 (ALB/MBD) | E29: ALB | F29: 08-12 Oct 2018 | G29: 49085 | H29: 120826 | J29: 169911 | K29: 54873 | L29: 142478 | N29: 197351 | O29: 111.7917898 | P29: 117.9199841 | R29: 116.1496313
A30: =IF(COUNTRY_INFO!A30=0," ",COUNTRY_INFO!A30) -> Rwanda | B30: =IF(COUNTRY_INFO!B30=0," ",COUNTRY_INFO!B30) -> South | C30: =IF(COUNTRY_INFO!C30=0," ",COUNTRY_INFO!C30) -> Nyanza | D30: T3 (ALB/MBD) | E30: ALB | F30: 08-12 Oct 2018 | G30: 44869 | H30: 110446 | J30: 155315 | K30: 39738 | L30: 107962 | N30: 147700 | O30: 88.56448773 | P30: 97.75093711 | R30: 95.09706081
A31: =IF(COUNTRY_INFO!A31=0," ",COUNTRY_INFO!A31) -> Rwanda | B31: =IF(COUNTRY_INFO!B31=0," ",COUNTRY_INFO!B31) -> Kigali | C31: =IF(COUNTRY_INFO!C31=0," ",COUNTRY_INFO!C31) -> Nyarugenge | D31: T3 (ALB/MBD) | E31: ALB | F31: 08-12 Oct 2018 | G31: 37319 | H31: 91861 | J31: 129180 | K31: 42561 | L31: 88343 | N31: 130904 | O31: 114.0464643 | P31: 96.17030078 | R31: 101.3345719
A32: =IF(COUNTRY_INFO!A32=0," ",COUNTRY_INFO!A32) -> Rwanda | B32: =IF(COUNTRY_INFO!B32=0," ",COUNTRY_INFO!B32) -> South | C32: =IF(COUNTRY_INFO!C32=0," ",COUNTRY_INFO!C32) -> Nyaruguru | D32: T3 (ALB/MBD) | E32: ALB | F32: 08-12 Oct 2018 | G32: 38740 | H32: 95360 | J32: 134100 | K32: 39078 | L32: 99685 | N32: 138763 | O32: 100.8724832 | P32: 104.5354446 | R32: 103.4772558
A33: =IF(COUNTRY_INFO!A33=0," ",COUNTRY_INFO!A33) -> Rwanda | B33: =IF(COUNTRY_INFO!B33=0," ",COUNTRY_INFO!B33) -> West | C33: =IF(COUNTRY_INFO!C33=0," ",COUNTRY_INFO!C33) -> Rubavu | D33: T3 (ALB/MBD) | E33: ALB | F33: 08-12 Oct 2018 | G33: 55819 | H33: 137401 | J33: 193220 | K33: 56977 | L33: 128558 | N33: 185535 | O33: 102.0745624 | P33: 93.56409342 | R33: 96.02266846
A34: =IF(COUNTRY_INFO!A34=0," ",COUNTRY_INFO!A34) -> Rwanda | B34: =IF(COUNTRY_INFO!B34=0," ",COUNTRY_INFO!B34) -> South | C34: =IF(COUNTRY_INFO!C34=0," ",COUNTRY_INFO!C34) -> Ruhango | D34: T3 (ALB/MBD) | E34: ALB | F34: 08-12 Oct 2018 | G34: 42573 | H34: 104794 | J34: 147367 | K34: 42749 | L34: 104368 | N34: 147117 | O34: 100.4134076 | P34: 99.59348818 | R34: 99.83035551
A35: =IF(COUNTRY_INFO!A35=0," ",COUNTRY_INFO!A35) -> Rwanda | B35: =IF(COUNTRY_INFO!B35=0," ",COUNTRY_INFO!B35) -> North | C35: =IF(COUNTRY_INFO!C35=0," ",COUNTRY_INFO!C35) -> Rulindo | D35: T3 (ALB/MBD) | E35: ALB | F35: 08-12 Oct 2018 | G35: 36548 | H35: 89964 | J35: 126512 | K35: 42048 | L35: 100783 | N35: 142831 | O35: 115.0487031 | P35: 112.0259215 | R35: 112.8991716
A36: =IF(COUNTRY_INFO!A36=0," ",COUNTRY_INFO!A36) -> Rwanda | B36: =IF(COUNTRY_INFO!B36=0," ",COUNTRY_INFO!B36) -> West | C36: =IF(COUNTRY_INFO!C36=0," ",COUNTRY_INFO!C36) -> Rusizi | D36: T3 (ALB/MBD) | E36: ALB | F36: 08-12 Oct 2018 | G36: 52600 | H36: 129478 | J36: 182078 | K36: 56572 | L36: 141815 | N36: 198387 | O36: 107.5513308 | P36: 109.5282596 | R36: 108.9571502
A37: =IF(COUNTRY_INFO!A37=0," ",COUNTRY_INFO!A37) -> Rwanda | B37: =IF(COUNTRY_INFO!B37=0," ",COUNTRY_INFO!B37) -> West | C37: =IF(COUNTRY_INFO!C37=0," ",COUNTRY_INFO!C37) -> Rutsiro | D37: T3 (ALB/MBD) | E37: ALB | F37: 08-12 Oct 2018 | G37: 41967 | H37: 103303 | J37: 145270 | K37: 44218 | L37: 111225 | N37: 155443 | O37: 105.3637382 | P37: 107.6687027 | R37: 107.0028223
A38: =IF(COUNTRY_INFO!A38=0," ",COUNTRY_INFO!A38) -> Rwanda | B38: =IF(COUNTRY_INFO!B38=0," ",COUNTRY_INFO!B38) -> East | C38: =IF(COUNTRY_INFO!C38=0," ",COUNTRY_INFO!C38) -> Rwamagana | D38: T3 (ALB/MBD) | E38: ALB | F38: 08-12 Oct 2018 | G38: 42738 | H38: 105202 | J38: 147940 | K38: 44487 | L38: 108060 | N38: 152547 | O38: 104.0923768 | P38: 102.7166784 | R38: 103.1141003

Sheet DISTRICT
A1: Number of individuals treated
A2: Administrative structure, population treated by age group and gender
A4: TOTAL | D4: =SUM(D$9:D$1000) -> 0 | E4: =SUM(E$9:E$1000) -> 0 | F4: =SUM(F$9:F$1000) -> 0 | G4: =SUM(G$9:G$1000) -> 0 | H4: =SUM(H$9:H$1000) -> 0 | I4: =IF(D4>0, IF(H4/D4*100<>0, H4/D4*100, "-"),0) -> 0 | J4: =SUM(J$9:J$1000) -> 0 | K4: =SUM(K$9:K$1000) -> 0 | L4: =SUM(L$9:L$1000) -> 0 | M4: =SUM(M$9:M$1000) -> 0 | N4: =SUM(N$9:N$1000) -> 0 | O4: =IF(J4>0, IF(N4/J4*100<>0, N4/J4*100, "-"),0) -> 0 | P4: =SUM(P$9:P$1000) -> 3715035 | Q4: =SUM(Q$9:Q$1000) -> 0 | R4: =SUM(R$9:R$1000) -> 0 | S4: =SUM(S$9:S$1000) -> 5283466 | T4: =SUM(T$9:T$1000) -> 1052158 | V4: 2614226 | X4: =SUM(X$9:X$1000) -> 3666384 | Y4: =IF(P4>0, IF(X4/P4*100<>0, X4/P4*100, "-"),0) -> 98.69042957 | Z4: =SUM(Z$9:Z$1000) -> 1179683 | AA4: 0 | AB4: 0 | AC4: 1302053 | AD4: 891417.5 | AF4: 40735.8 | AH4: 932153.3 | AI4: =IF(Z4>0, IF(AH4/Z4*100<>0, AH4/Z4*100, "-"),0) -> 79.01726989
D6: Population requiring PC for LF | E6: Population treated for lymphatic filariasis | J6: Population requiring PC for ONCHO | K6: Population treated for onchocerciasis | P6: Population requiring PC for STH | Q6: Population treated for STH | Z6: Population requiring PC for SCH | AA6: Population treated for schistosomiasis | AP6: =SUM(AP9:AP1000) -> 0 | AQ6: 1073233.326 | AR6: 2741748.418 | AS6: 519206.8905 | AT6: =SUM(AT9:AT1000) -> 4334188.635 | AU6: =COUNTIF(AU9:AU1000,"Y") -> 28 | AV6: =SUM(AV9:AV1000) -> 1462977 | AW6: 3676242 | AX6: 147965 | AY6: =SUM(AY9:AY1000) -> 5287184 | AZ6: 1052158 | BA6: 2763139 | BB6: 40735.8 | BC6: 3834572.629 | BD6: =IF(AT6<>0,BC6/AT6,0) -> 0.8847267511
A7: Country | B7: Province/State | C7: District | E7: Male | F7: Female | G7: Total treated | H7: Total in need treated | I7: (%) | K7: Male | L7: Female | M7: Total treated | N7: Total in need treated | O7: (%) | Q7: Male | R7: Female | S7: Total treated | T7: PreSAC in need treated | U7: PreSAC (%) | V7: SAC in need treated | W7: SAC (%) | X7: Total in need treated | Y7: (%) | AA7: Male | AB7: Female | AC7: Total treated | AD7: SAC in need treated | AE7: SAC (%) | AF7: Adults in need treated | AG7: Adults (%) | AH7: Total in need treated | AI7: (%) | AK7: LF | AL7: ONCHO | AM7: STH | AN7: SCH-SAC | AO7: SCH_Adults | AP7: <1 | AQ7: PreSAC | AR7: SAC | AS7: Adults | AT7: Total | AU7: Dis | AV7: PreSAC | AW7: SAC | AX7: Adults | AY7: Total | AZ7: PreSAC | BA7: SAC | BB7: Adults | BC7: Total | BD7: Coverage
A9: =IF(COUNTRY_INFO!A9=0," ",COUNTRY_INFO!A9) -> Rwanda | B9: =IF(COUNTRY_INFO!B9=0," ",COUNTRY_INFO!B9) -> East | C9: =IF(COUNTRY_INFO!C9=0," ",COUNTRY_INFO!C9) -> Bugesera | D9: =COUNTRY_INFO!L9 -> Not required | G9: =MAX('MDA1'!M9,'MDA2'!M9) -> 0 | H9: =IF(AND(COUNTRY_INFO!H9>0,COUNTRY_INFO!H9<4),IF(D9>MAX('MDA1'!M9,'MDA2'!M9),MAX('MDA1'!M9,'MDA2'!M9),D9),0) -> 0 | I9: =IF(AND(COUNTRY_INFO!H9>0,COUNTRY_INFO!H9<4), IF(G9/D9*100<>0, IF(G9/D9*100>100,100,G9/D9*100), "-"),0) -> 0 | J9: =COUNTRY_INFO!M9 -> Not required | M9: =MAX('MDA1'!M9,MAX('MDA3'!I9,'MDA3'!L9)+MAX('MDA3'!J9,'MDA3'!M9)) -> 0 | N9: =IF(AND(COUNTRY_INFO!I9>0,COUNTRY_INFO!I9<4),IF(J9>MAX('MDA1'!M9,MAX('MDA3'!I9,'MDA3'!L9)+MAX('MDA3'!J9,'MDA3'!M9)),MAX('MDA1'!M9,MAX('MDA3'!I9,'MDA3'!L9)+MAX('MDA3'!J9,'MDA3'!M9)),J9),0) -> 0 | O9: =IF(AND(COUNTRY_INFO!I9>0,COUNTRY_INFO!I9<4), IF(M9/J9*100<>0, IF(M9/J9*100>100,100,M9/J9*100), "-"),0) -> 0 | P9: =COUNTRY_INFO!N9 -> 0 | S9: =SUM(MAX('MDA2'!J9, 'T1'!L9, MAX(T3_R1!K9, T3_R2!K9)), MAX('MDA1'!K9, 'MDA2'!K9, 'T1'!M9, MAX(T3_R1!L9, T3_R2!L9)), MAX('MDA1'!L9, 'MDA2'!L9, 'T1'!N9, MAX(T3_R1!M9, T3_R2!M9))) -> 182129 | T9: =IF(AND(COUNTRY_INFO!J9>1,COUNTRY_INFO!J9<4),IF(COUNTRY_INFO!E9>MAX('MDA2'!J9,'T1'!L9,MAX(T3_R1!K9,T3_R2!K9)),MAX('MDA2'!J9,'T1'!L9,MAX(T3_R1!K9,T3_R2!K9)),COUNTRY_INFO!E9),0) -> 0 | U9: =IF(AND(COUNTRY_INFO!J9>1,COUNTRY_INFO!J9<4), IF(T9/COUNTRY_INFO!E9*100<>0, IF(T9/COUNTRY_INFO!E9*100>100,100,T9/COUNTRY_INFO!E9*100), "-"),0) -> 0 | V9: =IF(AND(COUNTRY_INFO!J9>1,COUNTRY_INFO!J9<4),IF(COUNTRY_INFO!F9>MAX('MDA1'!K9,'MDA2'!K9,'T1'!M9,MAX(T3_R1!L9,T3_R2!L9)),MAX('MDA1'!K9,'MDA2'!K9,'T1'!M9,MAX(T3_R1!L9,T3_R2!L9)),COUNTRY_INFO!F9),0) -> 0 | W9: =IF(AND(COUNTRY_INFO!J9>1,COUNTRY_INFO!J9<4), IF(V9/COUNTRY_INFO!F9*100<>0, IF(V9/COUNTRY_INFO!F9*100>100,100,V9/COUNTRY_INFO!F9*100), "-"),0) -> 0 | X9: =SUM(T9,V9) -> 0 | Y9: =IF(AND(COUNTRY_INFO!J9>1,COUNTRY_INFO!J9<4), IF(S9/P9*100<>0, IF(X9/P9*100>100,100,X9/P9*100), "-"),0) -> 0 | Z9: =COUNTRY_INFO!O9 -> 64242 | AC9: =MAX('T1'!L9,'T2'!J9)+MAX('T1'!M9,'T2'!K9)+MAX('T1'!N9,'T2'!L9) -> 26419 | AD9: =IF(COUNTRY_INFO!K9=1,IF(COUNTRY_INFO!F9*0.33>MAX('T1'!M9,'T2'!K9),MAX('T1'!M9,'T2'!K9),COUNTRY_INFO!F9*0.33),IF(COUNTRY_INFO!K9=2,IF(COUNTRY_INFO!F9*0.5>MAX('T1'!M9,'T2'!K9),MAX('T1'!M9,'T2'!K9),COUNTRY_INFO!F9*0.5),IF(COUNTRY_INFO!K9=3,IF(COUNTRY_INFO!F9>MAX('T1'!M9,'T2'!K9),MAX('T1'!M9,'T2'!K9),COUNTRY_INFO!F9),0))) -> 26419 | AE9: =IF(AND(COUNTRY_INFO!K9>0,COUNTRY_INFO!K9<4),IF(Z9>0,IF(COUNTRY_INFO!K9=1, AD9/(COUNTRY_INFO!F9*0.33)*100, IF(COUNTRY_INFO!K9=2, AD9/(COUNTRY_INFO!F9*0.5)*100, IF(COUNTRY_INFO!K9=3, AD9/COUNTRY_INFO!F9*100))),"-"),0) -> 43.46946163 | AF9: =IF(COUNTRY_INFO!K9=2,IF(COUNTRY_INFO!G9*0.2>MAX('T1'!N9,'T2'!L9),MAX('T1'!N9,'T2'!L9),COUNTRY_INFO!G9*0.2),IF(COUNTRY_INFO!K9=3,IF(COUNTRY_INFO!G9>MAX('T1'!N9,'T2'!L9),MAX('T1'!N9,'T2'!L9),COUNTRY_INFO!G9),0)) -> 0 | AG9: =IF(AND(COUNTRY_INFO!K9>0,COUNTRY_INFO!K9<4),IF(Z9>0,IF(COUNTRY_INFO!K9=1, 0, IF(COUNTRY_INFO!K9=2, AF9/(COUNTRY_INFO!G9*0.2)*100, IF(COUNTRY_INFO!K9=3, AF9/COUNTRY_INFO!G9*100))),"-"),0) -> 0 | AH9: =SUM(AD9,AF9) -> 26419 | AI9: =IF(AND(COUNTRY_INFO!K9>0,COUNTRY_INFO!K9<4), IF(AC9/Z9*100<>0, IF(AH9/Z9*100>100,100,AH9/Z9*100), "-"),0) -> 41.12418667 | AK9: =IF(AND(D9<>0, D9<>"Unknown",D9<>"Stopped",D9<>"Not required"),D9/COUNTRY_INFO!D9, 0) -> 0 | AL9: =IF(AND(J9<>0,J9<>"Unknown",J9<>"Stopped",J9<>"Not required"),J9/COUNTRY_INFO!D9, 0) -> 0 | AM9: =IF(AND(P9<>0,P9<>"Unknown",P9<>"Not required"),P9/(COUNTRY_INFO!E9+COUNTRY_INFO!F9), 0) -> 0 | AN9: =IF(AND(Z9<>0,Z9<>"Unknown",Z9<>"Not required"),IF(COUNTRY_INFO!K9=1,1,IF(COUNTRY_INFO!K9=2,0.5*COUNTRY_INFO!F9/(0.5*COUNTRY_INFO!F9+0.2*COUNTRY_INFO!G9),IF(COUNTRY_INFO!K9=3,COUNTRY_INFO!F9/(COUNTRY_INFO!F9+COUNTRY_INFO!G9)))),0) -> 0.5598750101 | AO9: =IF(AND(Z9<>0,Z9<>"Unknown",Z9<>"Not required"),IF(COUNTRY_INFO!K9=1,0,IF(COUNTRY_INFO!K9=2,0.2*COUNTRY_INFO!G9/(0.5*COUNTRY_INFO!F9+0.2*COUNTRY_INFO!G9),IF(COUNTRY_INFO!K9=3,COUNTRY_INFO!G9/(COUNTRY_INFO!F9+COUNTRY_INFO!G9)))),0) -> 0.4401249899 | AP9: =MAX(COUNTRY_INFO!D9*AK9*PROFILE!$G$7,COUNTRY_INFO!D9*AL9*PROFILE!$G$7) -> 0 | AQ9: =MAX(COUNTRY_INFO!D9*AK9*PROFILE!$G$8,COUNTRY_INFO!D9*AL9*PROFILE!$G$8,COUNTRY_INFO!D9*AM9*PROFILE!$G$8) -> 0 | AR9: =MAX(COUNTRY_INFO!D9*AK9*PROFILE!$G$9,COUNTRY_INFO!D9*AL9*PROFILE!$G$9,COUNTRY_INFO!D9*AM9*PROFILE!$G$9,IF(AND(DISTRICT!Z9<>"Unknown",Z9<>"Not required"),COUNTRY_INFO!O9*DISTRICT!AN9,0)) -> 35967.4904 | AS9: =MAX(COUNTRY_INFO!D9*AK9*PROFILE!$G$10,COUNTRY_INFO!D9*AL9*PROFILE!$G$10,IF(AND(DISTRICT!Z9<>"Unknown",Z9<>"Not required"),COUNTRY_INFO!O9*DISTRICT!AO9,0)) -> 28274.5096 | AT9: =SUM(AP9:AS9) -> 64242 | AU9: =IF(COUNTIFS(AK9:AN9,">0")=0,0, IF(COUNTIFS(AK9:AN9,">0")<=IF(AND(OR(D9>=0,D9="Not required",D9="Unknown",D9="Stopped"),D9>0,H9>0),1,0)+IF(AND(OR(J9>=0,J9="Not required",J9="Unknown",J9="Stopped"),J9>0,N9>0),1,0)+IF(AND(OR(P9>=0,P9="Not required",P9="Unknown"),P9>0,X9>0),1,0)+IF(AND(OR(Z9>=0,Z9="Not required",Z9="Unknown"),Z9>0,AH9>0),1,0),"Y",0)) -> Y | AV9: =MAX('MDA2'!J9,'T1'!L9,'T2'!J9,T3_R1!K9,T3_R2!K9) -> 56452 | AW9: =MAX('MDA1'!K9,'MDA2'!K9,'MDA3'!I9,'MDA3'!L9,'T1'!M9,'T2'!K9,T3_R1!L9,T3_R2!L9) -> 125677 | AX9: =MAX('MDA1'!L9,'MDA2'!L9,'MDA3'!J9,'MDA3'!M9,'T1'!N9,'T2'!L9,T3_R1!M9,T3_R2!M9) -> 0 | AY9: =SUM(AV9:AX9) -> 182129 | AZ9: =MAX('MDA2'!J9,T9) -> 0 | BA9: =MAX('MDA1'!K9,'MDA2'!K9,'MDA3'!I9,'MDA3'!L9,V9,AD9) -> 26419 | BB9: =MAX('MDA1'!L9,'MDA2'!L9,'MDA3'!J9,'MDA3'!M9,AF9) -> 0 | BC9: =IF(AT9<SUM(AZ9:BB9), AT9,SUM(AZ9:BB9)) -> 26419 | BD9: =IF(AT9<>0,BC9/AT9*100,0) -> 41.12418667
A10: =IF(COUNTRY_INFO!A10=0," ",COUNTRY_INFO!A10) -> Rwanda | B10: =IF(COUNTRY_INFO!B10=0," ",COUNTRY_INFO!B10) -> North | C10: =IF(COUNTRY_INFO!C10=0," ",COUNTRY_INFO!C10) -> Burera | D10: =COUNTRY_INFO!L10 -> Not required | G10: =MAX('MDA1'!M10,'MDA2'!M10) -> 0 | H10: =IF(AND(COUNTRY_INFO!H10>0,COUNTRY_INFO!H10<4),IF(D10>MAX('MDA1'!M10,'MDA2'!M10),MAX('MDA1'!M10,'MDA2'!M10),D10),0) -> 0 | I10: =IF(AND(COUNTRY_INFO!H10>0,COUNTRY_INFO!H10<4), IF(G10/D10*100<>0, IF(G10/D10*100>100,100,G10/D10*100), "-"),0) -> 0 | J10: =COUNTRY_INFO!M10 -> Not required | M10: =MAX('MDA1'!M10,MAX('MDA3'!I10,'MDA3'!L10)+MAX('MDA3'!J10,'MDA3'!M10)) -> 0 | N10: =IF(AND(COUNTRY_INFO!I10>0,COUNTRY_INFO!I10<4),IF(J10>MAX('MDA1'!M10,MAX('MDA3'!I10,'MDA3'!L10)+MAX('MDA3'!J10,'MDA3'!M10)),MAX('MDA1'!M10,MAX('MDA3'!I10,'MDA3'!L10)+MAX('MDA3'!J10,'MDA3'!M10)),J10),0) -> 0 | O10: =IF(AND(COUNTRY_INFO!I10>0,COUNTRY_INFO!I10<4), IF(M10/J10*100<>0, IF(M10/J10*100>100,100,M10/J10*100), "-"),0) -> 0 | P10: =COUNTRY_INFO!N10 -> 142920 | S10: =SUM(MAX('MDA2'!J10, 'T1'!L10, MAX(T3_R1!K10, T3_R2!K10)), MAX('MDA1'!K10, 'MDA2'!K10, 'T1'!M10, MAX(T3_R1!L10, T3_R2!L10)), MAX('MDA1'!L10, 'MDA2'!L10, 'T1'!N10, MAX(T3_R1!M10, T3_R2!M10))) -> 158054 | T10: =IF(AND(COUNTRY_INFO!J10>1,COUNTRY_INFO!J10<4),IF(COUNTRY_INFO!E10>MAX('MDA2'!J10,'T1'!L10,MAX(T3_R1!K10,T3_R2!K10)),MAX('MDA2'!J10,'T1'!L10,MAX(T3_R1!K10,T3_R2!K10)),COUNTRY_INFO!E10),0) -> 41288 | U10: =IF(AND(COUNTRY_INFO!J10>1,COUNTRY_INFO!J10<4), IF(T10/COUNTRY_INFO!E10*100<>0, IF(T10/COUNTRY_INFO!E10*100>100,100,T10/COUNTRY_INFO!E10*100), "-"),0) -> 100 | V10: =IF(AND(COUNTRY_INFO!J10>1,COUNTRY_INFO!J10<4),IF(COUNTRY_INFO!F10>MAX('MDA1'!K10,'MDA2'!K10,'T1'!M10,MAX(T3_R1!L10,T3_R2!L10)),MAX('MDA1'!K10,'MDA2'!K10,'T1'!M10,MAX(T3_R1!L10,T3_R2!L10)),COUNTRY_INFO!F10),0) -> 101632 | W10: =IF(AND(COUNTRY_INFO!J10>1,COUNTRY_INFO!J10<4), IF(V10/COUNTRY_INFO!F10*100<>0, IF(V10/COUNTRY_INFO!F10*100>100,100,V10/COUNTRY_INFO!F10*100), "-"),0) -> 100 | X10: =SUM(T10,V10) -> 142920 | Y10: =IF(AND(COUNTRY_INFO!J10>1,COUNTRY_INFO!J10<4), IF(S10/P10*100<>0, IF(X10/P10*100>100,100,X10/P10*100), "-"),0) -> 100 | Z10: =COUNTRY_INFO!O10 -> 80931 | AC10: =MAX('T1'!L10,'T2'!J10)+MAX('T1'!M10,'T2'!K10)+MAX('T1'!N10,'T2'!L10) -> 88511 | AD10: =IF(COUNTRY_INFO!K10=1,IF(COUNTRY_INFO!F10*0.33>MAX('T1'!M10,'T2'!K10),MAX('T1'!M10,'T2'!K10),COUNTRY_INFO!F10*0.33),IF(COUNTRY_INFO!K10=2,IF(COUNTRY_INFO!F10*0.5>MAX('T1'!M10,'T2'!K10),MAX('T1'!M10,'T2'!K10),COUNTRY_INFO!F10*0.5),IF(COUNTRY_INFO!K10=3,IF(COUNTRY_INFO!F10>MAX('T1'!M10,'T2'!K10),MAX('T1'!M10,'T2'!K10),COUNTRY_INFO!F10),0))) -> 50816 | AE10: =IF(AND(COUNTRY_INFO!K10>0,COUNTRY_INFO!K10<4),IF(Z10>0,IF(COUNTRY_INFO!K10=1, AD10/(COUNTRY_INFO!F10*0.33)*100, IF(COUNTRY_INFO!K10=2, AD10/(COUNTRY_INFO!F10*0.5)*100, IF(COUNTRY_INFO!K10=3, AD10/COUNTRY_INFO!F10*100))),"-"),0) -> 100 | AF10: =IF(COUNTRY_INFO!K10=2,IF(COUNTRY_INFO!G10*0.2>MAX('T1'!N10,'T2'!L10),MAX('T1'!N10,'T2'!L10),COUNTRY_INFO!G10*0.2),IF(COUNTRY_INFO!K10=3,IF(COUNTRY_INFO!G10>MAX('T1'!N10,'T2'!L10),MAX('T1'!N10,'T2'!L10),COUNTRY_INFO!G10),0)) -> 0 | AG10: =IF(AND(COUNTRY_INFO!K10>0,COUNTRY_INFO!K10<4),IF(Z10>0,IF(COUNTRY_INFO!K10=1, 0, IF(COUNTRY_INFO!K10=2, AF10/(COUNTRY_INFO!G10*0.2)*100, IF(COUNTRY_INFO!K10=3, AF10/COUNTRY_INFO!G10*100))),"-"),0) -> 0 | AH10: =SUM(AD10,AF10) -> 50816 | AI10: =IF(AND(COUNTRY_INFO!K10>0,COUNTRY_INFO!K10<4), IF(AC10/Z10*100<>0, IF(AH10/Z10*100>100,100,AH10/Z10*100), "-"),0) -> 62.78928964 | AK10: =IF(AND(D10<>0, D10<>"Unknown",D10<>"Stopped",D10<>"Not required"),D10/COUNTRY_INFO!D10, 0) -> 0 | AL10: =IF(AND(J10<>0,J10<>"Unknown",J10<>"Stopped",J10<>"Not required"),J10/COUNTRY_INFO!D10, 0) -> 0 | AM10: =IF(AND(P10<>0,P10<>"Unknown",P10<>"Not required"),P10/(COUNTRY_INFO!E10+COUNTRY_INFO!F10), 0) -> 1 | AN10: =IF(AND(Z10<>0,Z10<>"Unknown",Z10<>"Not required"),IF(COUNTRY_INFO!K10=1,1,IF(COUNTRY_INFO!K10=2,0.5*COUNTRY_INFO!F10/(0.5*COUNTRY_INFO!F10+0.2*COUNTRY_INFO!G10),IF(COUNTRY_INFO!K10=3,COUNTRY_INFO!F10/(COUNTRY_INFO!F10+COUNTRY_INFO!G10)))),0) -> 0.5598757203 | AO10: =IF(AND(Z10<>0,Z10<>"Unknown",Z10<>"Not required"),IF(COUNTRY_INFO!K10=1,0,IF(COUNTRY_INFO!K10=2,0.2*COUNTRY_INFO!G10/(0.5*COUNTRY_INFO!F10+0.2*COUNTRY_INFO!G10),IF(COUNTRY_INFO!K10=3,COUNTRY_INFO!G10/(COUNTRY_INFO!F10+COUNTRY_INFO!G10)))),0) -> 0.4401242797 | AP10: =MAX(COUNTRY_INFO!D10*AK10*PROFILE!$G$7,COUNTRY_INFO!D10*AL10*PROFILE!$G$7) -> 0 | AQ10: =MAX(COUNTRY_INFO!D10*AK10*PROFILE!$G$8,COUNTRY_INFO!D10*AL10*PROFILE!$G$8,COUNTRY_INFO!D10*AM10*PROFILE!$G$8) -> 41287.94737 | AR10: =MAX(COUNTRY_INFO!D10*AK10*PROFILE!$G$9,COUNTRY_INFO!D10*AL10*PROFILE!$G$9,COUNTRY_INFO!D10*AM10*PROFILE!$G$9,IF(AND(DISTRICT!Z10<>"Unknown",Z10<>"Not required"),COUNTRY_INFO!O10*DISTRICT!AN10,0)) -> 101631.7627 | AS10: =MAX(COUNTRY_INFO!D10*AK10*PROFILE!$G$10,COUNTRY_INFO!D10*AL10*PROFILE!$G$10,IF(AND(DISTRICT!Z10<>"Unknown",Z10<>"Not required"),COUNTRY_INFO!O10*DISTRICT!AO10,0)) -> 35619.69808 | AT10: =SUM(AP10:AS10) -> 178539.4081 | AU10: Y | AV10: =MAX('MDA2'!J10,'T1'!L10,'T2'!J10,T3_R1!K10,T3_R2!K10) -> 44386 | AW10: =MAX('MDA1'!K10,'MDA2'!K10,'MDA3'!I10,'MDA3'!L10,'T1'!M10,'T2'!K10,T3_R1!L10,T3_R2!L10) -> 113668 | AX10: =MAX('MDA1'!L10,'MDA2'!L10,'MDA3'!J10,'MDA3'!M10,'T1'!N10,'T2'!L10,T3_R1!M10,T3_R2!M10) -> 0 | AY10: =SUM(AV10:AX10) -> 158054 | AZ10: =MAX('MDA2'!J10,T10) -> 41288 | BA10: =MAX('MDA1'!K10,'MDA2'!K10,'MDA3'!I10,'MDA3'!L10,V10,AD10) -> 101632 | BB10: =MAX('MDA1'!L10,'MDA2'!L10,'MDA3'!J10,'MDA3'!M10,AF10) -> 0 | BC10: 142920 | BD10: 80.04955404
A11: =IF(COUNTRY_INFO!A11=0," ",COUNTRY_INFO!A11) -> Rwanda | B11: =IF(COUNTRY_INFO!B11=0," ",COUNTRY_INFO!B11) -> North | C11: =IF(COUNTRY_INFO!C11=0," ",COUNTRY_INFO!C11) -> Gakenke | D11: =COUNTRY_INFO!L11 -> Not required | G11: =MAX('MDA1'!M11,'MDA2'!M11) -> 0 | H11: =IF(AND(COUNTRY_INFO!H11>0,COUNTRY_INFO!H11<4),IF(D11>MAX('MDA1'!M11,'MDA2'!M11),MAX('MDA1'!M11,'MDA2'!M11),D11),0) -> 0 | I11: =IF(AND(COUNTRY_INFO!H11>0,COUNTRY_INFO!H11<4), IF(G11/D11*100<>0, IF(G11/D11*100>100,100,G11/D11*100), "-"),0) -> 0 | J11: =COUNTRY_INFO!M11 -> Not required | M11: =MAX('MDA1'!M11,MAX('MDA3'!I11,'MDA3'!L11)+MAX('MDA3'!J11,'MDA3'!M11)) -> 0 | N11: =IF(AND(COUNTRY_INFO!I11>0,COUNTRY_INFO!I11<4),IF(J11>MAX('MDA1'!M11,MAX('MDA3'!I11,'MDA3'!L11)+MAX('MDA3'!J11,'MDA3'!M11)),MAX('MDA1'!M11,MAX('MDA3'!I11,'MDA3'!L11)+MAX('MDA3'!J11,'MDA3'!M11)),J11),0) -> 0 | O11: =IF(AND(COUNTRY_INFO!I11>0,COUNTRY_INFO!I11<4), IF(M11/J11*100<>0, IF(M11/J11*100>100,100,M11/J11*100), "-"),0) -> 0 | P11: =COUNTRY_INFO!N11 -> 142332 | S11: =SUM(MAX('MDA2'!J11, 'T1'!L11, MAX(T3_R1!K11, T3_R2!K11)), MAX('MDA1'!K11, 'MDA2'!K11, 'T1'!M11, MAX(T3_R1!L11, T3_R2!L11)), MAX('MDA1'!L11, 'MDA2'!L11, 'T1'!N11, MAX(T3_R1!M11, T3_R2!M11))) -> 144458 | T11: =IF(AND(COUNTRY_INFO!J11>1,COUNTRY_INFO!J11<4),IF(COUNTRY_INFO!E11>MAX('MDA2'!J11,'T1'!L11,MAX(T3_R1!K11,T3_R2!K11)),MAX('MDA2'!J11,'T1'!L11,MAX(T3_R1!K11,T3_R2!K11)),COUNTRY_INFO!E11),0) -> 41118 | U11: =IF(AND(COUNTRY_INFO!J11>1,COUNTRY_INFO!J11<4), IF(T11/COUNTRY_INFO!E11*100<>0, IF(T11/COUNTRY_INFO!E11*100>100,100,T11/COUNTRY_INFO!E11*100), "-"),0) -> 100 | V11: =IF(AND(COUNTRY_INFO!J11>1,COUNTRY_INFO!J11<4),IF(COUNTRY_INFO!F11>MAX('MDA1'!K11,'MDA2'!K11,'T1'!M11,MAX(T3_R1!L11,T3_R2!L11)),MAX('MDA1'!K11,'MDA2'!K11,'T1'!M11,MAX(T3_R1!L11,T3_R2!L11)),COUNTRY_INFO!F11),0) -> 101214 | W11: =IF(AND(COUNTRY_INFO!J11>1,COUNTRY_INFO!J11<4), IF(V11/COUNTRY_INFO!F11*100<>0, IF(V11/COUNTRY_INFO!F11*100>100,100,V11/COUNTRY_INFO!F11*100), "-"),0) -> 100 | X11: 142332 | Y11: =IF(AND(COUNTRY_INFO!J11>1,COUNTRY_INFO!J11<4), IF(S11/P11*100<>0, IF(X11/P11*100>100,100,X11/P11*100), "-"),0) -> 100 | Z11: =COUNTRY_INFO!O11 -> 48000 | AC11: =MAX('T1'!L11,'T2'!J11)+MAX('T1'!M11,'T2'!K11)+MAX('T1'!N11,'T2'!L11) -> 46297 | AD11: =IF(COUNTRY_INFO!K11=1,IF(COUNTRY_INFO!F11*0.33>MAX('T1'!M11,'T2'!K11),MAX('T1'!M11,'T2'!K11),COUNTRY_INFO!F11*0.33),IF(COUNTRY_INFO!K11=2,IF(COUNTRY_INFO!F11*0.5>MAX('T1'!M11,'T2'!K11),MAX('T1'!M11,'T2'!K11),COUNTRY_INFO!F11*0.5),IF(COUNTRY_INFO!K11=3,IF(COUNTRY_INFO!F11>MAX('T1'!M11,'T2'!K11),MAX('T1'!M11,'T2'!K11),COUNTRY_INFO!F11),0))) -> 46297 | AE11: =IF(AND(COUNTRY_INFO!K11>0,COUNTRY_INFO!K11<4),IF(Z11>0,IF(COUNTRY_INFO!K11=1, AD11/(COUNTRY_INFO!F11*0.33)*100, IF(COUNTRY_INFO!K11=2, AD11/(COUNTRY_INFO!F11*0.5)*100, IF(COUNTRY_INFO!K11=3, AD11/COUNTRY_INFO!F11*100))),"-"),0) -> 91.48339163 | AF11: =IF(COUNTRY_INFO!K11=2,IF(COUNTRY_INFO!G11*0.2>MAX('T1'!N11,'T2'!L11),MAX('T1'!N11,'T2'!L11),COUNTRY_INFO!G11*0.2),IF(COUNTRY_INFO!K11=3,IF(COUNTRY_INFO!G11>MAX('T1'!N11,'T2'!L11),MAX('T1'!N11,'T2'!L11),COUNTRY_INFO!G11),0)) -> 0 | AG11: =IF(AND(COUNTRY_INFO!K11>0,COUNTRY_INFO!K11<4),IF(Z11>0,IF(COUNTRY_INFO!K11=1, 0, IF(COUNTRY_INFO!K11=2, AF11/(COUNTRY_INFO!G11*0.2)*100, IF(COUNTRY_INFO!K11=3, AF11/COUNTRY_INFO!G11*100))),"-"),0) -> 0 | AH11: 46297 | AI11: =IF(AND(COUNTRY_INFO!K11>0,COUNTRY_INFO!K11<4), IF(AC11/Z11*100<>0, IF(AH11/Z11*100>100,100,AH11/Z11*100), "-"),0) -> 96.45208333 | AK11: =IF(AND(D11<>0, D11<>"Unknown",D11<>"Stopped",D11<>"Not required"),D11/COUNTRY_INFO!D11, 0) -> 0 | AL11: =IF(AND(J11<>0,J11<>"Unknown",J11<>"Stopped",J11<>"Not required"),J11/COUNTRY_INFO!D11, 0) -> 0 | AM11: =IF(AND(P11<>0,P11<>"Unknown",P11<>"Not required"),P11/(COUNTRY_INFO!E11+COUNTRY_INFO!F11), 0) -> 1 | AN11: =IF(AND(Z11<>0,Z11<>"Unknown",Z11<>"Not required"),IF(COUNTRY_INFO!K11=1,1,IF(COUNTRY_INFO!K11=2,0.5*COUNTRY_INFO!F11/(0.5*COUNTRY_INFO!F11+0.2*COUNTRY_INFO!G11),IF(COUNTRY_INFO!K11=3,COUNTRY_INFO!F11/(COUNTRY_INFO!F11+COUNTRY_INFO!G11)))),0) -> 0.5598751187 | AO11: =IF(AND(Z11<>0,Z11<>"Unknown",Z11<>"Not required"),IF(COUNTRY_INFO!K11=1,0,IF(COUNTRY_INFO!K11=2,0.2*COUNTRY_INFO!G11/(0.5*COUNTRY_INFO!F11+0.2*COUNTRY_INFO!G11),IF(COUNTRY_INFO!K11=3,COUNTRY_INFO!G11/(COUNTRY_INFO!F11+COUNTRY_INFO!G11)))),0) -> 0.4401248813 | AP11: =MAX(COUNTRY_INFO!D11*AK11*PROFILE!$G$7,COUNTRY_INFO!D11*AL11*PROFILE!$G$7) -> 0 | AQ11: =MAX(COUNTRY_INFO!D11*AK11*PROFILE!$G$8,COUNTRY_INFO!D11*AL11*PROFILE!$G$8,COUNTRY_INFO!D11*AM11*PROFILE!$G$8) -> 41118.41416 | AR11: =MAX(COUNTRY_INFO!D11*AK11*PROFILE!$G$9,COUNTRY_INFO!D11*AL11*PROFILE!$G$9,COUNTRY_INFO!D11*AM11*PROFILE!$G$9,IF(AND(DISTRICT!Z11<>"Unknown",Z11<>"Not required"),COUNTRY_INFO!O11*DISTRICT!AN11,0)) -> 101214.4506 | AS11: =MAX(COUNTRY_INFO!D11*AK11*PROFILE!$G$10,COUNTRY_INFO!D11*AL11*PROFILE!$G$10,IF(AND(DISTRICT!Z11<>"Unknown",Z11<>"Not required"),COUNTRY_INFO!O11*DISTRICT!AO11,0)) -> 21125.9943 | AT11: 163458.8591 | AU11: Y | AV11: =MAX('MDA2'!J11,'T1'!L11,'T2'!J11,T3_R1!K11,T3_R2!K11) -> 41483 | AW11: =MAX('MDA1'!K11,'MDA2'!K11,'MDA3'!I11,'MDA3'!L11,'T1'!M11,'T2'!K11,T3_R1!L11,T3_R2!L11) -> 102975 | AX11: =MAX('MDA1'!L11,'MDA2'!L11,'MDA3'!J11,'MDA3'!M11,'T1'!N11,'T2'!L11,T3_R1!M11,T3_R2!M11) -> 0 | AY11: 144458 | AZ11: =MAX('MDA2'!J11,T11) -> 41118 | BA11: =MAX('MDA1'!K11,'MDA2'!K11,'MDA3'!I11,'MDA3'!L11,V11,AD11) -> 101214 | BB11: =MAX('MDA1'!L11,'MDA2'!L11,'MDA3'!J11,'MDA3'!M11,AF11) -> 0 | BC11: 142332 | BD11: 87.07512142
A12: =IF(COUNTRY_INFO!A12=0," ",COUNTRY_INFO!A12) -> Rwanda | B12: =IF(COUNTRY_INFO!B12=0," ",COUNTRY_INFO!B12) -> Kigali | C12: =IF(COUNTRY_INFO!C12=0," ",COUNTRY_INFO!C12) -> Gasabo | D12: =COUNTRY_INFO!L12 -> Not required | G12: =MAX('MDA1'!M12,'MDA2'!M12) -> 0 | H12: =IF(AND(COUNTRY_INFO!H12>0,COUNTRY_INFO!H12<4),IF(D12>MAX('MDA1'!M12,'MDA2'!M12),MAX('MDA1'!M12,'MDA2'!M12),D12),0) -> 0 | I12: =IF(AND(COUNTRY_INFO!H12>0,COUNTRY_INFO!H12<4), IF(G12/D12*100<>0, IF(G12/D12*100>100,100,G12/D12*100), "-"),0) -> 0 | J12: =COUNTRY_INFO!M12 -> Not required | M12: =MAX('MDA1'!M12,MAX('MDA3'!I12,'MDA3'!L12)+MAX('MDA3'!J12,'MDA3'!M12)) -> 0 | N12: =IF(AND(COUNTRY_INFO!I12>0,COUNTRY_INFO!I12<4),IF(J12>MAX('MDA1'!M12,MAX('MDA3'!I12,'MDA3'!L12)+MAX('MDA3'!J12,'MDA3'!M12)),MAX('MDA1'!M12,MAX('MDA3'!I12,'MDA3'!L12)+MAX('MDA3'!J12,'MDA3'!M12)),J12),0) -> 0 | O12: =IF(AND(COUNTRY_INFO!I12>0,COUNTRY_INFO!I12<4), IF(M12/J12*100<>0, IF(M12/J12*100>100,100,M12/J12*100), "-"),0) -> 0 | P12: =COUNTRY_INFO!N12 -> 0 | S12: =SUM(MAX('MDA2'!J12, 'T1'!L12, MAX(T3_R1!K12, T3_R2!K12)), MAX('MDA1'!K12, 'MDA2'!K12, 'T1'!M12, MAX(T3_R1!L12, T3_R2!L12)), MAX('MDA1'!L12, 'MDA2'!L12, 'T1'!N12, MAX(T3_R1!M12, T3_R2!M12))) -> 325893 | T12: =IF(AND(COUNTRY_INFO!J12>1,COUNTRY_INFO!J12<4),IF(COUNTRY_INFO!E12>MAX('MDA2'!J12,'T1'!L12,MAX(T3_R1!K12,T3_R2!K12)),MAX('MDA2'!J12,'T1'!L12,MAX(T3_R1!K12,T3_R2!K12)),COUNTRY_INFO!E12),0) -> 0 | U12: =IF(AND(COUNTRY_INFO!J12>1,COUNTRY_INFO!J12<4), IF(T12/COUNTRY_INFO!E12*100<>0, IF(T12/COUNTRY_INFO!E12*100>100,100,T12/COUNTRY_INFO!E12*100), "-"),0) -> 0 | V12: =IF(AND(COUNTRY_INFO!J12>1,COUNTRY_INFO!J12<4),IF(COUNTRY_INFO!F12>MAX('MDA1'!K12,'MDA2'!K12,'T1'!M12,MAX(T3_R1!L12,T3_R2!L12)),MAX('MDA1'!K12,'MDA2'!K12,'T1'!M12,MAX(T3_R1!L12,T3_R2!L12)),COUNTRY_INFO!F12),0) -> 0 | W12: =IF(AND(COUNTRY_INFO!J12>1,COUNTRY_INFO!J12<4), IF(V12/COUNTRY_INFO!F12*100<>0, IF(V12/COUNTRY_INFO!F12*100>100,100,V12/COUNTRY_INFO!F12*100), "-"),0) -> 0 | X12: 0 | Y12: =IF(AND(COUNTRY_INFO!J12>1,COUNTRY_INFO!J12<4), IF(S12/P12*100<>0, IF(X12/P12*100>100,100,X12/P12*100), "-"),0) -> 0 | Z12: =COUNTRY_INFO!O12 -> 0 | AC12: =MAX('T1'!L12,'T2'!J12)+MAX('T1'!M12,'T2'!K12)+MAX('T1'!N12,'T2'!L12) -> 0 | AD12: =IF(COUNTRY_INFO!K12=1,IF(COUNTRY_INFO!F12*0.33>MAX('T1'!M12,'T2'!K12),MAX('T1'!M12,'T2'!K12),COUNTRY_INFO!F12*0.33),IF(COUNTRY_INFO!K12=2,IF(COUNTRY_INFO!F12*0.5>MAX('T1'!M12,'T2'!K12),MAX('T1'!M12,'T2'!K12),COUNTRY_INFO!F12*0.5),IF(COUNTRY_INFO!K12=3,IF(COUNTRY_INFO!F12>MAX('T1'!M12,'T2'!K12),MAX('T1'!M12,'T2'!K12),COUNTRY_INFO!F12),0))) -> 0 | AE12: =IF(AND(COUNTRY_INFO!K12>0,COUNTRY_INFO!K12<4),IF(Z12>0,IF(COUNTRY_INFO!K12=1, AD12/(COUNTRY_INFO!F12*0.33)*100, IF(COUNTRY_INFO!K12=2, AD12/(COUNTRY_INFO!F12*0.5)*100, IF(COUNTRY_INFO!K12=3, AD12/COUNTRY_INFO!F12*100))),"-"),0) -> - | AF12: =IF(COUNTRY_INFO!K12=2,IF(COUNTRY_INFO!G12*0.2>MAX('T1'!N12,'T2'!L12),MAX('T1'!N12,'T2'!L12),COUNTRY_INFO!G12*0.2),IF(COUNTRY_INFO!K12=3,IF(COUNTRY_INFO!G12>MAX('T1'!N12,'T2'!L12),MAX('T1'!N12,'T2'!L12),COUNTRY_INFO!G12),0)) -> 0 | AG12: =IF(AND(COUNTRY_INFO!K12>0,COUNTRY_INFO!K12<4),IF(Z12>0,IF(COUNTRY_INFO!K12=1, 0, IF(COUNTRY_INFO!K12=2, AF12/(COUNTRY_INFO!G12*0.2)*100, IF(COUNTRY_INFO!K12=3, AF12/COUNTRY_INFO!G12*100))),"-"),0) -> - | AH12: 0 | AI12: =IF(AND(COUNTRY_INFO!K12>0,COUNTRY_INFO!K12<4), IF(AC12/Z12*100<>0, IF(AH12/Z12*100>100,100,AH12/Z12*100), "-"),0) ->  | AK12: =IF(AND(D12<>0, D12<>"Unknown",D12<>"Stopped",D12<>"Not required"),D12/COUNTRY_INFO!D12, 0) -> 0 | AL12: =IF(AND(J12<>0,J12<>"Unknown",J12<>"Stopped",J12<>"Not required"),J12/COUNTRY_INFO!D12, 0) -> 0 | AM12: =IF(AND(P12<>0,P12<>"Unknown",P12<>"Not required"),P12/(COUNTRY_INFO!E12+COUNTRY_INFO!F12), 0) -> 0 | AN12: =IF(AND(Z12<>0,Z12<>"Unknown",Z12<>"Not required"),IF(COUNTRY_INFO!K12=1,1,IF(COUNTRY_INFO!K12=2,0.5*COUNTRY_INFO!F12/(0.5*COUNTRY_INFO!F12+0.2*COUNTRY_INFO!G12),IF(COUNTRY_INFO!K12=3,COUNTRY_INFO!F12/(COUNTRY_INFO!F12+COUNTRY_INFO!G12)))),0) -> 0 | AO12: =IF(AND(Z12<>0,Z12<>"Unknown",Z12<>"Not required"),IF(COUNTRY_INFO!K12=1,0,IF(COUNTRY_INFO!K12=2,0.2*COUNTRY_INFO!G12/(0.5*COUNTRY_INFO!F12+0.2*COUNTRY_INFO!G12),IF(COUNTRY_INFO!K12=3,COUNTRY_INFO!G12/(COUNTRY_INFO!F12+COUNTRY_INFO!G12)))),0) -> 0 | AP12: =MAX(COUNTRY_INFO!D12*AK12*PROFILE!$G$7,COUNTRY_INFO!D12*AL12*PROFILE!$G$7) -> 0 | AQ12: =MAX(COUNTRY_INFO!D12*AK12*PROFILE!$G$8,COUNTRY_INFO!D12*AL12*PROFILE!$G$8,COUNTRY_INFO!D12*AM12*PROFILE!$G$8) -> 0 | AR12: =MAX(COUNTRY_INFO!D12*AK12*PROFILE!$G$9,COUNTRY_INFO!D12*AL12*PROFILE!$G$9,COUNTRY_INFO!D12*AM12*PROFILE!$G$9,IF(AND(DISTRICT!Z12<>"Unknown",Z12<>"Not required"),COUNTRY_INFO!O12*DISTRICT!AN12,0)) -> 0 | AS12: =MAX(COUNTRY_INFO!D12*AK12*PROFILE!$G$10,COUNTRY_INFO!D12*AL12*PROFILE!$G$10,IF(AND(DISTRICT!Z12<>"Unknown",Z12<>"Not required"),COUNTRY_INFO!O12*DISTRICT!AO12,0)) -> 0 | AT12: 0 | AU12: 0 | AV12: =MAX('MDA2'!J12,'T1'!L12,'T2'!J12,T3_R1!K12,T3_R2!K12) -> 94426 | AW12: =MAX('MDA1'!K12,'MDA2'!K12,'MDA3'!I12,'MDA3'!L12,'T1'!M12,'T2'!K12,T3_R1!L12,T3_R2!L12) -> 231467 | AX12: =MAX('MDA1'!L12,'MDA2'!L12,'MDA3'!J12,'MDA3'!M12,'T1'!N12,'T2'!L12,T3_R1!M12,T3_R2!M12) -> 0 | AY12: 325893 | AZ12: =MAX('MDA2'!J12,T12) -> 0 | BA12: =MAX('MDA1'!K12,'MDA2'!K12,'MDA3'!I12,'MDA3'!L12,V12,AD12) -> 0 | BB12: =MAX('MDA1'!L12,'MDA2'!L12,'MDA3'!J12,'MDA3'!M12,AF12) -> 0 | BC12: 0 | BD12: 0
A13: =IF(COUNTRY_INFO!A13=0," ",COUNTRY_INFO!A13) -> Rwanda | B13: =IF(COUNTRY_INFO!B13=0," ",COUNTRY_INFO!B13) -> East | C13: =IF(COUNTRY_INFO!C13=0," ",COUNTRY_INFO!C13) -> Gatsibo | D13: =COUNTRY_INFO!L13 -> Not required | G13: =MAX('MDA1'!M13,'MDA2'!M13) -> 0 | H13: =IF(AND(COUNTRY_INFO!H13>0,COUNTRY_INFO!H13<4),IF(D13>MAX('MDA1'!M13,'MDA2'!M13),MAX('MDA1'!M13,'MDA2'!M13),D13),0) -> 0 | I13: =IF(AND(COUNTRY_INFO!H13>0,COUNTRY_INFO!H13<4), IF(G13/D13*100<>0, IF(G13/D13*100>100,100,G13/D13*100), "-"),0) -> 0 | J13: =COUNTRY_INFO!M13 -> Not required | M13: =MAX('MDA1'!M13,MAX('MDA3'!I13,'MDA3'!L13)+MAX('MDA3'!J13,'MDA3'!M13)) -> 0 | N13: =IF(AND(COUNTRY_INFO!I13>0,COUNTRY_INFO!I13<4),IF(J13>MAX('MDA1'!M13,MAX('MDA3'!I13,'MDA3'!L13)+MAX('MDA3'!J13,'MDA3'!M13)),MAX('MDA1'!M13,MAX('MDA3'!I13,'MDA3'!L13)+MAX('MDA3'!J13,'MDA3'!M13)),J13),0) -> 0 | O13: =IF(AND(COUNTRY_INFO!I13>0,COUNTRY_INFO!I13<4), IF(M13/J13*100<>0, IF(M13/J13*100>100,100,M13/J13*100), "-"),0) -> 0 | P13: =COUNTRY_INFO!N13 -> 215845 | S13: =SUM(MAX('MDA2'!J13, 'T1'!L13, MAX(T3_R1!K13, T3_R2!K13)), MAX('MDA1'!K13, 'MDA2'!K13, 'T1'!M13, MAX(T3_R1!L13, T3_R2!L13)), MAX('MDA1'!L13, 'MDA2'!L13, 'T1'!N13, MAX(T3_R1!M13, T3_R2!M13))) -> 229161 | T13: =IF(AND(COUNTRY_INFO!J13>1,COUNTRY_INFO!J13<4),IF(COUNTRY_INFO!E13>MAX('MDA2'!J13,'T1'!L13,MAX(T3_R1!K13,T3_R2!K13)),MAX('MDA2'!J13,'T1'!L13,MAX(T3_R1!K13,T3_R2!K13)),COUNTRY_INFO!E13),0) -> 62355 | U13: =IF(AND(COUNTRY_INFO!J13>1,COUNTRY_INFO!J13<4), IF(T13/COUNTRY_INFO!E13*100<>0, IF(T13/COUNTRY_INFO!E13*100>100,100,T13/COUNTRY_INFO!E13*100), "-"),0) -> 100 | V13: =IF(AND(COUNTRY_INFO!J13>1,COUNTRY_INFO!J13<4),IF(COUNTRY_INFO!F13>MAX('MDA1'!K13,'MDA2'!K13,'T1'!M13,MAX(T3_R1!L13,T3_R2!L13)),MAX('MDA1'!K13,'MDA2'!K13,'T1'!M13,MAX(T3_R1!L13,T3_R2!L13)),COUNTRY_INFO!F13),0) -> 153490 | W13: =IF(AND(COUNTRY_INFO!J13>1,COUNTRY_INFO!J13<4), IF(V13/COUNTRY_INFO!F13*100<>0, IF(V13/COUNTRY_INFO!F13*100>100,100,V13/COUNTRY_INFO!F13*100), "-"),0) -> 100 | X13: 215845 | Y13: =IF(AND(COUNTRY_INFO!J13>1,COUNTRY_INFO!J13<4), IF(S13/P13*100<>0, IF(X13/P13*100>100,100,X13/P13*100), "-"),0) -> 100 | Z13: =COUNTRY_INFO!O13 -> 48115 | AC13: =MAX('T1'!L13,'T2'!J13)+MAX('T1'!M13,'T2'!K13)+MAX('T1'!N13,'T2'!L13) -> 64346 | AD13: =IF(COUNTRY_INFO!K13=1,IF(COUNTRY_INFO!F13*0.33>MAX('T1'!M13,'T2'!K13),MAX('T1'!M13,'T2'!K13),COUNTRY_INFO!F13*0.33),IF(COUNTRY_INFO!K13=2,IF(COUNTRY_INFO!F13*0.5>MAX('T1'!M13,'T2'!K13),MAX('T1'!M13,'T2'!K13),COUNTRY_INFO!F13*0.5),IF(COUNTRY_INFO!K13=3,IF(COUNTRY_INFO!F13>MAX('T1'!M13,'T2'!K13),MAX('T1'!M13,'T2'!K13),COUNTRY_INFO!F13),0))) -> 64346 | AE13: =IF(AND(COUNTRY_INFO!K13>0,COUNTRY_INFO!K13<4),IF(Z13>0,IF(COUNTRY_INFO!K13=1, AD13/(COUNTRY_INFO!F13*0.33)*100, IF(COUNTRY_INFO!K13=2, AD13/(COUNTRY_INFO!F13*0.5)*100, IF(COUNTRY_INFO!K13=3, AD13/COUNTRY_INFO!F13*100))),"-"),0) -> 83.84389863 | AF13: =IF(COUNTRY_INFO!K13=2,IF(COUNTRY_INFO!G13*0.2>MAX('T1'!N13,'T2'!L13),MAX('T1'!N13,'T2'!L13),COUNTRY_INFO!G13*0.2),IF(COUNTRY_INFO!K13=3,IF(COUNTRY_INFO!G13>MAX('T1'!N13,'T2'!L13),MAX('T1'!N13,'T2'!L13),COUNTRY_INFO!G13),0)) -> 0 | AG13: =IF(AND(COUNTRY_INFO!K13>0,COUNTRY_INFO!K13<4),IF(Z13>0,IF(COUNTRY_INFO!K13=1, 0, IF(COUNTRY_INFO!K13=2, AF13/(COUNTRY_INFO!G13*0.2)*100, IF(COUNTRY_INFO!K13=3, AF13/COUNTRY_INFO!G13*100))),"-"),0) -> 0 | AH13: 64346 | AI13: =IF(AND(COUNTRY_INFO!K13>0,COUNTRY_INFO!K13<4), IF(AC13/Z13*100<>0, IF(AH13/Z13*100>100,100,AH13/Z13*100), "-"),0) -> 100 | AK13: =IF(AND(D13<>0, D13<>"Unknown",D13<>"Stopped",D13<>"Not required"),D13/COUNTRY_INFO!D13, 0) -> 0 | AL13: =IF(AND(J13<>0,J13<>"Unknown",J13<>"Stopped",J13<>"Not required"),J13/COUNTRY_INFO!D13, 0) -> 0 | AM13: =IF(AND(P13<>0,P13<>"Unknown",P13<>"Not required"),P13/(COUNTRY_INFO!E13+COUNTRY_INFO!F13), 0) -> 1 | AN13: =IF(AND(Z13<>0,Z13<>"Unknown",Z13<>"Not required"),IF(COUNTRY_INFO!K13=1,1,IF(COUNTRY_INFO!K13=2,0.5*COUNTRY_INFO!F13/(0.5*COUNTRY_INFO!F13+0.2*COUNTRY_INFO!G13),IF(COUNTRY_INFO!K13=3,COUNTRY_INFO!F13/(COUNTRY_INFO!F13+COUNTRY_INFO!G13)))),0) -> 0.5598759803 | AO13: =IF(AND(Z13<>0,Z13<>"Unknown",Z13<>"Not required"),IF(COUNTRY_INFO!K13=1,0,IF(COUNTRY_INFO!K13=2,0.2*COUNTRY_INFO!G13/(0.5*COUNTRY_INFO!F13+0.2*COUNTRY_INFO!G13),IF(COUNTRY_INFO!K13=3,COUNTRY_INFO!G13/(COUNTRY_INFO!F13+COUNTRY_INFO!G13)))),0) -> 0.4401240197 | AP13: =MAX(COUNTRY_INFO!D13*AK13*PROFILE!$G$7,COUNTRY_INFO!D13*AL13*PROFILE!$G$7) -> 0 | AQ13: =MAX(COUNTRY_INFO!D13*AK13*PROFILE!$G$8,COUNTRY_INFO!D13*AL13*PROFILE!$G$8,COUNTRY_INFO!D13*AM13*PROFILE!$G$8) -> 62355.34459 | AR13: =MAX(COUNTRY_INFO!D13*AK13*PROFILE!$G$9,COUNTRY_INFO!D13*AL13*PROFILE!$G$9,COUNTRY_INFO!D13*AM13*PROFILE!$G$9,IF(AND(DISTRICT!Z13<>"Unknown",Z13<>"Not required"),COUNTRY_INFO!O13*DISTRICT!AN13,0)) -> 153489.9162 | AS13: =MAX(COUNTRY_INFO!D13*AK13*PROFILE!$G$10,COUNTRY_INFO!D13*AL13*PROFILE!$G$10,IF(AND(DISTRICT!Z13<>"Unknown",Z13<>"Not required"),COUNTRY_INFO!O13*DISTRICT!AO13,0)) -> 21176.56721 | AT13: 237021.828 | AU13: Y | AV13: =MAX('MDA2'!J13,'T1'!L13,'T2'!J13,T3_R1!K13,T3_R2!K13) -> 64412 | AW13: =MAX('MDA1'!K13,'MDA2'!K13,'MDA3'!I13,'MDA3'!L13,'T1'!M13,'T2'!K13,T3_R1!L13,T3_R2!L13) -> 164749 | AX13: =MAX('MDA1'!L13,'MDA2'!L13,'MDA3'!J13,'MDA3'!M13,'T1'!N13,'T2'!L13,T3_R1!M13,T3_R2!M13) -> 0 | AY13: 229161 | AZ13: =MAX('MDA2'!J13,T13) -> 62355 | BA13: =MAX('MDA1'!K13,'MDA2'!K13,'MDA3'!I13,'MDA3'!L13,V13,AD13) -> 153490 | BB13: =MAX('MDA1'!L13,'MDA2'!L13,'MDA3'!J13,'MDA3'!M13,AF13) -> 0 | BC13: 215845 | BD13: 91.06545242
A14: =IF(COUNTRY_INFO!A14=0," ",COUNTRY_INFO!A14) -> Rwanda | B14: =IF(COUNTRY_INFO!B14=0," ",COUNTRY_INFO!B14) -> North | C14: =IF(COUNTRY_INFO!C14=0," ",COUNTRY_INFO!C14) -> Gicumbi | D14: =COUNTRY_INFO!L14 -> Not required | G14: =MAX('MDA1'!M14,'MDA2'!M14) -> 0 | H14: =IF(AND(COUNTRY_INFO!H14>0,COUNTRY_INFO!H14<4),IF(D14>MAX('MDA1'!M14,'MDA2'!M14),MAX('MDA1'!M14,'MDA2'!M14),D14),0) -> 0 | I14: =IF(AND(COUNTRY_INFO!H14>0,COUNTRY_INFO!H14<4), IF(G14/D14*100<>0, IF(G14/D14*100>100,100,G14/D14*100), "-"),0) -> 0 | J14: =COUNTRY_INFO!M14 -> Not required | M14: =MAX('MDA1'!M14,MAX('MDA3'!I14,'MDA3'!L14)+MAX('MDA3'!J14,'MDA3'!M14)) -> 0 | N14: =IF(AND(COUNTRY_INFO!I14>0,COUNTRY_INFO!I14<4),IF(J14>MAX('MDA1'!M14,MAX('MDA3'!I14,'MDA3'!L14)+MAX('MDA3'!J14,'MDA3'!M14)),MAX('MDA1'!M14,MAX('MDA3'!I14,'MDA3'!L14)+MAX('MDA3'!J14,'MDA3'!M14)),J14),0) -> 0 | O14: =IF(AND(COUNTRY_INFO!I14>0,COUNTRY_INFO!I14<4), IF(M14/J14*100<>0, IF(M14/J14*100>100,100,M14/J14*100), "-"),0) -> 0 | P14: =COUNTRY_INFO!N14 -> 173925 | S14: =SUM(MAX('MDA2'!J14, 'T1'!L14, MAX(T3_R1!K14, T3_R2!K14)), MAX('MDA1'!K14, 'MDA2'!K14, 'T1'!M14, MAX(T3_R1!L14, T3_R2!L14)), MAX('MDA1'!L14, 'MDA2'!L14, 'T1'!N14, MAX(T3_R1!M14, T3_R2!M14))) -> 184300 | T14: =IF(AND(COUNTRY_INFO!J14>1,COUNTRY_INFO!J14<4),IF(COUNTRY_INFO!E14>MAX('MDA2'!J14,'T1'!L14,MAX(T3_R1!K14,T3_R2!K14)),MAX('MDA2'!J14,'T1'!L14,MAX(T3_R1!K14,T3_R2!K14)),COUNTRY_INFO!E14),0) -> 50245 | U14: =IF(AND(COUNTRY_INFO!J14>1,COUNTRY_INFO!J14<4), IF(T14/COUNTRY_INFO!E14*100<>0, IF(T14/COUNTRY_INFO!E14*100>100,100,T14/COUNTRY_INFO!E14*100), "-"),0) -> 100 | V14: =IF(AND(COUNTRY_INFO!J14>1,COUNTRY_INFO!J14<4),IF(COUNTRY_INFO!F14>MAX('MDA1'!K14,'MDA2'!K14,'T1'!M14,MAX(T3_R1!L14,T3_R2!L14)),MAX('MDA1'!K14,'MDA2'!K14,'T1'!M14,MAX(T3_R1!L14,T3_R2!L14)),COUNTRY_INFO!F14),0) -> 123680 | W14: =IF(AND(COUNTRY_INFO!J14>1,COUNTRY_INFO!J14<4), IF(V14/COUNTRY_INFO!F14*100<>0, IF(V14/COUNTRY_INFO!F14*100>100,100,V14/COUNTRY_INFO!F14*100), "-"),0) -> 100 | X14: 173925 | Y14: =IF(AND(COUNTRY_INFO!J14>1,COUNTRY_INFO!J14<4), IF(S14/P14*100<>0, IF(X14/P14*100>100,100,X14/P14*100), "-"),0) -> 100 | Z14: =COUNTRY_INFO!O14 -> 22696 | AC14: =MAX('T1'!L14,'T2'!J14)+MAX('T1'!M14,'T2'!K14)+MAX('T1'!N14,'T2'!L14) -> 11610 | AD14: =IF(COUNTRY_INFO!K14=1,IF(COUNTRY_INFO!F14*0.33>MAX('T1'!M14,'T2'!K14),MAX('T1'!M14,'T2'!K14),COUNTRY_INFO!F14*0.33),IF(COUNTRY_INFO!K14=2,IF(COUNTRY_INFO!F14*0.5>MAX('T1'!M14,'T2'!K14),MAX('T1'!M14,'T2'!K14),COUNTRY_INFO!F14*0.5),IF(COUNTRY_INFO!K14=3,IF(COUNTRY_INFO!F14>MAX('T1'!M14,'T2'!K14),MAX('T1'!M14,'T2'!K14),COUNTRY_INFO!F14),0))) -> 11610 | AE14: =IF(AND(COUNTRY_INFO!K14>0,COUNTRY_INFO!K14<4),IF(Z14>0,IF(COUNTRY_INFO!K14=1, AD14/(COUNTRY_INFO!F14*0.33)*100, IF(COUNTRY_INFO!K14=2, AD14/(COUNTRY_INFO!F14*0.5)*100, IF(COUNTRY_INFO!K14=3, AD14/COUNTRY_INFO!F14*100))),"-"),0) -> 18.77425614 | AF14: =IF(COUNTRY_INFO!K14=2,IF(COUNTRY_INFO!G14*0.2>MAX('T1'!N14,'T2'!L14),MAX('T1'!N14,'T2'!L14),COUNTRY_INFO!G14*0.2),IF(COUNTRY_INFO!K14=3,IF(COUNTRY_INFO!G14>MAX('T1'!N14,'T2'!L14),MAX('T1'!N14,'T2'!L14),COUNTRY_INFO!G14),0)) -> 0 | AG14: =IF(AND(COUNTRY_INFO!K14>0,COUNTRY_INFO!K14<4),IF(Z14>0,IF(COUNTRY_INFO!K14=1, 0, IF(COUNTRY_INFO!K14=2, AF14/(COUNTRY_INFO!G14*0.2)*100, IF(COUNTRY_INFO!K14=3, AF14/COUNTRY_INFO!G14*100))),"-"),0) -> 0 | AH14: 11610 | AI14: =IF(AND(COUNTRY_INFO!K14>0,COUNTRY_INFO!K14<4), IF(AC14/Z14*100<>0, IF(AH14/Z14*100>100,100,AH14/Z14*100), "-"),0) -> 51.15438844 | AK14: =IF(AND(D14<>0, D14<>"Unknown",D14<>"Stopped",D14<>"Not required"),D14/COUNTRY_INFO!D14, 0) -> 0 | AL14: =IF(AND(J14<>0,J14<>"Unknown",J14<>"Stopped",J14<>"Not required"),J14/COUNTRY_INFO!D14, 0) -> 0 | AM14: =IF(AND(P14<>0,P14<>"Unknown",P14<>"Not required"),P14/(COUNTRY_INFO!E14+COUNTRY_INFO!F14), 0) -> 1 | AN14: =IF(AND(Z14<>0,Z14<>"Unknown",Z14<>"Not required"),IF(COUNTRY_INFO!K14=1,1,IF(COUNTRY_INFO!K14=2,0.5*COUNTRY_INFO!F14/(0.5*COUNTRY_INFO!F14+0.2*COUNTRY_INFO!G14),IF(COUNTRY_INFO!K14=3,COUNTRY_INFO!F14/(COUNTRY_INFO!F14+COUNTRY_INFO!G14)))),0) -> 0.5598751326 | AO14: =IF(AND(Z14<>0,Z14<>"Unknown",Z14<>"Not required"),IF(COUNTRY_INFO!K14=1,0,IF(COUNTRY_INFO!K14=2,0.2*COUNTRY_INFO!G14/(0.5*COUNTRY_INFO!F14+0.2*COUNTRY_INFO!G14),IF(COUNTRY_INFO!K14=3,COUNTRY_INFO!G14/(COUNTRY_INFO!F14+COUNTRY_INFO!G14)))),0) -> 0.4401248674 | AP14: =MAX(COUNTRY_INFO!D14*AK14*PROFILE!$G$7,COUNTRY_INFO!D14*AL14*PROFILE!$G$7) -> 0 | AQ14: =MAX(COUNTRY_INFO!D14*AK14*PROFILE!$G$8,COUNTRY_INFO!D14*AL14*PROFILE!$G$8,COUNTRY_INFO!D14*AM14*PROFILE!$G$8) -> 50245.12752 | AR14: =MAX(COUNTRY_INFO!D14*AK14*PROFILE!$G$9,COUNTRY_INFO!D14*AL14*PROFILE!$G$9,COUNTRY_INFO!D14*AM14*PROFILE!$G$9,IF(AND(DISTRICT!Z14<>"Unknown",Z14<>"Not required"),COUNTRY_INFO!O14*DISTRICT!AN14,0)) -> 123680.1827 | AS14: =MAX(COUNTRY_INFO!D14*AK14*PROFILE!$G$10,COUNTRY_INFO!D14*AL14*PROFILE!$G$10,IF(AND(DISTRICT!Z14<>"Unknown",Z14<>"Not required"),COUNTRY_INFO!O14*DISTRICT!AO14,0)) -> 9989.07399 | AT14: 183914.3842 | AU14: Y | AV14: =MAX('MDA2'!J14,'T1'!L14,'T2'!J14,T3_R1!K14,T3_R2!K14) -> 52794 | AW14: =MAX('MDA1'!K14,'MDA2'!K14,'MDA3'!I14,'MDA3'!L14,'T1'!M14,'T2'!K14,T3_R1!L14,T3_R2!L14) -> 131506 | AX14: =MAX('MDA1'!L14,'MDA2'!L14,'MDA3'!J14,'MDA3'!M14,'T1'!N14,'T2'!L14,T3_R1!M14,T3_R2!M14) -> 0 | AY14: 184300 | AZ14: =MAX('MDA2'!J14,T14) -> 50245 | BA14: =MAX('MDA1'!K14,'MDA2'!K14,'MDA3'!I14,'MDA3'!L14,V14,AD14) -> 123680 | BB14: =MAX('MDA1'!L14,'MDA2'!L14,'MDA3'!J14,'MDA3'!M14,AF14) -> 0 | BC14: 173925 | BD14: 94.56845951
A15: =IF(COUNTRY_INFO!A15=0," ",COUNTRY_INFO!A15) -> Rwanda | B15: =IF(COUNTRY_INFO!B15=0," ",COUNTRY_INFO!B15) -> South | C15: =IF(COUNTRY_INFO!C15=0," ",COUNTRY_INFO!C15) -> Gisagara | D15: =COUNTRY_INFO!L15 -> Not required | G15: =MAX('MDA1'!M15,'MDA2'!M15) -> 0 | H15: =IF(AND(COUNTRY_INFO!H15>0,COUNTRY_INFO!H15<4),IF(D15>MAX('MDA1'!M15,'MDA2'!M15),MAX('MDA1'!M15,'MDA2'!M15),D15),0) -> 0 | I15: =IF(AND(COUNTRY_INFO!H15>0,COUNTRY_INFO!H15<4), IF(G15/D15*100<>0, IF(G15/D15*100>100,100,G15/D15*100), "-"),0) -> 0 | J15: =COUNTRY_INFO!M15 -> Not required | M15: =MAX('MDA1'!M15,MAX('MDA3'!I15,'MDA3'!L15)+MAX('MDA3'!J15,'MDA3'!M15)) -> 0 | N15: =IF(AND(COUNTRY_INFO!I15>0,COUNTRY_INFO!I15<4),IF(J15>MAX('MDA1'!M15,MAX('MDA3'!I15,'MDA3'!L15)+MAX('MDA3'!J15,'MDA3'!M15)),MAX('MDA1'!M15,MAX('MDA3'!I15,'MDA3'!L15)+MAX('MDA3'!J15,'MDA3'!M15)),J15),0) -> 0 | O15: =IF(AND(COUNTRY_INFO!I15>0,COUNTRY_INFO!I15<4), IF(M15/J15*100<>0, IF(M15/J15*100>100,100,M15/J15*100), "-"),0) -> 0 | P15: =COUNTRY_INFO!N15 -> 145742 | S15: =SUM(MAX('MDA2'!J15, 'T1'!L15, MAX(T3_R1!K15, T3_R2!K15)), MAX('MDA1'!K15, 'MDA2'!K15, 'T1'!M15, MAX(T3_R1!L15, T3_R2!L15)), MAX('MDA1'!L15, 'MDA2'!L15, 'T1'!N15, MAX(T3_R1!M15, T3_R2!M15))) -> 302881 | T15: =IF(AND(COUNTRY_INFO!J15>1,COUNTRY_INFO!J15<4),IF(COUNTRY_INFO!E15>MAX('MDA2'!J15,'T1'!L15,MAX(T3_R1!K15,T3_R2!K15)),MAX('MDA2'!J15,'T1'!L15,MAX(T3_R1!K15,T3_R2!K15)),COUNTRY_INFO!E15),0) -> 42103 | U15: =IF(AND(COUNTRY_INFO!J15>1,COUNTRY_INFO!J15<4), IF(T15/COUNTRY_INFO!E15*100<>0, IF(T15/COUNTRY_INFO!E15*100>100,100,T15/COUNTRY_INFO!E15*100), "-"),0) -> 100 | V15: =IF(AND(COUNTRY_INFO!J15>1,COUNTRY_INFO!J15<4),IF(COUNTRY_INFO!F15>MAX('MDA1'!K15,'MDA2'!K15,'T1'!M15,MAX(T3_R1!L15,T3_R2!L15)),MAX('MDA1'!K15,'MDA2'!K15,'T1'!M15,MAX(T3_R1!L15,T3_R2!L15)),COUNTRY_INFO!F15),0) -> 103639 | W15: =IF(AND(COUNTRY_INFO!J15>1,COUNTRY_INFO!J15<4), IF(V15/COUNTRY_INFO!F15*100<>0, IF(V15/COUNTRY_INFO!F15*100>100,100,V15/COUNTRY_INFO!F15*100), "-"),0) -> 100 | X15: 145742 | Y15: =IF(AND(COUNTRY_INFO!J15>1,COUNTRY_INFO!J15<4), IF(S15/P15*100<>0, IF(X15/P15*100>100,100,X15/P15*100), "-"),0) -> 100 | Z15: =COUNTRY_INFO!O15 -> 66446 | AC15: =MAX('T1'!L15,'T2'!J15)+MAX('T1'!M15,'T2'!K15)+MAX('T1'!N15,'T2'!L15) -> 218240 | AD15: =IF(COUNTRY_INFO!K15=1,IF(COUNTRY_INFO!F15*0.33>MAX('T1'!M15,'T2'!K15),MAX('T1'!M15,'T2'!K15),COUNTRY_INFO!F15*0.33),IF(COUNTRY_INFO!K15=2,IF(COUNTRY_INFO!F15*0.5>MAX('T1'!M15,'T2'!K15),MAX('T1'!M15,'T2'!K15),COUNTRY_INFO!F15*0.5),IF(COUNTRY_INFO!K15=3,IF(COUNTRY_INFO!F15>MAX('T1'!M15,'T2'!K15),MAX('T1'!M15,'T2'!K15),COUNTRY_INFO!F15),0))) -> 51819.5 | AE15: =IF(AND(COUNTRY_INFO!K15>0,COUNTRY_INFO!K15<4),IF(Z15>0,IF(COUNTRY_INFO!K15=1, AD15/(COUNTRY_INFO!F15*0.33)*100, IF(COUNTRY_INFO!K15=2, AD15/(COUNTRY_INFO!F15*0.5)*100, IF(COUNTRY_INFO!K15=3, AD15/COUNTRY_INFO!F15*100))),"-"),0) -> 100 | AF15: =IF(COUNTRY_INFO!K15=2,IF(COUNTRY_INFO!G15*0.2>MAX('T1'!N15,'T2'!L15),MAX('T1'!N15,'T2'!L15),COUNTRY_INFO!G15*0.2),IF(COUNTRY_INFO!K15=3,IF(COUNTRY_INFO!G15>MAX('T1'!N15,'T2'!L15),MAX('T1'!N15,'T2'!L15),COUNTRY_INFO!G15),0)) -> 40735.8 | AG15: =IF(AND(COUNTRY_INFO!K15>0,COUNTRY_INFO!K15<4),IF(Z15>0,IF(COUNTRY_INFO!K15=1, 0, IF(COUNTRY_INFO!K15=2, AF15/(COUNTRY_INFO!G15*0.2)*100, IF(COUNTRY_INFO!K15=3, AF15/COUNTRY_INFO!G15*100))),"-"),0) -> 100 | AH15: 92555.3 | AI15: =IF(AND(COUNTRY_INFO!K15>0,COUNTRY_INFO!K15<4), IF(AC15/Z15*100<>0, IF(AH15/Z15*100>100,100,AH15/Z15*100), "-"),0) -> 100 | AK15: =IF(AND(D15<>0, D15<>"Unknown",D15<>"Stopped",D15<>"Not required"),D15/COUNTRY_INFO!D15, 0) -> 0 | AL15: =IF(AND(J15<>0,J15<>"Unknown",J15<>"Stopped",J15<>"Not required"),J15/COUNTRY_INFO!D15, 0) -> 0 | AM15: =IF(AND(P15<>0,P15<>"Unknown",P15<>"Not required"),P15/(COUNTRY_INFO!E15+COUNTRY_INFO!F15), 0) -> 1 | AN15: =IF(AND(Z15<>0,Z15<>"Unknown",Z15<>"Not required"),IF(COUNTRY_INFO!K15=1,1,IF(COUNTRY_INFO!K15=2,0.5*COUNTRY_INFO!F15/(0.5*COUNTRY_INFO!F15+0.2*COUNTRY_INFO!G15),IF(COUNTRY_INFO!K15=3,COUNTRY_INFO!F15/(COUNTRY_INFO!F15+COUNTRY_INFO!G15)))),0) -> 0.5598760957 | AO15: =IF(AND(Z15<>0,Z15<>"Unknown",Z15<>"Not required"),IF(COUNTRY_INFO!K15=1,0,IF(COUNTRY_INFO!K15=2,0.2*COUNTRY_INFO!G15/(0.5*COUNTRY_INFO!F15+0.2*COUNTRY_INFO!G15),IF(COUNTRY_INFO!K15=3,COUNTRY_INFO!G15/(COUNTRY_INFO!F15+COUNTRY_INFO!G15)))),0) -> 0.4401239043 | AP15: =MAX(COUNTRY_INFO!D15*AK15*PROFILE!$G$7,COUNTRY_INFO!D15*AL15*PROFILE!$G$7) -> 0 | AQ15: =MAX(COUNTRY_INFO!D15*AK15*PROFILE!$G$8,COUNTRY_INFO!D15*AL15*PROFILE!$G$8,COUNTRY_INFO!D15*AM15*PROFILE!$G$8) -> 42103.32139 | AR15: =MAX(COUNTRY_INFO!D15*AK15*PROFILE!$G$9,COUNTRY_INFO!D15*AL15*PROFILE!$G$9,COUNTRY_INFO!D15*AM15*PROFILE!$G$9,IF(AND(DISTRICT!Z15<>"Unknown",Z15<>"Not required"),COUNTRY_INFO!O15*DISTRICT!AN15,0)) -> 103638.835 | AS15: =MAX(COUNTRY_INFO!D15*AK15*PROFILE!$G$10,COUNTRY_INFO!D15*AL15*PROFILE!$G$10,IF(AND(DISTRICT!Z15<>"Unknown",Z15<>"Not required"),COUNTRY_INFO!O15*DISTRICT!AO15,0)) -> 29244.47295 | AT15: 174986.6294 | AU15: Y | AV15: =MAX('MDA2'!J15,'T1'!L15,'T2'!J15,T3_R1!K15,T3_R2!K15) -> 44420 | AW15: =MAX('MDA1'!K15,'MDA2'!K15,'MDA3'!I15,'MDA3'!L15,'T1'!M15,'T2'!K15,T3_R1!L15,T3_R2!L15) -> 114214 | AX15: =MAX('MDA1'!L15,'MDA2'!L15,'MDA3'!J15,'MDA3'!M15,'T1'!N15,'T2'!L15,T3_R1!M15,T3_R2!M15) -> 147965 | AY15: 306599 | AZ15: =MAX('MDA2'!J15,T15) -> 42103 | BA15: =MAX('MDA1'!K15,'MDA2'!K15,'MDA3'!I15,'MDA3'!L15,V15,AD15) -> 103639 | BB15: =MAX('MDA1'!L15,'MDA2'!L15,'MDA3'!J15,'MDA3'!M15,AF15) -> 40735.8 | BC15: 174986.6294 | BD15: 100
A16: =IF(COUNTRY_INFO!A16=0," ",COUNTRY_INFO!A16) -> Rwanda | B16: =IF(COUNTRY_INFO!B16=0," ",COUNTRY_INFO!B16) -> South | C16: =IF(COUNTRY_INFO!C16=0," ",COUNTRY_INFO!C16) -> Huye | D16: =COUNTRY_INFO!L16 -> Not required | G16: =MAX('MDA1'!M16,'MDA2'!M16) -> 0 | H16: =IF(AND(COUNTRY_INFO!H16>0,COUNTRY_INFO!H16<4),IF(D16>MAX('MDA1'!M16,'MDA2'!M16),MAX('MDA1'!M16,'MDA2'!M16),D16),0) -> 0 | I16: =IF(AND(COUNTRY_INFO!H16>0,COUNTRY_INFO!H16<4), IF(G16/D16*100<>0, IF(G16/D16*100>100,100,G16/D16*100), "-"),0) -> 0 | J16: =COUNTRY_INFO!M16 -> Not required | M16: =MAX('MDA1'!M16,MAX('MDA3'!I16,'MDA3'!L16)+MAX('MDA3'!J16,'MDA3'!M16)) -> 0 | N16: =IF(AND(COUNTRY_INFO!I16>0,COUNTRY_INFO!I16<4),IF(J16>MAX('MDA1'!M16,MAX('MDA3'!I16,'MDA3'!L16)+MAX('MDA3'!J16,'MDA3'!M16)),MAX('MDA1'!M16,MAX('MDA3'!I16,'MDA3'!L16)+MAX('MDA3'!J16,'MDA3'!M16)),J16),0) -> 0 | O16: =IF(AND(COUNTRY_INFO!I16>0,COUNTRY_INFO!I16<4), IF(M16/J16*100<>0, IF(M16/J16*100>100,100,M16/J16*100), "-"),0) -> 0 | P16: =COUNTRY_INFO!N16 -> 148761 | S16: =SUM(MAX('MDA2'!J16, 'T1'!L16, MAX(T3_R1!K16, T3_R2!K16)), MAX('MDA1'!K16, 'MDA2'!K16, 'T1'!M16, MAX(T3_R1!L16, T3_R2!L16)), MAX('MDA1'!L16, 'MDA2'!L16, 'T1'!N16, MAX(T3_R1!M16, T3_R2!M16))) -> 139651 | T16: =IF(AND(COUNTRY_INFO!J16>1,COUNTRY_INFO!J16<4),IF(COUNTRY_INFO!E16>MAX('MDA2'!J16,'T1'!L16,MAX(T3_R1!K16,T3_R2!K16)),MAX('MDA2'!J16,'T1'!L16,MAX(T3_R1!K16,T3_R2!K16)),COUNTRY_INFO!E16),0) -> 39662 | U16: =IF(AND(COUNTRY_INFO!J16>1,COUNTRY_INFO!J16<4), IF(T16/COUNTRY_INFO!E16*100<>0, IF(T16/COUNTRY_INFO!E16*100>100,100,T16/COUNTRY_INFO!E16*100), "-"),0) -> 92.29086678 | V16: =IF(AND(COUNTRY_INFO!J16>1,COUNTRY_INFO!J16<4),IF(COUNTRY_INFO!F16>MAX('MDA1'!K16,'MDA2'!K16,'T1'!M16,MAX(T3_R1!L16,T3_R2!L16)),MAX('MDA1'!K16,'MDA2'!K16,'T1'!M16,MAX(T3_R1!L16,T3_R2!L16)),COUNTRY_INFO!F16),0) -> 99989 | W16: =IF(AND(COUNTRY_INFO!J16>1,COUNTRY_INFO!J16<4), IF(V16/COUNTRY_INFO!F16*100<>0, IF(V16/COUNTRY_INFO!F16*100>100,100,V16/COUNTRY_INFO!F16*100), "-"),0) -> 94.52006882 | X16: 139651 | Y16: =IF(AND(COUNTRY_INFO!J16>1,COUNTRY_INFO!J16<4), IF(S16/P16*100<>0, IF(X16/P16*100>100,100,X16/P16*100), "-"),0) -> 93.87608311 | Z16: =COUNTRY_INFO!O16 -> 0 | AC16: =MAX('T1'!L16,'T2'!J16)+MAX('T1'!M16,'T2'!K16)+MAX('T1'!N16,'T2'!L16) -> 0 | AD16: =IF(COUNTRY_INFO!K16=1,IF(COUNTRY_INFO!F16*0.33>MAX('T1'!M16,'T2'!K16),MAX('T1'!M16,'T2'!K16),COUNTRY_INFO!F16*0.33),IF(COUNTRY_INFO!K16=2,IF(COUNTRY_INFO!F16*0.5>MAX('T1'!M16,'T2'!K16),MAX('T1'!M16,'T2'!K16),COUNTRY_INFO!F16*0.5),IF(COUNTRY_INFO!K16=3,IF(COUNTRY_INFO!F16>MAX('T1'!M16,'T2'!K16),MAX('T1'!M16,'T2'!K16),COUNTRY_INFO!F16),0))) -> 0 | AE16: =IF(AND(COUNTRY_INFO!K16>0,COUNTRY_INFO!K16<4),IF(Z16>0,IF(COUNTRY_INFO!K16=1, AD16/(COUNTRY_INFO!F16*0.33)*100, IF(COUNTRY_INFO!K16=2, AD16/(COUNTRY_INFO!F16*0.5)*100, IF(COUNTRY_INFO!K16=3, AD16/COUNTRY_INFO!F16*100))),"-"),0) -> - | AF16: =IF(COUNTRY_INFO!K16=2,IF(COUNTRY_INFO!G16*0.2>MAX('T1'!N16,'T2'!L16),MAX('T1'!N16,'T2'!L16),COUNTRY_INFO!G16*0.2),IF(COUNTRY_INFO!K16=3,IF(COUNTRY_INFO!G16>MAX('T1'!N16,'T2'!L16),MAX('T1'!N16,'T2'!L16),COUNTRY_INFO!G16),0)) -> 0 | AG16: =IF(AND(COUNTRY_INFO!K16>0,COUNTRY_INFO!K16<4),IF(Z16>0,IF(COUNTRY_INFO!K16=1, 0, IF(COUNTRY_INFO!K16=2, AF16/(COUNTRY_INFO!G16*0.2)*100, IF(COUNTRY_INFO!K16=3, AF16/COUNTRY_INFO!G16*100))),"-"),0) -> - | AH16: 0 | AI16: =IF(AND(COUNTRY_INFO!K16>0,COUNTRY_INFO!K16<4), IF(AC16/Z16*100<>0, IF(AH16/Z16*100>100,100,AH16/Z16*100), "-"),0) ->  | AK16: =IF(AND(D16<>0, D16<>"Unknown",D16<>"Stopped",D16<>"Not required"),D16/COUNTRY_INFO!D16, 0) -> 0 | AL16: =IF(AND(J16<>0,J16<>"Unknown",J16<>"Stopped",J16<>"Not required"),J16/COUNTRY_INFO!D16, 0) -> 0 | AM16: =IF(AND(P16<>0,P16<>"Unknown",P16<>"Not required"),P16/(COUNTRY_INFO!E16+COUNTRY_INFO!F16), 0) -> 1 | AN16: =IF(AND(Z16<>0,Z16<>"Unknown",Z16<>"Not required"),IF(COUNTRY_INFO!K16=1,1,IF(COUNTRY_INFO!K16=2,0.5*COUNTRY_INFO!F16/(0.5*COUNTRY_INFO!F16+0.2*COUNTRY_INFO!G16),IF(COUNTRY_INFO!K16=3,COUNTRY_INFO!F16/(COUNTRY_INFO!F16+COUNTRY_INFO!G16)))),0) -> 0 | AO16: =IF(AND(Z16<>0,Z16<>"Unknown",Z16<>"Not required"),IF(COUNTRY_INFO!K16=1,0,IF(COUNTRY_INFO!K16=2,0.2*COUNTRY_INFO!G16/(0.5*COUNTRY_INFO!F16+0.2*COUNTRY_INFO!G16),IF(COUNTRY_INFO!K16=3,COUNTRY_INFO!G16/(COUNTRY_INFO!F16+COUNTRY_INFO!G16)))),0) -> 0 | AP16: =MAX(COUNTRY_INFO!D16*AK16*PROFILE!$G$7,COUNTRY_INFO!D16*AL16*PROFILE!$G$7) -> 0 | AQ16: =MAX(COUNTRY_INFO!D16*AK16*PROFILE!$G$8,COUNTRY_INFO!D16*AL16*PROFILE!$G$8,COUNTRY_INFO!D16*AM16*PROFILE!$G$8) -> 42975.44047 | AR16: =MAX(COUNTRY_INFO!D16*AK16*PROFILE!$G$9,COUNTRY_INFO!D16*AL16*PROFILE!$G$9,COUNTRY_INFO!D16*AM16*PROFILE!$G$9,IF(AND(DISTRICT!Z16<>"Unknown",Z16<>"Not required"),COUNTRY_INFO!O16*DISTRICT!AN16,0)) -> 105785.5874 | AS16: =MAX(COUNTRY_INFO!D16*AK16*PROFILE!$G$10,COUNTRY_INFO!D16*AL16*PROFILE!$G$10,IF(AND(DISTRICT!Z16<>"Unknown",Z16<>"Not required"),COUNTRY_INFO!O16*DISTRICT!AO16,0)) -> 0 | AT16: 148761.0279 | AU16: Y | AV16: =MAX('MDA2'!J16,'T1'!L16,'T2'!J16,T3_R1!K16,T3_R2!K16) -> 39662 | AW16: =MAX('MDA1'!K16,'MDA2'!K16,'MDA3'!I16,'MDA3'!L16,'T1'!M16,'T2'!K16,T3_R1!L16,T3_R2!L16) -> 99989 | AX16: =MAX('MDA1'!L16,'MDA2'!L16,'MDA3'!J16,'MDA3'!M16,'T1'!N16,'T2'!L16,T3_R1!M16,T3_R2!M16) -> 0 | AY16: 139651 | AZ16: =MAX('MDA2'!J16,T16) -> 39662 | BA16: =MAX('MDA1'!K16,'MDA2'!K16,'MDA3'!I16,'MDA3'!L16,V16,AD16) -> 99989 | BB16: =MAX('MDA1'!L16,'MDA2'!L16,'MDA3'!J16,'MDA3'!M16,AF16) -> 0 | BC16: 139651 | BD16: 93.8760655
A17: =IF(COUNTRY_INFO!A17=0," ",COUNTRY_INFO!A17) -> Rwanda | B17: =IF(COUNTRY_INFO!B17=0," ",COUNTRY_INFO!B17) -> South | C17: =IF(COUNTRY_INFO!C17=0," ",COUNTRY_INFO!C17) -> Kamonyi | D17: =COUNTRY_INFO!L17 -> Not required | G17: =MAX('MDA1'!M17,'MDA2'!M17) -> 0 | H17: =IF(AND(COUNTRY_INFO!H17>0,COUNTRY_INFO!H17<4),IF(D17>MAX('MDA1'!M17,'MDA2'!M17),MAX('MDA1'!M17,'MDA2'!M17),D17),0) -> 0 | I17: =IF(AND(COUNTRY_INFO!H17>0,COUNTRY_INFO!H17<4), IF(G17/D17*100<>0, IF(G17/D17*100>100,100,G17/D17*100), "-"),0) -> 0 | J17: =COUNTRY_INFO!M17 -> Not required | M17: =MAX('MDA1'!M17,MAX('MDA3'!I17,'MDA3'!L17)+MAX('MDA3'!J17,'MDA3'!M17)) -> 0 | N17: =IF(AND(COUNTRY_INFO!I17>0,COUNTRY_INFO!I17<4),IF(J17>MAX('MDA1'!M17,MAX('MDA3'!I17,'MDA3'!L17)+MAX('MDA3'!J17,'MDA3'!M17)),MAX('MDA1'!M17,MAX('MDA3'!I17,'MDA3'!L17)+MAX('MDA3'!J17,'MDA3'!M17)),J17),0) -> 0 | O17: =IF(AND(COUNTRY_INFO!I17>0,COUNTRY_INFO!I17<4), IF(M17/J17*100<>0, IF(M17/J17*100>100,100,M17/J17*100), "-"),0) -> 0 | P17: =COUNTRY_INFO!N17 -> 159003 | S17: =SUM(MAX('MDA2'!J17, 'T1'!L17, MAX(T3_R1!K17, T3_R2!K17)), MAX('MDA1'!K17, 'MDA2'!K17, 'T1'!M17, MAX(T3_R1!L17, T3_R2!L17)), MAX('MDA1'!L17, 'MDA2'!L17, 'T1'!N17, MAX(T3_R1!M17, T3_R2!M17))) -> 167940 | T17: =IF(AND(COUNTRY_INFO!J17>1,COUNTRY_INFO!J17<4),IF(COUNTRY_INFO!E17>MAX('MDA2'!J17,'T1'!L17,MAX(T3_R1!K17,T3_R2!K17)),MAX('MDA2'!J17,'T1'!L17,MAX(T3_R1!K17,T3_R2!K17)),COUNTRY_INFO!E17),0) -> 41398 | U17: =IF(AND(COUNTRY_INFO!J17>1,COUNTRY_INFO!J17<4), IF(T17/COUNTRY_INFO!E17*100<>0, IF(T17/COUNTRY_INFO!E17*100>100,100,T17/COUNTRY_INFO!E17*100), "-"),0) -> 90.1249619 | V17: =IF(AND(COUNTRY_INFO!J17>1,COUNTRY_INFO!J17<4),IF(COUNTRY_INFO!F17>MAX('MDA1'!K17,'MDA2'!K17,'T1'!M17,MAX(T3_R1!L17,T3_R2!L17)),MAX('MDA1'!K17,'MDA2'!K17,'T1'!M17,MAX(T3_R1!L17,T3_R2!L17)),COUNTRY_INFO!F17),0) -> 113069 | W17: =IF(AND(COUNTRY_INFO!J17>1,COUNTRY_INFO!J17<4), IF(V17/COUNTRY_INFO!F17*100<>0, IF(V17/COUNTRY_INFO!F17*100>100,100,V17/COUNTRY_INFO!F17*100), "-"),0) -> 100 | X17: 154467 | Y17: =IF(AND(COUNTRY_INFO!J17>1,COUNTRY_INFO!J17<4), IF(S17/P17*100<>0, IF(X17/P17*100>100,100,X17/P17*100), "-"),0) -> 97.14722364 | Z17: =COUNTRY_INFO!O17 -> 111634 | AC17: =MAX('T1'!L17,'T2'!J17)+MAX('T1'!M17,'T2'!K17)+MAX('T1'!N17,'T2'!L17) -> 126542 | AD17: =IF(COUNTRY_INFO!K17=1,IF(COUNTRY_INFO!F17*0.33>MAX('T1'!M17,'T2'!K17),MAX('T1'!M17,'T2'!K17),COUNTRY_INFO!F17*0.33),IF(COUNTRY_INFO!K17=2,IF(COUNTRY_INFO!F17*0.5>MAX('T1'!M17,'T2'!K17),MAX('T1'!M17,'T2'!K17),COUNTRY_INFO!F17*0.5),IF(COUNTRY_INFO!K17=3,IF(COUNTRY_INFO!F17>MAX('T1'!M17,'T2'!K17),MAX('T1'!M17,'T2'!K17),COUNTRY_INFO!F17),0))) -> 56534.5 | AE17: =IF(AND(COUNTRY_INFO!K17>0,COUNTRY_INFO!K17<4),IF(Z17>0,IF(COUNTRY_INFO!K17=1, AD17/(COUNTRY_INFO!F17*0.33)*100, IF(COUNTRY_INFO!K17=2, AD17/(COUNTRY_INFO!F17*0.5)*100, IF(COUNTRY_INFO!K17=3, AD17/COUNTRY_INFO!F17*100))),"-"),0) -> 100 | AF17: =IF(COUNTRY_INFO!K17=2,IF(COUNTRY_INFO!G17*0.2>MAX('T1'!N17,'T2'!L17),MAX('T1'!N17,'T2'!L17),COUNTRY_INFO!G17*0.2),IF(COUNTRY_INFO!K17=3,IF(COUNTRY_INFO!G17>MAX('T1'!N17,'T2'!L17),MAX('T1'!N17,'T2'!L17),COUNTRY_INFO!G17),0)) -> 0 | AG17: =IF(AND(COUNTRY_INFO!K17>0,COUNTRY_INFO!K17<4),IF(Z17>0,IF(COUNTRY_INFO!K17=1, 0, IF(COUNTRY_INFO!K17=2, AF17/(COUNTRY_INFO!G17*0.2)*100, IF(COUNTRY_INFO!K17=3, AF17/COUNTRY_INFO!G17*100))),"-"),0) -> 0 | AH17: 56534.5 | AI17: =IF(AND(COUNTRY_INFO!K17>0,COUNTRY_INFO!K17<4), IF(AC17/Z17*100<>0, IF(AH17/Z17*100>100,100,AH17/Z17*100), "-"),0) -> 50.64272533 | AK17: =IF(AND(D17<>0, D17<>"Unknown",D17<>"Stopped",D17<>"Not required"),D17/COUNTRY_INFO!D17, 0) -> 0 | AL17: =IF(AND(J17<>0,J17<>"Unknown",J17<>"Stopped",J17<>"Not required"),J17/COUNTRY_INFO!D17, 0) -> 0 | AM17: =IF(AND(P17<>0,P17<>"Unknown",P17<>"Not required"),P17/(COUNTRY_INFO!E17+COUNTRY_INFO!F17), 0) -> 1 | AN17: =IF(AND(Z17<>0,Z17<>"Unknown",Z17<>"Not required"),IF(COUNTRY_INFO!K17=1,1,IF(COUNTRY_INFO!K17=2,0.5*COUNTRY_INFO!F17/(0.5*COUNTRY_INFO!F17+0.2*COUNTRY_INFO!G17),IF(COUNTRY_INFO!K17=3,COUNTRY_INFO!F17/(COUNTRY_INFO!F17+COUNTRY_INFO!G17)))),0) -> 0.5598766844 | AO17: =IF(AND(Z17<>0,Z17<>"Unknown",Z17<>"Not required"),IF(COUNTRY_INFO!K17=1,0,IF(COUNTRY_INFO!K17=2,0.2*COUNTRY_INFO!G17/(0.5*COUNTRY_INFO!F17+0.2*COUNTRY_INFO!G17),IF(COUNTRY_INFO!K17=3,COUNTRY_INFO!G17/(COUNTRY_INFO!F17+COUNTRY_INFO!G17)))),0) -> 0.4401233156 | AP17: =MAX(COUNTRY_INFO!D17*AK17*PROFILE!$G$7,COUNTRY_INFO!D17*AL17*PROFILE!$G$7) -> 0 | AQ17: =MAX(COUNTRY_INFO!D17*AK17*PROFILE!$G$8,COUNTRY_INFO!D17*AL17*PROFILE!$G$8,COUNTRY_INFO!D17*AM17*PROFILE!$G$8) -> 45934.14015 | AR17: =MAX(COUNTRY_INFO!D17*AK17*PROFILE!$G$9,COUNTRY_INFO!D17*AL17*PROFILE!$G$9,COUNTRY_INFO!D17*AM17*PROFILE!$G$9,IF(AND(DISTRICT!Z17<>"Unknown",Z17<>"Not required"),COUNTRY_INFO!O17*DISTRICT!AN17,0)) -> 113068.5328 | AS17: =MAX(COUNTRY_INFO!D17*AK17*PROFILE!$G$10,COUNTRY_INFO!D17*AL17*PROFILE!$G$10,IF(AND(DISTRICT!Z17<>"Unknown",Z17<>"Not required"),COUNTRY_INFO!O17*DISTRICT!AO17,0)) -> 49132.72621 | AT17: 208135.3991 | AU17: Y | AV17: =MAX('MDA2'!J17,'T1'!L17,'T2'!J17,T3_R1!K17,T3_R2!K17) -> 41398 | AW17: =MAX('MDA1'!K17,'MDA2'!K17,'MDA3'!I17,'MDA3'!L17,'T1'!M17,'T2'!K17,T3_R1!L17,T3_R2!L17) -> 126542 | AX17: =MAX('MDA1'!L17,'MDA2'!L17,'MDA3'!J17,'MDA3'!M17,'T1'!N17,'T2'!L17,T3_R1!M17,T3_R2!M17) -> 0 | AY17: 167940 | AZ17: =MAX('MDA2'!J17,T17) -> 41398 | BA17: =MAX('MDA1'!K17,'MDA2'!K17,'MDA3'!I17,'MDA3'!L17,V17,AD17) -> 113069 | BB17: =MAX('MDA1'!L17,'MDA2'!L17,'MDA3'!J17,'MDA3'!M17,AF17) -> 0 | BC17: 154467 | BD17: 74.21467018
A18: =IF(COUNTRY_INFO!A18=0," ",COUNTRY_INFO!A18) -> Rwanda | B18: =IF(COUNTRY_INFO!B18=0," ",COUNTRY_INFO!B18) -> West | C18: =IF(COUNTRY_INFO!C18=0," ",COUNTRY_INFO!C18) -> Karongi | D18: =COUNTRY_INFO!L18 -> Not required | G18: =MAX('MDA1'!M18,'MDA2'!M18) -> 0 | H18: =IF(AND(COUNTRY_INFO!H18>0,COUNTRY_INFO!H18<4),IF(D18>MAX('MDA1'!M18,'MDA2'!M18),MAX('MDA1'!M18,'MDA2'!M18),D18),0) -> 0 | I18: =IF(AND(COUNTRY_INFO!H18>0,COUNTRY_INFO!H18<4), IF(G18/D18*100<>0, IF(G18/D18*100>100,100,G18/D18*100), "-"),0) -> 0 | J18: =COUNTRY_INFO!M18 -> Not required | M18: =MAX('MDA1'!M18,MAX('MDA3'!I18,'MDA3'!L18)+MAX('MDA3'!J18,'MDA3'!M18)) -> 0 | N18: =IF(AND(COUNTRY_INFO!I18>0,COUNTRY_INFO!I18<4),IF(J18>MAX('MDA1'!M18,MAX('MDA3'!I18,'MDA3'!L18)+MAX('MDA3'!J18,'MDA3'!M18)),MAX('MDA1'!M18,MAX('MDA3'!I18,'MDA3'!L18)+MAX('MDA3'!J18,'MDA3'!M18)),J18),0) -> 0 | O18: =IF(AND(COUNTRY_INFO!I18>0,COUNTRY_INFO!I18<4), IF(M18/J18*100<>0, IF(M18/J18*100>100,100,M18/J18*100), "-"),0) -> 0 | P18: =COUNTRY_INFO!N18 -> 147447 | S18: =SUM(MAX('MDA2'!J18, 'T1'!L18, MAX(T3_R1!K18, T3_R2!K18)), MAX('MDA1'!K18, 'MDA2'!K18, 'T1'!M18, MAX(T3_R1!L18, T3_R2!L18)), MAX('MDA1'!L18, 'MDA2'!L18, 'T1'!N18, MAX(T3_R1!M18, T3_R2!M18))) -> 159788 | T18: =IF(AND(COUNTRY_INFO!J18>1,COUNTRY_INFO!J18<4),IF(COUNTRY_INFO!E18>MAX('MDA2'!J18,'T1'!L18,MAX(T3_R1!K18,T3_R2!K18)),MAX('MDA2'!J18,'T1'!L18,MAX(T3_R1!K18,T3_R2!K18)),COUNTRY_INFO!E18),0) -> 42596 | U18: =IF(AND(COUNTRY_INFO!J18>1,COUNTRY_INFO!J18<4), IF(T18/COUNTRY_INFO!E18*100<>0, IF(T18/COUNTRY_INFO!E18*100>100,100,T18/COUNTRY_INFO!E18*100), "-"),0) -> 100 | V18: =IF(AND(COUNTRY_INFO!J18>1,COUNTRY_INFO!J18<4),IF(COUNTRY_INFO!F18>MAX('MDA1'!K18,'MDA2'!K18,'T1'!M18,MAX(T3_R1!L18,T3_R2!L18)),MAX('MDA1'!K18,'MDA2'!K18,'T1'!M18,MAX(T3_R1!L18,T3_R2!L18)),COUNTRY_INFO!F18),0) -> 104851 | W18: =IF(AND(COUNTRY_INFO!J18>1,COUNTRY_INFO!J18<4), IF(V18/COUNTRY_INFO!F18*100<>0, IF(V18/COUNTRY_INFO!F18*100>100,100,V18/COUNTRY_INFO!F18*100), "-"),0) -> 100 | X18: 147447 | Y18: =IF(AND(COUNTRY_INFO!J18>1,COUNTRY_INFO!J18<4), IF(S18/P18*100<>0, IF(X18/P18*100>100,100,X18/P18*100), "-"),0) -> 100 | Z18: =COUNTRY_INFO!O18 -> 0 | AC18: =MAX('T1'!L18,'T2'!J18)+MAX('T1'!M18,'T2'!K18)+MAX('T1'!N18,'T2'!L18) -> 0 | AD18: =IF(COUNTRY_INFO!K18=1,IF(COUNTRY_INFO!F18*0.33>MAX('T1'!M18,'T2'!K18),MAX('T1'!M18,'T2'!K18),COUNTRY_INFO!F18*0.33),IF(COUNTRY_INFO!K18=2,IF(COUNTRY_INFO!F18*0.5>MAX('T1'!M18,'T2'!K18),MAX('T1'!M18,'T2'!K18),COUNTRY_INFO!F18*0.5),IF(COUNTRY_INFO!K18=3,IF(COUNTRY_INFO!F18>MAX('T1'!M18,'T2'!K18),MAX('T1'!M18,'T2'!K18),COUNTRY_INFO!F18),0))) -> 0 | AE18: =IF(AND(COUNTRY_INFO!K18>0,COUNTRY_INFO!K18<4),IF(Z18>0,IF(COUNTRY_INFO!K18=1, AD18/(COUNTRY_INFO!F18*0.33)*100, IF(COUNTRY_INFO!K18=2, AD18/(COUNTRY_INFO!F18*0.5)*100, IF(COUNTRY_INFO!K18=3, AD18/COUNTRY_INFO!F18*100))),"-"),0) -> - | AF18: =IF(COUNTRY_INFO!K18=2,IF(COUNTRY_INFO!G18*0.2>MAX('T1'!N18,'T2'!L18),MAX('T1'!N18,'T2'!L18),COUNTRY_INFO!G18*0.2),IF(COUNTRY_INFO!K18=3,IF(COUNTRY_INFO!G18>MAX('T1'!N18,'T2'!L18),MAX('T1'!N18,'T2'!L18),COUNTRY_INFO!G18),0)) -> 0 | AG18: =IF(AND(COUNTRY_INFO!K18>0,COUNTRY_INFO!K18<4),IF(Z18>0,IF(COUNTRY_INFO!K18=1, 0, IF(COUNTRY_INFO!K18=2, AF18/(COUNTRY_INFO!G18*0.2)*100, IF(COUNTRY_INFO!K18=3, AF18/COUNTRY_INFO!G18*100))),"-"),0) -> - | AH18: 0 | AI18: =IF(AND(COUNTRY_INFO!K18>0,COUNTRY_INFO!K18<4), IF(AC18/Z18*100<>0, IF(AH18/Z18*100>100,100,AH18/Z18*100), "-"),0) ->  | AK18: =IF(AND(D18<>0, D18<>"Unknown",D18<>"Stopped",D18<>"Not required"),D18/COUNTRY_INFO!D18, 0) -> 0 | AL18: =IF(AND(J18<>0,J18<>"Unknown",J18<>"Stopped",J18<>"Not required"),J18/COUNTRY_INFO!D18, 0) -> 0 | AM18: =IF(AND(P18<>0,P18<>"Unknown",P18<>"Not required"),P18/(COUNTRY_INFO!E18+COUNTRY_INFO!F18), 0) -> 1 | AN18: =IF(AND(Z18<>0,Z18<>"Unknown",Z18<>"Not required"),IF(COUNTRY_INFO!K18=1,1,IF(COUNTRY_INFO!K18=2,0.5*COUNTRY_INFO!F18/(0.5*COUNTRY_INFO!F18+0.2*COUNTRY_INFO!G18),IF(COUNTRY_INFO!K18=3,COUNTRY_INFO!F18/(COUNTRY_INFO!F18+COUNTRY_INFO!G18)))),0) -> 0 | AO18: =IF(AND(Z18<>0,Z18<>"Unknown",Z18<>"Not required"),IF(COUNTRY_INFO!K18=1,0,IF(COUNTRY_INFO!K18=2,0.2*COUNTRY_INFO!G18/(0.5*COUNTRY_INFO!F18+0.2*COUNTRY_INFO!G18),IF(COUNTRY_INFO!K18=3,COUNTRY_INFO!G18/(COUNTRY_INFO!F18+COUNTRY_INFO!G18)))),0) -> 0 | AP18: =MAX(COUNTRY_INFO!D18*AK18*PROFILE!$G$7,COUNTRY_INFO!D18*AL18*PROFILE!$G$7) -> 0 | AQ18: =MAX(COUNTRY_INFO!D18*AK18*PROFILE!$G$8,COUNTRY_INFO!D18*AL18*PROFILE!$G$8,COUNTRY_INFO!D18*AM18*PROFILE!$G$8) -> 42595.892 | AR18: =MAX(COUNTRY_INFO!D18*AK18*PROFILE!$G$9,COUNTRY_INFO!D18*AL18*PROFILE!$G$9,COUNTRY_INFO!D18*AM18*PROFILE!$G$9,IF(AND(DISTRICT!Z18<>"Unknown",Z18<>"Not required"),COUNTRY_INFO!O18*DISTRICT!AN18,0)) -> 104851.3153 | AS18: =MAX(COUNTRY_INFO!D18*AK18*PROFILE!$G$10,COUNTRY_INFO!D18*AL18*PROFILE!$G$10,IF(AND(DISTRICT!Z18<>"Unknown",Z18<>"Not required"),COUNTRY_INFO!O18*DISTRICT!AO18,0)) -> 0 | AT18: 147447.2073 | AU18: Y | AV18: =MAX('MDA2'!J18,'T1'!L18,'T2'!J18,T3_R1!K18,T3_R2!K18) -> 44197 | AW18: =MAX('MDA1'!K18,'MDA2'!K18,'MDA3'!I18,'MDA3'!L18,'T1'!M18,'T2'!K18,T3_R1!L18,T3_R2!L18) -> 115591 | AX18: =MAX('MDA1'!L18,'MDA2'!L18,'MDA3'!J18,'MDA3'!M18,'T1'!N18,'T2'!L18,T3_R1!M18,T3_R2!M18) -> 0 | AY18: 159788 | AZ18: =MAX('MDA2'!J18,T18) -> 42596 | BA18: =MAX('MDA1'!K18,'MDA2'!K18,'MDA3'!I18,'MDA3'!L18,V18,AD18) -> 104851 | BB18: =MAX('MDA1'!L18,'MDA2'!L18,'MDA3'!J18,'MDA3'!M18,AF18) -> 0 | BC18: 147447 | BD18: 99.99985943
A19: =IF(COUNTRY_INFO!A19=0," ",COUNTRY_INFO!A19) -> Rwanda | B19: =IF(COUNTRY_INFO!B19=0," ",COUNTRY_INFO!B19) -> East | C19: =IF(COUNTRY_INFO!C19=0," ",COUNTRY_INFO!C19) -> Kayonza | D19: =COUNTRY_INFO!L19 -> Not required | G19: =MAX('MDA1'!M19,'MDA2'!M19) -> 0 | H19: =IF(AND(COUNTRY_INFO!H19>0,COUNTRY_INFO!H19<4),IF(D19>MAX('MDA1'!M19,'MDA2'!M19),MAX('MDA1'!M19,'MDA2'!M19),D19),0) -> 0 | I19: =IF(AND(COUNTRY_INFO!H19>0,COUNTRY_INFO!H19<4), IF(G19/D19*100<>0, IF(G19/D19*100>100,100,G19/D19*100), "-"),0) -> 0 | J19: =COUNTRY_INFO!M19 -> Not required | M19: =MAX('MDA1'!M19,MAX('MDA3'!I19,'MDA3'!L19)+MAX('MDA3'!J19,'MDA3'!M19)) -> 0 | N19: =IF(AND(COUNTRY_INFO!I19>0,COUNTRY_INFO!I19<4),IF(J19>MAX('MDA1'!M19,MAX('MDA3'!I19,'MDA3'!L19)+MAX('MDA3'!J19,'MDA3'!M19)),MAX('MDA1'!M19,MAX('MDA3'!I19,'MDA3'!L19)+MAX('MDA3'!J19,'MDA3'!M19)),J19),0) -> 0 | O19: =IF(AND(COUNTRY_INFO!I19>0,COUNTRY_INFO!I19<4), IF(M19/J19*100<>0, IF(M19/J19*100>100,100,M19/J19*100), "-"),0) -> 0 | P19: =COUNTRY_INFO!N19 -> 176548 | S19: =SUM(MAX('MDA2'!J19, 'T1'!L19, MAX(T3_R1!K19, T3_R2!K19)), MAX('MDA1'!K19, 'MDA2'!K19, 'T1'!M19, MAX(T3_R1!L19, T3_R2!L19)), MAX('MDA1'!L19, 'MDA2'!L19, 'T1'!N19, MAX(T3_R1!M19, T3_R2!M19))) -> 178256 | T19: =IF(AND(COUNTRY_INFO!J19>1,COUNTRY_INFO!J19<4),IF(COUNTRY_INFO!E19>MAX('MDA2'!J19,'T1'!L19,MAX(T3_R1!K19,T3_R2!K19)),MAX('MDA2'!J19,'T1'!L19,MAX(T3_R1!K19,T3_R2!K19)),COUNTRY_INFO!E19),0) -> 51003 | U19: =IF(AND(COUNTRY_INFO!J19>1,COUNTRY_INFO!J19<4), IF(T19/COUNTRY_INFO!E19*100<>0, IF(T19/COUNTRY_INFO!E19*100>100,100,T19/COUNTRY_INFO!E19*100), "-"),0) -> 100 | V19: =IF(AND(COUNTRY_INFO!J19>1,COUNTRY_INFO!J19<4),IF(COUNTRY_INFO!F19>MAX('MDA1'!K19,'MDA2'!K19,'T1'!M19,MAX(T3_R1!L19,T3_R2!L19)),MAX('MDA1'!K19,'MDA2'!K19,'T1'!M19,MAX(T3_R1!L19,T3_R2!L19)),COUNTRY_INFO!F19),0) -> 125545 | W19: =IF(AND(COUNTRY_INFO!J19>1,COUNTRY_INFO!J19<4), IF(V19/COUNTRY_INFO!F19*100<>0, IF(V19/COUNTRY_INFO!F19*100>100,100,V19/COUNTRY_INFO!F19*100), "-"),0) -> 100 | X19: 176548 | Y19: =IF(AND(COUNTRY_INFO!J19>1,COUNTRY_INFO!J19<4), IF(S19/P19*100<>0, IF(X19/P19*100>100,100,X19/P19*100), "-"),0) -> 100 | Z19: =COUNTRY_INFO!O19 -> 47493 | AC19: =MAX('T1'!L19,'T2'!J19)+MAX('T1'!M19,'T2'!K19)+MAX('T1'!N19,'T2'!L19) -> 48702 | AD19: =IF(COUNTRY_INFO!K19=1,IF(COUNTRY_INFO!F19*0.33>MAX('T1'!M19,'T2'!K19),MAX('T1'!M19,'T2'!K19),COUNTRY_INFO!F19*0.33),IF(COUNTRY_INFO!K19=2,IF(COUNTRY_INFO!F19*0.5>MAX('T1'!M19,'T2'!K19),MAX('T1'!M19,'T2'!K19),COUNTRY_INFO!F19*0.5),IF(COUNTRY_INFO!K19=3,IF(COUNTRY_INFO!F19>MAX('T1'!M19,'T2'!K19),MAX('T1'!M19,'T2'!K19),COUNTRY_INFO!F19),0))) -> 48702 | AE19: =IF(AND(COUNTRY_INFO!K19>0,COUNTRY_INFO!K19<4),IF(Z19>0,IF(COUNTRY_INFO!K19=1, AD19/(COUNTRY_INFO!F19*0.33)*100, IF(COUNTRY_INFO!K19=2, AD19/(COUNTRY_INFO!F19*0.5)*100, IF(COUNTRY_INFO!K19=3, AD19/COUNTRY_INFO!F19*100))),"-"),0) -> 77.58492971 | AF19: =IF(COUNTRY_INFO!K19=2,IF(COUNTRY_INFO!G19*0.2>MAX('T1'!N19,'T2'!L19),MAX('T1'!N19,'T2'!L19),COUNTRY_INFO!G19*0.2),IF(COUNTRY_INFO!K19=3,IF(COUNTRY_INFO!G19>MAX('T1'!N19,'T2'!L19),MAX('T1'!N19,'T2'!L19),COUNTRY_INFO!G19),0)) -> 0 | AG19: =IF(AND(COUNTRY_INFO!K19>0,COUNTRY_INFO!K19<4),IF(Z19>0,IF(COUNTRY_INFO!K19=1, 0, IF(COUNTRY_INFO!K19=2, AF19/(COUNTRY_INFO!G19*0.2)*100, IF(COUNTRY_INFO!K19=3, AF19/COUNTRY_INFO!G19*100))),"-"),0) -> 0 | AH19: 48702 | AI19: =IF(AND(COUNTRY_INFO!K19>0,COUNTRY_INFO!K19<4), IF(AC19/Z19*100<>0, IF(AH19/Z19*100>100,100,AH19/Z19*100), "-"),0) -> 100 | AK19: =IF(AND(D19<>0, D19<>"Unknown",D19<>"Stopped",D19<>"Not required"),D19/COUNTRY_INFO!D19, 0) -> 0 | AL19: =IF(AND(J19<>0,J19<>"Unknown",J19<>"Stopped",J19<>"Not required"),J19/COUNTRY_INFO!D19, 0) -> 0 | AM19: =IF(AND(P19<>0,P19<>"Unknown",P19<>"Not required"),P19/(COUNTRY_INFO!E19+COUNTRY_INFO!F19), 0) -> 1 | AN19: =IF(AND(Z19<>0,Z19<>"Unknown",Z19<>"Not required"),IF(COUNTRY_INFO!K19=1,1,IF(COUNTRY_INFO!K19=2,0.5*COUNTRY_INFO!F19/(0.5*COUNTRY_INFO!F19+0.2*COUNTRY_INFO!G19),IF(COUNTRY_INFO!K19=3,COUNTRY_INFO!F19/(COUNTRY_INFO!F19+COUNTRY_INFO!G19)))),0) -> 0.5598763808 | AO19: =IF(AND(Z19<>0,Z19<>"Unknown",Z19<>"Not required"),IF(COUNTRY_INFO!K19=1,0,IF(COUNTRY_INFO!K19=2,0.2*COUNTRY_INFO!G19/(0.5*COUNTRY_INFO!F19+0.2*COUNTRY_INFO!G19),IF(COUNTRY_INFO!K19=3,COUNTRY_INFO!G19/(COUNTRY_INFO!F19+COUNTRY_INFO!G19)))),0) -> 0.4401236192 | AP19: =MAX(COUNTRY_INFO!D19*AK19*PROFILE!$G$7,COUNTRY_INFO!D19*AL19*PROFILE!$G$7) -> 0 | AQ19: =MAX(COUNTRY_INFO!D19*AK19*PROFILE!$G$8,COUNTRY_INFO!D19*AL19*PROFILE!$G$8,COUNTRY_INFO!D19*AM19*PROFILE!$G$8) -> 51002.58646 | AR19: =MAX(COUNTRY_INFO!D19*AK19*PROFILE!$G$9,COUNTRY_INFO!D19*AL19*PROFILE!$G$9,COUNTRY_INFO!D19*AM19*PROFILE!$G$9,IF(AND(DISTRICT!Z19<>"Unknown",Z19<>"Not required"),COUNTRY_INFO!O19*DISTRICT!AN19,0)) -> 125544.6951 | AS19: =MAX(COUNTRY_INFO!D19*AK19*PROFILE!$G$10,COUNTRY_INFO!D19*AL19*PROFILE!$G$10,IF(AND(DISTRICT!Z19<>"Unknown",Z19<>"Not required"),COUNTRY_INFO!O19*DISTRICT!AO19,0)) -> 20902.79105 | AT19: 197450.0726 | AU19: Y | AV19: =MAX('MDA2'!J19,'T1'!L19,'T2'!J19,T3_R1!K19,T3_R2!K19) -> 51402 | AW19: =MAX('MDA1'!K19,'MDA2'!K19,'MDA3'!I19,'MDA3'!L19,'T1'!M19,'T2'!K19,T3_R1!L19,T3_R2!L19) -> 126854 | AX19: =MAX('MDA1'!L19,'MDA2'!L19,'MDA3'!J19,'MDA3'!M19,'T1'!N19,'T2'!L19,T3_R1!M19,T3_R2!M19) -> 0 | AY19: 178256 | AZ19: =MAX('MDA2'!J19,T19) -> 51003 | BA19: =MAX('MDA1'!K19,'MDA2'!K19,'MDA3'!I19,'MDA3'!L19,V19,AD19) -> 125545 | BB19: =MAX('MDA1'!L19,'MDA2'!L19,'MDA3'!J19,'MDA3'!M19,AF19) -> 0 | BC19: 176548 | BD19: 89.413996
A20: =IF(COUNTRY_INFO!A20=0," ",COUNTRY_INFO!A20) -> Rwanda | B20: =IF(COUNTRY_INFO!B20=0," ",COUNTRY_INFO!B20) -> Kigali | C20: =IF(COUNTRY_INFO!C20=0," ",COUNTRY_INFO!C20) -> Kicukiro | D20: =COUNTRY_INFO!L20 -> Not required | G20: =MAX('MDA1'!M20,'MDA2'!M20) -> 0 | H20: =IF(AND(COUNTRY_INFO!H20>0,COUNTRY_INFO!H20<4),IF(D20>MAX('MDA1'!M20,'MDA2'!M20),MAX('MDA1'!M20,'MDA2'!M20),D20),0) -> 0 | I20: =IF(AND(COUNTRY_INFO!H20>0,COUNTRY_INFO!H20<4), IF(G20/D20*100<>0, IF(G20/D20*100>100,100,G20/D20*100), "-"),0) -> 0 | J20: =COUNTRY_INFO!M20 -> Not required | M20: =MAX('MDA1'!M20,MAX('MDA3'!I20,'MDA3'!L20)+MAX('MDA3'!J20,'MDA3'!M20)) -> 0 | N20: =IF(AND(COUNTRY_INFO!I20>0,COUNTRY_INFO!I20<4),IF(J20>MAX('MDA1'!M20,MAX('MDA3'!I20,'MDA3'!L20)+MAX('MDA3'!J20,'MDA3'!M20)),MAX('MDA1'!M20,MAX('MDA3'!I20,'MDA3'!L20)+MAX('MDA3'!J20,'MDA3'!M20)),J20),0) -> 0 | O20: =IF(AND(COUNTRY_INFO!I20>0,COUNTRY_INFO!I20<4), IF(M20/J20*100<>0, IF(M20/J20*100>100,100,M20/J20*100), "-"),0) -> 0 | P20: =COUNTRY_INFO!N20 -> 0 | S20: =SUM(MAX('MDA2'!J20, 'T1'!L20, MAX(T3_R1!K20, T3_R2!K20)), MAX('MDA1'!K20, 'MDA2'!K20, 'T1'!M20, MAX(T3_R1!L20, T3_R2!L20)), MAX('MDA1'!L20, 'MDA2'!L20, 'T1'!N20, MAX(T3_R1!M20, T3_R2!M20))) -> 143134 | T20: =IF(AND(COUNTRY_INFO!J20>1,COUNTRY_INFO!J20<4),IF(COUNTRY_INFO!E20>MAX('MDA2'!J20,'T1'!L20,MAX(T3_R1!K20,T3_R2!K20)),MAX('MDA2'!J20,'T1'!L20,MAX(T3_R1!K20,T3_R2!K20)),COUNTRY_INFO!E20),0) -> 0 | U20: =IF(AND(COUNTRY_INFO!J20>1,COUNTRY_INFO!J20<4), IF(T20/COUNTRY_INFO!E20*100<>0, IF(T20/COUNTRY_INFO!E20*100>100,100,T20/COUNTRY_INFO!E20*100), "-"),0) -> 0 | V20: =IF(AND(COUNTRY_INFO!J20>1,COUNTRY_INFO!J20<4),IF(COUNTRY_INFO!F20>MAX('MDA1'!K20,'MDA2'!K20,'T1'!M20,MAX(T3_R1!L20,T3_R2!L20)),MAX('MDA1'!K20,'MDA2'!K20,'T1'!M20,MAX(T3_R1!L20,T3_R2!L20)),COUNTRY_INFO!F20),0) -> 0 | W20: =IF(AND(COUNTRY_INFO!J20>1,COUNTRY_INFO!J20<4), IF(V20/COUNTRY_INFO!F20*100<>0, IF(V20/COUNTRY_INFO!F20*100>100,100,V20/COUNTRY_INFO!F20*100), "-"),0) -> 0 | X20: 0 | Y20: =IF(AND(COUNTRY_INFO!J20>1,COUNTRY_INFO!J20<4), IF(S20/P20*100<>0, IF(X20/P20*100>100,100,X20/P20*100), "-"),0) -> 0 | Z20: =COUNTRY_INFO!O20 -> 0 | AC20: =MAX('T1'!L20,'T2'!J20)+MAX('T1'!M20,'T2'!K20)+MAX('T1'!N20,'T2'!L20) -> 0 | AD20: =IF(COUNTRY_INFO!K20=1,IF(COUNTRY_INFO!F20*0.33>MAX('T1'!M20,'T2'!K20),MAX('T1'!M20,'T2'!K20),COUNTRY_INFO!F20*0.33),IF(COUNTRY_INFO!K20=2,IF(COUNTRY_INFO!F20*0.5>MAX('T1'!M20,'T2'!K20),MAX('T1'!M20,'T2'!K20),COUNTRY_INFO!F20*0.5),IF(COUNTRY_INFO!K20=3,IF(COUNTRY_INFO!F20>MAX('T1'!M20,'T2'!K20),MAX('T1'!M20,'T2'!K20),COUNTRY_INFO!F20),0))) -> 0 | AE20: =IF(AND(COUNTRY_INFO!K20>0,COUNTRY_INFO!K20<4),IF(Z20>0,IF(COUNTRY_INFO!K20=1, AD20/(COUNTRY_INFO!F20*0.33)*100, IF(COUNTRY_INFO!K20=2, AD20/(COUNTRY_INFO!F20*0.5)*100, IF(COUNTRY_INFO!K20=3, AD20/COUNTRY_INFO!F20*100))),"-"),0) -> - | AF20: =IF(COUNTRY_INFO!K20=2,IF(COUNTRY_INFO!G20*0.2>MAX('T1'!N20,'T2'!L20),MAX('T1'!N20,'T2'!L20),COUNTRY_INFO!G20*0.2),IF(COUNTRY_INFO!K20=3,IF(COUNTRY_INFO!G20>MAX('T1'!N20,'T2'!L20),MAX('T1'!N20,'T2'!L20),COUNTRY_INFO!G20),0)) -> 0 | AG20: =IF(AND(COUNTRY_INFO!K20>0,COUNTRY_INFO!K20<4),IF(Z20>0,IF(COUNTRY_INFO!K20=1, 0, IF(COUNTRY_INFO!K20=2, AF20/(COUNTRY_INFO!G20*0.2)*100, IF(COUNTRY_INFO!K20=3, AF20/COUNTRY_INFO!G20*100))),"-"),0) -> - | AH20: 0 | AI20: =IF(AND(COUNTRY_INFO!K20>0,COUNTRY_INFO!K20<4), IF(AC20/Z20*100<>0, IF(AH20/Z20*100>100,100,AH20/Z20*100), "-"),0) ->  | AK20: =IF(AND(D20<>0, D20<>"Unknown",D20<>"Stopped",D20<>"Not required"),D20/COUNTRY_INFO!D20, 0) -> 0 | AL20: =IF(AND(J20<>0,J20<>"Unknown",J20<>"Stopped",J20<>"Not required"),J20/COUNTRY_INFO!D20, 0) -> 0 | AM20: =IF(AND(P20<>0,P20<>"Unknown",P20<>"Not required"),P20/(COUNTRY_INFO!E20+COUNTRY_INFO!F20), 0) -> 0 | AN20: =IF(AND(Z20<>0,Z20<>"Unknown",Z20<>"Not required"),IF(COUNTRY_INFO!K20=1,1,IF(COUNTRY_INFO!K20=2,0.5*COUNTRY_INFO!F20/(0.5*COUNTRY_INFO!F20+0.2*COUNTRY_INFO!G20),IF(COUNTRY_INFO!K20=3,COUNTRY_INFO!F20/(COUNTRY_INFO!F20+COUNTRY_INFO!G20)))),0) -> 0 | AO20: =IF(AND(Z20<>0,Z20<>"Unknown",Z20<>"Not required"),IF(COUNTRY_INFO!K20=1,0,IF(COUNTRY_INFO!K20=2,0.2*COUNTRY_INFO!G20/(0.5*COUNTRY_INFO!F20+0.2*COUNTRY_INFO!G20),IF(COUNTRY_INFO!K20=3,COUNTRY_INFO!G20/(COUNTRY_INFO!F20+COUNTRY_INFO!G20)))),0) -> 0 | AP20: =MAX(COUNTRY_INFO!D20*AK20*PROFILE!$G$7,COUNTRY_INFO!D20*AL20*PROFILE!$G$7) -> 0 | AQ20: =MAX(COUNTRY_INFO!D20*AK20*PROFILE!$G$8,COUNTRY_INFO!D20*AL20*PROFILE!$G$8,COUNTRY_INFO!D20*AM20*PROFILE!$G$8) -> 0 | AR20: =MAX(COUNTRY_INFO!D20*AK20*PROFILE!$G$9,COUNTRY_INFO!D20*AL20*PROFILE!$G$9,COUNTRY_INFO!D20*AM20*PROFILE!$G$9,IF(AND(DISTRICT!Z20<>"Unknown",Z20<>"Not required"),COUNTRY_INFO!O20*DISTRICT!AN20,0)) -> 0 | AS20: =MAX(COUNTRY_INFO!D20*AK20*PROFILE!$G$10,COUNTRY_INFO!D20*AL20*PROFILE!$G$10,IF(AND(DISTRICT!Z20<>"Unknown",Z20<>"Not required"),COUNTRY_INFO!O20*DISTRICT!AO20,0)) -> 0 | AT20: 0 | AU20: 0 | AV20: =MAX('MDA2'!J20,'T1'!L20,'T2'!J20,T3_R1!K20,T3_R2!K20) -> 43848 | AW20: =MAX('MDA1'!K20,'MDA2'!K20,'MDA3'!I20,'MDA3'!L20,'T1'!M20,'T2'!K20,T3_R1!L20,T3_R2!L20) -> 99286 | AX20: =MAX('MDA1'!L20,'MDA2'!L20,'MDA3'!J20,'MDA3'!M20,'T1'!N20,'T2'!L20,T3_R1!M20,T3_R2!M20) -> 0 | AY20: 143134 | AZ20: =MAX('MDA2'!J20,T20) -> 0 | BA20: =MAX('MDA1'!K20,'MDA2'!K20,'MDA3'!I20,'MDA3'!L20,V20,AD20) -> 0 | BB20: =MAX('MDA1'!L20,'MDA2'!L20,'MDA3'!J20,'MDA3'!M20,AF20) -> 0 | BC20: 0 | BD20: 0
A21: =IF(COUNTRY_INFO!A21=0," ",COUNTRY_INFO!A21) -> Rwanda | B21: =IF(COUNTRY_INFO!B21=0," ",COUNTRY_INFO!B21) -> East | C21: =IF(COUNTRY_INFO!C21=0," ",COUNTRY_INFO!C21) -> Kirehe | D21: =COUNTRY_INFO!L21 -> Not required | G21: =MAX('MDA1'!M21,'MDA2'!M21) -> 0 | H21: =IF(AND(COUNTRY_INFO!H21>0,COUNTRY_INFO!H21<4),IF(D21>MAX('MDA1'!M21,'MDA2'!M21),MAX('MDA1'!M21,'MDA2'!M21),D21),0) -> 0 | I21: =IF(AND(COUNTRY_INFO!H21>0,COUNTRY_INFO!H21<4), IF(G21/D21*100<>0, IF(G21/D21*100>100,100,G21/D21*100), "-"),0) -> 0 | J21: =COUNTRY_INFO!M21 -> Not required | M21: =MAX('MDA1'!M21,MAX('MDA3'!I21,'MDA3'!L21)+MAX('MDA3'!J21,'MDA3'!M21)) -> 0 | N21: =IF(AND(COUNTRY_INFO!I21>0,COUNTRY_INFO!I21<4),IF(J21>MAX('MDA1'!M21,MAX('MDA3'!I21,'MDA3'!L21)+MAX('MDA3'!J21,'MDA3'!M21)),MAX('MDA1'!M21,MAX('MDA3'!I21,'MDA3'!L21)+MAX('MDA3'!J21,'MDA3'!M21)),J21),0) -> 0 | O21: =IF(AND(COUNTRY_INFO!I21>0,COUNTRY_INFO!I21<4), IF(M21/J21*100<>0, IF(M21/J21*100>100,100,M21/J21*100), "-"),0) -> 0 | P21: =COUNTRY_INFO!N21 -> 165758 | S21: =SUM(MAX('MDA2'!J21, 'T1'!L21, MAX(T3_R1!K21, T3_R2!K21)), MAX('MDA1'!K21, 'MDA2'!K21, 'T1'!M21, MAX(T3_R1!L21, T3_R2!L21)), MAX('MDA1'!L21, 'MDA2'!L21, 'T1'!N21, MAX(T3_R1!M21, T3_R2!M21))) -> 171366 | T21: =IF(AND(COUNTRY_INFO!J21>1,COUNTRY_INFO!J21<4),IF(COUNTRY_INFO!E21>MAX('MDA2'!J21,'T1'!L21,MAX(T3_R1!K21,T3_R2!K21)),MAX('MDA2'!J21,'T1'!L21,MAX(T3_R1!K21,T3_R2!K21)),COUNTRY_INFO!E21),0) -> 46117 | U21: =IF(AND(COUNTRY_INFO!J21>1,COUNTRY_INFO!J21<4), IF(T21/COUNTRY_INFO!E21*100<>0, IF(T21/COUNTRY_INFO!E21*100>100,100,T21/COUNTRY_INFO!E21*100), "-"),0) -> 96.30580963 | V21: =IF(AND(COUNTRY_INFO!J21>1,COUNTRY_INFO!J21<4),IF(COUNTRY_INFO!F21>MAX('MDA1'!K21,'MDA2'!K21,'T1'!M21,MAX(T3_R1!L21,T3_R2!L21)),MAX('MDA1'!K21,'MDA2'!K21,'T1'!M21,MAX(T3_R1!L21,T3_R2!L21)),COUNTRY_INFO!F21),0) -> 117872 | W21: =IF(AND(COUNTRY_INFO!J21>1,COUNTRY_INFO!J21<4), IF(V21/COUNTRY_INFO!F21*100<>0, IF(V21/COUNTRY_INFO!F21*100>100,100,V21/COUNTRY_INFO!F21*100), "-"),0) -> 100 | X21: 163989 | Y21: =IF(AND(COUNTRY_INFO!J21>1,COUNTRY_INFO!J21<4), IF(S21/P21*100<>0, IF(X21/P21*100>100,100,X21/P21*100), "-"),0) -> 98.93278152 | Z21: =COUNTRY_INFO!O21 -> 0 | AC21: =MAX('T1'!L21,'T2'!J21)+MAX('T1'!M21,'T2'!K21)+MAX('T1'!N21,'T2'!L21) -> 0 | AD21: =IF(COUNTRY_INFO!K21=1,IF(COUNTRY_INFO!F21*0.33>MAX('T1'!M21,'T2'!K21),MAX('T1'!M21,'T2'!K21),COUNTRY_INFO!F21*0.33),IF(COUNTRY_INFO!K21=2,IF(COUNTRY_INFO!F21*0.5>MAX('T1'!M21,'T2'!K21),MAX('T1'!M21,'T2'!K21),COUNTRY_INFO!F21*0.5),IF(COUNTRY_INFO!K21=3,IF(COUNTRY_INFO!F21>MAX('T1'!M21,'T2'!K21),MAX('T1'!M21,'T2'!K21),COUNTRY_INFO!F21),0))) -> 0 | AE21: =IF(AND(COUNTRY_INFO!K21>0,COUNTRY_INFO!K21<4),IF(Z21>0,IF(COUNTRY_INFO!K21=1, AD21/(COUNTRY_INFO!F21*0.33)*100, IF(COUNTRY_INFO!K21=2, AD21/(COUNTRY_INFO!F21*0.5)*100, IF(COUNTRY_INFO!K21=3, AD21/COUNTRY_INFO!F21*100))),"-"),0) -> - | AF21: =IF(COUNTRY_INFO!K21=2,IF(COUNTRY_INFO!G21*0.2>MAX('T1'!N21,'T2'!L21),MAX('T1'!N21,'T2'!L21),COUNTRY_INFO!G21*0.2),IF(COUNTRY_INFO!K21=3,IF(COUNTRY_INFO!G21>MAX('T1'!N21,'T2'!L21),MAX('T1'!N21,'T2'!L21),COUNTRY_INFO!G21),0)) -> 0 | AG21: =IF(AND(COUNTRY_INFO!K21>0,COUNTRY_INFO!K21<4),IF(Z21>0,IF(COUNTRY_INFO!K21=1, 0, IF(COUNTRY_INFO!K21=2, AF21/(COUNTRY_INFO!G21*0.2)*100, IF(COUNTRY_INFO!K21=3, AF21/COUNTRY_INFO!G21*100))),"-"),0) -> - | AH21: 0 | AI21: =IF(AND(COUNTRY_INFO!K21>0,COUNTRY_INFO!K21<4), IF(AC21/Z21*100<>0, IF(AH21/Z21*100>100,100,AH21/Z21*100), "-"),0) ->  | AK21: =IF(AND(D21<>0, D21<>"Unknown",D21<>"Stopped",D21<>"Not required"),D21/COUNTRY_INFO!D21, 0) -> 0 | AL21: =IF(AND(J21<>0,J21<>"Unknown",J21<>"Stopped",J21<>"Not required"),J21/COUNTRY_INFO!D21, 0) -> 0 | AM21: =IF(AND(P21<>0,P21<>"Unknown",P21<>"Not required"),P21/(COUNTRY_INFO!E21+COUNTRY_INFO!F21), 0) -> 1 | AN21: =IF(AND(Z21<>0,Z21<>"Unknown",Z21<>"Not required"),IF(COUNTRY_INFO!K21=1,1,IF(COUNTRY_INFO!K21=2,0.5*COUNTRY_INFO!F21/(0.5*COUNTRY_INFO!F21+0.2*COUNTRY_INFO!G21),IF(COUNTRY_INFO!K21=3,COUNTRY_INFO!F21/(COUNTRY_INFO!F21+COUNTRY_INFO!G21)))),0) -> 0 | AO21: =IF(AND(Z21<>0,Z21<>"Unknown",Z21<>"Not required"),IF(COUNTRY_INFO!K21=1,0,IF(COUNTRY_INFO!K21=2,0.2*COUNTRY_INFO!G21/(0.5*COUNTRY_INFO!F21+0.2*COUNTRY_INFO!G21),IF(COUNTRY_INFO!K21=3,COUNTRY_INFO!G21/(COUNTRY_INFO!F21+COUNTRY_INFO!G21)))),0) -> 0 | AP21: =MAX(COUNTRY_INFO!D21*AK21*PROFILE!$G$7,COUNTRY_INFO!D21*AL21*PROFILE!$G$7) -> 0 | AQ21: =MAX(COUNTRY_INFO!D21*AK21*PROFILE!$G$8,COUNTRY_INFO!D21*AL21*PROFILE!$G$8,COUNTRY_INFO!D21*AM21*PROFILE!$G$8) -> 47885.58558 | AR21: =MAX(COUNTRY_INFO!D21*AK21*PROFILE!$G$9,COUNTRY_INFO!D21*AL21*PROFILE!$G$9,COUNTRY_INFO!D21*AM21*PROFILE!$G$9,IF(AND(DISTRICT!Z21<>"Unknown",Z21<>"Not required"),COUNTRY_INFO!O21*DISTRICT!AN21,0)) -> 117872.0857 | AS21: =MAX(COUNTRY_INFO!D21*AK21*PROFILE!$G$10,COUNTRY_INFO!D21*AL21*PROFILE!$G$10,IF(AND(DISTRICT!Z21<>"Unknown",Z21<>"Not required"),COUNTRY_INFO!O21*DISTRICT!AO21,0)) -> 0 | AT21: 165757.6712 | AU21: Y | AV21: =MAX('MDA2'!J21,'T1'!L21,'T2'!J21,T3_R1!K21,T3_R2!K21) -> 46117 | AW21: =MAX('MDA1'!K21,'MDA2'!K21,'MDA3'!I21,'MDA3'!L21,'T1'!M21,'T2'!K21,T3_R1!L21,T3_R2!L21) -> 125249 | AX21: =MAX('MDA1'!L21,'MDA2'!L21,'MDA3'!J21,'MDA3'!M21,'T1'!N21,'T2'!L21,T3_R1!M21,T3_R2!M21) -> 0 | AY21: 171366 | AZ21: =MAX('MDA2'!J21,T21) -> 46117 | BA21: =MAX('MDA1'!K21,'MDA2'!K21,'MDA3'!I21,'MDA3'!L21,V21,AD21) -> 117872 | BB21: =MAX('MDA1'!L21,'MDA2'!L21,'MDA3'!J21,'MDA3'!M21,AF21) -> 0 | BC21: 163989 | BD21: 98.93297774
A22: =IF(COUNTRY_INFO!A22=0," ",COUNTRY_INFO!A22) -> Rwanda | B22: =IF(COUNTRY_INFO!B22=0," ",COUNTRY_INFO!B22) -> South | C22: =IF(COUNTRY_INFO!C22=0," ",COUNTRY_INFO!C22) -> Muhanga | D22: =COUNTRY_INFO!L22 -> Not required | G22: =MAX('MDA1'!M22,'MDA2'!M22) -> 0 | H22: =IF(AND(COUNTRY_INFO!H22>0,COUNTRY_INFO!H22<4),IF(D22>MAX('MDA1'!M22,'MDA2'!M22),MAX('MDA1'!M22,'MDA2'!M22),D22),0) -> 0 | I22: =IF(AND(COUNTRY_INFO!H22>0,COUNTRY_INFO!H22<4), IF(G22/D22*100<>0, IF(G22/D22*100>100,100,G22/D22*100), "-"),0) -> 0 | J22: =COUNTRY_INFO!M22 -> Not required | M22: =MAX('MDA1'!M22,MAX('MDA3'!I22,'MDA3'!L22)+MAX('MDA3'!J22,'MDA3'!M22)) -> 0 | N22: =IF(AND(COUNTRY_INFO!I22>0,COUNTRY_INFO!I22<4),IF(J22>MAX('MDA1'!M22,MAX('MDA3'!I22,'MDA3'!L22)+MAX('MDA3'!J22,'MDA3'!M22)),MAX('MDA1'!M22,MAX('MDA3'!I22,'MDA3'!L22)+MAX('MDA3'!J22,'MDA3'!M22)),J22),0) -> 0 | O22: =IF(AND(COUNTRY_INFO!I22>0,COUNTRY_INFO!I22<4), IF(M22/J22*100<>0, IF(M22/J22*100>100,100,M22/J22*100), "-"),0) -> 0 | P22: =COUNTRY_INFO!N22 -> 138347 | S22: =SUM(MAX('MDA2'!J22, 'T1'!L22, MAX(T3_R1!K22, T3_R2!K22)), MAX('MDA1'!K22, 'MDA2'!K22, 'T1'!M22, MAX(T3_R1!L22, T3_R2!L22)), MAX('MDA1'!L22, 'MDA2'!L22, 'T1'!N22, MAX(T3_R1!M22, T3_R2!M22))) -> 140697 | T22: =IF(AND(COUNTRY_INFO!J22>1,COUNTRY_INFO!J22<4),IF(COUNTRY_INFO!E22>MAX('MDA2'!J22,'T1'!L22,MAX(T3_R1!K22,T3_R2!K22)),MAX('MDA2'!J22,'T1'!L22,MAX(T3_R1!K22,T3_R2!K22)),COUNTRY_INFO!E22),0) -> 39967 | U22: =IF(AND(COUNTRY_INFO!J22>1,COUNTRY_INFO!J22<4), IF(T22/COUNTRY_INFO!E22*100<>0, IF(T22/COUNTRY_INFO!E22*100>100,100,T22/COUNTRY_INFO!E22*100), "-"),0) -> 100 | V22: =IF(AND(COUNTRY_INFO!J22>1,COUNTRY_INFO!J22<4),IF(COUNTRY_INFO!F22>MAX('MDA1'!K22,'MDA2'!K22,'T1'!M22,MAX(T3_R1!L22,T3_R2!L22)),MAX('MDA1'!K22,'MDA2'!K22,'T1'!M22,MAX(T3_R1!L22,T3_R2!L22)),COUNTRY_INFO!F22),0) -> 98380 | W22: =IF(AND(COUNTRY_INFO!J22>1,COUNTRY_INFO!J22<4), IF(V22/COUNTRY_INFO!F22*100<>0, IF(V22/COUNTRY_INFO!F22*100>100,100,V22/COUNTRY_INFO!F22*100), "-"),0) -> 100 | X22: 138347 | Y22: =IF(AND(COUNTRY_INFO!J22>1,COUNTRY_INFO!J22<4), IF(S22/P22*100<>0, IF(X22/P22*100>100,100,X22/P22*100), "-"),0) -> 100 | Z22: =COUNTRY_INFO!O22 -> 21276 | AC22: =MAX('T1'!L22,'T2'!J22)+MAX('T1'!M22,'T2'!K22)+MAX('T1'!N22,'T2'!L22) -> 28207 | AD22: =IF(COUNTRY_INFO!K22=1,IF(COUNTRY_INFO!F22*0.33>MAX('T1'!M22,'T2'!K22),MAX('T1'!M22,'T2'!K22),COUNTRY_INFO!F22*0.33),IF(COUNTRY_INFO!K22=2,IF(COUNTRY_INFO!F22*0.5>MAX('T1'!M22,'T2'!K22),MAX('T1'!M22,'T2'!K22),COUNTRY_INFO!F22*0.5),IF(COUNTRY_INFO!K22=3,IF(COUNTRY_INFO!F22>MAX('T1'!M22,'T2'!K22),MAX('T1'!M22,'T2'!K22),COUNTRY_INFO!F22),0))) -> 28207 | AE22: =IF(AND(COUNTRY_INFO!K22>0,COUNTRY_INFO!K22<4),IF(Z22>0,IF(COUNTRY_INFO!K22=1, AD22/(COUNTRY_INFO!F22*0.33)*100, IF(COUNTRY_INFO!K22=2, AD22/(COUNTRY_INFO!F22*0.5)*100, IF(COUNTRY_INFO!K22=3, AD22/COUNTRY_INFO!F22*100))),"-"),0) -> 57.34295589 | AF22: =IF(COUNTRY_INFO!K22=2,IF(COUNTRY_INFO!G22*0.2>MAX('T1'!N22,'T2'!L22),MAX('T1'!N22,'T2'!L22),COUNTRY_INFO!G22*0.2),IF(COUNTRY_INFO!K22=3,IF(COUNTRY_INFO!G22>MAX('T1'!N22,'T2'!L22),MAX('T1'!N22,'T2'!L22),COUNTRY_INFO!G22),0)) -> 0 | AG22: =IF(AND(COUNTRY_INFO!K22>0,COUNTRY_INFO!K22<4),IF(Z22>0,IF(COUNTRY_INFO!K22=1, 0, IF(COUNTRY_INFO!K22=2, AF22/(COUNTRY_INFO!G22*0.2)*100, IF(COUNTRY_INFO!K22=3, AF22/COUNTRY_INFO!G22*100))),"-"),0) -> 0 | AH22: 28207 | AI22: =IF(AND(COUNTRY_INFO!K22>0,COUNTRY_INFO!K22<4), IF(AC22/Z22*100<>0, IF(AH22/Z22*100>100,100,AH22/Z22*100), "-"),0) -> 100 | AK22: =IF(AND(D22<>0, D22<>"Unknown",D22<>"Stopped",D22<>"Not required"),D22/COUNTRY_INFO!D22, 0) -> 0 | AL22: =IF(AND(J22<>0,J22<>"Unknown",J22<>"Stopped",J22<>"Not required"),J22/COUNTRY_INFO!D22, 0) -> 0 | AM22: =IF(AND(P22<>0,P22<>"Unknown",P22<>"Not required"),P22/(COUNTRY_INFO!E22+COUNTRY_INFO!F22), 0) -> 1 | AN22: =IF(AND(Z22<>0,Z22<>"Unknown",Z22<>"Not required"),IF(COUNTRY_INFO!K22=1,1,IF(COUNTRY_INFO!K22=2,0.5*COUNTRY_INFO!F22/(0.5*COUNTRY_INFO!F22+0.2*COUNTRY_INFO!G22),IF(COUNTRY_INFO!K22=3,COUNTRY_INFO!F22/(COUNTRY_INFO!F22+COUNTRY_INFO!G22)))),0) -> 0.5598756186 | AO22: =IF(AND(Z22<>0,Z22<>"Unknown",Z22<>"Not required"),IF(COUNTRY_INFO!K22=1,0,IF(COUNTRY_INFO!K22=2,0.2*COUNTRY_INFO!G22/(0.5*COUNTRY_INFO!F22+0.2*COUNTRY_INFO!G22),IF(COUNTRY_INFO!K22=3,COUNTRY_INFO!G22/(COUNTRY_INFO!F22+COUNTRY_INFO!G22)))),0) -> 0.4401243814 | AP22: =MAX(COUNTRY_INFO!D22*AK22*PROFILE!$G$7,COUNTRY_INFO!D22*AL22*PROFILE!$G$7) -> 0 | AQ22: =MAX(COUNTRY_INFO!D22*AK22*PROFILE!$G$8,COUNTRY_INFO!D22*AL22*PROFILE!$G$8,COUNTRY_INFO!D22*AM22*PROFILE!$G$8) -> 39967.01573 | AR22: =MAX(COUNTRY_INFO!D22*AK22*PROFILE!$G$9,COUNTRY_INFO!D22*AL22*PROFILE!$G$9,COUNTRY_INFO!D22*AM22*PROFILE!$G$9,IF(AND(DISTRICT!Z22<>"Unknown",Z22<>"Not required"),COUNTRY_INFO!O22*DISTRICT!AN22,0)) -> 98380.24208 | AS22: =MAX(COUNTRY_INFO!D22*AK22*PROFILE!$G$10,COUNTRY_INFO!D22*AL22*PROFILE!$G$10,IF(AND(DISTRICT!Z22<>"Unknown",Z22<>"Not required"),COUNTRY_INFO!O22*DISTRICT!AO22,0)) -> 9364.086339 | AT22: 147711.3442 | AU22: Y | AV22: =MAX('MDA2'!J22,'T1'!L22,'T2'!J22,T3_R1!K22,T3_R2!K22) -> 40083 | AW22: =MAX('MDA1'!K22,'MDA2'!K22,'MDA3'!I22,'MDA3'!L22,'T1'!M22,'T2'!K22,T3_R1!L22,T3_R2!L22) -> 100614 | AX22: =MAX('MDA1'!L22,'MDA2'!L22,'MDA3'!J22,'MDA3'!M22,'T1'!N22,'T2'!L22,T3_R1!M22,T3_R2!M22) -> 0 | AY22: 140697 | AZ22: =MAX('MDA2'!J22,T22) -> 39967 | BA22: =MAX('MDA1'!K22,'MDA2'!K22,'MDA3'!I22,'MDA3'!L22,V22,AD22) -> 98380 | BB22: =MAX('MDA1'!L22,'MDA2'!L22,'MDA3'!J22,'MDA3'!M22,AF22) -> 0 | BC22: 138347 | BD22: 93.66037578
A23: =IF(COUNTRY_INFO!A23=0," ",COUNTRY_INFO!A23) -> Rwanda | B23: =IF(COUNTRY_INFO!B23=0," ",COUNTRY_INFO!B23) -> North | C23: =IF(COUNTRY_INFO!C23=0," ",COUNTRY_INFO!C23) -> Musanze | D23: =COUNTRY_INFO!L23 -> Not required | G23: =MAX('MDA1'!M23,'MDA2'!M23) -> 0 | H23: =IF(AND(COUNTRY_INFO!H23>0,COUNTRY_INFO!H23<4),IF(D23>MAX('MDA1'!M23,'MDA2'!M23),MAX('MDA1'!M23,'MDA2'!M23),D23),0) -> 0 | I23: =IF(AND(COUNTRY_INFO!H23>0,COUNTRY_INFO!H23<4), IF(G23/D23*100<>0, IF(G23/D23*100>100,100,G23/D23*100), "-"),0) -> 0 | J23: =COUNTRY_INFO!M23 -> Not required | M23: =MAX('MDA1'!M23,MAX('MDA3'!I23,'MDA3'!L23)+MAX('MDA3'!J23,'MDA3'!M23)) -> 0 | N23: =IF(AND(COUNTRY_INFO!I23>0,COUNTRY_INFO!I23<4),IF(J23>MAX('MDA1'!M23,MAX('MDA3'!I23,'MDA3'!L23)+MAX('MDA3'!J23,'MDA3'!M23)),MAX('MDA1'!M23,MAX('MDA3'!I23,'MDA3'!L23)+MAX('MDA3'!J23,'MDA3'!M23)),J23),0) -> 0 | O23: =IF(AND(COUNTRY_INFO!I23>0,COUNTRY_INFO!I23<4), IF(M23/J23*100<>0, IF(M23/J23*100>100,100,M23/J23*100), "-"),0) -> 0 | P23: =COUNTRY_INFO!N23 -> 164613 | S23: =SUM(MAX('MDA2'!J23, 'T1'!L23, MAX(T3_R1!K23, T3_R2!K23)), MAX('MDA1'!K23, 'MDA2'!K23, 'T1'!M23, MAX(T3_R1!L23, T3_R2!L23)), MAX('MDA1'!L23, 'MDA2'!L23, 'T1'!N23, MAX(T3_R1!M23, T3_R2!M23))) -> 186477 | T23: =IF(AND(COUNTRY_INFO!J23>1,COUNTRY_INFO!J23<4),IF(COUNTRY_INFO!E23>MAX('MDA2'!J23,'T1'!L23,MAX(T3_R1!K23,T3_R2!K23)),MAX('MDA2'!J23,'T1'!L23,MAX(T3_R1!K23,T3_R2!K23)),COUNTRY_INFO!E23),0) -> 47555 | U23: =IF(AND(COUNTRY_INFO!J23>1,COUNTRY_INFO!J23<4), IF(T23/COUNTRY_INFO!E23*100<>0, IF(T23/COUNTRY_INFO!E23*100>100,100,T23/COUNTRY_INFO!E23*100), "-"),0) -> 100 | V23: =IF(AND(COUNTRY_INFO!J23>1,COUNTRY_INFO!J23<4),IF(COUNTRY_INFO!F23>MAX('MDA1'!K23,'MDA2'!K23,'T1'!M23,MAX(T3_R1!L23,T3_R2!L23)),MAX('MDA1'!K23,'MDA2'!K23,'T1'!M23,MAX(T3_R1!L23,T3_R2!L23)),COUNTRY_INFO!F23),0) -> 117058 | W23: =IF(AND(COUNTRY_INFO!J23>1,COUNTRY_INFO!J23<4), IF(V23/COUNTRY_INFO!F23*100<>0, IF(V23/COUNTRY_INFO!F23*100>100,100,V23/COUNTRY_INFO!F23*100), "-"),0) -> 100 | X23: 164613 | Y23: =IF(AND(COUNTRY_INFO!J23>1,COUNTRY_INFO!J23<4), IF(S23/P23*100<>0, IF(X23/P23*100>100,100,X23/P23*100), "-"),0) -> 100 | Z23: =COUNTRY_INFO!O23 -> 18620 | AC23: =MAX('T1'!L23,'T2'!J23)+MAX('T1'!M23,'T2'!K23)+MAX('T1'!N23,'T2'!L23) -> 18000 | AD23: =IF(COUNTRY_INFO!K23=1,IF(COUNTRY_INFO!F23*0.33>MAX('T1'!M23,'T2'!K23),MAX('T1'!M23,'T2'!K23),COUNTRY_INFO!F23*0.33),IF(COUNTRY_INFO!K23=2,IF(COUNTRY_INFO!F23*0.5>MAX('T1'!M23,'T2'!K23),MAX('T1'!M23,'T2'!K23),COUNTRY_INFO!F23*0.5),IF(COUNTRY_INFO!K23=3,IF(COUNTRY_INFO!F23>MAX('T1'!M23,'T2'!K23),MAX('T1'!M23,'T2'!K23),COUNTRY_INFO!F23),0))) -> 18000 | AE23: =IF(AND(COUNTRY_INFO!K23>0,COUNTRY_INFO!K23<4),IF(Z23>0,IF(COUNTRY_INFO!K23=1, AD23/(COUNTRY_INFO!F23*0.33)*100, IF(COUNTRY_INFO!K23=2, AD23/(COUNTRY_INFO!F23*0.5)*100, IF(COUNTRY_INFO!K23=3, AD23/COUNTRY_INFO!F23*100))),"-"),0) -> 30.7539852 | AF23: =IF(COUNTRY_INFO!K23=2,IF(COUNTRY_INFO!G23*0.2>MAX('T1'!N23,'T2'!L23),MAX('T1'!N23,'T2'!L23),COUNTRY_INFO!G23*0.2),IF(COUNTRY_INFO!K23=3,IF(COUNTRY_INFO!G23>MAX('T1'!N23,'T2'!L23),MAX('T1'!N23,'T2'!L23),COUNTRY_INFO!G23),0)) -> 0 | AG23: =IF(AND(COUNTRY_INFO!K23>0,COUNTRY_INFO!K23<4),IF(Z23>0,IF(COUNTRY_INFO!K23=1, 0, IF(COUNTRY_INFO!K23=2, AF23/(COUNTRY_INFO!G23*0.2)*100, IF(COUNTRY_INFO!K23=3, AF23/COUNTRY_INFO!G23*100))),"-"),0) -> 0 | AH23: 18000 | AI23: =IF(AND(COUNTRY_INFO!K23>0,COUNTRY_INFO!K23<4), IF(AC23/Z23*100<>0, IF(AH23/Z23*100>100,100,AH23/Z23*100), "-"),0) -> 96.67024705 | AK23: =IF(AND(D23<>0, D23<>"Unknown",D23<>"Stopped",D23<>"Not required"),D23/COUNTRY_INFO!D23, 0) -> 0 | AL23: =IF(AND(J23<>0,J23<>"Unknown",J23<>"Stopped",J23<>"Not required"),J23/COUNTRY_INFO!D23, 0) -> 0 | AM23: =IF(AND(P23<>0,P23<>"Unknown",P23<>"Not required"),P23/(COUNTRY_INFO!E23+COUNTRY_INFO!F23), 0) -> 1 | AN23: =IF(AND(Z23<>0,Z23<>"Unknown",Z23<>"Not required"),IF(COUNTRY_INFO!K23=1,1,IF(COUNTRY_INFO!K23=2,0.5*COUNTRY_INFO!F23/(0.5*COUNTRY_INFO!F23+0.2*COUNTRY_INFO!G23),IF(COUNTRY_INFO!K23=3,COUNTRY_INFO!F23/(COUNTRY_INFO!F23+COUNTRY_INFO!G23)))),0) -> 0.5598761039 | AO23: =IF(AND(Z23<>0,Z23<>"Unknown",Z23<>"Not required"),IF(COUNTRY_INFO!K23=1,0,IF(COUNTRY_INFO!K23=2,0.2*COUNTRY_INFO!G23/(0.5*COUNTRY_INFO!F23+0.2*COUNTRY_INFO!G23),IF(COUNTRY_INFO!K23=3,COUNTRY_INFO!G23/(COUNTRY_INFO!F23+COUNTRY_INFO!G23)))),0) -> 0.4401238961 | AP23: =MAX(COUNTRY_INFO!D23*AK23*PROFILE!$G$7,COUNTRY_INFO!D23*AL23*PROFILE!$G$7) -> 0 | AQ23: =MAX(COUNTRY_INFO!D23*AK23*PROFILE!$G$8,COUNTRY_INFO!D23*AL23*PROFILE!$G$8,COUNTRY_INFO!D23*AM23*PROFILE!$G$8) -> 47554.70917 | AR23: =MAX(COUNTRY_INFO!D23*AK23*PROFILE!$G$9,COUNTRY_INFO!D23*AL23*PROFILE!$G$9,COUNTRY_INFO!D23*AM23*PROFILE!$G$9,IF(AND(DISTRICT!Z23<>"Unknown",Z23<>"Not required"),COUNTRY_INFO!O23*DISTRICT!AN23,0)) -> 117057.6215 | AS23: =MAX(COUNTRY_INFO!D23*AK23*PROFILE!$G$10,COUNTRY_INFO!D23*AL23*PROFILE!$G$10,IF(AND(DISTRICT!Z23<>"Unknown",Z23<>"Not required"),COUNTRY_INFO!O23*DISTRICT!AO23,0)) -> 8195.106946 | AT23: 172807.4376 | AU23: Y | AV23: =MAX('MDA2'!J23,'T1'!L23,'T2'!J23,T3_R1!K23,T3_R2!K23) -> 51698 | AW23: =MAX('MDA1'!K23,'MDA2'!K23,'MDA3'!I23,'MDA3'!L23,'T1'!M23,'T2'!K23,T3_R1!L23,T3_R2!L23) -> 134779 | AX23: =MAX('MDA1'!L23,'MDA2'!L23,'MDA3'!J23,'MDA3'!M23,'T1'!N23,'T2'!L23,T3_R1!M23,T3_R2!M23) -> 0 | AY23: 186477 | AZ23: =MAX('MDA2'!J23,T23) -> 47555 | BA23: =MAX('MDA1'!K23,'MDA2'!K23,'MDA3'!I23,'MDA3'!L23,V23,AD23) -> 117058 | BB23: =MAX('MDA1'!L23,'MDA2'!L23,'MDA3'!J23,'MDA3'!M23,AF23) -> 0 | BC23: 164613 | BD23: 95.25805269
A24: =IF(COUNTRY_INFO!A24=0," ",COUNTRY_INFO!A24) -> Rwanda | B24: =IF(COUNTRY_INFO!B24=0," ",COUNTRY_INFO!B24) -> East | C24: =IF(COUNTRY_INFO!C24=0," ",COUNTRY_INFO!C24) -> Ngoma | D24: =COUNTRY_INFO!L24 -> Not required | G24: =MAX('MDA1'!M24,'MDA2'!M24) -> 0 | H24: =IF(AND(COUNTRY_INFO!H24>0,COUNTRY_INFO!H24<4),IF(D24>MAX('MDA1'!M24,'MDA2'!M24),MAX('MDA1'!M24,'MDA2'!M24),D24),0) -> 0 | I24: =IF(AND(COUNTRY_INFO!H24>0,COUNTRY_INFO!H24<4), IF(G24/D24*100<>0, IF(G24/D24*100>100,100,G24/D24*100), "-"),0) -> 0 | J24: =COUNTRY_INFO!M24 -> Not required | M24: =MAX('MDA1'!M24,MAX('MDA3'!I24,'MDA3'!L24)+MAX('MDA3'!J24,'MDA3'!M24)) -> 0 | N24: =IF(AND(COUNTRY_INFO!I24>0,COUNTRY_INFO!I24<4),IF(J24>MAX('MDA1'!M24,MAX('MDA3'!I24,'MDA3'!L24)+MAX('MDA3'!J24,'MDA3'!M24)),MAX('MDA1'!M24,MAX('MDA3'!I24,'MDA3'!L24)+MAX('MDA3'!J24,'MDA3'!M24)),J24),0) -> 0 | O24: =IF(AND(COUNTRY_INFO!I24>0,COUNTRY_INFO!I24<4), IF(M24/J24*100<>0, IF(M24/J24*100>100,100,M24/J24*100), "-"),0) -> 0 | P24: =COUNTRY_INFO!N24 -> 162529 | S24: =SUM(MAX('MDA2'!J24, 'T1'!L24, MAX(T3_R1!K24, T3_R2!K24)), MAX('MDA1'!K24, 'MDA2'!K24, 'T1'!M24, MAX(T3_R1!L24, T3_R2!L24)), MAX('MDA1'!L24, 'MDA2'!L24, 'T1'!N24, MAX(T3_R1!M24, T3_R2!M24))) -> 159230 | T24: =IF(AND(COUNTRY_INFO!J24>1,COUNTRY_INFO!J24<4),IF(COUNTRY_INFO!E24>MAX('MDA2'!J24,'T1'!L24,MAX(T3_R1!K24,T3_R2!K24)),MAX('MDA2'!J24,'T1'!L24,MAX(T3_R1!K24,T3_R2!K24)),COUNTRY_INFO!E24),0) -> 46052 | U24: =IF(AND(COUNTRY_INFO!J24>1,COUNTRY_INFO!J24<4), IF(T24/COUNTRY_INFO!E24*100<>0, IF(T24/COUNTRY_INFO!E24*100>100,100,T24/COUNTRY_INFO!E24*100), "-"),0) -> 98.08105978 | V24: =IF(AND(COUNTRY_INFO!J24>1,COUNTRY_INFO!J24<4),IF(COUNTRY_INFO!F24>MAX('MDA1'!K24,'MDA2'!K24,'T1'!M24,MAX(T3_R1!L24,T3_R2!L24)),MAX('MDA1'!K24,'MDA2'!K24,'T1'!M24,MAX(T3_R1!L24,T3_R2!L24)),COUNTRY_INFO!F24),0) -> 113178 | W24: =IF(AND(COUNTRY_INFO!J24>1,COUNTRY_INFO!J24<4), IF(V24/COUNTRY_INFO!F24*100<>0, IF(V24/COUNTRY_INFO!F24*100>100,100,V24/COUNTRY_INFO!F24*100), "-"),0) -> 97.92517478 | X24: 159230 | Y24: =IF(AND(COUNTRY_INFO!J24>1,COUNTRY_INFO!J24<4), IF(S24/P24*100<>0, IF(X24/P24*100>100,100,X24/P24*100), "-"),0) -> 97.97020839 | Z24: =COUNTRY_INFO!O24 -> 37982 | AC24: =MAX('T1'!L24,'T2'!J24)+MAX('T1'!M24,'T2'!K24)+MAX('T1'!N24,'T2'!L24) -> 38023 | AD24: =IF(COUNTRY_INFO!K24=1,IF(COUNTRY_INFO!F24*0.33>MAX('T1'!M24,'T2'!K24),MAX('T1'!M24,'T2'!K24),COUNTRY_INFO!F24*0.33),IF(COUNTRY_INFO!K24=2,IF(COUNTRY_INFO!F24*0.5>MAX('T1'!M24,'T2'!K24),MAX('T1'!M24,'T2'!K24),COUNTRY_INFO!F24*0.5),IF(COUNTRY_INFO!K24=3,IF(COUNTRY_INFO!F24>MAX('T1'!M24,'T2'!K24),MAX('T1'!M24,'T2'!K24),COUNTRY_INFO!F24),0))) -> 38023 | AE24: =IF(AND(COUNTRY_INFO!K24>0,COUNTRY_INFO!K24<4),IF(Z24>0,IF(COUNTRY_INFO!K24=1, AD24/(COUNTRY_INFO!F24*0.33)*100, IF(COUNTRY_INFO!K24=2, AD24/(COUNTRY_INFO!F24*0.5)*100, IF(COUNTRY_INFO!K24=3, AD24/COUNTRY_INFO!F24*100))),"-"),0) -> 65.79739738 | AF24: =IF(COUNTRY_INFO!K24=2,IF(COUNTRY_INFO!G24*0.2>MAX('T1'!N24,'T2'!L24),MAX('T1'!N24,'T2'!L24),COUNTRY_INFO!G24*0.2),IF(COUNTRY_INFO!K24=3,IF(COUNTRY_INFO!G24>MAX('T1'!N24,'T2'!L24),MAX('T1'!N24,'T2'!L24),COUNTRY_INFO!G24),0)) -> 0 | AG24: =IF(AND(COUNTRY_INFO!K24>0,COUNTRY_INFO!K24<4),IF(Z24>0,IF(COUNTRY_INFO!K24=1, 0, IF(COUNTRY_INFO!K24=2, AF24/(COUNTRY_INFO!G24*0.2)*100, IF(COUNTRY_INFO!K24=3, AF24/COUNTRY_INFO!G24*100))),"-"),0) -> 0 | AH24: 38023 | AI24: =IF(AND(COUNTRY_INFO!K24>0,COUNTRY_INFO!K24<4), IF(AC24/Z24*100<>0, IF(AH24/Z24*100>100,100,AH24/Z24*100), "-"),0) -> 100 | AK24: =IF(AND(D24<>0, D24<>"Unknown",D24<>"Stopped",D24<>"Not required"),D24/COUNTRY_INFO!D24, 0) -> 0 | AL24: =IF(AND(J24<>0,J24<>"Unknown",J24<>"Stopped",J24<>"Not required"),J24/COUNTRY_INFO!D24, 0) -> 0 | AM24: =IF(AND(P24<>0,P24<>"Unknown",P24<>"Not required"),P24/(COUNTRY_INFO!E24+COUNTRY_INFO!F24), 0) -> 1 | AN24: =IF(AND(Z24<>0,Z24<>"Unknown",Z24<>"Not required"),IF(COUNTRY_INFO!K24=1,1,IF(COUNTRY_INFO!K24=2,0.5*COUNTRY_INFO!F24/(0.5*COUNTRY_INFO!F24+0.2*COUNTRY_INFO!G24),IF(COUNTRY_INFO!K24=3,COUNTRY_INFO!F24/(COUNTRY_INFO!F24+COUNTRY_INFO!G24)))),0) -> 0.5598744381 | AO24: =IF(AND(Z24<>0,Z24<>"Unknown",Z24<>"Not required"),IF(COUNTRY_INFO!K24=1,0,IF(COUNTRY_INFO!K24=2,0.2*COUNTRY_INFO!G24/(0.5*COUNTRY_INFO!F24+0.2*COUNTRY_INFO!G24),IF(COUNTRY_INFO!K24=3,COUNTRY_INFO!G24/(COUNTRY_INFO!F24+COUNTRY_INFO!G24)))),0) -> 0.4401255619 | AP24: =MAX(COUNTRY_INFO!D24*AK24*PROFILE!$G$7,COUNTRY_INFO!D24*AL24*PROFILE!$G$7) -> 0 | AQ24: =MAX(COUNTRY_INFO!D24*AK24*PROFILE!$G$8,COUNTRY_INFO!D24*AL24*PROFILE!$G$8,COUNTRY_INFO!D24*AM24*PROFILE!$G$8) -> 46952.97742 | AR24: =MAX(COUNTRY_INFO!D24*AK24*PROFILE!$G$9,COUNTRY_INFO!D24*AL24*PROFILE!$G$9,COUNTRY_INFO!D24*AM24*PROFILE!$G$9,IF(AND(DISTRICT!Z24<>"Unknown",Z24<>"Not required"),COUNTRY_INFO!O24*DISTRICT!AN24,0)) -> 115576.4372 | AS24: =MAX(COUNTRY_INFO!D24*AK24*PROFILE!$G$10,COUNTRY_INFO!D24*AL24*PROFILE!$G$10,IF(AND(DISTRICT!Z24<>"Unknown",Z24<>"Not required"),COUNTRY_INFO!O24*DISTRICT!AO24,0)) -> 16716.84909 | AT24: 179246.2638 | AU24: Y | AV24: =MAX('MDA2'!J24,'T1'!L24,'T2'!J24,T3_R1!K24,T3_R2!K24) -> 46052 | AW24: =MAX('MDA1'!K24,'MDA2'!K24,'MDA3'!I24,'MDA3'!L24,'T1'!M24,'T2'!K24,T3_R1!L24,T3_R2!L24) -> 113178 | AX24: =MAX('MDA1'!L24,'MDA2'!L24,'MDA3'!J24,'MDA3'!M24,'T1'!N24,'T2'!L24,T3_R1!M24,T3_R2!M24) -> 0 | AY24: 159230 | AZ24: =MAX('MDA2'!J24,T24) -> 46052 | BA24: =MAX('MDA1'!K24,'MDA2'!K24,'MDA3'!I24,'MDA3'!L24,V24,AD24) -> 113178 | BB24: =MAX('MDA1'!L24,'MDA2'!L24,'MDA3'!J24,'MDA3'!M24,AF24) -> 0 | BC24: 159230 | BD24: 88.8330929
A25: =IF(COUNTRY_INFO!A25=0," ",COUNTRY_INFO!A25) -> Rwanda | B25: =IF(COUNTRY_INFO!B25=0," ",COUNTRY_INFO!B25) -> West | C25: =IF(COUNTRY_INFO!C25=0," ",COUNTRY_INFO!C25) -> Ngororero | D25: =COUNTRY_INFO!L25 -> Not required | G25: =MAX('MDA1'!M25,'MDA2'!M25) -> 0 | H25: =IF(AND(COUNTRY_INFO!H25>0,COUNTRY_INFO!H25<4),IF(D25>MAX('MDA1'!M25,'MDA2'!M25),MAX('MDA1'!M25,'MDA2'!M25),D25),0) -> 0 | I25: =IF(AND(COUNTRY_INFO!H25>0,COUNTRY_INFO!H25<4), IF(G25/D25*100<>0, IF(G25/D25*100>100,100,G25/D25*100), "-"),0) -> 0 | J25: =COUNTRY_INFO!M25 -> Not required | M25: =MAX('MDA1'!M25,MAX('MDA3'!I25,'MDA3'!L25)+MAX('MDA3'!J25,'MDA3'!M25)) -> 0 | N25: =IF(AND(COUNTRY_INFO!I25>0,COUNTRY_INFO!I25<4),IF(J25>MAX('MDA1'!M25,MAX('MDA3'!I25,'MDA3'!L25)+MAX('MDA3'!J25,'MDA3'!M25)),MAX('MDA1'!M25,MAX('MDA3'!I25,'MDA3'!L25)+MAX('MDA3'!J25,'MDA3'!M25)),J25),0) -> 0 | O25: =IF(AND(COUNTRY_INFO!I25>0,COUNTRY_INFO!I25<4), IF(M25/J25*100<>0, IF(M25/J25*100>100,100,M25/J25*100), "-"),0) -> 0 | P25: =COUNTRY_INFO!N25 -> 148423 | S25: =SUM(MAX('MDA2'!J25, 'T1'!L25, MAX(T3_R1!K25, T3_R2!K25)), MAX('MDA1'!K25, 'MDA2'!K25, 'T1'!M25, MAX(T3_R1!L25, T3_R2!L25)), MAX('MDA1'!L25, 'MDA2'!L25, 'T1'!N25, MAX(T3_R1!M25, T3_R2!M25))) -> 172645 | T25: =IF(AND(COUNTRY_INFO!J25>1,COUNTRY_INFO!J25<4),IF(COUNTRY_INFO!E25>MAX('MDA2'!J25,'T1'!L25,MAX(T3_R1!K25,T3_R2!K25)),MAX('MDA2'!J25,'T1'!L25,MAX(T3_R1!K25,T3_R2!K25)),COUNTRY_INFO!E25),0) -> 42878 | U25: =IF(AND(COUNTRY_INFO!J25>1,COUNTRY_INFO!J25<4), IF(T25/COUNTRY_INFO!E25*100<>0, IF(T25/COUNTRY_INFO!E25*100>100,100,T25/COUNTRY_INFO!E25*100), "-"),0) -> 100 | V25: =IF(AND(COUNTRY_INFO!J25>1,COUNTRY_INFO!J25<4),IF(COUNTRY_INFO!F25>MAX('MDA1'!K25,'MDA2'!K25,'T1'!M25,MAX(T3_R1!L25,T3_R2!L25)),MAX('MDA1'!K25,'MDA2'!K25,'T1'!M25,MAX(T3_R1!L25,T3_R2!L25)),COUNTRY_INFO!F25),0) -> 105545 | W25: =IF(AND(COUNTRY_INFO!J25>1,COUNTRY_INFO!J25<4), IF(V25/COUNTRY_INFO!F25*100<>0, IF(V25/COUNTRY_INFO!F25*100>100,100,V25/COUNTRY_INFO!F25*100), "-"),0) -> 100 | X25: 148423 | Y25: =IF(AND(COUNTRY_INFO!J25>1,COUNTRY_INFO!J25<4), IF(S25/P25*100<>0, IF(X25/P25*100>100,100,X25/P25*100), "-"),0) -> 100 | Z25: =COUNTRY_INFO!O25 -> 5561 | AC25: =MAX('T1'!L25,'T2'!J25)+MAX('T1'!M25,'T2'!K25)+MAX('T1'!N25,'T2'!L25) -> 6273 | AD25: =IF(COUNTRY_INFO!K25=1,IF(COUNTRY_INFO!F25*0.33>MAX('T1'!M25,'T2'!K25),MAX('T1'!M25,'T2'!K25),COUNTRY_INFO!F25*0.33),IF(COUNTRY_INFO!K25=2,IF(COUNTRY_INFO!F25*0.5>MAX('T1'!M25,'T2'!K25),MAX('T1'!M25,'T2'!K25),COUNTRY_INFO!F25*0.5),IF(COUNTRY_INFO!K25=3,IF(COUNTRY_INFO!F25>MAX('T1'!M25,'T2'!K25),MAX('T1'!M25,'T2'!K25),COUNTRY_INFO!F25),0))) -> 6273 | AE25: =IF(AND(COUNTRY_INFO!K25>0,COUNTRY_INFO!K25<4),IF(Z25>0,IF(COUNTRY_INFO!K25=1, AD25/(COUNTRY_INFO!F25*0.33)*100, IF(COUNTRY_INFO!K25=2, AD25/(COUNTRY_INFO!F25*0.5)*100, IF(COUNTRY_INFO!K25=3, AD25/COUNTRY_INFO!F25*100))),"-"),0) -> 11.8868729 | AF25: =IF(COUNTRY_INFO!K25=2,IF(COUNTRY_INFO!G25*0.2>MAX('T1'!N25,'T2'!L25),MAX('T1'!N25,'T2'!L25),COUNTRY_INFO!G25*0.2),IF(COUNTRY_INFO!K25=3,IF(COUNTRY_INFO!G25>MAX('T1'!N25,'T2'!L25),MAX('T1'!N25,'T2'!L25),COUNTRY_INFO!G25),0)) -> 0 | AG25: =IF(AND(COUNTRY_INFO!K25>0,COUNTRY_INFO!K25<4),IF(Z25>0,IF(COUNTRY_INFO!K25=1, 0, IF(COUNTRY_INFO!K25=2, AF25/(COUNTRY_INFO!G25*0.2)*100, IF(COUNTRY_INFO!K25=3, AF25/COUNTRY_INFO!G25*100))),"-"),0) -> 0 | AH25: 6273 | AI25: =IF(AND(COUNTRY_INFO!K25>0,COUNTRY_INFO!K25<4), IF(AC25/Z25*100<>0, IF(AH25/Z25*100>100,100,AH25/Z25*100), "-"),0) -> 100 | AK25: =IF(AND(D25<>0, D25<>"Unknown",D25<>"Stopped",D25<>"Not required"),D25/COUNTRY_INFO!D25, 0) -> 0 | AL25: =IF(AND(J25<>0,J25<>"Unknown",J25<>"Stopped",J25<>"Not required"),J25/COUNTRY_INFO!D25, 0) -> 0 | AM25: =IF(AND(P25<>0,P25<>"Unknown",P25<>"Not required"),P25/(COUNTRY_INFO!E25+COUNTRY_INFO!F25), 0) -> 1 | AN25: =IF(AND(Z25<>0,Z25<>"Unknown",Z25<>"Not required"),IF(COUNTRY_INFO!K25=1,1,IF(COUNTRY_INFO!K25=2,0.5*COUNTRY_INFO!F25/(0.5*COUNTRY_INFO!F25+0.2*COUNTRY_INFO!G25),IF(COUNTRY_INFO!K25=3,COUNTRY_INFO!F25/(COUNTRY_INFO!F25+COUNTRY_INFO!G25)))),0) -> 0.559874684 | AO25: =IF(AND(Z25<>0,Z25<>"Unknown",Z25<>"Not required"),IF(COUNTRY_INFO!K25=1,0,IF(COUNTRY_INFO!K25=2,0.2*COUNTRY_INFO!G25/(0.5*COUNTRY_INFO!F25+0.2*COUNTRY_INFO!G25),IF(COUNTRY_INFO!K25=3,COUNTRY_INFO!G25/(COUNTRY_INFO!F25+COUNTRY_INFO!G25)))),0) -> 0.440125316 | AP25: =MAX(COUNTRY_INFO!D25*AK25*PROFILE!$G$7,COUNTRY_INFO!D25*AL25*PROFILE!$G$7) -> 0 | AQ25: =MAX(COUNTRY_INFO!D25*AK25*PROFILE!$G$8,COUNTRY_INFO!D25*AL25*PROFILE!$G$8,COUNTRY_INFO!D25*AM25*PROFILE!$G$8) -> 42877.86235 | AR25: =MAX(COUNTRY_INFO!D25*AK25*PROFILE!$G$9,COUNTRY_INFO!D25*AL25*PROFILE!$G$9,COUNTRY_INFO!D25*AM25*PROFILE!$G$9,IF(AND(DISTRICT!Z25<>"Unknown",Z25<>"Not required"),COUNTRY_INFO!O25*DISTRICT!AN25,0)) -> 105545.3954 | AS25: =MAX(COUNTRY_INFO!D25*AK25*PROFILE!$G$10,COUNTRY_INFO!D25*AL25*PROFILE!$G$10,IF(AND(DISTRICT!Z25<>"Unknown",Z25<>"Not required"),COUNTRY_INFO!O25*DISTRICT!AO25,0)) -> 2447.536882 | AT25: 150870.7946 | AU25: Y | AV25: =MAX('MDA2'!J25,'T1'!L25,'T2'!J25,T3_R1!K25,T3_R2!K25) -> 47922 | AW25: =MAX('MDA1'!K25,'MDA2'!K25,'MDA3'!I25,'MDA3'!L25,'T1'!M25,'T2'!K25,T3_R1!L25,T3_R2!L25) -> 124723 | AX25: =MAX('MDA1'!L25,'MDA2'!L25,'MDA3'!J25,'MDA3'!M25,'T1'!N25,'T2'!L25,T3_R1!M25,T3_R2!M25) -> 0 | AY25: 172645 | AZ25: =MAX('MDA2'!J25,T25) -> 42878 | BA25: =MAX('MDA1'!K25,'MDA2'!K25,'MDA3'!I25,'MDA3'!L25,V25,AD25) -> 105545 | BB25: =MAX('MDA1'!L25,'MDA2'!L25,'MDA3'!J25,'MDA3'!M25,AF25) -> 0 | BC25: 148423 | BD25: 98.37755568
A26: =IF(COUNTRY_INFO!A26=0," ",COUNTRY_INFO!A26) -> Rwanda | B26: =IF(COUNTRY_INFO!B26=0," ",COUNTRY_INFO!B26) -> West | C26: =IF(COUNTRY_INFO!C26=0," ",COUNTRY_INFO!C26) -> Nyabihu | D26: =COUNTRY_INFO!L26 -> Not required | G26: =MAX('MDA1'!M26,'MDA2'!M26) -> 0 | H26: =IF(AND(COUNTRY_INFO!H26>0,COUNTRY_INFO!H26<4),IF(D26>MAX('MDA1'!M26,'MDA2'!M26),MAX('MDA1'!M26,'MDA2'!M26),D26),0) -> 0 | I26: =IF(AND(COUNTRY_INFO!H26>0,COUNTRY_INFO!H26<4), IF(G26/D26*100<>0, IF(G26/D26*100>100,100,G26/D26*100), "-"),0) -> 0 | J26: =COUNTRY_INFO!M26 -> Not required | M26: =MAX('MDA1'!M26,MAX('MDA3'!I26,'MDA3'!L26)+MAX('MDA3'!J26,'MDA3'!M26)) -> 0 | N26: =IF(AND(COUNTRY_INFO!I26>0,COUNTRY_INFO!I26<4),IF(J26>MAX('MDA1'!M26,MAX('MDA3'!I26,'MDA3'!L26)+MAX('MDA3'!J26,'MDA3'!M26)),MAX('MDA1'!M26,MAX('MDA3'!I26,'MDA3'!L26)+MAX('MDA3'!J26,'MDA3'!M26)),J26),0) -> 0 | O26: =IF(AND(COUNTRY_INFO!I26>0,COUNTRY_INFO!I26<4), IF(M26/J26*100<>0, IF(M26/J26*100>100,100,M26/J26*100), "-"),0) -> 0 | P26: =COUNTRY_INFO!N26 -> 127627 | S26: =SUM(MAX('MDA2'!J26, 'T1'!L26, MAX(T3_R1!K26, T3_R2!K26)), MAX('MDA1'!K26, 'MDA2'!K26, 'T1'!M26, MAX(T3_R1!L26, T3_R2!L26)), MAX('MDA1'!L26, 'MDA2'!L26, 'T1'!N26, MAX(T3_R1!M26, T3_R2!M26))) -> 148264 | T26: =IF(AND(COUNTRY_INFO!J26>1,COUNTRY_INFO!J26<4),IF(COUNTRY_INFO!E26>MAX('MDA2'!J26,'T1'!L26,MAX(T3_R1!K26,T3_R2!K26)),MAX('MDA2'!J26,'T1'!L26,MAX(T3_R1!K26,T3_R2!K26)),COUNTRY_INFO!E26),0) -> 36870 | U26: =IF(AND(COUNTRY_INFO!J26>1,COUNTRY_INFO!J26<4), IF(T26/COUNTRY_INFO!E26*100<>0, IF(T26/COUNTRY_INFO!E26*100>100,100,T26/COUNTRY_INFO!E26*100), "-"),0) -> 100 | V26: =IF(AND(COUNTRY_INFO!J26>1,COUNTRY_INFO!J26<4),IF(COUNTRY_INFO!F26>MAX('MDA1'!K26,'MDA2'!K26,'T1'!M26,MAX(T3_R1!L26,T3_R2!L26)),MAX('MDA1'!K26,'MDA2'!K26,'T1'!M26,MAX(T3_R1!L26,T3_R2!L26)),COUNTRY_INFO!F26),0) -> 90757 | W26: =IF(AND(COUNTRY_INFO!J26>1,COUNTRY_INFO!J26<4), IF(V26/COUNTRY_INFO!F26*100<>0, IF(V26/COUNTRY_INFO!F26*100>100,100,V26/COUNTRY_INFO!F26*100), "-"),0) -> 100 | X26: 127627 | Y26: =IF(AND(COUNTRY_INFO!J26>1,COUNTRY_INFO!J26<4), IF(S26/P26*100<>0, IF(X26/P26*100>100,100,X26/P26*100), "-"),0) -> 100 | Z26: =COUNTRY_INFO!O26 -> 0 | AC26: =MAX('T1'!L26,'T2'!J26)+MAX('T1'!M26,'T2'!K26)+MAX('T1'!N26,'T2'!L26) -> 0 | AD26: =IF(COUNTRY_INFO!K26=1,IF(COUNTRY_INFO!F26*0.33>MAX('T1'!M26,'T2'!K26),MAX('T1'!M26,'T2'!K26),COUNTRY_INFO!F26*0.33),IF(COUNTRY_INFO!K26=2,IF(COUNTRY_INFO!F26*0.5>MAX('T1'!M26,'T2'!K26),MAX('T1'!M26,'T2'!K26),COUNTRY_INFO!F26*0.5),IF(COUNTRY_INFO!K26=3,IF(COUNTRY_INFO!F26>MAX('T1'!M26,'T2'!K26),MAX('T1'!M26,'T2'!K26),COUNTRY_INFO!F26),0))) -> 0 | AE26: =IF(AND(COUNTRY_INFO!K26>0,COUNTRY_INFO!K26<4),IF(Z26>0,IF(COUNTRY_INFO!K26=1, AD26/(COUNTRY_INFO!F26*0.33)*100, IF(COUNTRY_INFO!K26=2, AD26/(COUNTRY_INFO!F26*0.5)*100, IF(COUNTRY_INFO!K26=3, AD26/COUNTRY_INFO!F26*100))),"-"),0) -> - | AF26: =IF(COUNTRY_INFO!K26=2,IF(COUNTRY_INFO!G26*0.2>MAX('T1'!N26,'T2'!L26),MAX('T1'!N26,'T2'!L26),COUNTRY_INFO!G26*0.2),IF(COUNTRY_INFO!K26=3,IF(COUNTRY_INFO!G26>MAX('T1'!N26,'T2'!L26),MAX('T1'!N26,'T2'!L26),COUNTRY_INFO!G26),0)) -> 0 | AG26: =IF(AND(COUNTRY_INFO!K26>0,COUNTRY_INFO!K26<4),IF(Z26>0,IF(COUNTRY_INFO!K26=1, 0, IF(COUNTRY_INFO!K26=2, AF26/(COUNTRY_INFO!G26*0.2)*100, IF(COUNTRY_INFO!K26=3, AF26/COUNTRY_INFO!G26*100))),"-"),0) -> - | AH26: 0 | AI26: =IF(AND(COUNTRY_INFO!K26>0,COUNTRY_INFO!K26<4), IF(AC26/Z26*100<>0, IF(AH26/Z26*100>100,100,AH26/Z26*100), "-"),0) ->  | AK26: =IF(AND(D26<>0, D26<>"Unknown",D26<>"Stopped",D26<>"Not required"),D26/COUNTRY_INFO!D26, 0) -> 0 | AL26: =IF(AND(J26<>0,J26<>"Unknown",J26<>"Stopped",J26<>"Not required"),J26/COUNTRY_INFO!D26, 0) -> 0 | AM26: =IF(AND(P26<>0,P26<>"Unknown",P26<>"Not required"),P26/(COUNTRY_INFO!E26+COUNTRY_INFO!F26), 0) -> 1 | AN26: =IF(AND(Z26<>0,Z26<>"Unknown",Z26<>"Not required"),IF(COUNTRY_INFO!K26=1,1,IF(COUNTRY_INFO!K26=2,0.5*COUNTRY_INFO!F26/(0.5*COUNTRY_INFO!F26+0.2*COUNTRY_INFO!G26),IF(COUNTRY_INFO!K26=3,COUNTRY_INFO!F26/(COUNTRY_INFO!F26+COUNTRY_INFO!G26)))),0) -> 0 | AO26: =IF(AND(Z26<>0,Z26<>"Unknown",Z26<>"Not required"),IF(COUNTRY_INFO!K26=1,0,IF(COUNTRY_INFO!K26=2,0.2*COUNTRY_INFO!G26/(0.5*COUNTRY_INFO!F26+0.2*COUNTRY_INFO!G26),IF(COUNTRY_INFO!K26=3,COUNTRY_INFO!G26/(COUNTRY_INFO!F26+COUNTRY_INFO!G26)))),0) -> 0 | AP26: =MAX(COUNTRY_INFO!D26*AK26*PROFILE!$G$7,COUNTRY_INFO!D26*AL26*PROFILE!$G$7) -> 0 | AQ26: =MAX(COUNTRY_INFO!D26*AK26*PROFILE!$G$8,COUNTRY_INFO!D26*AL26*PROFILE!$G$8,COUNTRY_INFO!D26*AM26*PROFILE!$G$8) -> 36870.13888 | AR26: =MAX(COUNTRY_INFO!D26*AK26*PROFILE!$G$9,COUNTRY_INFO!D26*AL26*PROFILE!$G$9,COUNTRY_INFO!D26*AM26*PROFILE!$G$9,IF(AND(DISTRICT!Z26<>"Unknown",Z26<>"Not required"),COUNTRY_INFO!O26*DISTRICT!AN26,0)) -> 90757.16868 | AS26: =MAX(COUNTRY_INFO!D26*AK26*PROFILE!$G$10,COUNTRY_INFO!D26*AL26*PROFILE!$G$10,IF(AND(DISTRICT!Z26<>"Unknown",Z26<>"Not required"),COUNTRY_INFO!O26*DISTRICT!AO26,0)) -> 0 | AT26: 127627.3076 | AU26: Y | AV26: =MAX('MDA2'!J26,'T1'!L26,'T2'!J26,T3_R1!K26,T3_R2!K26) -> 42351 | AW26: =MAX('MDA1'!K26,'MDA2'!K26,'MDA3'!I26,'MDA3'!L26,'T1'!M26,'T2'!K26,T3_R1!L26,T3_R2!L26) -> 105913 | AX26: =MAX('MDA1'!L26,'MDA2'!L26,'MDA3'!J26,'MDA3'!M26,'T1'!N26,'T2'!L26,T3_R1!M26,T3_R2!M26) -> 0 | AY26: 148264 | AZ26: =MAX('MDA2'!J26,T26) -> 36870 | BA26: =MAX('MDA1'!K26,'MDA2'!K26,'MDA3'!I26,'MDA3'!L26,V26,AD26) -> 90757 | BB26: =MAX('MDA1'!L26,'MDA2'!L26,'MDA3'!J26,'MDA3'!M26,AF26) -> 0 | BC26: 127627 | BD26: 99.99975902
A27: =IF(COUNTRY_INFO!A27=0," ",COUNTRY_INFO!A27) -> Rwanda | B27: =IF(COUNTRY_INFO!B27=0," ",COUNTRY_INFO!B27) -> East | C27: =IF(COUNTRY_INFO!C27=0," ",COUNTRY_INFO!C27) -> Nyagatare | D27: =COUNTRY_INFO!L27 -> Not required | G27: =MAX('MDA1'!M27,'MDA2'!M27) -> 0 | H27: =IF(AND(COUNTRY_INFO!H27>0,COUNTRY_INFO!H27<4),IF(D27>MAX('MDA1'!M27,'MDA2'!M27),MAX('MDA1'!M27,'MDA2'!M27),D27),0) -> 0 | I27: =IF(AND(COUNTRY_INFO!H27>0,COUNTRY_INFO!H27<4), IF(G27/D27*100<>0, IF(G27/D27*100>100,100,G27/D27*100), "-"),0) -> 0 | J27: =COUNTRY_INFO!M27 -> Not required | M27: =MAX('MDA1'!M27,MAX('MDA3'!I27,'MDA3'!L27)+MAX('MDA3'!J27,'MDA3'!M27)) -> 0 | N27: =IF(AND(COUNTRY_INFO!I27>0,COUNTRY_INFO!I27<4),IF(J27>MAX('MDA1'!M27,MAX('MDA3'!I27,'MDA3'!L27)+MAX('MDA3'!J27,'MDA3'!M27)),MAX('MDA1'!M27,MAX('MDA3'!I27,'MDA3'!L27)+MAX('MDA3'!J27,'MDA3'!M27)),J27),0) -> 0 | O27: =IF(AND(COUNTRY_INFO!I27>0,COUNTRY_INFO!I27<4), IF(M27/J27*100<>0, IF(M27/J27*100>100,100,M27/J27*100), "-"),0) -> 0 | P27: =COUNTRY_INFO!N27 -> 250158 | S27: =SUM(MAX('MDA2'!J27, 'T1'!L27, MAX(T3_R1!K27, T3_R2!K27)), MAX('MDA1'!K27, 'MDA2'!K27, 'T1'!M27, MAX(T3_R1!L27, T3_R2!L27)), MAX('MDA1'!L27, 'MDA2'!L27, 'T1'!N27, MAX(T3_R1!M27, T3_R2!M27))) -> 229620 | T27: =IF(AND(COUNTRY_INFO!J27>1,COUNTRY_INFO!J27<4),IF(COUNTRY_INFO!E27>MAX('MDA2'!J27,'T1'!L27,MAX(T3_R1!K27,T3_R2!K27)),MAX('MDA2'!J27,'T1'!L27,MAX(T3_R1!K27,T3_R2!K27)),COUNTRY_INFO!E27),0) -> 64646 | U27: =IF(AND(COUNTRY_INFO!J27>1,COUNTRY_INFO!J27<4), IF(T27/COUNTRY_INFO!E27*100<>0, IF(T27/COUNTRY_INFO!E27*100>100,100,T27/COUNTRY_INFO!E27*100), "-"),0) -> 89.45314662 | V27: =IF(AND(COUNTRY_INFO!J27>1,COUNTRY_INFO!J27<4),IF(COUNTRY_INFO!F27>MAX('MDA1'!K27,'MDA2'!K27,'T1'!M27,MAX(T3_R1!L27,T3_R2!L27)),MAX('MDA1'!K27,'MDA2'!K27,'T1'!M27,MAX(T3_R1!L27,T3_R2!L27)),COUNTRY_INFO!F27),0) -> 164974 | W27: =IF(AND(COUNTRY_INFO!J27>1,COUNTRY_INFO!J27<4), IF(V27/COUNTRY_INFO!F27*100<>0, IF(V27/COUNTRY_INFO!F27*100>100,100,V27/COUNTRY_INFO!F27*100), "-"),0) -> 92.7393333 | X27: 229620 | Y27: =IF(AND(COUNTRY_INFO!J27>1,COUNTRY_INFO!J27<4), IF(S27/P27*100<>0, IF(X27/P27*100>100,100,X27/P27*100), "-"),0) -> 91.78998873 | Z27: =COUNTRY_INFO!O27 -> 161858 | AC27: =MAX('T1'!L27,'T2'!J27)+MAX('T1'!M27,'T2'!K27)+MAX('T1'!N27,'T2'!L27) -> 145966 | AD27: =IF(COUNTRY_INFO!K27=1,IF(COUNTRY_INFO!F27*0.33>MAX('T1'!M27,'T2'!K27),MAX('T1'!M27,'T2'!K27),COUNTRY_INFO!F27*0.33),IF(COUNTRY_INFO!K27=2,IF(COUNTRY_INFO!F27*0.5>MAX('T1'!M27,'T2'!K27),MAX('T1'!M27,'T2'!K27),COUNTRY_INFO!F27*0.5),IF(COUNTRY_INFO!K27=3,IF(COUNTRY_INFO!F27>MAX('T1'!M27,'T2'!K27),MAX('T1'!M27,'T2'!K27),COUNTRY_INFO!F27),0))) -> 88945 | AE27: =IF(AND(COUNTRY_INFO!K27>0,COUNTRY_INFO!K27<4),IF(Z27>0,IF(COUNTRY_INFO!K27=1, AD27/(COUNTRY_INFO!F27*0.33)*100, IF(COUNTRY_INFO!K27=2, AD27/(COUNTRY_INFO!F27*0.5)*100, IF(COUNTRY_INFO!K27=3, AD27/COUNTRY_INFO!F27*100))),"-"),0) -> 100 | AF27: =IF(COUNTRY_INFO!K27=2,IF(COUNTRY_INFO!G27*0.2>MAX('T1'!N27,'T2'!L27),MAX('T1'!N27,'T2'!L27),COUNTRY_INFO!G27*0.2),IF(COUNTRY_INFO!K27=3,IF(COUNTRY_INFO!G27>MAX('T1'!N27,'T2'!L27),MAX('T1'!N27,'T2'!L27),COUNTRY_INFO!G27),0)) -> 0 | AG27: =IF(AND(COUNTRY_INFO!K27>0,COUNTRY_INFO!K27<4),IF(Z27>0,IF(COUNTRY_INFO!K27=1, 0, IF(COUNTRY_INFO!K27=2, AF27/(COUNTRY_INFO!G27*0.2)*100, IF(COUNTRY_INFO!K27=3, AF27/COUNTRY_INFO!G27*100))),"-"),0) -> 0 | AH27: 88945 | AI27: =IF(AND(COUNTRY_INFO!K27>0,COUNTRY_INFO!K27<4), IF(AC27/Z27*100<>0, IF(AH27/Z27*100>100,100,AH27/Z27*100), "-"),0) -> 54.95248922 | AK27: =IF(AND(D27<>0, D27<>"Unknown",D27<>"Stopped",D27<>"Not required"),D27/COUNTRY_INFO!D27, 0) -> 0 | AL27: =IF(AND(J27<>0,J27<>"Unknown",J27<>"Stopped",J27<>"Not required"),J27/COUNTRY_INFO!D27, 0) -> 0 | AM27: =IF(AND(P27<>0,P27<>"Unknown",P27<>"Not required"),P27/(COUNTRY_INFO!E27+COUNTRY_INFO!F27), 0) -> 1 | AN27: =IF(AND(Z27<>0,Z27<>"Unknown",Z27<>"Not required"),IF(COUNTRY_INFO!K27=1,1,IF(COUNTRY_INFO!K27=2,0.5*COUNTRY_INFO!F27/(0.5*COUNTRY_INFO!F27+0.2*COUNTRY_INFO!G27),IF(COUNTRY_INFO!K27=3,COUNTRY_INFO!F27/(COUNTRY_INFO!F27+COUNTRY_INFO!G27)))),0) -> 0.559876474 | AO27: =IF(AND(Z27<>0,Z27<>"Unknown",Z27<>"Not required"),IF(COUNTRY_INFO!K27=1,0,IF(COUNTRY_INFO!K27=2,0.2*COUNTRY_INFO!G27/(0.5*COUNTRY_INFO!F27+0.2*COUNTRY_INFO!G27),IF(COUNTRY_INFO!K27=3,COUNTRY_INFO!G27/(COUNTRY_INFO!F27+COUNTRY_INFO!G27)))),0) -> 0.440123526 | AP27: =MAX(COUNTRY_INFO!D27*AK27*PROFILE!$G$7,COUNTRY_INFO!D27*AL27*PROFILE!$G$7) -> 0 | AQ27: =MAX(COUNTRY_INFO!D27*AK27*PROFILE!$G$8,COUNTRY_INFO!D27*AL27*PROFILE!$G$8,COUNTRY_INFO!D27*AM27*PROFILE!$G$8) -> 72267.71392 | AR27: =MAX(COUNTRY_INFO!D27*AK27*PROFILE!$G$9,COUNTRY_INFO!D27*AL27*PROFILE!$G$9,COUNTRY_INFO!D27*AM27*PROFILE!$G$9,IF(AND(DISTRICT!Z27<>"Unknown",Z27<>"Not required"),COUNTRY_INFO!O27*DISTRICT!AN27,0)) -> 177889.5687 | AS27: =MAX(COUNTRY_INFO!D27*AK27*PROFILE!$G$10,COUNTRY_INFO!D27*AL27*PROFILE!$G$10,IF(AND(DISTRICT!Z27<>"Unknown",Z27<>"Not required"),COUNTRY_INFO!O27*DISTRICT!AO27,0)) -> 71237.51366 | AT27: 321394.7963 | AU27: Y | AV27: =MAX('MDA2'!J27,'T1'!L27,'T2'!J27,T3_R1!K27,T3_R2!K27) -> 64646 | AW27: =MAX('MDA1'!K27,'MDA2'!K27,'MDA3'!I27,'MDA3'!L27,'T1'!M27,'T2'!K27,T3_R1!L27,T3_R2!L27) -> 164974 | AX27: =MAX('MDA1'!L27,'MDA2'!L27,'MDA3'!J27,'MDA3'!M27,'T1'!N27,'T2'!L27,T3_R1!M27,T3_R2!M27) -> 0 | AY27: 229620 | AZ27: =MAX('MDA2'!J27,T27) -> 64646 | BA27: =MAX('MDA1'!K27,'MDA2'!K27,'MDA3'!I27,'MDA3'!L27,V27,AD27) -> 164974 | BB27: =MAX('MDA1'!L27,'MDA2'!L27,'MDA3'!J27,'MDA3'!M27,AF27) -> 0 | BC27: 229620 | BD27: 71.44484063
A28: =IF(COUNTRY_INFO!A28=0," ",COUNTRY_INFO!A28) -> Rwanda | B28: =IF(COUNTRY_INFO!B28=0," ",COUNTRY_INFO!B28) -> South | C28: =IF(COUNTRY_INFO!C28=0," ",COUNTRY_INFO!C28) -> Nyamagabe | D28: =COUNTRY_INFO!L28 -> Not required | G28: =MAX('MDA1'!M28,'MDA2'!M28) -> 0 | H28: =IF(AND(COUNTRY_INFO!H28>0,COUNTRY_INFO!H28<4),IF(D28>MAX('MDA1'!M28,'MDA2'!M28),MAX('MDA1'!M28,'MDA2'!M28),D28),0) -> 0 | I28: =IF(AND(COUNTRY_INFO!H28>0,COUNTRY_INFO!H28<4), IF(G28/D28*100<>0, IF(G28/D28*100>100,100,G28/D28*100), "-"),0) -> 0 | J28: =COUNTRY_INFO!M28 -> Not required | M28: =MAX('MDA1'!M28,MAX('MDA3'!I28,'MDA3'!L28)+MAX('MDA3'!J28,'MDA3'!M28)) -> 0 | N28: =IF(AND(COUNTRY_INFO!I28>0,COUNTRY_INFO!I28<4),IF(J28>MAX('MDA1'!M28,MAX('MDA3'!I28,'MDA3'!L28)+MAX('MDA3'!J28,'MDA3'!M28)),MAX('MDA1'!M28,MAX('MDA3'!I28,'MDA3'!L28)+MAX('MDA3'!J28,'MDA3'!M28)),J28),0) -> 0 | O28: =IF(AND(COUNTRY_INFO!I28>0,COUNTRY_INFO!I28<4), IF(M28/J28*100<>0, IF(M28/J28*100>100,100,M28/J28*100), "-"),0) -> 0 | P28: =COUNTRY_INFO!N28 -> 153966 | S28: =SUM(MAX('MDA2'!J28, 'T1'!L28, MAX(T3_R1!K28, T3_R2!K28)), MAX('MDA1'!K28, 'MDA2'!K28, 'T1'!M28, MAX(T3_R1!L28, T3_R2!L28)), MAX('MDA1'!L28, 'MDA2'!L28, 'T1'!N28, MAX(T3_R1!M28, T3_R2!M28))) -> 159983 | T28: =IF(AND(COUNTRY_INFO!J28>1,COUNTRY_INFO!J28<4),IF(COUNTRY_INFO!E28>MAX('MDA2'!J28,'T1'!L28,MAX(T3_R1!K28,T3_R2!K28)),MAX('MDA2'!J28,'T1'!L28,MAX(T3_R1!K28,T3_R2!K28)),COUNTRY_INFO!E28),0) -> 41546 | U28: =IF(AND(COUNTRY_INFO!J28>1,COUNTRY_INFO!J28<4), IF(T28/COUNTRY_INFO!E28*100<>0, IF(T28/COUNTRY_INFO!E28*100>100,100,T28/COUNTRY_INFO!E28*100), "-"),0) -> 93.40587693 | V28: =IF(AND(COUNTRY_INFO!J28>1,COUNTRY_INFO!J28<4),IF(COUNTRY_INFO!F28>MAX('MDA1'!K28,'MDA2'!K28,'T1'!M28,MAX(T3_R1!L28,T3_R2!L28)),MAX('MDA1'!K28,'MDA2'!K28,'T1'!M28,MAX(T3_R1!L28,T3_R2!L28)),COUNTRY_INFO!F28),0) -> 109487 | W28: =IF(AND(COUNTRY_INFO!J28>1,COUNTRY_INFO!J28<4), IF(V28/COUNTRY_INFO!F28*100<>0, IF(V28/COUNTRY_INFO!F28*100>100,100,V28/COUNTRY_INFO!F28*100), "-"),0) -> 100 | X28: 151033 | Y28: =IF(AND(COUNTRY_INFO!J28>1,COUNTRY_INFO!J28<4), IF(S28/P28*100<>0, IF(X28/P28*100>100,100,X28/P28*100), "-"),0) -> 98.09503397 | Z28: =COUNTRY_INFO!O28 -> 0 | AC28: =MAX('T1'!L28,'T2'!J28)+MAX('T1'!M28,'T2'!K28)+MAX('T1'!N28,'T2'!L28) -> 0 | AD28: =IF(COUNTRY_INFO!K28=1,IF(COUNTRY_INFO!F28*0.33>MAX('T1'!M28,'T2'!K28),MAX('T1'!M28,'T2'!K28),COUNTRY_INFO!F28*0.33),IF(COUNTRY_INFO!K28=2,IF(COUNTRY_INFO!F28*0.5>MAX('T1'!M28,'T2'!K28),MAX('T1'!M28,'T2'!K28),COUNTRY_INFO!F28*0.5),IF(COUNTRY_INFO!K28=3,IF(COUNTRY_INFO!F28>MAX('T1'!M28,'T2'!K28),MAX('T1'!M28,'T2'!K28),COUNTRY_INFO!F28),0))) -> 0 | AE28: =IF(AND(COUNTRY_INFO!K28>0,COUNTRY_INFO!K28<4),IF(Z28>0,IF(COUNTRY_INFO!K28=1, AD28/(COUNTRY_INFO!F28*0.33)*100, IF(COUNTRY_INFO!K28=2, AD28/(COUNTRY_INFO!F28*0.5)*100, IF(COUNTRY_INFO!K28=3, AD28/COUNTRY_INFO!F28*100))),"-"),0) -> - | AF28: =IF(COUNTRY_INFO!K28=2,IF(COUNTRY_INFO!G28*0.2>MAX('T1'!N28,'T2'!L28),MAX('T1'!N28,'T2'!L28),COUNTRY_INFO!G28*0.2),IF(COUNTRY_INFO!K28=3,IF(COUNTRY_INFO!G28>MAX('T1'!N28,'T2'!L28),MAX('T1'!N28,'T2'!L28),COUNTRY_INFO!G28),0)) -> 0 | AG28: =IF(AND(COUNTRY_INFO!K28>0,COUNTRY_INFO!K28<4),IF(Z28>0,IF(COUNTRY_INFO!K28=1, 0, IF(COUNTRY_INFO!K28=2, AF28/(COUNTRY_INFO!G28*0.2)*100, IF(COUNTRY_INFO!K28=3, AF28/COUNTRY_INFO!G28*100))),"-"),0) -> - | AH28: 0 | AI28: =IF(AND(COUNTRY_INFO!K28>0,COUNTRY_INFO!K28<4), IF(AC28/Z28*100<>0, IF(AH28/Z28*100>100,100,AH28/Z28*100), "-"),0) ->  | AK28: =IF(AND(D28<>0, D28<>"Unknown",D28<>"Stopped",D28<>"Not required"),D28/COUNTRY_INFO!D28, 0) -> 0 | AL28: =IF(AND(J28<>0,J28<>"Unknown",J28<>"Stopped",J28<>"Not required"),J28/COUNTRY_INFO!D28, 0) -> 0 | AM28: =IF(AND(P28<>0,P28<>"Unknown",P28<>"Not required"),P28/(COUNTRY_INFO!E28+COUNTRY_INFO!F28), 0) -> 1 | AN28: =IF(AND(Z28<>0,Z28<>"Unknown",Z28<>"Not required"),IF(COUNTRY_INFO!K28=1,1,IF(COUNTRY_INFO!K28=2,0.5*COUNTRY_INFO!F28/(0.5*COUNTRY_INFO!F28+0.2*COUNTRY_INFO!G28),IF(COUNTRY_INFO!K28=3,COUNTRY_INFO!F28/(COUNTRY_INFO!F28+COUNTRY_INFO!G28)))),0) -> 0 | AO28: =IF(AND(Z28<>0,Z28<>"Unknown",Z28<>"Not required"),IF(COUNTRY_INFO!K28=1,0,IF(COUNTRY_INFO!K28=2,0.2*COUNTRY_INFO!G28/(0.5*COUNTRY_INFO!F28+0.2*COUNTRY_INFO!G28),IF(COUNTRY_INFO!K28=3,COUNTRY_INFO!G28/(COUNTRY_INFO!F28+COUNTRY_INFO!G28)))),0) -> 0 | AP28: =MAX(COUNTRY_INFO!D28*AK28*PROFILE!$G$7,COUNTRY_INFO!D28*AL28*PROFILE!$G$7) -> 0 | AQ28: =MAX(COUNTRY_INFO!D28*AK28*PROFILE!$G$8,COUNTRY_INFO!D28*AL28*PROFILE!$G$8,COUNTRY_INFO!D28*AM28*PROFILE!$G$8) -> 44479.24334 | AR28: =MAX(COUNTRY_INFO!D28*AK28*PROFILE!$G$9,COUNTRY_INFO!D28*AL28*PROFILE!$G$9,COUNTRY_INFO!D28*AM28*PROFILE!$G$9,IF(AND(DISTRICT!Z28<>"Unknown",Z28<>"Not required"),COUNTRY_INFO!O28*DISTRICT!AN28,0)) -> 109487.2521 | AS28: =MAX(COUNTRY_INFO!D28*AK28*PROFILE!$G$10,COUNTRY_INFO!D28*AL28*PROFILE!$G$10,IF(AND(DISTRICT!Z28<>"Unknown",Z28<>"Not required"),COUNTRY_INFO!O28*DISTRICT!AO28,0)) -> 0 | AT28: 153966.4955 | AU28: Y | AV28: =MAX('MDA2'!J28,'T1'!L28,'T2'!J28,T3_R1!K28,T3_R2!K28) -> 41546 | AW28: =MAX('MDA1'!K28,'MDA2'!K28,'MDA3'!I28,'MDA3'!L28,'T1'!M28,'T2'!K28,T3_R1!L28,T3_R2!L28) -> 118437 | AX28: =MAX('MDA1'!L28,'MDA2'!L28,'MDA3'!J28,'MDA3'!M28,'T1'!N28,'T2'!L28,T3_R1!M28,T3_R2!M28) -> 0 | AY28: 159983 | AZ28: =MAX('MDA2'!J28,T28) -> 41546 | BA28: =MAX('MDA1'!K28,'MDA2'!K28,'MDA3'!I28,'MDA3'!L28,V28,AD28) -> 109487 | BB28: =MAX('MDA1'!L28,'MDA2'!L28,'MDA3'!J28,'MDA3'!M28,AF28) -> 0 | BC28: 151033 | BD28: 98.0947183
A29: =IF(COUNTRY_INFO!A29=0," ",COUNTRY_INFO!A29) -> Rwanda | B29: =IF(COUNTRY_INFO!B29=0," ",COUNTRY_INFO!B29) -> West | C29: =IF(COUNTRY_INFO!C29=0," ",COUNTRY_INFO!C29) -> Nyamasheke | D29: =COUNTRY_INFO!L29 -> Not required | G29: =MAX('MDA1'!M29,'MDA2'!M29) -> 0 | H29: =IF(AND(COUNTRY_INFO!H29>0,COUNTRY_INFO!H29<4),IF(D29>MAX('MDA1'!M29,'MDA2'!M29),MAX('MDA1'!M29,'MDA2'!M29),D29),0) -> 0 | I29: =IF(AND(COUNTRY_INFO!H29>0,COUNTRY_INFO!H29<4), IF(G29/D29*100<>0, IF(G29/D29*100>100,100,G29/D29*100), "-"),0) -> 0 | J29: =COUNTRY_INFO!M29 -> Not required | M29: =MAX('MDA1'!M29,MAX('MDA3'!I29,'MDA3'!L29)+MAX('MDA3'!J29,'MDA3'!M29)) -> 0 | N29: =IF(AND(COUNTRY_INFO!I29>0,COUNTRY_INFO!I29<4),IF(J29>MAX('MDA1'!M29,MAX('MDA3'!I29,'MDA3'!L29)+MAX('MDA3'!J29,'MDA3'!M29)),MAX('MDA1'!M29,MAX('MDA3'!I29,'MDA3'!L29)+MAX('MDA3'!J29,'MDA3'!M29)),J29),0) -> 0 | O29: =IF(AND(COUNTRY_INFO!I29>0,COUNTRY_INFO!I29<4), IF(M29/J29*100<>0, IF(M29/J29*100>100,100,M29/J29*100), "-"),0) -> 0 | P29: =COUNTRY_INFO!N29 -> 169911 | S29: =SUM(MAX('MDA2'!J29, 'T1'!L29, MAX(T3_R1!K29, T3_R2!K29)), MAX('MDA1'!K29, 'MDA2'!K29, 'T1'!M29, MAX(T3_R1!L29, T3_R2!L29)), MAX('MDA1'!L29, 'MDA2'!L29, 'T1'!N29, MAX(T3_R1!M29, T3_R2!M29))) -> 197351 | T29: =IF(AND(COUNTRY_INFO!J29>1,COUNTRY_INFO!J29<4),IF(COUNTRY_INFO!E29>MAX('MDA2'!J29,'T1'!L29,MAX(T3_R1!K29,T3_R2!K29)),MAX('MDA2'!J29,'T1'!L29,MAX(T3_R1!K29,T3_R2!K29)),COUNTRY_INFO!E29),0) -> 49085 | U29: =IF(AND(COUNTRY_INFO!J29>1,COUNTRY_INFO!J29<4), IF(T29/COUNTRY_INFO!E29*100<>0, IF(T29/COUNTRY_INFO!E29*100>100,100,T29/COUNTRY_INFO!E29*100), "-"),0) -> 100 | V29: =IF(AND(COUNTRY_INFO!J29>1,COUNTRY_INFO!J29<4),IF(COUNTRY_INFO!F29>MAX('MDA1'!K29,'MDA2'!K29,'T1'!M29,MAX(T3_R1!L29,T3_R2!L29)),MAX('MDA1'!K29,'MDA2'!K29,'T1'!M29,MAX(T3_R1!L29,T3_R2!L29)),COUNTRY_INFO!F29),0) -> 120826 | W29: =IF(AND(COUNTRY_INFO!J29>1,COUNTRY_INFO!J29<4), IF(V29/COUNTRY_INFO!F29*100<>0, IF(V29/COUNTRY_INFO!F29*100>100,100,V29/COUNTRY_INFO!F29*100), "-"),0) -> 100 | X29: 169911 | Y29: =IF(AND(COUNTRY_INFO!J29>1,COUNTRY_INFO!J29<4), IF(S29/P29*100<>0, IF(X29/P29*100>100,100,X29/P29*100), "-"),0) -> 100 | Z29: =COUNTRY_INFO!O29 -> 82372 | AC29: =MAX('T1'!L29,'T2'!J29)+MAX('T1'!M29,'T2'!K29)+MAX('T1'!N29,'T2'!L29) -> 78015 | AD29: =IF(COUNTRY_INFO!K29=1,IF(COUNTRY_INFO!F29*0.33>MAX('T1'!M29,'T2'!K29),MAX('T1'!M29,'T2'!K29),COUNTRY_INFO!F29*0.33),IF(COUNTRY_INFO!K29=2,IF(COUNTRY_INFO!F29*0.5>MAX('T1'!M29,'T2'!K29),MAX('T1'!M29,'T2'!K29),COUNTRY_INFO!F29*0.5),IF(COUNTRY_INFO!K29=3,IF(COUNTRY_INFO!F29>MAX('T1'!M29,'T2'!K29),MAX('T1'!M29,'T2'!K29),COUNTRY_INFO!F29),0))) -> 60413 | AE29: =IF(AND(COUNTRY_INFO!K29>0,COUNTRY_INFO!K29<4),IF(Z29>0,IF(COUNTRY_INFO!K29=1, AD29/(COUNTRY_INFO!F29*0.33)*100, IF(COUNTRY_INFO!K29=2, AD29/(COUNTRY_INFO!F29*0.5)*100, IF(COUNTRY_INFO!K29=3, AD29/COUNTRY_INFO!F29*100))),"-"),0) -> 100 | AF29: =IF(COUNTRY_INFO!K29=2,IF(COUNTRY_INFO!G29*0.2>MAX('T1'!N29,'T2'!L29),MAX('T1'!N29,'T2'!L29),COUNTRY_INFO!G29*0.2),IF(COUNTRY_INFO!K29=3,IF(COUNTRY_INFO!G29>MAX('T1'!N29,'T2'!L29),MAX('T1'!N29,'T2'!L29),COUNTRY_INFO!G29),0)) -> 0 | AG29: =IF(AND(COUNTRY_INFO!K29>0,COUNTRY_INFO!K29<4),IF(Z29>0,IF(COUNTRY_INFO!K29=1, 0, IF(COUNTRY_INFO!K29=2, AF29/(COUNTRY_INFO!G29*0.2)*100, IF(COUNTRY_INFO!K29=3, AF29/COUNTRY_INFO!G29*100))),"-"),0) -> 0 | AH29: 60413 | AI29: =IF(AND(COUNTRY_INFO!K29>0,COUNTRY_INFO!K29<4), IF(AC29/Z29*100<>0, IF(AH29/Z29*100>100,100,AH29/Z29*100), "-"),0) -> 73.3416695 | AK29: =IF(AND(D29<>0, D29<>"Unknown",D29<>"Stopped",D29<>"Not required"),D29/COUNTRY_INFO!D29, 0) -> 0 | AL29: =IF(AND(J29<>0,J29<>"Unknown",J29<>"Stopped",J29<>"Not required"),J29/COUNTRY_INFO!D29, 0) -> 0 | AM29: =IF(AND(P29<>0,P29<>"Unknown",P29<>"Not required"),P29/(COUNTRY_INFO!E29+COUNTRY_INFO!F29), 0) -> 1 | AN29: =IF(AND(Z29<>0,Z29<>"Unknown",Z29<>"Not required"),IF(COUNTRY_INFO!K29=1,1,IF(COUNTRY_INFO!K29=2,0.5*COUNTRY_INFO!F29/(0.5*COUNTRY_INFO!F29+0.2*COUNTRY_INFO!G29),IF(COUNTRY_INFO!K29=3,COUNTRY_INFO!F29/(COUNTRY_INFO!F29+COUNTRY_INFO!G29)))),0) -> 0.5598762606 | AO29: =IF(AND(Z29<>0,Z29<>"Unknown",Z29<>"Not required"),IF(COUNTRY_INFO!K29=1,0,IF(COUNTRY_INFO!K29=2,0.2*COUNTRY_INFO!G29/(0.5*COUNTRY_INFO!F29+0.2*COUNTRY_INFO!G29),IF(COUNTRY_INFO!K29=3,COUNTRY_INFO!G29/(COUNTRY_INFO!F29+COUNTRY_INFO!G29)))),0) -> 0.4401237394 | AP29: =MAX(COUNTRY_INFO!D29*AK29*PROFILE!$G$7,COUNTRY_INFO!D29*AL29*PROFILE!$G$7) -> 0 | AQ29: =MAX(COUNTRY_INFO!D29*AK29*PROFILE!$G$8,COUNTRY_INFO!D29*AL29*PROFILE!$G$8,COUNTRY_INFO!D29*AM29*PROFILE!$G$8) -> 49085.53908 | AR29: =MAX(COUNTRY_INFO!D29*AK29*PROFILE!$G$9,COUNTRY_INFO!D29*AL29*PROFILE!$G$9,COUNTRY_INFO!D29*AM29*PROFILE!$G$9,IF(AND(DISTRICT!Z29<>"Unknown",Z29<>"Not required"),COUNTRY_INFO!O29*DISTRICT!AN29,0)) -> 120825.8142 | AS29: =MAX(COUNTRY_INFO!D29*AK29*PROFILE!$G$10,COUNTRY_INFO!D29*AL29*PROFILE!$G$10,IF(AND(DISTRICT!Z29<>"Unknown",Z29<>"Not required"),COUNTRY_INFO!O29*DISTRICT!AO29,0)) -> 36253.87266 | AT29: 206165.2259 | AU29: Y | AV29: =MAX('MDA2'!J29,'T1'!L29,'T2'!J29,T3_R1!K29,T3_R2!K29) -> 54873 | AW29: =MAX('MDA1'!K29,'MDA2'!K29,'MDA3'!I29,'MDA3'!L29,'T1'!M29,'T2'!K29,T3_R1!L29,T3_R2!L29) -> 142478 | AX29: =MAX('MDA1'!L29,'MDA2'!L29,'MDA3'!J29,'MDA3'!M29,'T1'!N29,'T2'!L29,T3_R1!M29,T3_R2!M29) -> 0 | AY29: 197351 | AZ29: =MAX('MDA2'!J29,T29) -> 49085 | BA29: =MAX('MDA1'!K29,'MDA2'!K29,'MDA3'!I29,'MDA3'!L29,V29,AD29) -> 120826 | BB29: =MAX('MDA1'!L29,'MDA2'!L29,'MDA3'!J29,'MDA3'!M29,AF29) -> 0 | BC29: 169911 | BD29: 82.41496558
A30: =IF(COUNTRY_INFO!A30=0," ",COUNTRY_INFO!A30) -> Rwanda | B30: =IF(COUNTRY_INFO!B30=0," ",COUNTRY_INFO!B30) -> South | C30: =IF(COUNTRY_INFO!C30=0," ",COUNTRY_INFO!C30) -> Nyanza | D30: =COUNTRY_INFO!L30 -> Not required | G30: =MAX('MDA1'!M30,'MDA2'!M30) -> 0 | H30: =IF(AND(COUNTRY_INFO!H30>0,COUNTRY_INFO!H30<4),IF(D30>MAX('MDA1'!M30,'MDA2'!M30),MAX('MDA1'!M30,'MDA2'!M30),D30),0) -> 0 | I30: =IF(AND(COUNTRY_INFO!H30>0,COUNTRY_INFO!H30<4), IF(G30/D30*100<>0, IF(G30/D30*100>100,100,G30/D30*100), "-"),0) -> 0 | J30: =COUNTRY_INFO!M30 -> Not required | M30: =MAX('MDA1'!M30,MAX('MDA3'!I30,'MDA3'!L30)+MAX('MDA3'!J30,'MDA3'!M30)) -> 0 | N30: =IF(AND(COUNTRY_INFO!I30>0,COUNTRY_INFO!I30<4),IF(J30>MAX('MDA1'!M30,MAX('MDA3'!I30,'MDA3'!L30)+MAX('MDA3'!J30,'MDA3'!M30)),MAX('MDA1'!M30,MAX('MDA3'!I30,'MDA3'!L30)+MAX('MDA3'!J30,'MDA3'!M30)),J30),0) -> 0 | O30: =IF(AND(COUNTRY_INFO!I30>0,COUNTRY_INFO!I30<4), IF(M30/J30*100<>0, IF(M30/J30*100>100,100,M30/J30*100), "-"),0) -> 0 | P30: =COUNTRY_INFO!N30 -> 0 | S30: =SUM(MAX('MDA2'!J30, 'T1'!L30, MAX(T3_R1!K30, T3_R2!K30)), MAX('MDA1'!K30, 'MDA2'!K30, 'T1'!M30, MAX(T3_R1!L30, T3_R2!L30)), MAX('MDA1'!L30, 'MDA2'!L30, 'T1'!N30, MAX(T3_R1!M30, T3_R2!M30))) -> 147700 | T30: =IF(AND(COUNTRY_INFO!J30>1,COUNTRY_INFO!J30<4),IF(COUNTRY_INFO!E30>MAX('MDA2'!J30,'T1'!L30,MAX(T3_R1!K30,T3_R2!K30)),MAX('MDA2'!J30,'T1'!L30,MAX(T3_R1!K30,T3_R2!K30)),COUNTRY_INFO!E30),0) -> 0 | U30: =IF(AND(COUNTRY_INFO!J30>1,COUNTRY_INFO!J30<4), IF(T30/COUNTRY_INFO!E30*100<>0, IF(T30/COUNTRY_INFO!E30*100>100,100,T30/COUNTRY_INFO!E30*100), "-"),0) -> 0 | V30: =IF(AND(COUNTRY_INFO!J30>1,COUNTRY_INFO!J30<4),IF(COUNTRY_INFO!F30>MAX('MDA1'!K30,'MDA2'!K30,'T1'!M30,MAX(T3_R1!L30,T3_R2!L30)),MAX('MDA1'!K30,'MDA2'!K30,'T1'!M30,MAX(T3_R1!L30,T3_R2!L30)),COUNTRY_INFO!F30),0) -> 0 | W30: =IF(AND(COUNTRY_INFO!J30>1,COUNTRY_INFO!J30<4), IF(V30/COUNTRY_INFO!F30*100<>0, IF(V30/COUNTRY_INFO!F30*100>100,100,V30/COUNTRY_INFO!F30*100), "-"),0) -> 0 | X30: 0 | Y30: =IF(AND(COUNTRY_INFO!J30>1,COUNTRY_INFO!J30<4), IF(S30/P30*100<>0, IF(X30/P30*100>100,100,X30/P30*100), "-"),0) -> 0 | Z30: =COUNTRY_INFO!O30 -> 42496 | AC30: =MAX('T1'!L30,'T2'!J30)+MAX('T1'!M30,'T2'!K30)+MAX('T1'!N30,'T2'!L30) -> 41269 | AD30: =IF(COUNTRY_INFO!K30=1,IF(COUNTRY_INFO!F30*0.33>MAX('T1'!M30,'T2'!K30),MAX('T1'!M30,'T2'!K30),COUNTRY_INFO!F30*0.33),IF(COUNTRY_INFO!K30=2,IF(COUNTRY_INFO!F30*0.5>MAX('T1'!M30,'T2'!K30),MAX('T1'!M30,'T2'!K30),COUNTRY_INFO!F30*0.5),IF(COUNTRY_INFO!K30=3,IF(COUNTRY_INFO!F30>MAX('T1'!M30,'T2'!K30),MAX('T1'!M30,'T2'!K30),COUNTRY_INFO!F30),0))) -> 41269 | AE30: =IF(AND(COUNTRY_INFO!K30>0,COUNTRY_INFO!K30<4),IF(Z30>0,IF(COUNTRY_INFO!K30=1, AD30/(COUNTRY_INFO!F30*0.33)*100, IF(COUNTRY_INFO!K30=2, AD30/(COUNTRY_INFO!F30*0.5)*100, IF(COUNTRY_INFO!K30=3, AD30/COUNTRY_INFO!F30*100))),"-"),0) -> 74.73154302 | AF30: =IF(COUNTRY_INFO!K30=2,IF(COUNTRY_INFO!G30*0.2>MAX('T1'!N30,'T2'!L30),MAX('T1'!N30,'T2'!L30),COUNTRY_INFO!G30*0.2),IF(COUNTRY_INFO!K30=3,IF(COUNTRY_INFO!G30>MAX('T1'!N30,'T2'!L30),MAX('T1'!N30,'T2'!L30),COUNTRY_INFO!G30),0)) -> 0 | AG30: =IF(AND(COUNTRY_INFO!K30>0,COUNTRY_INFO!K30<4),IF(Z30>0,IF(COUNTRY_INFO!K30=1, 0, IF(COUNTRY_INFO!K30=2, AF30/(COUNTRY_INFO!G30*0.2)*100, IF(COUNTRY_INFO!K30=3, AF30/COUNTRY_INFO!G30*100))),"-"),0) -> 0 | AH30: 41269 | AI30: =IF(AND(COUNTRY_INFO!K30>0,COUNTRY_INFO!K30<4), IF(AC30/Z30*100<>0, IF(AH30/Z30*100>100,100,AH30/Z30*100), "-"),0) -> 97.11266943 | AK30: =IF(AND(D30<>0, D30<>"Unknown",D30<>"Stopped",D30<>"Not required"),D30/COUNTRY_INFO!D30, 0) -> 0 | AL30: =IF(AND(J30<>0,J30<>"Unknown",J30<>"Stopped",J30<>"Not required"),J30/COUNTRY_INFO!D30, 0) -> 0 | AM30: =IF(AND(P30<>0,P30<>"Unknown",P30<>"Not required"),P30/(COUNTRY_INFO!E30+COUNTRY_INFO!F30), 0) -> 0 | AN30: =IF(AND(Z30<>0,Z30<>"Unknown",Z30<>"Not required"),IF(COUNTRY_INFO!K30=1,1,IF(COUNTRY_INFO!K30=2,0.5*COUNTRY_INFO!F30/(0.5*COUNTRY_INFO!F30+0.2*COUNTRY_INFO!G30),IF(COUNTRY_INFO!K30=3,COUNTRY_INFO!F30/(COUNTRY_INFO!F30+COUNTRY_INFO!G30)))),0) -> 0.5598745268 | AO30: =IF(AND(Z30<>0,Z30<>"Unknown",Z30<>"Not required"),IF(COUNTRY_INFO!K30=1,0,IF(COUNTRY_INFO!K30=2,0.2*COUNTRY_INFO!G30/(0.5*COUNTRY_INFO!F30+0.2*COUNTRY_INFO!G30),IF(COUNTRY_INFO!K30=3,COUNTRY_INFO!G30/(COUNTRY_INFO!F30+COUNTRY_INFO!G30)))),0) -> 0.4401254732 | AP30: =MAX(COUNTRY_INFO!D30*AK30*PROFILE!$G$7,COUNTRY_INFO!D30*AL30*PROFILE!$G$7) -> 0 | AQ30: =MAX(COUNTRY_INFO!D30*AK30*PROFILE!$G$8,COUNTRY_INFO!D30*AL30*PROFILE!$G$8,COUNTRY_INFO!D30*AM30*PROFILE!$G$8) -> 0 | AR30: =MAX(COUNTRY_INFO!D30*AK30*PROFILE!$G$9,COUNTRY_INFO!D30*AL30*PROFILE!$G$9,COUNTRY_INFO!D30*AM30*PROFILE!$G$9,IF(AND(DISTRICT!Z30<>"Unknown",Z30<>"Not required"),COUNTRY_INFO!O30*DISTRICT!AN30,0)) -> 23792.42789 | AS30: =MAX(COUNTRY_INFO!D30*AK30*PROFILE!$G$10,COUNTRY_INFO!D30*AL30*PROFILE!$G$10,IF(AND(DISTRICT!Z30<>"Unknown",Z30<>"Not required"),COUNTRY_INFO!O30*DISTRICT!AO30,0)) -> 18703.57211 | AT30: 42496 | AU30: Y | AV30: =MAX('MDA2'!J30,'T1'!L30,'T2'!J30,T3_R1!K30,T3_R2!K30) -> 39738 | AW30: =MAX('MDA1'!K30,'MDA2'!K30,'MDA3'!I30,'MDA3'!L30,'T1'!M30,'T2'!K30,T3_R1!L30,T3_R2!L30) -> 107962 | AX30: =MAX('MDA1'!L30,'MDA2'!L30,'MDA3'!J30,'MDA3'!M30,'T1'!N30,'T2'!L30,T3_R1!M30,T3_R2!M30) -> 0 | AY30: 147700 | AZ30: =MAX('MDA2'!J30,T30) -> 0 | BA30: =MAX('MDA1'!K30,'MDA2'!K30,'MDA3'!I30,'MDA3'!L30,V30,AD30) -> 41269 | BB30: =MAX('MDA1'!L30,'MDA2'!L30,'MDA3'!J30,'MDA3'!M30,AF30) -> 0 | BC30: 41269 | BD30: 97.11266943
A31: =IF(COUNTRY_INFO!A31=0," ",COUNTRY_INFO!A31) -> Rwanda | B31: =IF(COUNTRY_INFO!B31=0," ",COUNTRY_INFO!B31) -> Kigali | C31: =IF(COUNTRY_INFO!C31=0," ",COUNTRY_INFO!C31) -> Nyarugenge | D31: =COUNTRY_INFO!L31 -> Not required | G31: =MAX('MDA1'!M31,'MDA2'!M31) -> 0 | H31: =IF(AND(COUNTRY_INFO!H31>0,COUNTRY_INFO!H31<4),IF(D31>MAX('MDA1'!M31,'MDA2'!M31),MAX('MDA1'!M31,'MDA2'!M31),D31),0) -> 0 | I31: =IF(AND(COUNTRY_INFO!H31>0,COUNTRY_INFO!H31<4), IF(G31/D31*100<>0, IF(G31/D31*100>100,100,G31/D31*100), "-"),0) -> 0 | J31: =COUNTRY_INFO!M31 -> Not required | M31: =MAX('MDA1'!M31,MAX('MDA3'!I31,'MDA3'!L31)+MAX('MDA3'!J31,'MDA3'!M31)) -> 0 | N31: =IF(AND(COUNTRY_INFO!I31>0,COUNTRY_INFO!I31<4),IF(J31>MAX('MDA1'!M31,MAX('MDA3'!I31,'MDA3'!L31)+MAX('MDA3'!J31,'MDA3'!M31)),MAX('MDA1'!M31,MAX('MDA3'!I31,'MDA3'!L31)+MAX('MDA3'!J31,'MDA3'!M31)),J31),0) -> 0 | O31: =IF(AND(COUNTRY_INFO!I31>0,COUNTRY_INFO!I31<4), IF(M31/J31*100<>0, IF(M31/J31*100>100,100,M31/J31*100), "-"),0) -> 0 | P31: =COUNTRY_INFO!N31 -> 0 | S31: =SUM(MAX('MDA2'!J31, 'T1'!L31, MAX(T3_R1!K31, T3_R2!K31)), MAX('MDA1'!K31, 'MDA2'!K31, 'T1'!M31, MAX(T3_R1!L31, T3_R2!L31)), MAX('MDA1'!L31, 'MDA2'!L31, 'T1'!N31, MAX(T3_R1!M31, T3_R2!M31))) -> 130904 | T31: =IF(AND(COUNTRY_INFO!J31>1,COUNTRY_INFO!J31<4),IF(COUNTRY_INFO!E31>MAX('MDA2'!J31,'T1'!L31,MAX(T3_R1!K31,T3_R2!K31)),MAX('MDA2'!J31,'T1'!L31,MAX(T3_R1!K31,T3_R2!K31)),COUNTRY_INFO!E31),0) -> 0 | U31: =IF(AND(COUNTRY_INFO!J31>1,COUNTRY_INFO!J31<4), IF(T31/COUNTRY_INFO!E31*100<>0, IF(T31/COUNTRY_INFO!E31*100>100,100,T31/COUNTRY_INFO!E31*100), "-"),0) -> 0 | V31: =IF(AND(COUNTRY_INFO!J31>1,COUNTRY_INFO!J31<4),IF(COUNTRY_INFO!F31>MAX('MDA1'!K31,'MDA2'!K31,'T1'!M31,MAX(T3_R1!L31,T3_R2!L31)),MAX('MDA1'!K31,'MDA2'!K31,'T1'!M31,MAX(T3_R1!L31,T3_R2!L31)),COUNTRY_INFO!F31),0) -> 0 | W31: =IF(AND(COUNTRY_INFO!J31>1,COUNTRY_INFO!J31<4), IF(V31/COUNTRY_INFO!F31*100<>0, IF(V31/COUNTRY_INFO!F31*100>100,100,V31/COUNTRY_INFO!F31*100), "-"),0) -> 0 | X31: 0 | Y31: =IF(AND(COUNTRY_INFO!J31>1,COUNTRY_INFO!J31<4), IF(S31/P31*100<>0, IF(X31/P31*100>100,100,X31/P31*100), "-"),0) -> 0 | Z31: =COUNTRY_INFO!O31 -> 4129 | AC31: =MAX('T1'!L31,'T2'!J31)+MAX('T1'!M31,'T2'!K31)+MAX('T1'!N31,'T2'!L31) -> 8116 | AD31: =IF(COUNTRY_INFO!K31=1,IF(COUNTRY_INFO!F31*0.33>MAX('T1'!M31,'T2'!K31),MAX('T1'!M31,'T2'!K31),COUNTRY_INFO!F31*0.33),IF(COUNTRY_INFO!K31=2,IF(COUNTRY_INFO!F31*0.5>MAX('T1'!M31,'T2'!K31),MAX('T1'!M31,'T2'!K31),COUNTRY_INFO!F31*0.5),IF(COUNTRY_INFO!K31=3,IF(COUNTRY_INFO!F31>MAX('T1'!M31,'T2'!K31),MAX('T1'!M31,'T2'!K31),COUNTRY_INFO!F31),0))) -> 8116 | AE31: =IF(AND(COUNTRY_INFO!K31>0,COUNTRY_INFO!K31<4),IF(Z31>0,IF(COUNTRY_INFO!K31=1, AD31/(COUNTRY_INFO!F31*0.33)*100, IF(COUNTRY_INFO!K31=2, AD31/(COUNTRY_INFO!F31*0.5)*100, IF(COUNTRY_INFO!K31=3, AD31/COUNTRY_INFO!F31*100))),"-"),0) -> 17.67017559 | AF31: =IF(COUNTRY_INFO!K31=2,IF(COUNTRY_INFO!G31*0.2>MAX('T1'!N31,'T2'!L31),MAX('T1'!N31,'T2'!L31),COUNTRY_INFO!G31*0.2),IF(COUNTRY_INFO!K31=3,IF(COUNTRY_INFO!G31>MAX('T1'!N31,'T2'!L31),MAX('T1'!N31,'T2'!L31),COUNTRY_INFO!G31),0)) -> 0 | AG31: =IF(AND(COUNTRY_INFO!K31>0,COUNTRY_INFO!K31<4),IF(Z31>0,IF(COUNTRY_INFO!K31=1, 0, IF(COUNTRY_INFO!K31=2, AF31/(COUNTRY_INFO!G31*0.2)*100, IF(COUNTRY_INFO!K31=3, AF31/COUNTRY_INFO!G31*100))),"-"),0) -> 0 | AH31: 8116 | AI31: =IF(AND(COUNTRY_INFO!K31>0,COUNTRY_INFO!K31<4), IF(AC31/Z31*100<>0, IF(AH31/Z31*100>100,100,AH31/Z31*100), "-"),0) -> 100 | AK31: =IF(AND(D31<>0, D31<>"Unknown",D31<>"Stopped",D31<>"Not required"),D31/COUNTRY_INFO!D31, 0) -> 0 | AL31: =IF(AND(J31<>0,J31<>"Unknown",J31<>"Stopped",J31<>"Not required"),J31/COUNTRY_INFO!D31, 0) -> 0 | AM31: =IF(AND(P31<>0,P31<>"Unknown",P31<>"Not required"),P31/(COUNTRY_INFO!E31+COUNTRY_INFO!F31), 0) -> 0 | AN31: =IF(AND(Z31<>0,Z31<>"Unknown",Z31<>"Not required"),IF(COUNTRY_INFO!K31=1,1,IF(COUNTRY_INFO!K31=2,0.5*COUNTRY_INFO!F31/(0.5*COUNTRY_INFO!F31+0.2*COUNTRY_INFO!G31),IF(COUNTRY_INFO!K31=3,COUNTRY_INFO!F31/(COUNTRY_INFO!F31+COUNTRY_INFO!G31)))),0) -> 0.5598761045 | AO31: =IF(AND(Z31<>0,Z31<>"Unknown",Z31<>"Not required"),IF(COUNTRY_INFO!K31=1,0,IF(COUNTRY_INFO!K31=2,0.2*COUNTRY_INFO!G31/(0.5*COUNTRY_INFO!F31+0.2*COUNTRY_INFO!G31),IF(COUNTRY_INFO!K31=3,COUNTRY_INFO!G31/(COUNTRY_INFO!F31+COUNTRY_INFO!G31)))),0) -> 0.4401238955 | AP31: =MAX(COUNTRY_INFO!D31*AK31*PROFILE!$G$7,COUNTRY_INFO!D31*AL31*PROFILE!$G$7) -> 0 | AQ31: =MAX(COUNTRY_INFO!D31*AK31*PROFILE!$G$8,COUNTRY_INFO!D31*AL31*PROFILE!$G$8,COUNTRY_INFO!D31*AM31*PROFILE!$G$8) -> 0 | AR31: =MAX(COUNTRY_INFO!D31*AK31*PROFILE!$G$9,COUNTRY_INFO!D31*AL31*PROFILE!$G$9,COUNTRY_INFO!D31*AM31*PROFILE!$G$9,IF(AND(DISTRICT!Z31<>"Unknown",Z31<>"Not required"),COUNTRY_INFO!O31*DISTRICT!AN31,0)) -> 2311.728436 | AS31: =MAX(COUNTRY_INFO!D31*AK31*PROFILE!$G$10,COUNTRY_INFO!D31*AL31*PROFILE!$G$10,IF(AND(DISTRICT!Z31<>"Unknown",Z31<>"Not required"),COUNTRY_INFO!O31*DISTRICT!AO31,0)) -> 1817.271564 | AT31: 4129 | AU31: Y | AV31: =MAX('MDA2'!J31,'T1'!L31,'T2'!J31,T3_R1!K31,T3_R2!K31) -> 42561 | AW31: =MAX('MDA1'!K31,'MDA2'!K31,'MDA3'!I31,'MDA3'!L31,'T1'!M31,'T2'!K31,T3_R1!L31,T3_R2!L31) -> 88343 | AX31: =MAX('MDA1'!L31,'MDA2'!L31,'MDA3'!J31,'MDA3'!M31,'T1'!N31,'T2'!L31,T3_R1!M31,T3_R2!M31) -> 0 | AY31: 130904 | AZ31: =MAX('MDA2'!J31,T31) -> 0 | BA31: =MAX('MDA1'!K31,'MDA2'!K31,'MDA3'!I31,'MDA3'!L31,V31,AD31) -> 8116 | BB31: =MAX('MDA1'!L31,'MDA2'!L31,'MDA3'!J31,'MDA3'!M31,AF31) -> 0 | BC31: 4129 | BD31: 100
A32: =IF(COUNTRY_INFO!A32=0," ",COUNTRY_INFO!A32) -> Rwanda | B32: =IF(COUNTRY_INFO!B32=0," ",COUNTRY_INFO!B32) -> South | C32: =IF(COUNTRY_INFO!C32=0," ",COUNTRY_INFO!C32) -> Nyaruguru | D32: =COUNTRY_INFO!L32 -> Not required | G32: =MAX('MDA1'!M32,'MDA2'!M32) -> 0 | H32: =IF(AND(COUNTRY_INFO!H32>0,COUNTRY_INFO!H32<4),IF(D32>MAX('MDA1'!M32,'MDA2'!M32),MAX('MDA1'!M32,'MDA2'!M32),D32),0) -> 0 | I32: =IF(AND(COUNTRY_INFO!H32>0,COUNTRY_INFO!H32<4), IF(G32/D32*100<>0, IF(G32/D32*100>100,100,G32/D32*100), "-"),0) -> 0 | J32: =COUNTRY_INFO!M32 -> Not required | M32: =MAX('MDA1'!M32,MAX('MDA3'!I32,'MDA3'!L32)+MAX('MDA3'!J32,'MDA3'!M32)) -> 0 | N32: =IF(AND(COUNTRY_INFO!I32>0,COUNTRY_INFO!I32<4),IF(J32>MAX('MDA1'!M32,MAX('MDA3'!I32,'MDA3'!L32)+MAX('MDA3'!J32,'MDA3'!M32)),MAX('MDA1'!M32,MAX('MDA3'!I32,'MDA3'!L32)+MAX('MDA3'!J32,'MDA3'!M32)),J32),0) -> 0 | O32: =IF(AND(COUNTRY_INFO!I32>0,COUNTRY_INFO!I32<4), IF(M32/J32*100<>0, IF(M32/J32*100>100,100,M32/J32*100), "-"),0) -> 0 | P32: =COUNTRY_INFO!N32 -> 134100 | S32: =SUM(MAX('MDA2'!J32, 'T1'!L32, MAX(T3_R1!K32, T3_R2!K32)), MAX('MDA1'!K32, 'MDA2'!K32, 'T1'!M32, MAX(T3_R1!L32, T3_R2!L32)), MAX('MDA1'!L32, 'MDA2'!L32, 'T1'!N32, MAX(T3_R1!M32, T3_R2!M32))) -> 138966 | T32: =IF(AND(COUNTRY_INFO!J32>1,COUNTRY_INFO!J32<4),IF(COUNTRY_INFO!E32>MAX('MDA2'!J32,'T1'!L32,MAX(T3_R1!K32,T3_R2!K32)),MAX('MDA2'!J32,'T1'!L32,MAX(T3_R1!K32,T3_R2!K32)),COUNTRY_INFO!E32),0) -> 38740 | U32: =IF(AND(COUNTRY_INFO!J32>1,COUNTRY_INFO!J32<4), IF(T32/COUNTRY_INFO!E32*100<>0, IF(T32/COUNTRY_INFO!E32*100>100,100,T32/COUNTRY_INFO!E32*100), "-"),0) -> 100 | V32: =IF(AND(COUNTRY_INFO!J32>1,COUNTRY_INFO!J32<4),IF(COUNTRY_INFO!F32>MAX('MDA1'!K32,'MDA2'!K32,'T1'!M32,MAX(T3_R1!L32,T3_R2!L32)),MAX('MDA1'!K32,'MDA2'!K32,'T1'!M32,MAX(T3_R1!L32,T3_R2!L32)),COUNTRY_INFO!F32),0) -> 95360 | W32: =IF(AND(COUNTRY_INFO!J32>1,COUNTRY_INFO!J32<4), IF(V32/COUNTRY_INFO!F32*100<>0, IF(V32/COUNTRY_INFO!F32*100>100,100,V32/COUNTRY_INFO!F32*100), "-"),0) -> 100 | X32: 134100 | Y32: =IF(AND(COUNTRY_INFO!J32>1,COUNTRY_INFO!J32<4), IF(S32/P32*100<>0, IF(X32/P32*100>100,100,X32/P32*100), "-"),0) -> 100 | Z32: =COUNTRY_INFO!O32 -> 0 | AC32: =MAX('T1'!L32,'T2'!J32)+MAX('T1'!M32,'T2'!K32)+MAX('T1'!N32,'T2'!L32) -> 0 | AD32: =IF(COUNTRY_INFO!K32=1,IF(COUNTRY_INFO!F32*0.33>MAX('T1'!M32,'T2'!K32),MAX('T1'!M32,'T2'!K32),COUNTRY_INFO!F32*0.33),IF(COUNTRY_INFO!K32=2,IF(COUNTRY_INFO!F32*0.5>MAX('T1'!M32,'T2'!K32),MAX('T1'!M32,'T2'!K32),COUNTRY_INFO!F32*0.5),IF(COUNTRY_INFO!K32=3,IF(COUNTRY_INFO!F32>MAX('T1'!M32,'T2'!K32),MAX('T1'!M32,'T2'!K32),COUNTRY_INFO!F32),0))) -> 0 | AE32: =IF(AND(COUNTRY_INFO!K32>0,COUNTRY_INFO!K32<4),IF(Z32>0,IF(COUNTRY_INFO!K32=1, AD32/(COUNTRY_INFO!F32*0.33)*100, IF(COUNTRY_INFO!K32=2, AD32/(COUNTRY_INFO!F32*0.5)*100, IF(COUNTRY_INFO!K32=3, AD32/COUNTRY_INFO!F32*100))),"-"),0) -> - | AF32: =IF(COUNTRY_INFO!K32=2,IF(COUNTRY_INFO!G32*0.2>MAX('T1'!N32,'T2'!L32),MAX('T1'!N32,'T2'!L32),COUNTRY_INFO!G32*0.2),IF(COUNTRY_INFO!K32=3,IF(COUNTRY_INFO!G32>MAX('T1'!N32,'T2'!L32),MAX('T1'!N32,'T2'!L32),COUNTRY_INFO!G32),0)) -> 0 | AG32: =IF(AND(COUNTRY_INFO!K32>0,COUNTRY_INFO!K32<4),IF(Z32>0,IF(COUNTRY_INFO!K32=1, 0, IF(COUNTRY_INFO!K32=2, AF32/(COUNTRY_INFO!G32*0.2)*100, IF(COUNTRY_INFO!K32=3, AF32/COUNTRY_INFO!G32*100))),"-"),0) -> - | AH32: 0 | AI32: =IF(AND(COUNTRY_INFO!K32>0,COUNTRY_INFO!K32<4), IF(AC32/Z32*100<>0, IF(AH32/Z32*100>100,100,AH32/Z32*100), "-"),0) ->  | AK32: =IF(AND(D32<>0, D32<>"Unknown",D32<>"Stopped",D32<>"Not required"),D32/COUNTRY_INFO!D32, 0) -> 0 | AL32: =IF(AND(J32<>0,J32<>"Unknown",J32<>"Stopped",J32<>"Not required"),J32/COUNTRY_INFO!D32, 0) -> 0 | AM32: =IF(AND(P32<>0,P32<>"Unknown",P32<>"Not required"),P32/(COUNTRY_INFO!E32+COUNTRY_INFO!F32), 0) -> 1 | AN32: =IF(AND(Z32<>0,Z32<>"Unknown",Z32<>"Not required"),IF(COUNTRY_INFO!K32=1,1,IF(COUNTRY_INFO!K32=2,0.5*COUNTRY_INFO!F32/(0.5*COUNTRY_INFO!F32+0.2*COUNTRY_INFO!G32),IF(COUNTRY_INFO!K32=3,COUNTRY_INFO!F32/(COUNTRY_INFO!F32+COUNTRY_INFO!G32)))),0) -> 0 | AO32: =IF(AND(Z32<>0,Z32<>"Unknown",Z32<>"Not required"),IF(COUNTRY_INFO!K32=1,0,IF(COUNTRY_INFO!K32=2,0.2*COUNTRY_INFO!G32/(0.5*COUNTRY_INFO!F32+0.2*COUNTRY_INFO!G32),IF(COUNTRY_INFO!K32=3,COUNTRY_INFO!G32/(COUNTRY_INFO!F32+COUNTRY_INFO!G32)))),0) -> 0 | AP32: =MAX(COUNTRY_INFO!D32*AK32*PROFILE!$G$7,COUNTRY_INFO!D32*AL32*PROFILE!$G$7) -> 0 | AQ32: =MAX(COUNTRY_INFO!D32*AK32*PROFILE!$G$8,COUNTRY_INFO!D32*AL32*PROFILE!$G$8,COUNTRY_INFO!D32*AM32*PROFILE!$G$8) -> 38740.0352 | AR32: =MAX(COUNTRY_INFO!D32*AK32*PROFILE!$G$9,COUNTRY_INFO!D32*AL32*PROFILE!$G$9,COUNTRY_INFO!D32*AM32*PROFILE!$G$9,IF(AND(DISTRICT!Z32<>"Unknown",Z32<>"Not required"),COUNTRY_INFO!O32*DISTRICT!AN32,0)) -> 95359.98553 | AS32: =MAX(COUNTRY_INFO!D32*AK32*PROFILE!$G$10,COUNTRY_INFO!D32*AL32*PROFILE!$G$10,IF(AND(DISTRICT!Z32<>"Unknown",Z32<>"Not required"),COUNTRY_INFO!O32*DISTRICT!AO32,0)) -> 0 | AT32: 134100.0207 | AU32: Y | AV32: =MAX('MDA2'!J32,'T1'!L32,'T2'!J32,T3_R1!K32,T3_R2!K32) -> 39078 | AW32: =MAX('MDA1'!K32,'MDA2'!K32,'MDA3'!I32,'MDA3'!L32,'T1'!M32,'T2'!K32,T3_R1!L32,T3_R2!L32) -> 99888 | AX32: =MAX('MDA1'!L32,'MDA2'!L32,'MDA3'!J32,'MDA3'!M32,'T1'!N32,'T2'!L32,T3_R1!M32,T3_R2!M32) -> 0 | AY32: 138966 | AZ32: =MAX('MDA2'!J32,T32) -> 38740 | BA32: =MAX('MDA1'!K32,'MDA2'!K32,'MDA3'!I32,'MDA3'!L32,V32,AD32) -> 95360 | BB32: =MAX('MDA1'!L32,'MDA2'!L32,'MDA3'!J32,'MDA3'!M32,AF32) -> 0 | BC32: 134100 | BD32: 99.99998454
A33: =IF(COUNTRY_INFO!A33=0," ",COUNTRY_INFO!A33) -> Rwanda | B33: =IF(COUNTRY_INFO!B33=0," ",COUNTRY_INFO!B33) -> West | C33: =IF(COUNTRY_INFO!C33=0," ",COUNTRY_INFO!C33) -> Rubavu | D33: =COUNTRY_INFO!L33 -> Not required | G33: =MAX('MDA1'!M33,'MDA2'!M33) -> 0 | H33: =IF(AND(COUNTRY_INFO!H33>0,COUNTRY_INFO!H33<4),IF(D33>MAX('MDA1'!M33,'MDA2'!M33),MAX('MDA1'!M33,'MDA2'!M33),D33),0) -> 0 | I33: =IF(AND(COUNTRY_INFO!H33>0,COUNTRY_INFO!H33<4), IF(G33/D33*100<>0, IF(G33/D33*100>100,100,G33/D33*100), "-"),0) -> 0 | J33: =COUNTRY_INFO!M33 -> Not required | M33: =MAX('MDA1'!M33,MAX('MDA3'!I33,'MDA3'!L33)+MAX('MDA3'!J33,'MDA3'!M33)) -> 0 | N33: =IF(AND(COUNTRY_INFO!I33>0,COUNTRY_INFO!I33<4),IF(J33>MAX('MDA1'!M33,MAX('MDA3'!I33,'MDA3'!L33)+MAX('MDA3'!J33,'MDA3'!M33)),MAX('MDA1'!M33,MAX('MDA3'!I33,'MDA3'!L33)+MAX('MDA3'!J33,'MDA3'!M33)),J33),0) -> 0 | O33: =IF(AND(COUNTRY_INFO!I33>0,COUNTRY_INFO!I33<4), IF(M33/J33*100<>0, IF(M33/J33*100>100,100,M33/J33*100), "-"),0) -> 0 | P33: =COUNTRY_INFO!N33 -> 193220 | S33: =SUM(MAX('MDA2'!J33, 'T1'!L33, MAX(T3_R1!K33, T3_R2!K33)), MAX('MDA1'!K33, 'MDA2'!K33, 'T1'!M33, MAX(T3_R1!L33, T3_R2!L33)), MAX('MDA1'!L33, 'MDA2'!L33, 'T1'!N33, MAX(T3_R1!M33, T3_R2!M33))) -> 188293 | T33: =IF(AND(COUNTRY_INFO!J33>1,COUNTRY_INFO!J33<4),IF(COUNTRY_INFO!E33>MAX('MDA2'!J33,'T1'!L33,MAX(T3_R1!K33,T3_R2!K33)),MAX('MDA2'!J33,'T1'!L33,MAX(T3_R1!K33,T3_R2!K33)),COUNTRY_INFO!E33),0) -> 55819 | U33: =IF(AND(COUNTRY_INFO!J33>1,COUNTRY_INFO!J33<4), IF(T33/COUNTRY_INFO!E33*100<>0, IF(T33/COUNTRY_INFO!E33*100>100,100,T33/COUNTRY_INFO!E33*100), "-"),0) -> 100 | V33: =IF(AND(COUNTRY_INFO!J33>1,COUNTRY_INFO!J33<4),IF(COUNTRY_INFO!F33>MAX('MDA1'!K33,'MDA2'!K33,'T1'!M33,MAX(T3_R1!L33,T3_R2!L33)),MAX('MDA1'!K33,'MDA2'!K33,'T1'!M33,MAX(T3_R1!L33,T3_R2!L33)),COUNTRY_INFO!F33),0) -> 130935 | W33: =IF(AND(COUNTRY_INFO!J33>1,COUNTRY_INFO!J33<4), IF(V33/COUNTRY_INFO!F33*100<>0, IF(V33/COUNTRY_INFO!F33*100>100,100,V33/COUNTRY_INFO!F33*100), "-"),0) -> 95.29406627 | X33: 186754 | Y33: =IF(AND(COUNTRY_INFO!J33>1,COUNTRY_INFO!J33<4), IF(S33/P33*100<>0, IF(X33/P33*100>100,100,X33/P33*100), "-"),0) -> 96.65355553 | Z33: =COUNTRY_INFO!O33 -> 49869 | AC33: =MAX('T1'!L33,'T2'!J33)+MAX('T1'!M33,'T2'!K33)+MAX('T1'!N33,'T2'!L33) -> 43488 | AD33: =IF(COUNTRY_INFO!K33=1,IF(COUNTRY_INFO!F33*0.33>MAX('T1'!M33,'T2'!K33),MAX('T1'!M33,'T2'!K33),COUNTRY_INFO!F33*0.33),IF(COUNTRY_INFO!K33=2,IF(COUNTRY_INFO!F33*0.5>MAX('T1'!M33,'T2'!K33),MAX('T1'!M33,'T2'!K33),COUNTRY_INFO!F33*0.5),IF(COUNTRY_INFO!K33=3,IF(COUNTRY_INFO!F33>MAX('T1'!M33,'T2'!K33),MAX('T1'!M33,'T2'!K33),COUNTRY_INFO!F33),0))) -> 43488 | AE33: =IF(AND(COUNTRY_INFO!K33>0,COUNTRY_INFO!K33<4),IF(Z33>0,IF(COUNTRY_INFO!K33=1, AD33/(COUNTRY_INFO!F33*0.33)*100, IF(COUNTRY_INFO!K33=2, AD33/(COUNTRY_INFO!F33*0.5)*100, IF(COUNTRY_INFO!K33=3, AD33/COUNTRY_INFO!F33*100))),"-"),0) -> 63.30084934 | AF33: =IF(COUNTRY_INFO!K33=2,IF(COUNTRY_INFO!G33*0.2>MAX('T1'!N33,'T2'!L33),MAX('T1'!N33,'T2'!L33),COUNTRY_INFO!G33*0.2),IF(COUNTRY_INFO!K33=3,IF(COUNTRY_INFO!G33>MAX('T1'!N33,'T2'!L33),MAX('T1'!N33,'T2'!L33),COUNTRY_INFO!G33),0)) -> 0 | AG33: =IF(AND(COUNTRY_INFO!K33>0,COUNTRY_INFO!K33<4),IF(Z33>0,IF(COUNTRY_INFO!K33=1, 0, IF(COUNTRY_INFO!K33=2, AF33/(COUNTRY_INFO!G33*0.2)*100, IF(COUNTRY_INFO!K33=3, AF33/COUNTRY_INFO!G33*100))),"-"),0) -> 0 | AH33: 43488 | AI33: =IF(AND(COUNTRY_INFO!K33>0,COUNTRY_INFO!K33<4), IF(AC33/Z33*100<>0, IF(AH33/Z33*100>100,100,AH33/Z33*100), "-"),0) -> 87.20447573 | AK33: =IF(AND(D33<>0, D33<>"Unknown",D33<>"Stopped",D33<>"Not required"),D33/COUNTRY_INFO!D33, 0) -> 0 | AL33: =IF(AND(J33<>0,J33<>"Unknown",J33<>"Stopped",J33<>"Not required"),J33/COUNTRY_INFO!D33, 0) -> 0 | AM33: =IF(AND(P33<>0,P33<>"Unknown",P33<>"Not required"),P33/(COUNTRY_INFO!E33+COUNTRY_INFO!F33), 0) -> 1 | AN33: =IF(AND(Z33<>0,Z33<>"Unknown",Z33<>"Not required"),IF(COUNTRY_INFO!K33=1,1,IF(COUNTRY_INFO!K33=2,0.5*COUNTRY_INFO!F33/(0.5*COUNTRY_INFO!F33+0.2*COUNTRY_INFO!G33),IF(COUNTRY_INFO!K33=3,COUNTRY_INFO!F33/(COUNTRY_INFO!F33+COUNTRY_INFO!G33)))),0) -> 0.5598747911 | AO33: =IF(AND(Z33<>0,Z33<>"Unknown",Z33<>"Not required"),IF(COUNTRY_INFO!K33=1,0,IF(COUNTRY_INFO!K33=2,0.2*COUNTRY_INFO!G33/(0.5*COUNTRY_INFO!F33+0.2*COUNTRY_INFO!G33),IF(COUNTRY_INFO!K33=3,COUNTRY_INFO!G33/(COUNTRY_INFO!F33+COUNTRY_INFO!G33)))),0) -> 0.4401252089 | AP33: =MAX(COUNTRY_INFO!D33*AK33*PROFILE!$G$7,COUNTRY_INFO!D33*AL33*PROFILE!$G$7) -> 0 | AQ33: =MAX(COUNTRY_INFO!D33*AK33*PROFILE!$G$8,COUNTRY_INFO!D33*AL33*PROFILE!$G$8,COUNTRY_INFO!D33*AM33*PROFILE!$G$8) -> 55819.36545 | AR33: =MAX(COUNTRY_INFO!D33*AK33*PROFILE!$G$9,COUNTRY_INFO!D33*AL33*PROFILE!$G$9,COUNTRY_INFO!D33*AM33*PROFILE!$G$9,IF(AND(DISTRICT!Z33<>"Unknown",Z33<>"Not required"),COUNTRY_INFO!O33*DISTRICT!AN33,0)) -> 137401.3693 | AS33: =MAX(COUNTRY_INFO!D33*AK33*PROFILE!$G$10,COUNTRY_INFO!D33*AL33*PROFILE!$G$10,IF(AND(DISTRICT!Z33<>"Unknown",Z33<>"Not required"),COUNTRY_INFO!O33*DISTRICT!AO33,0)) -> 21948.60404 | AT33: 215169.3388 | AU33: Y | AV33: =MAX('MDA2'!J33,'T1'!L33,'T2'!J33,T3_R1!K33,T3_R2!K33) -> 57358 | AW33: =MAX('MDA1'!K33,'MDA2'!K33,'MDA3'!I33,'MDA3'!L33,'T1'!M33,'T2'!K33,T3_R1!L33,T3_R2!L33) -> 130935 | AX33: =MAX('MDA1'!L33,'MDA2'!L33,'MDA3'!J33,'MDA3'!M33,'T1'!N33,'T2'!L33,T3_R1!M33,T3_R2!M33) -> 0 | AY33: 188293 | AZ33: =MAX('MDA2'!J33,T33) -> 55819 | BA33: =MAX('MDA1'!K33,'MDA2'!K33,'MDA3'!I33,'MDA3'!L33,V33,AD33) -> 130935 | BB33: =MAX('MDA1'!L33,'MDA2'!L33,'MDA3'!J33,'MDA3'!M33,AF33) -> 0 | BC33: 186754 | BD33: 86.79396474
A34: =IF(COUNTRY_INFO!A34=0," ",COUNTRY_INFO!A34) -> Rwanda | B34: =IF(COUNTRY_INFO!B34=0," ",COUNTRY_INFO!B34) -> South | C34: =IF(COUNTRY_INFO!C34=0," ",COUNTRY_INFO!C34) -> Ruhango | D34: =COUNTRY_INFO!L34 -> Not required | G34: =MAX('MDA1'!M34,'MDA2'!M34) -> 0 | H34: =IF(AND(COUNTRY_INFO!H34>0,COUNTRY_INFO!H34<4),IF(D34>MAX('MDA1'!M34,'MDA2'!M34),MAX('MDA1'!M34,'MDA2'!M34),D34),0) -> 0 | I34: =IF(AND(COUNTRY_INFO!H34>0,COUNTRY_INFO!H34<4), IF(G34/D34*100<>0, IF(G34/D34*100>100,100,G34/D34*100), "-"),0) -> 0 | J34: =COUNTRY_INFO!M34 -> Not required | M34: =MAX('MDA1'!M34,MAX('MDA3'!I34,'MDA3'!L34)+MAX('MDA3'!J34,'MDA3'!M34)) -> 0 | N34: =IF(AND(COUNTRY_INFO!I34>0,COUNTRY_INFO!I34<4),IF(J34>MAX('MDA1'!M34,MAX('MDA3'!I34,'MDA3'!L34)+MAX('MDA3'!J34,'MDA3'!M34)),MAX('MDA1'!M34,MAX('MDA3'!I34,'MDA3'!L34)+MAX('MDA3'!J34,'MDA3'!M34)),J34),0) -> 0 | O34: =IF(AND(COUNTRY_INFO!I34>0,COUNTRY_INFO!I34<4), IF(M34/J34*100<>0, IF(M34/J34*100>100,100,M34/J34*100), "-"),0) -> 0 | P34: =COUNTRY_INFO!N34 -> 0 | S34: =SUM(MAX('MDA2'!J34, 'T1'!L34, MAX(T3_R1!K34, T3_R2!K34)), MAX('MDA1'!K34, 'MDA2'!K34, 'T1'!M34, MAX(T3_R1!L34, T3_R2!L34)), MAX('MDA1'!L34, 'MDA2'!L34, 'T1'!N34, MAX(T3_R1!M34, T3_R2!M34))) -> 147117 | T34: =IF(AND(COUNTRY_INFO!J34>1,COUNTRY_INFO!J34<4),IF(COUNTRY_INFO!E34>MAX('MDA2'!J34,'T1'!L34,MAX(T3_R1!K34,T3_R2!K34)),MAX('MDA2'!J34,'T1'!L34,MAX(T3_R1!K34,T3_R2!K34)),COUNTRY_INFO!E34),0) -> 0 | U34: =IF(AND(COUNTRY_INFO!J34>1,COUNTRY_INFO!J34<4), IF(T34/COUNTRY_INFO!E34*100<>0, IF(T34/COUNTRY_INFO!E34*100>100,100,T34/COUNTRY_INFO!E34*100), "-"),0) -> 0 | V34: =IF(AND(COUNTRY_INFO!J34>1,COUNTRY_INFO!J34<4),IF(COUNTRY_INFO!F34>MAX('MDA1'!K34,'MDA2'!K34,'T1'!M34,MAX(T3_R1!L34,T3_R2!L34)),MAX('MDA1'!K34,'MDA2'!K34,'T1'!M34,MAX(T3_R1!L34,T3_R2!L34)),COUNTRY_INFO!F34),0) -> 0 | W34: =IF(AND(COUNTRY_INFO!J34>1,COUNTRY_INFO!J34<4), IF(V34/COUNTRY_INFO!F34*100<>0, IF(V34/COUNTRY_INFO!F34*100>100,100,V34/COUNTRY_INFO!F34*100), "-"),0) -> 0 | X34: 0 | Y34: =IF(AND(COUNTRY_INFO!J34>1,COUNTRY_INFO!J34<4), IF(S34/P34*100<>0, IF(X34/P34*100>100,100,X34/P34*100), "-"),0) -> 0 | Z34: =COUNTRY_INFO!O34 -> 14526 | AC34: =MAX('T1'!L34,'T2'!J34)+MAX('T1'!M34,'T2'!K34)+MAX('T1'!N34,'T2'!L34) -> 20508 | AD34: =IF(COUNTRY_INFO!K34=1,IF(COUNTRY_INFO!F34*0.33>MAX('T1'!M34,'T2'!K34),MAX('T1'!M34,'T2'!K34),COUNTRY_INFO!F34*0.33),IF(COUNTRY_INFO!K34=2,IF(COUNTRY_INFO!F34*0.5>MAX('T1'!M34,'T2'!K34),MAX('T1'!M34,'T2'!K34),COUNTRY_INFO!F34*0.5),IF(COUNTRY_INFO!K34=3,IF(COUNTRY_INFO!F34>MAX('T1'!M34,'T2'!K34),MAX('T1'!M34,'T2'!K34),COUNTRY_INFO!F34),0))) -> 20508 | AE34: =IF(AND(COUNTRY_INFO!K34>0,COUNTRY_INFO!K34<4),IF(Z34>0,IF(COUNTRY_INFO!K34=1, AD34/(COUNTRY_INFO!F34*0.33)*100, IF(COUNTRY_INFO!K34=2, AD34/(COUNTRY_INFO!F34*0.5)*100, IF(COUNTRY_INFO!K34=3, AD34/COUNTRY_INFO!F34*100))),"-"),0) -> 39.1396454 | AF34: =IF(COUNTRY_INFO!K34=2,IF(COUNTRY_INFO!G34*0.2>MAX('T1'!N34,'T2'!L34),MAX('T1'!N34,'T2'!L34),COUNTRY_INFO!G34*0.2),IF(COUNTRY_INFO!K34=3,IF(COUNTRY_INFO!G34>MAX('T1'!N34,'T2'!L34),MAX('T1'!N34,'T2'!L34),COUNTRY_INFO!G34),0)) -> 0 | AG34: =IF(AND(COUNTRY_INFO!K34>0,COUNTRY_INFO!K34<4),IF(Z34>0,IF(COUNTRY_INFO!K34=1, 0, IF(COUNTRY_INFO!K34=2, AF34/(COUNTRY_INFO!G34*0.2)*100, IF(COUNTRY_INFO!K34=3, AF34/COUNTRY_INFO!G34*100))),"-"),0) -> 0 | AH34: 20508 | AI34: =IF(AND(COUNTRY_INFO!K34>0,COUNTRY_INFO!K34<4), IF(AC34/Z34*100<>0, IF(AH34/Z34*100>100,100,AH34/Z34*100), "-"),0) -> 100 | AK34: =IF(AND(D34<>0, D34<>"Unknown",D34<>"Stopped",D34<>"Not required"),D34/COUNTRY_INFO!D34, 0) -> 0 | AL34: =IF(AND(J34<>0,J34<>"Unknown",J34<>"Stopped",J34<>"Not required"),J34/COUNTRY_INFO!D34, 0) -> 0 | AM34: =IF(AND(P34<>0,P34<>"Unknown",P34<>"Not required"),P34/(COUNTRY_INFO!E34+COUNTRY_INFO!F34), 0) -> 0 | AN34: =IF(AND(Z34<>0,Z34<>"Unknown",Z34<>"Not required"),IF(COUNTRY_INFO!K34=1,1,IF(COUNTRY_INFO!K34=2,0.5*COUNTRY_INFO!F34/(0.5*COUNTRY_INFO!F34+0.2*COUNTRY_INFO!G34),IF(COUNTRY_INFO!K34=3,COUNTRY_INFO!F34/(COUNTRY_INFO!F34+COUNTRY_INFO!G34)))),0) -> 0.5598747689 | AO34: =IF(AND(Z34<>0,Z34<>"Unknown",Z34<>"Not required"),IF(COUNTRY_INFO!K34=1,0,IF(COUNTRY_INFO!K34=2,0.2*COUNTRY_INFO!G34/(0.5*COUNTRY_INFO!F34+0.2*COUNTRY_INFO!G34),IF(COUNTRY_INFO!K34=3,COUNTRY_INFO!G34/(COUNTRY_INFO!F34+COUNTRY_INFO!G34)))),0) -> 0.4401252311 | AP34: =MAX(COUNTRY_INFO!D34*AK34*PROFILE!$G$7,COUNTRY_INFO!D34*AL34*PROFILE!$G$7) -> 0 | AQ34: =MAX(COUNTRY_INFO!D34*AK34*PROFILE!$G$8,COUNTRY_INFO!D34*AL34*PROFILE!$G$8,COUNTRY_INFO!D34*AM34*PROFILE!$G$8) -> 0 | AR34: =MAX(COUNTRY_INFO!D34*AK34*PROFILE!$G$9,COUNTRY_INFO!D34*AL34*PROFILE!$G$9,COUNTRY_INFO!D34*AM34*PROFILE!$G$9,IF(AND(DISTRICT!Z34<>"Unknown",Z34<>"Not required"),COUNTRY_INFO!O34*DISTRICT!AN34,0)) -> 8132.740894 | AS34: =MAX(COUNTRY_INFO!D34*AK34*PROFILE!$G$10,COUNTRY_INFO!D34*AL34*PROFILE!$G$10,IF(AND(DISTRICT!Z34<>"Unknown",Z34<>"Not required"),COUNTRY_INFO!O34*DISTRICT!AO34,0)) -> 6393.259106 | AT34: 14526 | AU34: Y | AV34: =MAX('MDA2'!J34,'T1'!L34,'T2'!J34,T3_R1!K34,T3_R2!K34) -> 42749 | AW34: =MAX('MDA1'!K34,'MDA2'!K34,'MDA3'!I34,'MDA3'!L34,'T1'!M34,'T2'!K34,T3_R1!L34,T3_R2!L34) -> 104368 | AX34: =MAX('MDA1'!L34,'MDA2'!L34,'MDA3'!J34,'MDA3'!M34,'T1'!N34,'T2'!L34,T3_R1!M34,T3_R2!M34) -> 0 | AY34: 147117 | AZ34: =MAX('MDA2'!J34,T34) -> 0 | BA34: =MAX('MDA1'!K34,'MDA2'!K34,'MDA3'!I34,'MDA3'!L34,V34,AD34) -> 20508 | BB34: =MAX('MDA1'!L34,'MDA2'!L34,'MDA3'!J34,'MDA3'!M34,AF34) -> 0 | BC34: 14526 | BD34: 100
A35: =IF(COUNTRY_INFO!A35=0," ",COUNTRY_INFO!A35) -> Rwanda | B35: =IF(COUNTRY_INFO!B35=0," ",COUNTRY_INFO!B35) -> North | C35: =IF(COUNTRY_INFO!C35=0," ",COUNTRY_INFO!C35) -> Rulindo | D35: =COUNTRY_INFO!L35 -> Not required | G35: =MAX('MDA1'!M35,'MDA2'!M35) -> 0 | H35: =IF(AND(COUNTRY_INFO!H35>0,COUNTRY_INFO!H35<4),IF(D35>MAX('MDA1'!M35,'MDA2'!M35),MAX('MDA1'!M35,'MDA2'!M35),D35),0) -> 0 | I35: =IF(AND(COUNTRY_INFO!H35>0,COUNTRY_INFO!H35<4), IF(G35/D35*100<>0, IF(G35/D35*100>100,100,G35/D35*100), "-"),0) -> 0 | J35: =COUNTRY_INFO!M35 -> Not required | M35: =MAX('MDA1'!M35,MAX('MDA3'!I35,'MDA3'!L35)+MAX('MDA3'!J35,'MDA3'!M35)) -> 0 | N35: =IF(AND(COUNTRY_INFO!I35>0,COUNTRY_INFO!I35<4),IF(J35>MAX('MDA1'!M35,MAX('MDA3'!I35,'MDA3'!L35)+MAX('MDA3'!J35,'MDA3'!M35)),MAX('MDA1'!M35,MAX('MDA3'!I35,'MDA3'!L35)+MAX('MDA3'!J35,'MDA3'!M35)),J35),0) -> 0 | O35: =IF(AND(COUNTRY_INFO!I35>0,COUNTRY_INFO!I35<4), IF(M35/J35*100<>0, IF(M35/J35*100>100,100,M35/J35*100), "-"),0) -> 0 | P35: =COUNTRY_INFO!N35 -> 126512 | S35: =SUM(MAX('MDA2'!J35, 'T1'!L35, MAX(T3_R1!K35, T3_R2!K35)), MAX('MDA1'!K35, 'MDA2'!K35, 'T1'!M35, MAX(T3_R1!L35, T3_R2!L35)), MAX('MDA1'!L35, 'MDA2'!L35, 'T1'!N35, MAX(T3_R1!M35, T3_R2!M35))) -> 142831 | T35: =IF(AND(COUNTRY_INFO!J35>1,COUNTRY_INFO!J35<4),IF(COUNTRY_INFO!E35>MAX('MDA2'!J35,'T1'!L35,MAX(T3_R1!K35,T3_R2!K35)),MAX('MDA2'!J35,'T1'!L35,MAX(T3_R1!K35,T3_R2!K35)),COUNTRY_INFO!E35),0) -> 36548 | U35: =IF(AND(COUNTRY_INFO!J35>1,COUNTRY_INFO!J35<4), IF(T35/COUNTRY_INFO!E35*100<>0, IF(T35/COUNTRY_INFO!E35*100>100,100,T35/COUNTRY_INFO!E35*100), "-"),0) -> 100 | V35: =IF(AND(COUNTRY_INFO!J35>1,COUNTRY_INFO!J35<4),IF(COUNTRY_INFO!F35>MAX('MDA1'!K35,'MDA2'!K35,'T1'!M35,MAX(T3_R1!L35,T3_R2!L35)),MAX('MDA1'!K35,'MDA2'!K35,'T1'!M35,MAX(T3_R1!L35,T3_R2!L35)),COUNTRY_INFO!F35),0) -> 89964 | W35: =IF(AND(COUNTRY_INFO!J35>1,COUNTRY_INFO!J35<4), IF(V35/COUNTRY_INFO!F35*100<>0, IF(V35/COUNTRY_INFO!F35*100>100,100,V35/COUNTRY_INFO!F35*100), "-"),0) -> 100 | X35: 126512 | Y35: =IF(AND(COUNTRY_INFO!J35>1,COUNTRY_INFO!J35<4), IF(S35/P35*100<>0, IF(X35/P35*100>100,100,X35/P35*100), "-"),0) -> 100 | Z35: =COUNTRY_INFO!O35 -> 8573 | AC35: =MAX('T1'!L35,'T2'!J35)+MAX('T1'!M35,'T2'!K35)+MAX('T1'!N35,'T2'!L35) -> 12640 | AD35: =IF(COUNTRY_INFO!K35=1,IF(COUNTRY_INFO!F35*0.33>MAX('T1'!M35,'T2'!K35),MAX('T1'!M35,'T2'!K35),COUNTRY_INFO!F35*0.33),IF(COUNTRY_INFO!K35=2,IF(COUNTRY_INFO!F35*0.5>MAX('T1'!M35,'T2'!K35),MAX('T1'!M35,'T2'!K35),COUNTRY_INFO!F35*0.5),IF(COUNTRY_INFO!K35=3,IF(COUNTRY_INFO!F35>MAX('T1'!M35,'T2'!K35),MAX('T1'!M35,'T2'!K35),COUNTRY_INFO!F35),0))) -> 12640 | AE35: =IF(AND(COUNTRY_INFO!K35>0,COUNTRY_INFO!K35<4),IF(Z35>0,IF(COUNTRY_INFO!K35=1, AD35/(COUNTRY_INFO!F35*0.33)*100, IF(COUNTRY_INFO!K35=2, AD35/(COUNTRY_INFO!F35*0.5)*100, IF(COUNTRY_INFO!K35=3, AD35/COUNTRY_INFO!F35*100))),"-"),0) -> 28.10012894 | AF35: =IF(COUNTRY_INFO!K35=2,IF(COUNTRY_INFO!G35*0.2>MAX('T1'!N35,'T2'!L35),MAX('T1'!N35,'T2'!L35),COUNTRY_INFO!G35*0.2),IF(COUNTRY_INFO!K35=3,IF(COUNTRY_INFO!G35>MAX('T1'!N35,'T2'!L35),MAX('T1'!N35,'T2'!L35),COUNTRY_INFO!G35),0)) -> 0 | AG35: =IF(AND(COUNTRY_INFO!K35>0,COUNTRY_INFO!K35<4),IF(Z35>0,IF(COUNTRY_INFO!K35=1, 0, IF(COUNTRY_INFO!K35=2, AF35/(COUNTRY_INFO!G35*0.2)*100, IF(COUNTRY_INFO!K35=3, AF35/COUNTRY_INFO!G35*100))),"-"),0) -> 0 | AH35: 12640 | AI35: =IF(AND(COUNTRY_INFO!K35>0,COUNTRY_INFO!K35<4), IF(AC35/Z35*100<>0, IF(AH35/Z35*100>100,100,AH35/Z35*100), "-"),0) -> 100 | AK35: =IF(AND(D35<>0, D35<>"Unknown",D35<>"Stopped",D35<>"Not required"),D35/COUNTRY_INFO!D35, 0) -> 0 | AL35: =IF(AND(J35<>0,J35<>"Unknown",J35<>"Stopped",J35<>"Not required"),J35/COUNTRY_INFO!D35, 0) -> 0 | AM35: =IF(AND(P35<>0,P35<>"Unknown",P35<>"Not required"),P35/(COUNTRY_INFO!E35+COUNTRY_INFO!F35), 0) -> 1 | AN35: =IF(AND(Z35<>0,Z35<>"Unknown",Z35<>"Not required"),IF(COUNTRY_INFO!K35=1,1,IF(COUNTRY_INFO!K35=2,0.5*COUNTRY_INFO!F35/(0.5*COUNTRY_INFO!F35+0.2*COUNTRY_INFO!G35),IF(COUNTRY_INFO!K35=3,COUNTRY_INFO!F35/(COUNTRY_INFO!F35+COUNTRY_INFO!G35)))),0) -> 0.5598759316 | AO35: =IF(AND(Z35<>0,Z35<>"Unknown",Z35<>"Not required"),IF(COUNTRY_INFO!K35=1,0,IF(COUNTRY_INFO!K35=2,0.2*COUNTRY_INFO!G35/(0.5*COUNTRY_INFO!F35+0.2*COUNTRY_INFO!G35),IF(COUNTRY_INFO!K35=3,COUNTRY_INFO!G35/(COUNTRY_INFO!F35+COUNTRY_INFO!G35)))),0) -> 0.4401240684 | AP35: =MAX(COUNTRY_INFO!D35*AK35*PROFILE!$G$7,COUNTRY_INFO!D35*AL35*PROFILE!$G$7) -> 0 | AQ35: =MAX(COUNTRY_INFO!D35*AK35*PROFILE!$G$8,COUNTRY_INFO!D35*AL35*PROFILE!$G$8,COUNTRY_INFO!D35*AM35*PROFILE!$G$8) -> 36547.80347 | AR35: =MAX(COUNTRY_INFO!D35*AK35*PROFILE!$G$9,COUNTRY_INFO!D35*AL35*PROFILE!$G$9,COUNTRY_INFO!D35*AM35*PROFILE!$G$9,IF(AND(DISTRICT!Z35<>"Unknown",Z35<>"Not required"),COUNTRY_INFO!O35*DISTRICT!AN35,0)) -> 89963.72854 | AS35: =MAX(COUNTRY_INFO!D35*AK35*PROFILE!$G$10,COUNTRY_INFO!D35*AL35*PROFILE!$G$10,IF(AND(DISTRICT!Z35<>"Unknown",Z35<>"Not required"),COUNTRY_INFO!O35*DISTRICT!AO35,0)) -> 3773.183638 | AT35: 130284.7156 | AU35: Y | AV35: =MAX('MDA2'!J35,'T1'!L35,'T2'!J35,T3_R1!K35,T3_R2!K35) -> 42048 | AW35: =MAX('MDA1'!K35,'MDA2'!K35,'MDA3'!I35,'MDA3'!L35,'T1'!M35,'T2'!K35,T3_R1!L35,T3_R2!L35) -> 100783 | AX35: =MAX('MDA1'!L35,'MDA2'!L35,'MDA3'!J35,'MDA3'!M35,'T1'!N35,'T2'!L35,T3_R1!M35,T3_R2!M35) -> 0 | AY35: 142831 | AZ35: =MAX('MDA2'!J35,T35) -> 36548 | BA35: =MAX('MDA1'!K35,'MDA2'!K35,'MDA3'!I35,'MDA3'!L35,V35,AD35) -> 89964 | BB35: =MAX('MDA1'!L35,'MDA2'!L35,'MDA3'!J35,'MDA3'!M35,AF35) -> 0 | BC35: 126512 | BD35: 97.10425307
A36: =IF(COUNTRY_INFO!A36=0," ",COUNTRY_INFO!A36) -> Rwanda | B36: =IF(COUNTRY_INFO!B36=0," ",COUNTRY_INFO!B36) -> West | C36: =IF(COUNTRY_INFO!C36=0," ",COUNTRY_INFO!C36) -> Rusizi | D36: =COUNTRY_INFO!L36 -> Not required | G36: =MAX('MDA1'!M36,'MDA2'!M36) -> 0 | H36: =IF(AND(COUNTRY_INFO!H36>0,COUNTRY_INFO!H36<4),IF(D36>MAX('MDA1'!M36,'MDA2'!M36),MAX('MDA1'!M36,'MDA2'!M36),D36),0) -> 0 | I36: =IF(AND(COUNTRY_INFO!H36>0,COUNTRY_INFO!H36<4), IF(G36/D36*100<>0, IF(G36/D36*100>100,100,G36/D36*100), "-"),0) -> 0 | J36: =COUNTRY_INFO!M36 -> Not required | M36: =MAX('MDA1'!M36,MAX('MDA3'!I36,'MDA3'!L36)+MAX('MDA3'!J36,'MDA3'!M36)) -> 0 | N36: =IF(AND(COUNTRY_INFO!I36>0,COUNTRY_INFO!I36<4),IF(J36>MAX('MDA1'!M36,MAX('MDA3'!I36,'MDA3'!L36)+MAX('MDA3'!J36,'MDA3'!M36)),MAX('MDA1'!M36,MAX('MDA3'!I36,'MDA3'!L36)+MAX('MDA3'!J36,'MDA3'!M36)),J36),0) -> 0 | O36: =IF(AND(COUNTRY_INFO!I36>0,COUNTRY_INFO!I36<4), IF(M36/J36*100<>0, IF(M36/J36*100>100,100,M36/J36*100), "-"),0) -> 0 | P36: =COUNTRY_INFO!N36 -> 182078 | S36: =SUM(MAX('MDA2'!J36, 'T1'!L36, MAX(T3_R1!K36, T3_R2!K36)), MAX('MDA1'!K36, 'MDA2'!K36, 'T1'!M36, MAX(T3_R1!L36, T3_R2!L36)), MAX('MDA1'!L36, 'MDA2'!L36, 'T1'!N36, MAX(T3_R1!M36, T3_R2!M36))) -> 198387 | T36: =IF(AND(COUNTRY_INFO!J36>1,COUNTRY_INFO!J36<4),IF(COUNTRY_INFO!E36>MAX('MDA2'!J36,'T1'!L36,MAX(T3_R1!K36,T3_R2!K36)),MAX('MDA2'!J36,'T1'!L36,MAX(T3_R1!K36,T3_R2!K36)),COUNTRY_INFO!E36),0) -> 52600 | U36: =IF(AND(COUNTRY_INFO!J36>1,COUNTRY_INFO!J36<4), IF(T36/COUNTRY_INFO!E36*100<>0, IF(T36/COUNTRY_INFO!E36*100>100,100,T36/COUNTRY_INFO!E36*100), "-"),0) -> 100 | V36: =IF(AND(COUNTRY_INFO!J36>1,COUNTRY_INFO!J36<4),IF(COUNTRY_INFO!F36>MAX('MDA1'!K36,'MDA2'!K36,'T1'!M36,MAX(T3_R1!L36,T3_R2!L36)),MAX('MDA1'!K36,'MDA2'!K36,'T1'!M36,MAX(T3_R1!L36,T3_R2!L36)),COUNTRY_INFO!F36),0) -> 129478 | W36: =IF(AND(COUNTRY_INFO!J36>1,COUNTRY_INFO!J36<4), IF(V36/COUNTRY_INFO!F36*100<>0, IF(V36/COUNTRY_INFO!F36*100>100,100,V36/COUNTRY_INFO!F36*100), "-"),0) -> 100 | X36: 182078 | Y36: =IF(AND(COUNTRY_INFO!J36>1,COUNTRY_INFO!J36<4), IF(S36/P36*100<>0, IF(X36/P36*100>100,100,X36/P36*100), "-"),0) -> 100 | Z36: =COUNTRY_INFO!O36 -> 133160 | AC36: =MAX('T1'!L36,'T2'!J36)+MAX('T1'!M36,'T2'!K36)+MAX('T1'!N36,'T2'!L36) -> 122542 | AD36: =IF(COUNTRY_INFO!K36=1,IF(COUNTRY_INFO!F36*0.33>MAX('T1'!M36,'T2'!K36),MAX('T1'!M36,'T2'!K36),COUNTRY_INFO!F36*0.33),IF(COUNTRY_INFO!K36=2,IF(COUNTRY_INFO!F36*0.5>MAX('T1'!M36,'T2'!K36),MAX('T1'!M36,'T2'!K36),COUNTRY_INFO!F36*0.5),IF(COUNTRY_INFO!K36=3,IF(COUNTRY_INFO!F36>MAX('T1'!M36,'T2'!K36),MAX('T1'!M36,'T2'!K36),COUNTRY_INFO!F36),0))) -> 64739 | AE36: =IF(AND(COUNTRY_INFO!K36>0,COUNTRY_INFO!K36<4),IF(Z36>0,IF(COUNTRY_INFO!K36=1, AD36/(COUNTRY_INFO!F36*0.33)*100, IF(COUNTRY_INFO!K36=2, AD36/(COUNTRY_INFO!F36*0.5)*100, IF(COUNTRY_INFO!K36=3, AD36/COUNTRY_INFO!F36*100))),"-"),0) -> 100 | AF36: =IF(COUNTRY_INFO!K36=2,IF(COUNTRY_INFO!G36*0.2>MAX('T1'!N36,'T2'!L36),MAX('T1'!N36,'T2'!L36),COUNTRY_INFO!G36*0.2),IF(COUNTRY_INFO!K36=3,IF(COUNTRY_INFO!G36>MAX('T1'!N36,'T2'!L36),MAX('T1'!N36,'T2'!L36),COUNTRY_INFO!G36),0)) -> 0 | AG36: =IF(AND(COUNTRY_INFO!K36>0,COUNTRY_INFO!K36<4),IF(Z36>0,IF(COUNTRY_INFO!K36=1, 0, IF(COUNTRY_INFO!K36=2, AF36/(COUNTRY_INFO!G36*0.2)*100, IF(COUNTRY_INFO!K36=3, AF36/COUNTRY_INFO!G36*100))),"-"),0) -> 0 | AH36: 64739 | AI36: =IF(AND(COUNTRY_INFO!K36>0,COUNTRY_INFO!K36<4), IF(AC36/Z36*100<>0, IF(AH36/Z36*100>100,100,AH36/Z36*100), "-"),0) -> 48.61745269 | AK36: =IF(AND(D36<>0, D36<>"Unknown",D36<>"Stopped",D36<>"Not required"),D36/COUNTRY_INFO!D36, 0) -> 0 | AL36: =IF(AND(J36<>0,J36<>"Unknown",J36<>"Stopped",J36<>"Not required"),J36/COUNTRY_INFO!D36, 0) -> 0 | AM36: =IF(AND(P36<>0,P36<>"Unknown",P36<>"Not required"),P36/(COUNTRY_INFO!E36+COUNTRY_INFO!F36), 0) -> 1 | AN36: =IF(AND(Z36<>0,Z36<>"Unknown",Z36<>"Not required"),IF(COUNTRY_INFO!K36=1,1,IF(COUNTRY_INFO!K36=2,0.5*COUNTRY_INFO!F36/(0.5*COUNTRY_INFO!F36+0.2*COUNTRY_INFO!G36),IF(COUNTRY_INFO!K36=3,COUNTRY_INFO!F36/(COUNTRY_INFO!F36+COUNTRY_INFO!G36)))),0) -> 0.5598767802 | AO36: =IF(AND(Z36<>0,Z36<>"Unknown",Z36<>"Not required"),IF(COUNTRY_INFO!K36=1,0,IF(COUNTRY_INFO!K36=2,0.2*COUNTRY_INFO!G36/(0.5*COUNTRY_INFO!F36+0.2*COUNTRY_INFO!G36),IF(COUNTRY_INFO!K36=3,COUNTRY_INFO!G36/(COUNTRY_INFO!F36+COUNTRY_INFO!G36)))),0) -> 0.4401232198 | AP36: =MAX(COUNTRY_INFO!D36*AK36*PROFILE!$G$7,COUNTRY_INFO!D36*AL36*PROFILE!$G$7) -> 0 | AQ36: =MAX(COUNTRY_INFO!D36*AK36*PROFILE!$G$8,COUNTRY_INFO!D36*AL36*PROFILE!$G$8,COUNTRY_INFO!D36*AM36*PROFILE!$G$8) -> 52600.34045 | AR36: =MAX(COUNTRY_INFO!D36*AK36*PROFILE!$G$9,COUNTRY_INFO!D36*AL36*PROFILE!$G$9,COUNTRY_INFO!D36*AM36*PROFILE!$G$9,IF(AND(DISTRICT!Z36<>"Unknown",Z36<>"Not required"),COUNTRY_INFO!O36*DISTRICT!AN36,0)) -> 129477.6238 | AS36: =MAX(COUNTRY_INFO!D36*AK36*PROFILE!$G$10,COUNTRY_INFO!D36*AL36*PROFILE!$G$10,IF(AND(DISTRICT!Z36<>"Unknown",Z36<>"Not required"),COUNTRY_INFO!O36*DISTRICT!AO36,0)) -> 58606.80794 | AT36: 240684.7722 | AU36: Y | AV36: =MAX('MDA2'!J36,'T1'!L36,'T2'!J36,T3_R1!K36,T3_R2!K36) -> 56572 | AW36: =MAX('MDA1'!K36,'MDA2'!K36,'MDA3'!I36,'MDA3'!L36,'T1'!M36,'T2'!K36,T3_R1!L36,T3_R2!L36) -> 141815 | AX36: =MAX('MDA1'!L36,'MDA2'!L36,'MDA3'!J36,'MDA3'!M36,'T1'!N36,'T2'!L36,T3_R1!M36,T3_R2!M36) -> 0 | AY36: 198387 | AZ36: =MAX('MDA2'!J36,T36) -> 52600 | BA36: =MAX('MDA1'!K36,'MDA2'!K36,'MDA3'!I36,'MDA3'!L36,V36,AD36) -> 129478 | BB36: =MAX('MDA1'!L36,'MDA2'!L36,'MDA3'!J36,'MDA3'!M36,AF36) -> 0 | BC36: 182078 | BD36: 75.64998747
A37: =IF(COUNTRY_INFO!A37=0," ",COUNTRY_INFO!A37) -> Rwanda | B37: =IF(COUNTRY_INFO!B37=0," ",COUNTRY_INFO!B37) -> West | C37: =IF(COUNTRY_INFO!C37=0," ",COUNTRY_INFO!C37) -> Rutsiro | D37: =COUNTRY_INFO!L37 -> Not required | G37: =MAX('MDA1'!M37,'MDA2'!M37) -> 0 | H37: =IF(AND(COUNTRY_INFO!H37>0,COUNTRY_INFO!H37<4),IF(D37>MAX('MDA1'!M37,'MDA2'!M37),MAX('MDA1'!M37,'MDA2'!M37),D37),0) -> 0 | I37: =IF(AND(COUNTRY_INFO!H37>0,COUNTRY_INFO!H37<4), IF(G37/D37*100<>0, IF(G37/D37*100>100,100,G37/D37*100), "-"),0) -> 0 | J37: =COUNTRY_INFO!M37 -> Not required | M37: =MAX('MDA1'!M37,MAX('MDA3'!I37,'MDA3'!L37)+MAX('MDA3'!J37,'MDA3'!M37)) -> 0 | N37: =IF(AND(COUNTRY_INFO!I37>0,COUNTRY_INFO!I37<4),IF(J37>MAX('MDA1'!M37,MAX('MDA3'!I37,'MDA3'!L37)+MAX('MDA3'!J37,'MDA3'!M37)),MAX('MDA1'!M37,MAX('MDA3'!I37,'MDA3'!L37)+MAX('MDA3'!J37,'MDA3'!M37)),J37),0) -> 0 | O37: =IF(AND(COUNTRY_INFO!I37>0,COUNTRY_INFO!I37<4), IF(M37/J37*100<>0, IF(M37/J37*100>100,100,M37/J37*100), "-"),0) -> 0 | P37: =COUNTRY_INFO!N37 -> 145270 | S37: =SUM(MAX('MDA2'!J37, 'T1'!L37, MAX(T3_R1!K37, T3_R2!K37)), MAX('MDA1'!K37, 'MDA2'!K37, 'T1'!M37, MAX(T3_R1!L37, T3_R2!L37)), MAX('MDA1'!L37, 'MDA2'!L37, 'T1'!N37, MAX(T3_R1!M37, T3_R2!M37))) -> 155443 | T37: =IF(AND(COUNTRY_INFO!J37>1,COUNTRY_INFO!J37<4),IF(COUNTRY_INFO!E37>MAX('MDA2'!J37,'T1'!L37,MAX(T3_R1!K37,T3_R2!K37)),MAX('MDA2'!J37,'T1'!L37,MAX(T3_R1!K37,T3_R2!K37)),COUNTRY_INFO!E37),0) -> 41967 | U37: =IF(AND(COUNTRY_INFO!J37>1,COUNTRY_INFO!J37<4), IF(T37/COUNTRY_INFO!E37*100<>0, IF(T37/COUNTRY_INFO!E37*100>100,100,T37/COUNTRY_INFO!E37*100), "-"),0) -> 100 | V37: =IF(AND(COUNTRY_INFO!J37>1,COUNTRY_INFO!J37<4),IF(COUNTRY_INFO!F37>MAX('MDA1'!K37,'MDA2'!K37,'T1'!M37,MAX(T3_R1!L37,T3_R2!L37)),MAX('MDA1'!K37,'MDA2'!K37,'T1'!M37,MAX(T3_R1!L37,T3_R2!L37)),COUNTRY_INFO!F37),0) -> 103303 | W37: =IF(AND(COUNTRY_INFO!J37>1,COUNTRY_INFO!J37<4), IF(V37/COUNTRY_INFO!F37*100<>0, IF(V37/COUNTRY_INFO!F37*100>100,100,V37/COUNTRY_INFO!F37*100), "-"),0) -> 100 | X37: 145270 | Y37: =IF(AND(COUNTRY_INFO!J37>1,COUNTRY_INFO!J37<4), IF(S37/P37*100<>0, IF(X37/P37*100>100,100,X37/P37*100), "-"),0) -> 100 | Z37: =COUNTRY_INFO!O37 -> 56582 | AC37: =MAX('T1'!L37,'T2'!J37)+MAX('T1'!M37,'T2'!K37)+MAX('T1'!N37,'T2'!L37) -> 55112 | AD37: =IF(COUNTRY_INFO!K37=1,IF(COUNTRY_INFO!F37*0.33>MAX('T1'!M37,'T2'!K37),MAX('T1'!M37,'T2'!K37),COUNTRY_INFO!F37*0.33),IF(COUNTRY_INFO!K37=2,IF(COUNTRY_INFO!F37*0.5>MAX('T1'!M37,'T2'!K37),MAX('T1'!M37,'T2'!K37),COUNTRY_INFO!F37*0.5),IF(COUNTRY_INFO!K37=3,IF(COUNTRY_INFO!F37>MAX('T1'!M37,'T2'!K37),MAX('T1'!M37,'T2'!K37),COUNTRY_INFO!F37),0))) -> 51651.5 | AE37: =IF(AND(COUNTRY_INFO!K37>0,COUNTRY_INFO!K37<4),IF(Z37>0,IF(COUNTRY_INFO!K37=1, AD37/(COUNTRY_INFO!F37*0.33)*100, IF(COUNTRY_INFO!K37=2, AD37/(COUNTRY_INFO!F37*0.5)*100, IF(COUNTRY_INFO!K37=3, AD37/COUNTRY_INFO!F37*100))),"-"),0) -> 100 | AF37: =IF(COUNTRY_INFO!K37=2,IF(COUNTRY_INFO!G37*0.2>MAX('T1'!N37,'T2'!L37),MAX('T1'!N37,'T2'!L37),COUNTRY_INFO!G37*0.2),IF(COUNTRY_INFO!K37=3,IF(COUNTRY_INFO!G37>MAX('T1'!N37,'T2'!L37),MAX('T1'!N37,'T2'!L37),COUNTRY_INFO!G37),0)) -> 0 | AG37: =IF(AND(COUNTRY_INFO!K37>0,COUNTRY_INFO!K37<4),IF(Z37>0,IF(COUNTRY_INFO!K37=1, 0, IF(COUNTRY_INFO!K37=2, AF37/(COUNTRY_INFO!G37*0.2)*100, IF(COUNTRY_INFO!K37=3, AF37/COUNTRY_INFO!G37*100))),"-"),0) -> 0 | AH37: 51651.5 | AI37: =IF(AND(COUNTRY_INFO!K37>0,COUNTRY_INFO!K37<4), IF(AC37/Z37*100<>0, IF(AH37/Z37*100>100,100,AH37/Z37*100), "-"),0) -> 91.28609805 | AK37: =IF(AND(D37<>0, D37<>"Unknown",D37<>"Stopped",D37<>"Not required"),D37/COUNTRY_INFO!D37, 0) -> 0 | AL37: =IF(AND(J37<>0,J37<>"Unknown",J37<>"Stopped",J37<>"Not required"),J37/COUNTRY_INFO!D37, 0) -> 0 | AM37: =IF(AND(P37<>0,P37<>"Unknown",P37<>"Not required"),P37/(COUNTRY_INFO!E37+COUNTRY_INFO!F37), 0) -> 1 | AN37: =IF(AND(Z37<>0,Z37<>"Unknown",Z37<>"Not required"),IF(COUNTRY_INFO!K37=1,1,IF(COUNTRY_INFO!K37=2,0.5*COUNTRY_INFO!F37/(0.5*COUNTRY_INFO!F37+0.2*COUNTRY_INFO!G37),IF(COUNTRY_INFO!K37=3,COUNTRY_INFO!F37/(COUNTRY_INFO!F37+COUNTRY_INFO!G37)))),0) -> 0.5598756928 | AO37: =IF(AND(Z37<>0,Z37<>"Unknown",Z37<>"Not required"),IF(COUNTRY_INFO!K37=1,0,IF(COUNTRY_INFO!K37=2,0.2*COUNTRY_INFO!G37/(0.5*COUNTRY_INFO!F37+0.2*COUNTRY_INFO!G37),IF(COUNTRY_INFO!K37=3,COUNTRY_INFO!G37/(COUNTRY_INFO!F37+COUNTRY_INFO!G37)))),0) -> 0.4401243072 | AP37: =MAX(COUNTRY_INFO!D37*AK37*PROFILE!$G$7,COUNTRY_INFO!D37*AL37*PROFILE!$G$7) -> 0 | AQ37: =MAX(COUNTRY_INFO!D37*AK37*PROFILE!$G$8,COUNTRY_INFO!D37*AL37*PROFILE!$G$8,COUNTRY_INFO!D37*AM37*PROFILE!$G$8) -> 41966.78222 | AR37: =MAX(COUNTRY_INFO!D37*AK37*PROFILE!$G$9,COUNTRY_INFO!D37*AL37*PROFILE!$G$9,COUNTRY_INFO!D37*AM37*PROFILE!$G$9,IF(AND(DISTRICT!Z37<>"Unknown",Z37<>"Not required"),COUNTRY_INFO!O37*DISTRICT!AN37,0)) -> 103302.739 | AS37: =MAX(COUNTRY_INFO!D37*AK37*PROFILE!$G$10,COUNTRY_INFO!D37*AL37*PROFILE!$G$10,IF(AND(DISTRICT!Z37<>"Unknown",Z37<>"Not required"),COUNTRY_INFO!O37*DISTRICT!AO37,0)) -> 24903.11355 | AT37: 170172.6348 | AU37: Y | AV37: =MAX('MDA2'!J37,'T1'!L37,'T2'!J37,T3_R1!K37,T3_R2!K37) -> 44218 | AW37: =MAX('MDA1'!K37,'MDA2'!K37,'MDA3'!I37,'MDA3'!L37,'T1'!M37,'T2'!K37,T3_R1!L37,T3_R2!L37) -> 111225 | AX37: =MAX('MDA1'!L37,'MDA2'!L37,'MDA3'!J37,'MDA3'!M37,'T1'!N37,'T2'!L37,T3_R1!M37,T3_R2!M37) -> 0 | AY37: 155443 | AZ37: =MAX('MDA2'!J37,T37) -> 41967 | BA37: =MAX('MDA1'!K37,'MDA2'!K37,'MDA3'!I37,'MDA3'!L37,V37,AD37) -> 103303 | BB37: =MAX('MDA1'!L37,'MDA2'!L37,'MDA3'!J37,'MDA3'!M37,AF37) -> 0 | BC37: 145270 | BD37: 85.36625187
A38: =IF(COUNTRY_INFO!A38=0," ",COUNTRY_INFO!A38) -> Rwanda | B38: =IF(COUNTRY_INFO!B38=0," ",COUNTRY_INFO!B38) -> East | C38: =IF(COUNTRY_INFO!C38=0," ",COUNTRY_INFO!C38) -> Rwamagana | D38: =COUNTRY_INFO!L38 -> Not required | G38: =MAX('MDA1'!M38,'MDA2'!M38) -> 0 | H38: =IF(AND(COUNTRY_INFO!H38>0,COUNTRY_INFO!H38<4),IF(D38>MAX('MDA1'!M38,'MDA2'!M38),MAX('MDA1'!M38,'MDA2'!M38),D38),0) -> 0 | I38: =IF(AND(COUNTRY_INFO!H38>0,COUNTRY_INFO!H38<4), IF(G38/D38*100<>0, IF(G38/D38*100>100,100,G38/D38*100), "-"),0) -> 0 | J38: =COUNTRY_INFO!M38 -> Not required | M38: =MAX('MDA1'!M38,MAX('MDA3'!I38,'MDA3'!L38)+MAX('MDA3'!J38,'MDA3'!M38)) -> 0 | N38: =IF(AND(COUNTRY_INFO!I38>0,COUNTRY_INFO!I38<4),IF(J38>MAX('MDA1'!M38,MAX('MDA3'!I38,'MDA3'!L38)+MAX('MDA3'!J38,'MDA3'!M38)),MAX('MDA1'!M38,MAX('MDA3'!I38,'MDA3'!L38)+MAX('MDA3'!J38,'MDA3'!M38)),J38),0) -> 0 | O38: =IF(AND(COUNTRY_INFO!I38>0,COUNTRY_INFO!I38<4), IF(M38/J38*100<>0, IF(M38/J38*100>100,100,M38/J38*100), "-"),0) -> 0 | P38: =COUNTRY_INFO!N38 -> 0 | S38: =SUM(MAX('MDA2'!J38, 'T1'!L38, MAX(T3_R1!K38, T3_R2!K38)), MAX('MDA1'!K38, 'MDA2'!K38, 'T1'!M38, MAX(T3_R1!L38, T3_R2!L38)), MAX('MDA1'!L38, 'MDA2'!L38, 'T1'!N38, MAX(T3_R1!M38, T3_R2!M38))) -> 152547 | T38: =IF(AND(COUNTRY_INFO!J38>1,COUNTRY_INFO!J38<4),IF(COUNTRY_INFO!E38>MAX('MDA2'!J38,'T1'!L38,MAX(T3_R1!K38,T3_R2!K38)),MAX('MDA2'!J38,'T1'!L38,MAX(T3_R1!K38,T3_R2!K38)),COUNTRY_INFO!E38),0) -> 0 | U38: =IF(AND(COUNTRY_INFO!J38>1,COUNTRY_INFO!J38<4), IF(T38/COUNTRY_INFO!E38*100<>0, IF(T38/COUNTRY_INFO!E38*100>100,100,T38/COUNTRY_INFO!E38*100), "-"),0) -> 0 | V38: =IF(AND(COUNTRY_INFO!J38>1,COUNTRY_INFO!J38<4),IF(COUNTRY_INFO!F38>MAX('MDA1'!K38,'MDA2'!K38,'T1'!M38,MAX(T3_R1!L38,T3_R2!L38)),MAX('MDA1'!K38,'MDA2'!K38,'T1'!M38,MAX(T3_R1!L38,T3_R2!L38)),COUNTRY_INFO!F38),0) -> 0 | W38: =IF(AND(COUNTRY_INFO!J38>1,COUNTRY_INFO!J38<4), IF(V38/COUNTRY_INFO!F38*100<>0, IF(V38/COUNTRY_INFO!F38*100>100,100,V38/COUNTRY_INFO!F38*100), "-"),0) -> 0 | X38: 0 | Y38: =IF(AND(COUNTRY_INFO!J38>1,COUNTRY_INFO!J38<4), IF(S38/P38*100<>0, IF(X38/P38*100>100,100,X38/P38*100), "-"),0) -> 0 | Z38: =COUNTRY_INFO!O38 -> 53122 | AC38: =MAX('T1'!L38,'T2'!J38)+MAX('T1'!M38,'T2'!K38)+MAX('T1'!N38,'T2'!L38) -> 53227 | AD38: =IF(COUNTRY_INFO!K38=1,IF(COUNTRY_INFO!F38*0.33>MAX('T1'!M38,'T2'!K38),MAX('T1'!M38,'T2'!K38),COUNTRY_INFO!F38*0.33),IF(COUNTRY_INFO!K38=2,IF(COUNTRY_INFO!F38*0.5>MAX('T1'!M38,'T2'!K38),MAX('T1'!M38,'T2'!K38),COUNTRY_INFO!F38*0.5),IF(COUNTRY_INFO!K38=3,IF(COUNTRY_INFO!F38>MAX('T1'!M38,'T2'!K38),MAX('T1'!M38,'T2'!K38),COUNTRY_INFO!F38),0))) -> 52601 | AE38: =IF(AND(COUNTRY_INFO!K38>0,COUNTRY_INFO!K38<4),IF(Z38>0,IF(COUNTRY_INFO!K38=1, AD38/(COUNTRY_INFO!F38*0.33)*100, IF(COUNTRY_INFO!K38=2, AD38/(COUNTRY_INFO!F38*0.5)*100, IF(COUNTRY_INFO!K38=3, AD38/COUNTRY_INFO!F38*100))),"-"),0) -> 100 | AF38: =IF(COUNTRY_INFO!K38=2,IF(COUNTRY_INFO!G38*0.2>MAX('T1'!N38,'T2'!L38),MAX('T1'!N38,'T2'!L38),COUNTRY_INFO!G38*0.2),IF(COUNTRY_INFO!K38=3,IF(COUNTRY_INFO!G38>MAX('T1'!N38,'T2'!L38),MAX('T1'!N38,'T2'!L38),COUNTRY_INFO!G38),0)) -> 0 | AG38: =IF(AND(COUNTRY_INFO!K38>0,COUNTRY_INFO!K38<4),IF(Z38>0,IF(COUNTRY_INFO!K38=1, 0, IF(COUNTRY_INFO!K38=2, AF38/(COUNTRY_INFO!G38*0.2)*100, IF(COUNTRY_INFO!K38=3, AF38/COUNTRY_INFO!G38*100))),"-"),0) -> 0 | AH38: 52601 | AI38: =IF(AND(COUNTRY_INFO!K38>0,COUNTRY_INFO!K38<4), IF(AC38/Z38*100<>0, IF(AH38/Z38*100>100,100,AH38/Z38*100), "-"),0) -> 99.01923873 | AK38: =IF(AND(D38<>0, D38<>"Unknown",D38<>"Stopped",D38<>"Not required"),D38/COUNTRY_INFO!D38, 0) -> 0 | AL38: =IF(AND(J38<>0,J38<>"Unknown",J38<>"Stopped",J38<>"Not required"),J38/COUNTRY_INFO!D38, 0) -> 0 | AM38: =IF(AND(P38<>0,P38<>"Unknown",P38<>"Not required"),P38/(COUNTRY_INFO!E38+COUNTRY_INFO!F38), 0) -> 0 | AN38: =IF(AND(Z38<>0,Z38<>"Unknown",Z38<>"Not required"),IF(COUNTRY_INFO!K38=1,1,IF(COUNTRY_INFO!K38=2,0.5*COUNTRY_INFO!F38/(0.5*COUNTRY_INFO!F38+0.2*COUNTRY_INFO!G38),IF(COUNTRY_INFO!K38=3,COUNTRY_INFO!F38/(COUNTRY_INFO!F38+COUNTRY_INFO!G38)))),0) -> 0.5598757653 | AO38: =IF(AND(Z38<>0,Z38<>"Unknown",Z38<>"Not required"),IF(COUNTRY_INFO!K38=1,0,IF(COUNTRY_INFO!K38=2,0.2*COUNTRY_INFO!G38/(0.5*COUNTRY_INFO!F38+0.2*COUNTRY_INFO!G38),IF(COUNTRY_INFO!K38=3,COUNTRY_INFO!G38/(COUNTRY_INFO!F38+COUNTRY_INFO!G38)))),0) -> 0.4401242347 | AP38: =MAX(COUNTRY_INFO!D38*AK38*PROFILE!$G$7,COUNTRY_INFO!D38*AL38*PROFILE!$G$7) -> 0 | AQ38: =MAX(COUNTRY_INFO!D38*AK38*PROFILE!$G$8,COUNTRY_INFO!D38*AL38*PROFILE!$G$8,COUNTRY_INFO!D38*AM38*PROFILE!$G$8) -> 0 | AR38: =MAX(COUNTRY_INFO!D38*AK38*PROFILE!$G$9,COUNTRY_INFO!D38*AL38*PROFILE!$G$9,COUNTRY_INFO!D38*AM38*PROFILE!$G$9,IF(AND(DISTRICT!Z38<>"Unknown",Z38<>"Not required"),COUNTRY_INFO!O38*DISTRICT!AN38,0)) -> 29741.7204 | AS38: =MAX(COUNTRY_INFO!D38*AK38*PROFILE!$G$10,COUNTRY_INFO!D38*AL38*PROFILE!$G$10,IF(AND(DISTRICT!Z38<>"Unknown",Z38<>"Not required"),COUNTRY_INFO!O38*DISTRICT!AO38,0)) -> 23380.2796 | AT38: 53122 | AU38: Y | AV38: =MAX('MDA2'!J38,'T1'!L38,'T2'!J38,T3_R1!K38,T3_R2!K38) -> 44487 | AW38: =MAX('MDA1'!K38,'MDA2'!K38,'MDA3'!I38,'MDA3'!L38,'T1'!M38,'T2'!K38,T3_R1!L38,T3_R2!L38) -> 108060 | AX38: =MAX('MDA1'!L38,'MDA2'!L38,'MDA3'!J38,'MDA3'!M38,'T1'!N38,'T2'!L38,T3_R1!M38,T3_R2!M38) -> 0 | AY38: 152547 | AZ38: =MAX('MDA2'!J38,T38) -> 0 | BA38: =MAX('MDA1'!K38,'MDA2'!K38,'MDA3'!I38,'MDA3'!L38,V38,AD38) -> 52601 | BB38: =MAX('MDA1'!L38,'MDA2'!L38,'MDA3'!J38,'MDA3'!M38,AF38) -> 0 | BC38: 52601 | BD38: 99.01923873

Sheet SUMMARY
B2: PC Joint Reporting Form v.3.1
B4: Country | D4: =IF(INTRO!$E$34<>0,INTRO!$E$34," ") -> Rwanda | G4: Year | H4: =IF(INTRO!$E$36<>0,INTRO!$E$36," ") -> 2018
B6: National authorities are requested to complete the Joint Reporting Form (JRF) for submission to the World Health Organization any time before 15 August of the current year for reporting data on PC interventions implemented during the previous year.
B14: Number of people received treatment (at least once) for the diseases
E16: PreSAC | F16: SAC | G16: Adults | H16: Total
B17: Lymphatic filariasis | E17: 0 | F17: 0 | G17: 0 | H17: =SUM(E17:G17) -> 0
B18: Onchocerciasis | E18: Not eligible | F18: 0 | G18: 0 | H18: =SUM(E18:G18) -> 0
B19: Soil-transmitted helminthiases | E19: 1462977 | F19: 3676242 | G19: 144247 | H19: =SUM(E19:G19) -> 5283466
B20: Schistosomiasis | E20: Not targeted | F20: 1154088 | G20: 147965 | H20: =SUM(E20:G20) -> 1302053
B22: Coverage of PC interventions for the diseases (%)
G24: Geographical | H24: National
B25: Lymphatic filariasis | G25: 0 | H25: 0
B26: Onchocerciasis | G26: 0 | H26: 0
B27: Soil-transmitted helminthiases | G27: 100 | H27: 98.69042957
B28: Schistosomiasis | G28: 73.33333333 | H28: 79.01726989
B30: Number of people treated and programme coverage (%) by PC interventions
D32: PreSAC | E32: SAC | F32: Adults | G32: Total | H32: Coverage (%)
B33: MDA 1 (IVM+ALB) | D33: Not eligible | E33: ='MDA1'!$K$4 -> 0 | F33: ='MDA1'!$L$4 -> 0 | G33: ='MDA1'!$M$4 -> 0 | H33: ='MDA1'!$Q$4 -> 
B34: MDA 2 (DEC+ALB) | D34: ='MDA2'!$J$4 -> 0 | E34: ='MDA2'!$K$4 -> 0 | F34: ='MDA2'!$L$4 -> 0 | G34: ='MDA2'!$M$4 -> 0 | H34: ='MDA2'!$Q$4 -> 
B35: MDA 3 (IVM) | D35: Not eligible | E35: ='MDA3'!$O$4 -> 0 | F35: ='MDA3'!$P$4 -> 0 | G35: ='MDA3'!$Q$4 -> 0 | H35: ='MDA3'!$T$4 -> 
B36: T 1 (PZQ+ALB/MBD) | D36: =IF('T1'!$L$4<>0,'T1'!$L$4,"Not targeted") -> Not targeted | E36: ='T1'!$M$4 -> 0 | F36: =IF('T1'!$N$4<>0,'T1'!$N$4,"Not targeted") -> Not targeted | G36: ='T1'!$O$4 -> 0 | H36: ='T1'!$S$4 -> 
B37: T 2 (PZQ) | D37: =IF('T2'!$J$4<>0,'T2'!$J$4,"Not targeted") -> Not targeted | E37: ='T2'!$K$4 -> 1154088 | F37: ='T2'!$L$4 -> 147965 | G37: ='T2'!$M$4 -> 1302053 | H37: ='T2'!$Q$4 -> 101.1392068
B38: T 3 (ALB/MBD) - round 1 | D38: =T3_R1!$K$4 -> 1306669 | E38: =T3_R1!$L$4 -> 3545051 | F38: =IF(T3_R1!$M$4<>0,T3_R1!$M$4,"Not targeted") -> Not targeted | G38: =T3_R1!$N$4 -> 4851720 | H38: =T3_R1!$R$4 -> 99.08872731
B39: T 3 (ALB/MBD) - round 2 | D39: =T3_R2!$K$4 -> 1460923 | E39: =T3_R2!$L$4 -> 3599111 | F39: =IF(T3_R2!$M$4<>0,T3_R2!$M$4,"Not targeted") -> 144247 | G39: =T3_R2!$N$4 -> 5204281 | H39: =T3_R2!$R$4 -> 103.2439751
B41: Inventory of PC medicines in the country
C43: IVM | D43: DEC | E43: ALB (LF) | F43: ALB (STH) | G43: MBD | H43: PZQ
B44: Available | F44: 3794555 | H44: 1364853
B45: Distributed | F45: 6451555 | H45: 3403097.5
B46: Wasted | F46: 0 | H46: 37500
B47: Received | F47: 2657000 | H47: 2079000
B48: Remaining | C48: =C44-C45-C46+C47 -> 0 | D48: 0 | E48: 0 | F48: 0 | G48: 0 | H48: 3255.5
B50: Please indicate the medicine has been used to treat PreSAC for STH and delivery channels
B51: PC medicine | D51: Delivery channels | G51: Source
B53: Additional information
B55: In September 2018, an extra adult MDA has been conducted in Schistosomiasis endemic sectors of Gisagara District especially to distribute praziquantel that were near expiry date. Adults targeted were also given Albendazole.
D63: I have read and accept WHO Data Sharing Policy
B64: Name and signature of NTD coordinator or Ministry of Health representative: | D64: Dr Jeanine U. Condo, MD, PhD, Associate Professor of Public Health, Director General of RBC
B66: Date:
B68: Please send the national report (signed and in electronic format) to the concerned WR with copy to:
B70: WHO headquarters | D70: PC_JointForms@who.int
B71: WHO Regional Office | D71: Regional Advisor for NTD

Sheet PROFILE (hidden)
B2: PC Joint Reporting Form v.3.1 - Country Profile
B4: Country | D4: =IF(INTRO!$E$34<>0,INTRO!$E$34," ") -> Rwanda | G4: Year | H4: =IF(INTRO!$E$36<>0,INTRO!$E$36," ") -> 2018
B5: !!! WARNING !!! Before analysing data in the country profile please be ensure that your report in the SUMMARY tab is updated
B6: Total population | G6: 1 | H6: =COUNTRY_INFO!D4 -> 12089720
B7: Population — other age groups | G7: =IF($H$6<>0,H7/$H$6,0) -> 0.0289998445 | H7: =H6-SUM(H8:H10) -> 350600
B8: Population — Pre-SAC | D8: =INTRO!B48 -> 1-4 years age | G8: =IF($H$6<>0,H8/$H$6,0) -> 0.1170001456 | H8: =COUNTRY_INFO!E4 -> 1414499
B9: Population — SAC | D9: =INTRO!B49 -> 5-14 years age | G9: =IF($H$6<>0,H9/$H$6,0) -> 0.2880000529 | H9: =COUNTRY_INFO!F4 -> 3481840
B10: Population — Adults | D10: =INTRO!B50 -> 15 years + | G10: 0.565999957 | H10: =COUNTRY_INFO!G4 -> 6842781
B12: Total number of people requiring PC for at least one disease (LF, ONCHO, STH, SCH) | H12: =DISTRICT!AT6 -> 4334188.635
B13: Proportion of number of people requiring PC for at least one disease out of total population | H13: =IF(H6<>0,H12/H6,0) -> 0.3585019864
B14: Number of IUs requiring PC for at least one disease (LF, ONCHO, STH, SCH) | H14: =COUNTIF(DISTRICT!AT9:AT1000,">0") -> 28
B15: Number of IUs received PC for at least one disease (LF, ONCHO, STH, SCH) | H15: =COUNTIF(DISTRICT!AY9:AY1000,">0") -> 30
B16: Proportion of IUs requiring PC for at least one disease and received it | H16: =IF(H14<>0,H15/H14,0) -> 1.071428571
B17: Total number of people received PC for at least one disease (LF, ONCHO, STH, SCH) | H17: =DISTRICT!AY6 -> 5287184
B18: Total number of people in need who received PC for at least one disease (LF, ONCHO, STH, SCH) | H18: =DISTRICT!BC6 -> 3834572.629
B19: Coverage of PC for at least one disease (LF, ONCHO, STH, SCH) | H19: =DISTRICT!BD6 -> 0.8847267511
B20: Number of IUs received treatment for all diseases requiring PC in those IUs | H20: =DISTRICT!AU6 -> 28
B21: Population requiring PC in IUs which received treatment for all diseases in need of PC | H21: =SUMIF(DISTRICT!AU9:AU1000,"Y",DISTRICT!AT9:AT1000) -> 4334188.635
B22: Population received PC in IUs which were treated for all diseases in need of PC | H22: =SUMIF(DISTRICT!AU9:AU1000,"Y",DISTRICT!AY9:AY1000) -> 4818157
E24: LF | F24: ONCHO | G24: STH | H24: SCH
B26: Diseases requiring PC in the country | E26: =IF(INTRO!E38="Endemic","Yes","No") -> No | F26: =IF(INTRO!E40="Endemic","Yes","No") -> No | G26: =IF(INTRO!E42="Endemic","Yes","No") -> Yes | H26: =IF(INTRO!E44="Endemic","Yes","No") -> Yes
B27: Number of implementation units (IUs) in the country | E27: =IF(E26="Yes",INTRO!$E$46,"-") -> - | F27: =IF(F26="Yes",INTRO!$E$46,"-") -> - | G27: =IF(G26="Yes",INTRO!$E$46,"-") -> 30 | H27: =IF(H26="Yes",INTRO!$E$46,"-") -> 30
B28: Number of IUs with endemicity status known | E28: =IF(E26="Yes",E27-E29,"-") -> - | F28: =IF(F26="Yes",F27-F29,"-") -> - | G28: =IF(G26="Yes",G27-G29,"-") -> 30 | H28: =IF(H26="Yes",H27-H29,"-") -> 30
B29: Number of IUs with endemicity status unknown | E29: =IF(E26="Yes",E27-(992-COUNTIF(COUNTRY_INFO!H$9:H$1000,""))+COUNTIF(COUNTRY_INFO!H$9:H$1000,"=4"),"-") -> - | F29: =IF(F26="Yes",F27-(992-COUNTIF(COUNTRY_INFO!I$9:I$1000,""))+COUNTIF(COUNTRY_INFO!I$9:I$1000,"=4"),"-") -> - | G29: =IF(G26="Yes",G27-(992-COUNTIF(COUNTRY_INFO!J$9:J$1000,""))+COUNTIF(COUNTRY_INFO!J$9:J$1000,"=4")+COUNTIF(COUNTRY_INFO!J$9:J$1000,"=5"),"-") -> 0 | H29: =IF(H26="Yes",H27-(992-COUNTIF(COUNTRY_INFO!K$9:K$1000,""))+COUNTIF(COUNTRY_INFO!K$9:K$1000,"=4")+COUNTIF(COUNTRY_INFO!K$9:K$1000,"=5"),"-") -> 0
B30: Number of non-endemic IUs | E30: =IF(E26="Yes",COUNTIF(COUNTRY_INFO!H$9:H$1000,"=0"),"-") -> - | F30: =IF(F26="Yes",COUNTIF(COUNTRY_INFO!I$9:I$1000,"=0"),"-") -> - | G30: =IF(G26="Yes",COUNTIF(COUNTRY_INFO!J$9:J$1000,"=0"),"-") -> 0 | H30: =IF(H26="Yes",COUNTIF(COUNTRY_INFO!K$9:K$1000,"=0"),"-") -> 0
B31: Number of IUs requiring PC (total) | E31: =COUNTIF(COUNTRY_INFO!H$9:H$1000,"=1") -> 0 | F31: =COUNTIF(COUNTRY_INFO!I$9:I$1000,"=1") -> 0 | G31: =SUM(G33:G34) -> 23 | H31: =SUM(H32:H34) -> 30
D32: low prevalence | G32: =COUNTIF(COUNTRY_INFO!J$9:J$1000,"=1") -> 7 | H32: =COUNTIF(COUNTRY_INFO!K$9:K$1000,"=1") -> 8
D33: moderate prevalence | G33: =COUNTIF(COUNTRY_INFO!J$9:J$1000,"=2") -> 8 | H33: =COUNTIF(COUNTRY_INFO!K$9:K$1000,"=2") -> 22
D34: high prevalence | G34: =COUNTIF(COUNTRY_INFO!J$9:J$1000,"=3") -> 15 | H34: =COUNTIF(COUNTRY_INFO!K$9:K$1000,"=3") -> 0
B35: Population requiring PC in the country (total) | E35: =COUNTRY_INFO!L4 -> 0 | F35: =COUNTRY_INFO!M4 -> 0 | G35: =COUNTRY_INFO!N4 -> 3715035 | H35: =COUNTRY_INFO!O4 -> 1179683
C36: Pre-SAC | D36: moderate prevalence | G36: =SUMIF(COUNTRY_INFO!J$9:J$1000,"=2",COUNTRY_INFO!E$9:E$1000) -> 408469
D37: high prevalence | G37: =SUMIF(COUNTRY_INFO!J$9:J$1000,"=3",COUNTRY_INFO!E$9:E$1000) -> 664763
C38: SAC | D38: low prevalence | H38: =SUMIF(COUNTRY_INFO!K$9:K$1000,"=1",COUNTRY_INFO!F$9:F$1000)*0.33 -> 306997.35
D39: moderate prevalence | G39: =SUMIF(COUNTRY_INFO!J$9:J$1000,"=2",COUNTRY_INFO!F$9:F$1000) -> 1005461 | H39: =SUMIF(COUNTRY_INFO!K$9:K$1000,"=2",COUNTRY_INFO!F$9:F$1000)*0.5 -> 1275772.5
D40: high prevalence | G40: =SUMIF(COUNTRY_INFO!J$9:J$1000,"=3",COUNTRY_INFO!F$9:F$1000) -> 1636342 | H40: =SUMIF(COUNTRY_INFO!K$9:K$1000,"=3",COUNTRY_INFO!F$9:F$1000) -> 0
C41: Adults | D41: moderate prevalence | H41: =SUMIF(COUNTRY_INFO!K$9:K$1000,"=2",COUNTRY_INFO!G$9:G$1000)*0.2 -> 1002898.6
D42: high prevalence | H42: =SUMIF(COUNTRY_INFO!K$9:K$1000,"=3",COUNTRY_INFO!G$9:G$1000) -> 0
B43: Number of IUs where PC was implemented (total) | E43: =COUNTIF(DISTRICT!G$9:G$1000,">0") -> 0 | F43: =COUNTIF(DISTRICT!M$9:M$1000,">0") -> 0 | G43: =COUNTIF(DISTRICT!S$9:S$1000,">0") -> 30 | H43: =COUNTIF(DISTRICT!AC$9:AC$1000,">0") -> 22
B44: Number of IUs in need where PC was implemented (total) | E44: =COUNTIF(DISTRICT!H$9:H$1000,">0") -> 0 | F44: =COUNTIF(DISTRICT!N$9:N$1000,">0") -> 0 | G44: =COUNTIF(DISTRICT!X$9:X$1000,">0") -> 23 | H44: =COUNTIF(DISTRICT!AH$9:AH$1000,">0") -> 22
C45: Pre-SAC | G45: =COUNTIF(DISTRICT!T$9:T$1000,">0") -> 23
C46: SAC | G46: =COUNTIF(DISTRICT!V$9:V$1000,">0") -> 23 | H46: =COUNTIF(DISTRICT!AD$9:AD$1000,">0") -> 22
C47: Adults | H47: =COUNTIF(DISTRICT!AF$9:AF$1000,">0") -> 1
B48: Number of individuals treated (total) | E48: =DISTRICT!G4 -> 0 | F48: =DISTRICT!M4 -> 0 | G48: =DISTRICT!S4 -> 5283466 | H48: =DISTRICT!AC4 -> 1302053
C49: Pre-SAC | E49: =SUMMARY!$E17 -> 0 | F49: =SUMMARY!$E18 -> Not eligible | G49: =SUMMARY!$E19 -> 1462977 | H49: =SUMMARY!$E20 -> Not targeted
C50: SAC | E50: =SUMMARY!$F17 -> 0 | F50: =SUMMARY!$F18 -> 0 | G50: =SUMMARY!$F19 -> 3676242 | H50: =SUMMARY!$F20 -> 1154088
C51: Adults | E51: =SUMMARY!$G17 -> 0 | F51: =SUMMARY!$G18 -> 0 | G51: =SUMMARY!$G19 -> 144247 | H51: =SUMMARY!$G20 -> 147965
B52: Number of individuals in need treated (total) | E52: =DISTRICT!H4 -> 0 | F52: =DISTRICT!N4 -> 0 | G52: =DISTRICT!X4 -> 3666384 | H52: =DISTRICT!AH4 -> 932153.3
C53: Pre-SAC | G53: =DISTRICT!T4 -> 1052158
C54: SAC | G54: =DISTRICT!V4 -> 2614226 | H54: =DISTRICT!AD4 -> 891417.5
C55: Adults | H55: =DISTRICT!AF4 -> 40735.8
B56: Geographical coverage (all ages) | E56: =IF(E31<>0,E44/E31,0) -> 0 | F56: =IF(F31<>0,F44/F31,0) -> 0 | G56: =IF(G31<>0,G44/G31,0) -> 1 | H56: =IF(H31<>0,H44/H31,0) -> 0.7333333333
C57: Pre-SAC | G57: =IF(G31<>0,G45/G31,0) -> 1
C58: SAC | G58: =IF(G31<>0,G46/G31,0) -> 1 | H58: =IF(H31<>0,H46/H31,0) -> 0.7333333333
C59: Adults | H59: =IF(SUM(H33:H34)<>0,H47/SUM(H33:H34),0) -> 0.04545454545
B60: National coverage (total) | E60: =IF(E35<>0,E52/E35,0) -> 0 | F60: =IF(F35<>0,F52/F35,0) -> 0 | G60: =IF(G35<>0,G52/G35,0) -> 0.9869042957 | H60: =IF(H35<>0,H52/H35,0) -> 0.7901726989
C61: Pre-SAC | G61: =IF(SUM(G36:G37)<>0,G53/SUM(G36:G37),0) -> 0.9803639847
C62: SAC | G62: =IF(SUM(G39:G40)<>0,G54/SUM(G39:G40),0) -> 0.9895612958 | H62: =IF(SUM(H38:H40)<>0,H54/SUM(H38:H40),0) -> 0.5632009606
C63: Adults | H63: =IF(SUM(H41:H42)<>0,H55/SUM(H41:H42),0) -> 0.04061806448
E64: LF | F64: ONCHO | G64: STH | H64: SCH
B66: Number of IUs achieved effective coverage (all ages) | E66: =COUNTIF(DISTRICT!I$9:I$1000,">=65") -> 0 | F66: =COUNTIF(DISTRICT!O$9:O$1000,">=65") -> 0 | G66: =COUNTIF(DISTRICT!Y$9:Y$1000,">=75") -> 23 | H66: =COUNTIF(DISTRICT!AI$9:AI$1000,">=75") -> 15
C67: Pre-SAC | G67: =COUNTIF(DISTRICT!U$9:U$1000,">=75") -> 23
C68: SAC | G68: =COUNTIF(DISTRICT!W$9:W$1000,">=75") -> 23 | H68: =COUNTIF(DISTRICT!AE$9:AE$1000,">=75") -> 11
C69: Adults | H69: =COUNTIF(DISTRICT!AG$9:AG$1000,">=75") -> 1
B70: Number of individuals in need treated in IUs achieved effective coverage (total) | E70: =SUMIF(DISTRICT!I9:I1000,">=65",DISTRICT!H9:H1000) -> 0 | F70: =SUMIF(DISTRICT!O9:O1000,">=65",DISTRICT!N9:N1000) -> 0 | G70: =SUMIF(DISTRICT!Y9:Y1000,">=75",DISTRICT!X9:X1000) -> 3666384 | H70: =SUMIF(DISTRICT!AI9:AI1000,">=75",DISTRICT!AH9:AH1000) -> 572676.8
C71: Pre-SAC | G71: =SUMIF(DISTRICT!U9:U1000,">=75",DISTRICT!T9:T1000) -> 1052158
C72: SAC | G72: =SUMIF(DISTRICT!W9:W1000,">=75",DISTRICT!V9:V1000) -> 2614226 | H72: =SUMIF(DISTRICT!AE9:AE1000,">=75",DISTRICT!AD9:AD1000) -> 636864.5
C73: Adults | H73: =SUMIF(DISTRICT!AG9:AG1000,">=75",DISTRICT!AF9:AF1000) -> 40735.8
B74: Proportion of IUs requiring PC and achieved effective coverage (total) | E74: =IF(E44<>0,E66/E44,0) -> 0 | F74: =IF(F44<>0,F66/F44,0) -> 0 | G74: =IF(G44<>0,G66/G44,0) -> 1 | H74: =IF(H44<>0,H66/H44,0) -> 0.6818181818
C75: Pre-SAC | G75: =IF(G45<>0,G67/G45,0) -> 1
C76: SAC | G76: =IF(G46<>0,G68/G46,0) -> 1 | H76: =IF(H46<>0,H68/H46,0) -> 0.5
C77: Adults | H77: =IF(H47<>0,H69/H47,0) -> 1
B78: Number of implementation units where PC was stopped (i.e. under surveillance) | E78: =COUNTIF(COUNTRY_INFO!H$9:H$1000,"=99") -> 0 | F78: =COUNTIF(COUNTRY_INFO!I$9:I$1000,"=99") -> 0
B79: Number of individuals in IUs no longer requiring PC (stopped) | E79: =SUMIF(COUNTRY_INFO!H$9:H$1000,"=99",COUNTRY_INFO!D$9:D$1000) -> 0 | F79: =SUMIF(COUNTRY_INFO!I$9:I$1000,"=99",COUNTRY_INFO!D$9:D$1000) -> 0
B80: Number of individuals requiring PC living in IUs targeted with PC | E80: =SUMIF(DISTRICT!H$9:H$1000,">0",DISTRICT!D$9:D$1000) -> 0 | F80: =SUMIF(DISTRICT!N$9:N$1000,">0",DISTRICT!J$9:J$1000) -> 0 | G80: =SUMIF(DISTRICT!X$9:X$1000,">0",DISTRICT!P$9:P$1000) -> 3715035 | H80: =SUMIF(DISTRICT!AH$9:AH$1000,">0",DISTRICT!Z$9:Z$1000) -> 1179683
B81: Number of individuals requiring PC living in IUs not targeted with PC | E81: =SUMIF(DISTRICT!H$9:H$1000,"=0",DISTRICT!D$9:D$1000) -> 0 | F81: =SUMIF(DISTRICT!N$9:N$1000,"=0",DISTRICT!J$9:J$1000) -> 0 | G81: =SUMIF(DISTRICT!X$9:X$1000,"=0",DISTRICT!P$9:P$1000) -> 0 | H81: =SUMIF(DISTRICT!AH$9:AH$1000,"=0",DISTRICT!Z$9:Z$1000) -> 0
E82: =E35-E52 -> 0 | F82: =F35-F52 -> 0 | G82: 48651 | H82: 247529.7
B83: Number of IUs requiring and receiving PC | E83: =E31-E44 -> 0 | F83: =F31-F44 -> 0 | G83: 0 | H83: 8
E84: =E27-E31-E29 ->  | G84: 7 | H84: =H27-H31-H29 -> 0
G86: Requiring and receiving PC
G87: Requiring and not receiving PC
G88: Not requiring PC
G89: Status unknown
B124: Click here to access data Preventive Chemotherapy Data Portal

Sheet DATA_POLICY (hidden)
B2: PC Joint Reporting Form v.3.1
B4: Country | D4: =IF(INTRO!$E$34<>0,INTRO!$E$34," ") -> Rwanda | G4: Year | H4: =IF(INTRO!$E$36<>0,INTRO!$E$36," ") -> 2018
B7: WHO Data Sharing Policy statement
B9: Data are the basis for all sound public health actions and the benefits of data sharing are widely recognized, including scientific and public health benefits. Whenever possible, WHO wishes to promote the sharing of health data, including but not restricted to surveillance and epidemiological data.
B14: ="In this connection, and without prejudice to information sharing and publication pursuant to legally binding instruments, by providing data to WHO, the Ministry of Health of " & D4 & ":" -> In this connection, and without prejudice to information sharing and publication pursuant to legally binding instruments, by providing data to WHO, the Ministry of Health of Rwanda:
B18: Confirms that all data to be supplied to WHO hereunder have been collected in accordance with applicable national laws, including data protection laws aimed at protecting the confidentiality of identifiable persons;
B23: ="Agrees that WHO shall be entitled, subject always to measures to ensure the ethical and secure use of the data, and subject always to an appropriate acknowledgement of "&D4&":" -> Agrees that WHO shall be entitled, subject always to measures to ensure the ethical and secure use of the data, and subject always to an appropriate acknowledgement of Rwanda:
C27: to publish the data, stripped of any personal identifiers and make the Data available to any interested party on request (to the extent they have not, or not yet, been published by WHO) on terms that allow non-commercial, not-for-profit use of the Data for public health purposes (provided always that publication of the Data shall remain under the control of WHO); to use, compile, aggregate, evaluate and analyse the Data and publish and disseminate the results thereof in conjunction with WHO’s work and in accordance with the Organization’s policies and practices.
B39: =CONCATENATE("Except where data sharing and publication is required under legally binding instruments (IHR, WHO Nomenclature Regulations 1967, etc.), the Ministry of Health of ", D4," may in respect of certain data opt out of (any part of) the above," & " by notifying WHO thereof in writing at the following address, provided that any such notification shall clearly identify the data in question and clearly indicate the scope of the opt-out (in reference to the above), " & "and provided that specific reasons shall be given for the opt out.") -> Except where data sharing and publication is required under legally binding instruments (IHR, WHO Nomenclature Regulations 1967, etc.), the Ministry of Health of Rwanda may in respect of certain data opt out of (any part of) the above, by notifying WHO thereof in writing at the following address, provided that any such notification shall clearly identify the data in question and clearly indicate the scope of the opt-out (in reference to the above), and provided that specific reasons shall be given for the opt out.
